Workbook

Sheet MOM
A1: =YEAR(表A_RAW!F2)&"年"&MONTH(表A_RAW!F2)&"月" -> 2023年10月
F2: 成長及衰退前五名之產業MOM%
A4: 成長前五名之產業 MOM% | C4: 該產業成長前五名之公司 MOM% | F4: 單月營收金額(千元) | G4: 本月與上月相較 | I4: 本月與去年同期相較 | K4: 累計營收金額(千元) | L4: 累計營收與去年同期相較
A5: 成長 排名 | B5: 產業 | C5: 排名 | D5: 公司代號&簡稱 | G5: 上月營收金額(千元) | H5: 較上月變動比率(%) | I5: 去年同期金額(千元) | J5: 較去年同期變動比率(%) | L5: 去年累計營收金額(千元) | M5: 較去年同期變動比率(%)
A6: 1 | B6: =VLOOKUP(A6,表B_RAW!N:P,3,0) -> 半導體 | C6: 1 | D6: =VLOOKUP($B$6&C6,表B_RAW!A:D,3,0) -> 3529 力旺 | F6: =IF(ISERROR(VLOOKUP($D6,表B_RAW!$C:$I,4,0)),"",VLOOKUP($D6,表B_RAW!$C:$I,4,0)) -> 495333 | G6: =IF(ISERROR(VLOOKUP($D6,表B_RAW!$C:$I,5,0)),"",VLOOKUP($D6,表B_RAW!$C:$I,5,0)) -> 95496 | H6: =IF(ISERROR(VLOOKUP($D6,表B_RAW!$C:$I,6,0)),"",VLOOKUP($D6,表B_RAW!$C:$I,6,0)/100) -> 4.187 | I6: =IF(ISERROR(VLOOKUP($D6,表A_RAW!$C:$I,5,0)),"",VLOOKUP($D6,表A_RAW!$C:$I,5,0)) -> 519769 | J6: =IF(ISERROR(VLOOKUP($D6,表A_RAW!$C:$I,7,0)),"",VLOOKUP($D6,表A_RAW!$C:$I,7,0)) -> -0.0470131924 | K6: =IF(ISERROR(VLOOKUP($D6,表C_RAW!$C:$I,4,0)),"",VLOOKUP($D6,表C_RAW!$C:$I,4,0)) -> 2646800 | L6: =IF(ISERROR(VLOOKUP($D6,表C_RAW!$C:$I,5,0)),"",VLOOKUP($D6,表C_RAW!$C:$I,5,0)) -> 2833776 | M6: =IF(ISERROR(VLOOKUP($D6,表C_RAW!$C:$I,6,0)),"",VLOOKUP($D6,表C_RAW!$C:$I,6,0)/100) -> -0.066
C7: 2 | D7: =VLOOKUP($B$6&C7,表B_RAW!A:D,3,0) -> 5314 世紀 | F7: =IF(ISERROR(VLOOKUP($D7,表B_RAW!$C:$I,4,0)),"",VLOOKUP($D7,表B_RAW!$C:$I,4,0)) -> 12753 | G7: =IF(ISERROR(VLOOKUP($D7,表B_RAW!$C:$I,5,0)),"",VLOOKUP($D7,表B_RAW!$C:$I,5,0)) -> 2654 | H7: =IF(ISERROR(VLOOKUP($D7,表B_RAW!$C:$I,6,0)),"",VLOOKUP($D7,表B_RAW!$C:$I,6,0)/100) -> 3.8052 | I7: =IF(ISERROR(VLOOKUP($D7,表A_RAW!$C:$I,5,0)),"",VLOOKUP($D7,表A_RAW!$C:$I,5,0)) -> 57 | J7: =IF(ISERROR(VLOOKUP($D7,表A_RAW!$C:$I,7,0)),"",VLOOKUP($D7,表A_RAW!$C:$I,7,0)) -> 222.7368421 | K7: =IF(ISERROR(VLOOKUP($D7,表C_RAW!$C:$I,4,0)),"",VLOOKUP($D7,表C_RAW!$C:$I,4,0)) -> 17193 | L7: =IF(ISERROR(VLOOKUP($D7,表C_RAW!$C:$I,5,0)),"",VLOOKUP($D7,表C_RAW!$C:$I,5,0)) -> 6288 | M7: =IF(ISERROR(VLOOKUP($D7,表C_RAW!$C:$I,6,0)),"",VLOOKUP($D7,表C_RAW!$C:$I,6,0)/100) -> 1.7343
C8: 3 | D8: =VLOOKUP($B$6&C8,表B_RAW!A:D,3,0) -> 6533 晶心科 | F8: =IF(ISERROR(VLOOKUP($D8,表B_RAW!$C:$I,4,0)),"",VLOOKUP($D8,表B_RAW!$C:$I,4,0)) -> 87927 | G8: =IF(ISERROR(VLOOKUP($D8,表B_RAW!$C:$I,5,0)),"",VLOOKUP($D8,表B_RAW!$C:$I,5,0)) -> 38265 | H8: =IF(ISERROR(VLOOKUP($D8,表B_RAW!$C:$I,6,0)),"",VLOOKUP($D8,表B_RAW!$C:$I,6,0)/100) -> 1.2978 | I8: =IF(ISERROR(VLOOKUP($D8,表A_RAW!$C:$I,5,0)),"",VLOOKUP($D8,表A_RAW!$C:$I,5,0)) -> 119422 | J8: =IF(ISERROR(VLOOKUP($D8,表A_RAW!$C:$I,7,0)),"",VLOOKUP($D8,表A_RAW!$C:$I,7,0)) -> -0.2637286262 | K8: =IF(ISERROR(VLOOKUP($D8,表C_RAW!$C:$I,4,0)),"",VLOOKUP($D8,表C_RAW!$C:$I,4,0)) -> 739758 | L8: =IF(ISERROR(VLOOKUP($D8,表C_RAW!$C:$I,5,0)),"",VLOOKUP($D8,表C_RAW!$C:$I,5,0)) -> 741726 | M8: =IF(ISERROR(VLOOKUP($D8,表C_RAW!$C:$I,6,0)),"",VLOOKUP($D8,表C_RAW!$C:$I,6,0)/100) -> -0.0027
B9: =VLOOKUP(A6,表B_RAW!N:T,7,0) -> 15.71 | C9: 4 | D9: =VLOOKUP($B$6&C9,表B_RAW!A:D,3,0) -> 3555 博士旺 | F9: =IF(ISERROR(VLOOKUP($D9,表B_RAW!$C:$I,4,0)),"",VLOOKUP($D9,表B_RAW!$C:$I,4,0)) -> 12918 | G9: =IF(ISERROR(VLOOKUP($D9,表B_RAW!$C:$I,5,0)),"",VLOOKUP($D9,表B_RAW!$C:$I,5,0)) -> 6409 | H9: =IF(ISERROR(VLOOKUP($D9,表B_RAW!$C:$I,6,0)),"",VLOOKUP($D9,表B_RAW!$C:$I,6,0)/100) -> 1.0156 | I9: =IF(ISERROR(VLOOKUP($D9,表A_RAW!$C:$I,5,0)),"",VLOOKUP($D9,表A_RAW!$C:$I,5,0)) -> 1037 | J9: =IF(ISERROR(VLOOKUP($D9,表A_RAW!$C:$I,7,0)),"",VLOOKUP($D9,表A_RAW!$C:$I,7,0)) -> 11.45708775 | K9: =IF(ISERROR(VLOOKUP($D9,表C_RAW!$C:$I,4,0)),"",VLOOKUP($D9,表C_RAW!$C:$I,4,0)) -> 27121 | L9: =IF(ISERROR(VLOOKUP($D9,表C_RAW!$C:$I,5,0)),"",VLOOKUP($D9,表C_RAW!$C:$I,5,0)) -> 18452 | M9: =IF(ISERROR(VLOOKUP($D9,表C_RAW!$C:$I,6,0)),"",VLOOKUP($D9,表C_RAW!$C:$I,6,0)/100) -> 0.4698
C10: 5 | D10: =VLOOKUP($B$6&C10,表B_RAW!A:D,3,0) -> 2330 台積電 | F10: =IF(ISERROR(VLOOKUP($D10,表B_RAW!$C:$I,4,0)),"",VLOOKUP($D10,表B_RAW!$C:$I,4,0)) -> 243202811 | G10: =IF(ISERROR(VLOOKUP($D10,表B_RAW!$C:$I,5,0)),"",VLOOKUP($D10,表B_RAW!$C:$I,5,0)) -> 180430282 | H10: =IF(ISERROR(VLOOKUP($D10,表B_RAW!$C:$I,6,0)),"",VLOOKUP($D10,表B_RAW!$C:$I,6,0)/100) -> 0.3479 | I10: =IF(ISERROR(VLOOKUP($D10,表A_RAW!$C:$I,5,0)),"",VLOOKUP($D10,表A_RAW!$C:$I,5,0)) -> 210265633 | J10: =IF(ISERROR(VLOOKUP($D10,表A_RAW!$C:$I,7,0)),"",VLOOKUP($D10,表A_RAW!$C:$I,7,0)) -> 0.1566455608 | K10: =IF(ISERROR(VLOOKUP($D10,表C_RAW!$C:$I,4,0)),"",VLOOKUP($D10,表C_RAW!$C:$I,4,0)) -> 1779409796 | L10: =IF(ISERROR(VLOOKUP($D10,表C_RAW!$C:$I,5,0)),"",VLOOKUP($D10,表C_RAW!$C:$I,5,0)) -> 1848625057 | M10: =IF(ISERROR(VLOOKUP($D10,表C_RAW!$C:$I,6,0)),"",VLOOKUP($D10,表C_RAW!$C:$I,6,0)/100) -> -0.0374
A11: 2 | B11: =VLOOKUP(A11,表B_RAW!N:P,3,0) -> 其他電子業 | C11: 1 | D11: =VLOOKUP($B$11&C11,表B_RAW!A:D,3,0) -> 3093 港建* | F11: =IF(ISERROR(VLOOKUP($D11,表B_RAW!$C:$I,4,0)),"",VLOOKUP($D11,表B_RAW!$C:$I,4,0)) -> 90755 | G11: =IF(ISERROR(VLOOKUP($D11,表B_RAW!$C:$I,5,0)),"",VLOOKUP($D11,表B_RAW!$C:$I,5,0)) -> 46530 | H11: =IF(ISERROR(VLOOKUP($D11,表B_RAW!$C:$I,6,0)),"",VLOOKUP($D11,表B_RAW!$C:$I,6,0)/100) -> 0.9505 | I11: =IF(ISERROR(VLOOKUP($D11,表A_RAW!$C:$I,5,0)),"",VLOOKUP($D11,表A_RAW!$C:$I,5,0)) -> 94066 | J11: =IF(ISERROR(VLOOKUP($D11,表A_RAW!$C:$I,7,0)),"",VLOOKUP($D11,表A_RAW!$C:$I,7,0)) -> -0.03519869028 | K11: =IF(ISERROR(VLOOKUP($D11,表C_RAW!$C:$I,4,0)),"",VLOOKUP($D11,表C_RAW!$C:$I,4,0)) -> 1489030 | L11: =IF(ISERROR(VLOOKUP($D11,表C_RAW!$C:$I,5,0)),"",VLOOKUP($D11,表C_RAW!$C:$I,5,0)) -> 2161333 | M11: =IF(ISERROR(VLOOKUP($D11,表C_RAW!$C:$I,6,0)),"",VLOOKUP($D11,表C_RAW!$C:$I,6,0)/100) -> -0.3111
C12: 2 | D12: =VLOOKUP($B$11&C12,表B_RAW!A:D,3,0) -> 4577 達航 | F12: =IF(ISERROR(VLOOKUP($D12,表B_RAW!$C:$I,4,0)),"",VLOOKUP($D12,表B_RAW!$C:$I,4,0)) -> 68338 | G12: =IF(ISERROR(VLOOKUP($D12,表B_RAW!$C:$I,5,0)),"",VLOOKUP($D12,表B_RAW!$C:$I,5,0)) -> 38465 | H12: =IF(ISERROR(VLOOKUP($D12,表B_RAW!$C:$I,6,0)),"",VLOOKUP($D12,表B_RAW!$C:$I,6,0)/100) -> 0.7766 | I12: =IF(ISERROR(VLOOKUP($D12,表A_RAW!$C:$I,5,0)),"",VLOOKUP($D12,表A_RAW!$C:$I,5,0)) -> 132816 | J12: =IF(ISERROR(VLOOKUP($D12,表A_RAW!$C:$I,7,0)),"",VLOOKUP($D12,表A_RAW!$C:$I,7,0)) -> -0.4854686182 | K12: =IF(ISERROR(VLOOKUP($D12,表C_RAW!$C:$I,4,0)),"",VLOOKUP($D12,表C_RAW!$C:$I,4,0)) -> 686520 | L12: =IF(ISERROR(VLOOKUP($D12,表C_RAW!$C:$I,5,0)),"",VLOOKUP($D12,表C_RAW!$C:$I,5,0)) -> 1399871 | M12: =IF(ISERROR(VLOOKUP($D12,表C_RAW!$C:$I,6,0)),"",VLOOKUP($D12,表C_RAW!$C:$I,6,0)/100) -> -0.5096
C13: 3 | D13: =VLOOKUP($B$11&C13,表B_RAW!A:D,3,0) -> 3018 隆銘綠能 | F13: =IF(ISERROR(VLOOKUP($D13,表B_RAW!$C:$I,4,0)),"",VLOOKUP($D13,表B_RAW!$C:$I,4,0)) -> 36025 | G13: =IF(ISERROR(VLOOKUP($D13,表B_RAW!$C:$I,5,0)),"",VLOOKUP($D13,表B_RAW!$C:$I,5,0)) -> 21083 | H13: =IF(ISERROR(VLOOKUP($D13,表B_RAW!$C:$I,6,0)),"",VLOOKUP($D13,表B_RAW!$C:$I,6,0)/100) -> 0.7087 | I13: =IF(ISERROR(VLOOKUP($D13,表A_RAW!$C:$I,5,0)),"",VLOOKUP($D13,表A_RAW!$C:$I,5,0)) -> 86749 | J13: =IF(ISERROR(VLOOKUP($D13,表A_RAW!$C:$I,7,0)),"",VLOOKUP($D13,表A_RAW!$C:$I,7,0)) -> -0.5847214377 | K13: =IF(ISERROR(VLOOKUP($D13,表C_RAW!$C:$I,4,0)),"",VLOOKUP($D13,表C_RAW!$C:$I,4,0)) -> 478345 | L13: =IF(ISERROR(VLOOKUP($D13,表C_RAW!$C:$I,5,0)),"",VLOOKUP($D13,表C_RAW!$C:$I,5,0)) -> 1205604 | M13: =IF(ISERROR(VLOOKUP($D13,表C_RAW!$C:$I,6,0)),"",VLOOKUP($D13,表C_RAW!$C:$I,6,0)/100) -> -0.6032
B14: =VLOOKUP(A11,表B_RAW!N:T,7,0) -> 9.8 | C14: 4 | D14: =VLOOKUP($B$11&C14,表B_RAW!A:D,3,0) -> 6735 美達科技 | F14: =IF(ISERROR(VLOOKUP($D14,表B_RAW!$C:$I,4,0)),"",VLOOKUP($D14,表B_RAW!$C:$I,4,0)) -> 34574 | G14: =IF(ISERROR(VLOOKUP($D14,表B_RAW!$C:$I,5,0)),"",VLOOKUP($D14,表B_RAW!$C:$I,5,0)) -> 20917 | H14: =IF(ISERROR(VLOOKUP($D14,表B_RAW!$C:$I,6,0)),"",VLOOKUP($D14,表B_RAW!$C:$I,6,0)/100) -> 0.6529 | I14: =IF(ISERROR(VLOOKUP($D14,表A_RAW!$C:$I,5,0)),"",VLOOKUP($D14,表A_RAW!$C:$I,5,0)) -> 30238 | J14: =IF(ISERROR(VLOOKUP($D14,表A_RAW!$C:$I,7,0)),"",VLOOKUP($D14,表A_RAW!$C:$I,7,0)) -> 0.1433957272 | K14: =IF(ISERROR(VLOOKUP($D14,表C_RAW!$C:$I,4,0)),"",VLOOKUP($D14,表C_RAW!$C:$I,4,0)) -> 158569 | L14: =IF(ISERROR(VLOOKUP($D14,表C_RAW!$C:$I,5,0)),"",VLOOKUP($D14,表C_RAW!$C:$I,5,0)) -> 401262 | M14: =IF(ISERROR(VLOOKUP($D14,表C_RAW!$C:$I,6,0)),"",VLOOKUP($D14,表C_RAW!$C:$I,6,0)/100) -> -0.6048
C15: 5 | D15: =VLOOKUP($B$11&C15,表B_RAW!A:D,3,0) -> 6512 啟發電 | F15: =IF(ISERROR(VLOOKUP($D15,表B_RAW!$C:$I,4,0)),"",VLOOKUP($D15,表B_RAW!$C:$I,4,0)) -> 23565 | G15: =IF(ISERROR(VLOOKUP($D15,表B_RAW!$C:$I,5,0)),"",VLOOKUP($D15,表B_RAW!$C:$I,5,0)) -> 15788 | H15: =IF(ISERROR(VLOOKUP($D15,表B_RAW!$C:$I,6,0)),"",VLOOKUP($D15,表B_RAW!$C:$I,6,0)/100) -> 0.4926 | I15: =IF(ISERROR(VLOOKUP($D15,表A_RAW!$C:$I,5,0)),"",VLOOKUP($D15,表A_RAW!$C:$I,5,0)) -> 37990 | J15: =IF(ISERROR(VLOOKUP($D15,表A_RAW!$C:$I,7,0)),"",VLOOKUP($D15,表A_RAW!$C:$I,7,0)) -> -0.3797051856 | K15: =IF(ISERROR(VLOOKUP($D15,表C_RAW!$C:$I,4,0)),"",VLOOKUP($D15,表C_RAW!$C:$I,4,0)) -> 210801 | L15: =IF(ISERROR(VLOOKUP($D15,表C_RAW!$C:$I,5,0)),"",VLOOKUP($D15,表C_RAW!$C:$I,5,0)) -> 285468 | M15: =IF(ISERROR(VLOOKUP($D15,表C_RAW!$C:$I,6,0)),"",VLOOKUP($D15,表C_RAW!$C:$I,6,0)/100) -> -0.2616
A16: 3 | B16: =VLOOKUP(A16,表B_RAW!N:P,3,0) -> 觀光餐旅 | C16: 1 | D16: =VLOOKUP($B$16&C16,表B_RAW!A:D,3,0) -> 3522 御頂 | F16: =IF(ISERROR(VLOOKUP($D16,表B_RAW!$C:$I,4,0)),"",VLOOKUP($D16,表B_RAW!$C:$I,4,0)) -> 67698 | G16: =IF(ISERROR(VLOOKUP($D16,表B_RAW!$C:$I,5,0)),"",VLOOKUP($D16,表B_RAW!$C:$I,5,0)) -> 38234 | H16: =IF(ISERROR(VLOOKUP($D16,表B_RAW!$C:$I,6,0)),"",VLOOKUP($D16,表B_RAW!$C:$I,6,0)/100) -> 0.7706 | I16: =IF(ISERROR(VLOOKUP($D16,表A_RAW!$C:$I,5,0)),"",VLOOKUP($D16,表A_RAW!$C:$I,5,0)) -> 62839 | J16: =IF(ISERROR(VLOOKUP($D16,表A_RAW!$C:$I,7,0)),"",VLOOKUP($D16,表A_RAW!$C:$I,7,0)) -> 0.07732459142 | K16: =IF(ISERROR(VLOOKUP($D16,表C_RAW!$C:$I,4,0)),"",VLOOKUP($D16,表C_RAW!$C:$I,4,0)) -> 568782 | L16: =IF(ISERROR(VLOOKUP($D16,表C_RAW!$C:$I,5,0)),"",VLOOKUP($D16,表C_RAW!$C:$I,5,0)) -> 485879 | M16: =IF(ISERROR(VLOOKUP($D16,表C_RAW!$C:$I,6,0)),"",VLOOKUP($D16,表C_RAW!$C:$I,6,0)/100) -> 0.1706
C17: 2 | D17: =VLOOKUP($B$16&C17,表B_RAW!A:D,3,0) -> 8940 新天地 | F17: =IF(ISERROR(VLOOKUP($D17,表B_RAW!$C:$I,4,0)),"",VLOOKUP($D17,表B_RAW!$C:$I,4,0)) -> 158633 | G17: =IF(ISERROR(VLOOKUP($D17,表B_RAW!$C:$I,5,0)),"",VLOOKUP($D17,表B_RAW!$C:$I,5,0)) -> 90832 | H17: =IF(ISERROR(VLOOKUP($D17,表B_RAW!$C:$I,6,0)),"",VLOOKUP($D17,表B_RAW!$C:$I,6,0)/100) -> 0.7464 | I17: =IF(ISERROR(VLOOKUP($D17,表A_RAW!$C:$I,5,0)),"",VLOOKUP($D17,表A_RAW!$C:$I,5,0)) -> 98033 | J17: =IF(ISERROR(VLOOKUP($D17,表A_RAW!$C:$I,7,0)),"",VLOOKUP($D17,表A_RAW!$C:$I,7,0)) -> 0.6181591913 | K17: =IF(ISERROR(VLOOKUP($D17,表C_RAW!$C:$I,4,0)),"",VLOOKUP($D17,表C_RAW!$C:$I,4,0)) -> 1179952 | L17: =IF(ISERROR(VLOOKUP($D17,表C_RAW!$C:$I,5,0)),"",VLOOKUP($D17,表C_RAW!$C:$I,5,0)) -> 692726 | M17: =IF(ISERROR(VLOOKUP($D17,表C_RAW!$C:$I,6,0)),"",VLOOKUP($D17,表C_RAW!$C:$I,6,0)/100) -> 0.7033
C18: 3 | D18: =VLOOKUP($B$16&C18,表B_RAW!A:D,3,0) -> 5704 老爺知 | F18: =IF(ISERROR(VLOOKUP($D18,表B_RAW!$C:$I,4,0)),"",VLOOKUP($D18,表B_RAW!$C:$I,4,0)) -> 37888 | G18: =IF(ISERROR(VLOOKUP($D18,表B_RAW!$C:$I,5,0)),"",VLOOKUP($D18,表B_RAW!$C:$I,5,0)) -> 25304 | H18: =IF(ISERROR(VLOOKUP($D18,表B_RAW!$C:$I,6,0)),"",VLOOKUP($D18,表B_RAW!$C:$I,6,0)/100) -> 0.4973 | I18: =IF(ISERROR(VLOOKUP($D18,表A_RAW!$C:$I,5,0)),"",VLOOKUP($D18,表A_RAW!$C:$I,5,0)) -> 38548 | J18: =IF(ISERROR(VLOOKUP($D18,表A_RAW!$C:$I,7,0)),"",VLOOKUP($D18,表A_RAW!$C:$I,7,0)) -> -0.01712151084 | K18: =IF(ISERROR(VLOOKUP($D18,表C_RAW!$C:$I,4,0)),"",VLOOKUP($D18,表C_RAW!$C:$I,4,0)) -> 378615 | L18: =IF(ISERROR(VLOOKUP($D18,表C_RAW!$C:$I,5,0)),"",VLOOKUP($D18,表C_RAW!$C:$I,5,0)) -> 392657 | M18: =IF(ISERROR(VLOOKUP($D18,表C_RAW!$C:$I,6,0)),"",VLOOKUP($D18,表C_RAW!$C:$I,6,0)/100) -> -0.0358
B19: =VLOOKUP(A16,表B_RAW!N:T,7,0) -> 9.26 | C19: 4 | D19: =VLOOKUP($B$16&C19,表B_RAW!A:D,3,0) -> 2743 山富 | F19: =IF(ISERROR(VLOOKUP($D19,表B_RAW!$C:$I,4,0)),"",VLOOKUP($D19,表B_RAW!$C:$I,4,0)) -> 748037 | G19: =IF(ISERROR(VLOOKUP($D19,表B_RAW!$C:$I,5,0)),"",VLOOKUP($D19,表B_RAW!$C:$I,5,0)) -> 531694 | H19: =IF(ISERROR(VLOOKUP($D19,表B_RAW!$C:$I,6,0)),"",VLOOKUP($D19,表B_RAW!$C:$I,6,0)/100) -> 0.4069 | I19: =IF(ISERROR(VLOOKUP($D19,表A_RAW!$C:$I,5,0)),"",VLOOKUP($D19,表A_RAW!$C:$I,5,0)) -> 75087 | J19: =IF(ISERROR(VLOOKUP($D19,表A_RAW!$C:$I,7,0)),"",VLOOKUP($D19,表A_RAW!$C:$I,7,0)) -> 8.962270433 | K19: =IF(ISERROR(VLOOKUP($D19,表C_RAW!$C:$I,4,0)),"",VLOOKUP($D19,表C_RAW!$C:$I,4,0)) -> 4034774 | L19: =IF(ISERROR(VLOOKUP($D19,表C_RAW!$C:$I,5,0)),"",VLOOKUP($D19,表C_RAW!$C:$I,5,0)) -> 323156 | M19: =IF(ISERROR(VLOOKUP($D19,表C_RAW!$C:$I,6,0)),"",VLOOKUP($D19,表C_RAW!$C:$I,6,0)/100) -> 11.4855
C20: 5 | D20: =VLOOKUP($B$16&C20,表B_RAW!A:D,3,0) -> 2745 五福 | F20: =IF(ISERROR(VLOOKUP($D20,表B_RAW!$C:$I,4,0)),"",VLOOKUP($D20,表B_RAW!$C:$I,4,0)) -> 664875 | G20: =IF(ISERROR(VLOOKUP($D20,表B_RAW!$C:$I,5,0)),"",VLOOKUP($D20,表B_RAW!$C:$I,5,0)) -> 476103 | H20: =IF(ISERROR(VLOOKUP($D20,表B_RAW!$C:$I,6,0)),"",VLOOKUP($D20,表B_RAW!$C:$I,6,0)/100) -> 0.3965 | I20: =IF(ISERROR(VLOOKUP($D20,表A_RAW!$C:$I,5,0)),"",VLOOKUP($D20,表A_RAW!$C:$I,5,0)) -> 31326 | J20: =IF(ISERROR(VLOOKUP($D20,表A_RAW!$C:$I,7,0)),"",VLOOKUP($D20,表A_RAW!$C:$I,7,0)) -> 20.2243823 | K20: =IF(ISERROR(VLOOKUP($D20,表C_RAW!$C:$I,4,0)),"",VLOOKUP($D20,表C_RAW!$C:$I,4,0)) -> 4056214 | L20: =IF(ISERROR(VLOOKUP($D20,表C_RAW!$C:$I,5,0)),"",VLOOKUP($D20,表C_RAW!$C:$I,5,0)) -> 133415 | M20: =IF(ISERROR(VLOOKUP($D20,表C_RAW!$C:$I,6,0)),"",VLOOKUP($D20,表C_RAW!$C:$I,6,0)/100) -> 29.403
A21: 4 | B21: =VLOOKUP(A21,表B_RAW!N:P,3,0) -> 生技醫療 | C21: 1 | D21: =VLOOKUP($B$21&C21,表B_RAW!A:D,3,0) -> 4164 承業醫 | F21: =IF(ISERROR(VLOOKUP($D21,表B_RAW!$C:$I,4,0)),"",VLOOKUP($D21,表B_RAW!$C:$I,4,0)) -> 703607 | G21: =IF(ISERROR(VLOOKUP($D21,表B_RAW!$C:$I,5,0)),"",VLOOKUP($D21,表B_RAW!$C:$I,5,0)) -> 266943 | H21: =IF(ISERROR(VLOOKUP($D21,表B_RAW!$C:$I,6,0)),"",VLOOKUP($D21,表B_RAW!$C:$I,6,0)/100) -> 1.6358 | I21: =IF(ISERROR(VLOOKUP($D21,表A_RAW!$C:$I,5,0)),"",VLOOKUP($D21,表A_RAW!$C:$I,5,0)) -> 237549 | J21: =IF(ISERROR(VLOOKUP($D21,表A_RAW!$C:$I,7,0)),"",VLOOKUP($D21,表A_RAW!$C:$I,7,0)) -> 1.961944694 | K21: =IF(ISERROR(VLOOKUP($D21,表C_RAW!$C:$I,4,0)),"",VLOOKUP($D21,表C_RAW!$C:$I,4,0)) -> 3127735 | L21: =IF(ISERROR(VLOOKUP($D21,表C_RAW!$C:$I,5,0)),"",VLOOKUP($D21,表C_RAW!$C:$I,5,0)) -> 2353381 | M21: =IF(ISERROR(VLOOKUP($D21,表C_RAW!$C:$I,6,0)),"",VLOOKUP($D21,表C_RAW!$C:$I,6,0)/100) -> 0.329
C22: 2 | D22: =VLOOKUP($B$21&C22,表B_RAW!A:D,3,0) -> 6733 博晟生醫 | F22: =IF(ISERROR(VLOOKUP($D22,表B_RAW!$C:$I,4,0)),"",VLOOKUP($D22,表B_RAW!$C:$I,4,0)) -> 17903 | G22: =IF(ISERROR(VLOOKUP($D22,表B_RAW!$C:$I,5,0)),"",VLOOKUP($D22,表B_RAW!$C:$I,5,0)) -> 6810 | H22: =IF(ISERROR(VLOOKUP($D22,表B_RAW!$C:$I,6,0)),"",VLOOKUP($D22,表B_RAW!$C:$I,6,0)/100) -> 1.6289 | I22: =IF(ISERROR(VLOOKUP($D22,表A_RAW!$C:$I,5,0)),"",VLOOKUP($D22,表A_RAW!$C:$I,5,0)) -> 2626 | J22: =IF(ISERROR(VLOOKUP($D22,表A_RAW!$C:$I,7,0)),"",VLOOKUP($D22,表A_RAW!$C:$I,7,0)) -> 5.817593298 | K22: =IF(ISERROR(VLOOKUP($D22,表C_RAW!$C:$I,4,0)),"",VLOOKUP($D22,表C_RAW!$C:$I,4,0)) -> 88390 | L22: =IF(ISERROR(VLOOKUP($D22,表C_RAW!$C:$I,5,0)),"",VLOOKUP($D22,表C_RAW!$C:$I,5,0)) -> 23081 | M22: =IF(ISERROR(VLOOKUP($D22,表C_RAW!$C:$I,6,0)),"",VLOOKUP($D22,表C_RAW!$C:$I,6,0)/100) -> 2.8296
C23: 3 | D23: =VLOOKUP($B$21&C23,表B_RAW!A:D,3,0) -> 6541 泰福-KY | F23: =IF(ISERROR(VLOOKUP($D23,表B_RAW!$C:$I,4,0)),"",VLOOKUP($D23,表B_RAW!$C:$I,4,0)) -> 707 | G23: =IF(ISERROR(VLOOKUP($D23,表B_RAW!$C:$I,5,0)),"",VLOOKUP($D23,表B_RAW!$C:$I,5,0)) -> 274 | H23: =IF(ISERROR(VLOOKUP($D23,表B_RAW!$C:$I,6,0)),"",VLOOKUP($D23,表B_RAW!$C:$I,6,0)/100) -> 1.5803 | I23: =IF(ISERROR(VLOOKUP($D23,表A_RAW!$C:$I,5,0)),"",VLOOKUP($D23,表A_RAW!$C:$I,5,0)) -> 2039 | J23: =IF(ISERROR(VLOOKUP($D23,表A_RAW!$C:$I,7,0)),"",VLOOKUP($D23,表A_RAW!$C:$I,7,0)) -> -0.6532614026 | K23: =IF(ISERROR(VLOOKUP($D23,表C_RAW!$C:$I,4,0)),"",VLOOKUP($D23,表C_RAW!$C:$I,4,0)) -> 53031 | L23: =IF(ISERROR(VLOOKUP($D23,表C_RAW!$C:$I,5,0)),"",VLOOKUP($D23,表C_RAW!$C:$I,5,0)) -> 16538 | M23: =IF(ISERROR(VLOOKUP($D23,表C_RAW!$C:$I,6,0)),"",VLOOKUP($D23,表C_RAW!$C:$I,6,0)/100) -> 2.2066
B24: =VLOOKUP(A21,表B_RAW!N:T,7,0) -> 5.28 | C24: 4 | D24: =VLOOKUP($B$21&C24,表B_RAW!A:D,3,0) -> 1762 中化生 | F24: =IF(ISERROR(VLOOKUP($D24,表B_RAW!$C:$I,4,0)),"",VLOOKUP($D24,表B_RAW!$C:$I,4,0)) -> 183897 | G24: =IF(ISERROR(VLOOKUP($D24,表B_RAW!$C:$I,5,0)),"",VLOOKUP($D24,表B_RAW!$C:$I,5,0)) -> 74242 | H24: =IF(ISERROR(VLOOKUP($D24,表B_RAW!$C:$I,6,0)),"",VLOOKUP($D24,表B_RAW!$C:$I,6,0)/100) -> 1.477 | I24: =IF(ISERROR(VLOOKUP($D24,表A_RAW!$C:$I,5,0)),"",VLOOKUP($D24,表A_RAW!$C:$I,5,0)) -> 219183 | J24: =IF(ISERROR(VLOOKUP($D24,表A_RAW!$C:$I,7,0)),"",VLOOKUP($D24,表A_RAW!$C:$I,7,0)) -> -0.1609887628 | K24: =IF(ISERROR(VLOOKUP($D24,表C_RAW!$C:$I,4,0)),"",VLOOKUP($D24,表C_RAW!$C:$I,4,0)) -> 1814986 | L24: =IF(ISERROR(VLOOKUP($D24,表C_RAW!$C:$I,5,0)),"",VLOOKUP($D24,表C_RAW!$C:$I,5,0)) -> 1793850 | M24: =IF(ISERROR(VLOOKUP($D24,表C_RAW!$C:$I,6,0)),"",VLOOKUP($D24,表C_RAW!$C:$I,6,0)/100) -> 0.0118
C25: 5 | D25: =VLOOKUP($B$21&C25,表B_RAW!A:D,3,0) -> 4142 國光生 | F25: =IF(ISERROR(VLOOKUP($D25,表B_RAW!$C:$I,4,0)),"",VLOOKUP($D25,表B_RAW!$C:$I,4,0)) -> 500691 | G25: =IF(ISERROR(VLOOKUP($D25,表B_RAW!$C:$I,5,0)),"",VLOOKUP($D25,表B_RAW!$C:$I,5,0)) -> 237281 | H25: =IF(ISERROR(VLOOKUP($D25,表B_RAW!$C:$I,6,0)),"",VLOOKUP($D25,表B_RAW!$C:$I,6,0)/100) -> 1.1101 | I25: =IF(ISERROR(VLOOKUP($D25,表A_RAW!$C:$I,5,0)),"",VLOOKUP($D25,表A_RAW!$C:$I,5,0)) -> 270805 | J25: =IF(ISERROR(VLOOKUP($D25,表A_RAW!$C:$I,7,0)),"",VLOOKUP($D25,表A_RAW!$C:$I,7,0)) -> 0.848898654 | K25: =IF(ISERROR(VLOOKUP($D25,表C_RAW!$C:$I,4,0)),"",VLOOKUP($D25,表C_RAW!$C:$I,4,0)) -> 1726295 | L25: =IF(ISERROR(VLOOKUP($D25,表C_RAW!$C:$I,5,0)),"",VLOOKUP($D25,表C_RAW!$C:$I,5,0)) -> 1937828 | M25: =IF(ISERROR(VLOOKUP($D25,表C_RAW!$C:$I,6,0)),"",VLOOKUP($D25,表C_RAW!$C:$I,6,0)/100) -> -0.1092
A26: 5 | B26: =VLOOKUP(A26,表B_RAW!N:P,3,0) -> 水泥工業 | C26: 1 | D26: =VLOOKUP($B$26&C26,表B_RAW!A:D,3,0) -> 1110 東泥 | F26: =IF(ISERROR(VLOOKUP($D26,表B_RAW!$C:$I,4,0)),"",VLOOKUP($D26,表B_RAW!$C:$I,4,0)) -> 191120 | G26: =IF(ISERROR(VLOOKUP($D26,表B_RAW!$C:$I,5,0)),"",VLOOKUP($D26,表B_RAW!$C:$I,5,0)) -> 169364 | H26: =IF(ISERROR(VLOOKUP($D26,表B_RAW!$C:$I,6,0)),"",VLOOKUP($D26,表B_RAW!$C:$I,6,0)/100) -> 0.1285 | I26: =IF(ISERROR(VLOOKUP($D26,表A_RAW!$C:$I,5,0)),"",VLOOKUP($D26,表A_RAW!$C:$I,5,0)) -> 197515 | J26: =IF(ISERROR(VLOOKUP($D26,表A_RAW!$C:$I,7,0)),"",VLOOKUP($D26,表A_RAW!$C:$I,7,0)) -> -0.0323772878 | K26: =IF(ISERROR(VLOOKUP($D26,表C_RAW!$C:$I,4,0)),"",VLOOKUP($D26,表C_RAW!$C:$I,4,0)) -> 1832642 | L26: =IF(ISERROR(VLOOKUP($D26,表C_RAW!$C:$I,5,0)),"",VLOOKUP($D26,表C_RAW!$C:$I,5,0)) -> 1428523 | M26: =IF(ISERROR(VLOOKUP($D26,表C_RAW!$C:$I,6,0)),"",VLOOKUP($D26,表C_RAW!$C:$I,6,0)/100) -> 0.2829
C27: 2 | D27: =VLOOKUP($B$26&C27,表B_RAW!A:D,3,0) -> 1108 幸福 | F27: =IF(ISERROR(VLOOKUP($D27,表B_RAW!$C:$I,4,0)),"",VLOOKUP($D27,表B_RAW!$C:$I,4,0)) -> 451146 | G27: =IF(ISERROR(VLOOKUP($D27,表B_RAW!$C:$I,5,0)),"",VLOOKUP($D27,表B_RAW!$C:$I,5,0)) -> 404171 | H27: =IF(ISERROR(VLOOKUP($D27,表B_RAW!$C:$I,6,0)),"",VLOOKUP($D27,表B_RAW!$C:$I,6,0)/100) -> 0.1162 | I27: =IF(ISERROR(VLOOKUP($D27,表A_RAW!$C:$I,5,0)),"",VLOOKUP($D27,表A_RAW!$C:$I,5,0)) -> 401202 | J27: =IF(ISERROR(VLOOKUP($D27,表A_RAW!$C:$I,7,0)),"",VLOOKUP($D27,表A_RAW!$C:$I,7,0)) -> 0.1244859198 | K27: =IF(ISERROR(VLOOKUP($D27,表C_RAW!$C:$I,4,0)),"",VLOOKUP($D27,表C_RAW!$C:$I,4,0)) -> 4141653 | L27: =IF(ISERROR(VLOOKUP($D27,表C_RAW!$C:$I,5,0)),"",VLOOKUP($D27,表C_RAW!$C:$I,5,0)) -> 3347381 | M27: =IF(ISERROR(VLOOKUP($D27,表C_RAW!$C:$I,6,0)),"",VLOOKUP($D27,表C_RAW!$C:$I,6,0)/100) -> 0.2373
C28: 3 | D28: =VLOOKUP($B$26&C28,表B_RAW!A:D,3,0) -> 1103 嘉泥 | F28: =IF(ISERROR(VLOOKUP($D28,表B_RAW!$C:$I,4,0)),"",VLOOKUP($D28,表B_RAW!$C:$I,4,0)) -> 257343 | G28: =IF(ISERROR(VLOOKUP($D28,表B_RAW!$C:$I,5,0)),"",VLOOKUP($D28,表B_RAW!$C:$I,5,0)) -> 232979 | H28: =IF(ISERROR(VLOOKUP($D28,表B_RAW!$C:$I,6,0)),"",VLOOKUP($D28,表B_RAW!$C:$I,6,0)/100) -> 0.1046 | I28: =IF(ISERROR(VLOOKUP($D28,表A_RAW!$C:$I,5,0)),"",VLOOKUP($D28,表A_RAW!$C:$I,5,0)) -> 209429 | J28: =IF(ISERROR(VLOOKUP($D28,表A_RAW!$C:$I,7,0)),"",VLOOKUP($D28,表A_RAW!$C:$I,7,0)) -> 0.2287839793 | K28: =IF(ISERROR(VLOOKUP($D28,表C_RAW!$C:$I,4,0)),"",VLOOKUP($D28,表C_RAW!$C:$I,4,0)) -> 2372574 | L28: =IF(ISERROR(VLOOKUP($D28,表C_RAW!$C:$I,5,0)),"",VLOOKUP($D28,表C_RAW!$C:$I,5,0)) -> 1803252 | M28: =IF(ISERROR(VLOOKUP($D28,表C_RAW!$C:$I,6,0)),"",VLOOKUP($D28,表C_RAW!$C:$I,6,0)/100) -> 0.3157
B29: =VLOOKUP(A26,表B_RAW!N:T,7,0) -> 4.73 | C29: 4 | D29: =VLOOKUP($B$26&C29,表B_RAW!A:D,3,0) -> 1109 信大 | F29: =IF(ISERROR(VLOOKUP($D29,表B_RAW!$C:$I,4,0)),"",VLOOKUP($D29,表B_RAW!$C:$I,4,0)) -> 531941 | G29: =IF(ISERROR(VLOOKUP($D29,表B_RAW!$C:$I,5,0)),"",VLOOKUP($D29,表B_RAW!$C:$I,5,0)) -> 490929 | H29: =IF(ISERROR(VLOOKUP($D29,表B_RAW!$C:$I,6,0)),"",VLOOKUP($D29,表B_RAW!$C:$I,6,0)/100) -> 0.0835 | I29: =IF(ISERROR(VLOOKUP($D29,表A_RAW!$C:$I,5,0)),"",VLOOKUP($D29,表A_RAW!$C:$I,5,0)) -> 527209 | J29: =IF(ISERROR(VLOOKUP($D29,表A_RAW!$C:$I,7,0)),"",VLOOKUP($D29,表A_RAW!$C:$I,7,0)) -> 0.008975567564 | K29: =IF(ISERROR(VLOOKUP($D29,表C_RAW!$C:$I,4,0)),"",VLOOKUP($D29,表C_RAW!$C:$I,4,0)) -> 5157727 | L29: =IF(ISERROR(VLOOKUP($D29,表C_RAW!$C:$I,5,0)),"",VLOOKUP($D29,表C_RAW!$C:$I,5,0)) -> 5202650 | M29: =IF(ISERROR(VLOOKUP($D29,表C_RAW!$C:$I,6,0)),"",VLOOKUP($D29,表C_RAW!$C:$I,6,0)/100) -> -0.0086
C30: 5 | D30: =VLOOKUP($B$26&C30,表B_RAW!A:D,3,0) -> 1101 台泥 | F30: =IF(ISERROR(VLOOKUP($D30,表B_RAW!$C:$I,4,0)),"",VLOOKUP($D30,表B_RAW!$C:$I,4,0)) -> 9371746 | G30: =IF(ISERROR(VLOOKUP($D30,表B_RAW!$C:$I,5,0)),"",VLOOKUP($D30,表B_RAW!$C:$I,5,0)) -> 8735157 | H30: =IF(ISERROR(VLOOKUP($D30,表B_RAW!$C:$I,6,0)),"",VLOOKUP($D30,表B_RAW!$C:$I,6,0)/100) -> 0.0729 | I30: =IF(ISERROR(VLOOKUP($D30,表A_RAW!$C:$I,5,0)),"",VLOOKUP($D30,表A_RAW!$C:$I,5,0)) -> 11368096 | J30: =IF(ISERROR(VLOOKUP($D30,表A_RAW!$C:$I,7,0)),"",VLOOKUP($D30,表A_RAW!$C:$I,7,0)) -> -0.1756098823 | K30: =IF(ISERROR(VLOOKUP($D30,表C_RAW!$C:$I,4,0)),"",VLOOKUP($D30,表C_RAW!$C:$I,4,0)) -> 90313749 | L30: =IF(ISERROR(VLOOKUP($D30,表C_RAW!$C:$I,5,0)),"",VLOOKUP($D30,表C_RAW!$C:$I,5,0)) -> 90710057 | M30: =IF(ISERROR(VLOOKUP($D30,表C_RAW!$C:$I,6,0)),"",VLOOKUP($D30,表C_RAW!$C:$I,6,0)/100) -> -0.0044
A32: 衰退前五名之產業 MOM% | C32: 該產業衰退前五名之公司 MOM% | F32: 單月營收金額(千元) | G32: 本月與上月相較 | I32: 本月與去年同期相較 | K32: 累計營收金額(千元) | L32: 累計營收與去年同期相較
A33: 衰退 排名 | B33: 產業 | C33: 排名 | D33: 公司代號&簡稱 | G33: 上月營收金額(千元) | H33: 較上月變動比率(%) | I33: 去年同期金額(千元) | J33: 較去年同期變動比率(%) | L33: 去年累計營收金額(千元) | M33: 較去年同期變動比率(%)
A34: 1 | B34: =VLOOKUP(A34,表B_RAW!O:P,2,0) -> 貿易百貨 | C34: 1 | D34: =VLOOKUP($B$34&C34,表B_RAW!B:D,2,0) -> 2905 三商 | F34: =IF(ISERROR(VLOOKUP($D34,表B_RAW!$C:$I,4,0)),"",VLOOKUP($D34,表B_RAW!$C:$I,4,0)) -> 12658497 | G34: =IF(ISERROR(VLOOKUP($D34,表B_RAW!$C:$I,5,0)),"",VLOOKUP($D34,表B_RAW!$C:$I,5,0)) -> 19245906 | H34: =IF(ISERROR(VLOOKUP($D34,表B_RAW!$C:$I,6,0)),"",VLOOKUP($D34,表B_RAW!$C:$I,6,0)/100) -> -0.3423 | I34: =IF(ISERROR(VLOOKUP($D34,表A_RAW!$C:$I,5,0)),"",VLOOKUP($D34,表A_RAW!$C:$I,5,0)) -> 19724877 | J34: =IF(ISERROR(VLOOKUP($D34,表A_RAW!$C:$I,7,0)),"",VLOOKUP($D34,表A_RAW!$C:$I,7,0)) -> -0.3582471009 | K34: =IF(ISERROR(VLOOKUP($D34,表C_RAW!$C:$I,4,0)),"",VLOOKUP($D34,表C_RAW!$C:$I,4,0)) -> 162278201 | L34: =IF(ISERROR(VLOOKUP($D34,表C_RAW!$C:$I,5,0)),"",VLOOKUP($D34,表C_RAW!$C:$I,5,0)) -> 207961333 | M34: =IF(ISERROR(VLOOKUP($D34,表C_RAW!$C:$I,6,0)),"",VLOOKUP($D34,表C_RAW!$C:$I,6,0)/100) -> -0.2197
C35: 2 | D35: =VLOOKUP($B$34&C35,表B_RAW!B:D,2,0) -> 2915 潤泰全 | F35: =IF(ISERROR(VLOOKUP($D35,表B_RAW!$C:$I,4,0)),"",VLOOKUP($D35,表B_RAW!$C:$I,4,0)) -> 184815 | G35: =IF(ISERROR(VLOOKUP($D35,表B_RAW!$C:$I,5,0)),"",VLOOKUP($D35,表B_RAW!$C:$I,5,0)) -> 232209 | H35: =IF(ISERROR(VLOOKUP($D35,表B_RAW!$C:$I,6,0)),"",VLOOKUP($D35,表B_RAW!$C:$I,6,0)/100) -> -0.2041 | I35: =IF(ISERROR(VLOOKUP($D35,表A_RAW!$C:$I,5,0)),"",VLOOKUP($D35,表A_RAW!$C:$I,5,0)) -> 230599 | J35: =IF(ISERROR(VLOOKUP($D35,表A_RAW!$C:$I,7,0)),"",VLOOKUP($D35,表A_RAW!$C:$I,7,0)) -> -0.1985437925 | K35: =IF(ISERROR(VLOOKUP($D35,表C_RAW!$C:$I,4,0)),"",VLOOKUP($D35,表C_RAW!$C:$I,4,0)) -> 2292830 | L35: =IF(ISERROR(VLOOKUP($D35,表C_RAW!$C:$I,5,0)),"",VLOOKUP($D35,表C_RAW!$C:$I,5,0)) -> 2446033 | M35: =IF(ISERROR(VLOOKUP($D35,表C_RAW!$C:$I,6,0)),"",VLOOKUP($D35,表C_RAW!$C:$I,6,0)/100) -> -0.0626
C36: 3 | D36: =VLOOKUP($B$34&C36,表B_RAW!B:D,2,0) -> 2908 特力 | F36: =IF(ISERROR(VLOOKUP($D36,表B_RAW!$C:$I,4,0)),"",VLOOKUP($D36,表B_RAW!$C:$I,4,0)) -> 2624842 | G36: =IF(ISERROR(VLOOKUP($D36,表B_RAW!$C:$I,5,0)),"",VLOOKUP($D36,表B_RAW!$C:$I,5,0)) -> 3245753 | H36: =IF(ISERROR(VLOOKUP($D36,表B_RAW!$C:$I,6,0)),"",VLOOKUP($D36,表B_RAW!$C:$I,6,0)/100) -> -0.1913 | I36: =IF(ISERROR(VLOOKUP($D36,表A_RAW!$C:$I,5,0)),"",VLOOKUP($D36,表A_RAW!$C:$I,5,0)) -> 2343427 | J36: =IF(ISERROR(VLOOKUP($D36,表A_RAW!$C:$I,7,0)),"",VLOOKUP($D36,表A_RAW!$C:$I,7,0)) -> 0.1200869496 | K36: =IF(ISERROR(VLOOKUP($D36,表C_RAW!$C:$I,4,0)),"",VLOOKUP($D36,表C_RAW!$C:$I,4,0)) -> 29666136 | L36: =IF(ISERROR(VLOOKUP($D36,表C_RAW!$C:$I,5,0)),"",VLOOKUP($D36,表C_RAW!$C:$I,5,0)) -> 31450771 | M36: =IF(ISERROR(VLOOKUP($D36,表C_RAW!$C:$I,6,0)),"",VLOOKUP($D36,表C_RAW!$C:$I,6,0)/100) -> -0.0567
B37: =VLOOKUP(A34,表B_RAW!O:T,6,0) -> -10.78 | C37: 4 | D37: =VLOOKUP($B$34&C37,表B_RAW!B:D,2,0) -> 2939 凱羿-KY | F37: =IF(ISERROR(VLOOKUP($D37,表B_RAW!$C:$I,4,0)),"",VLOOKUP($D37,表B_RAW!$C:$I,4,0)) -> 34142 | G37: =IF(ISERROR(VLOOKUP($D37,表B_RAW!$C:$I,5,0)),"",VLOOKUP($D37,表B_RAW!$C:$I,5,0)) -> 39362 | H37: =IF(ISERROR(VLOOKUP($D37,表B_RAW!$C:$I,6,0)),"",VLOOKUP($D37,表B_RAW!$C:$I,6,0)/100) -> -0.1326 | I37: =IF(ISERROR(VLOOKUP($D37,表A_RAW!$C:$I,5,0)),"",VLOOKUP($D37,表A_RAW!$C:$I,5,0)) -> 103168 | J37: =IF(ISERROR(VLOOKUP($D37,表A_RAW!$C:$I,7,0)),"",VLOOKUP($D37,表A_RAW!$C:$I,7,0)) -> -0.6690640509 | K37: =IF(ISERROR(VLOOKUP($D37,表C_RAW!$C:$I,4,0)),"",VLOOKUP($D37,表C_RAW!$C:$I,4,0)) -> 331120 | L37: =IF(ISERROR(VLOOKUP($D37,表C_RAW!$C:$I,5,0)),"",VLOOKUP($D37,表C_RAW!$C:$I,5,0)) -> 655487 | M37: =IF(ISERROR(VLOOKUP($D37,表C_RAW!$C:$I,6,0)),"",VLOOKUP($D37,表C_RAW!$C:$I,6,0)/100) -> -0.4948
C38: 5 | D38: =VLOOKUP($B$34&C38,表B_RAW!B:D,2,0) -> 8443 阿瘦 | F38: =IF(ISERROR(VLOOKUP($D38,表B_RAW!$C:$I,4,0)),"",VLOOKUP($D38,表B_RAW!$C:$I,4,0)) -> 94828 | G38: =IF(ISERROR(VLOOKUP($D38,表B_RAW!$C:$I,5,0)),"",VLOOKUP($D38,表B_RAW!$C:$I,5,0)) -> 108741 | H38: =IF(ISERROR(VLOOKUP($D38,表B_RAW!$C:$I,6,0)),"",VLOOKUP($D38,表B_RAW!$C:$I,6,0)/100) -> -0.1279 | I38: =IF(ISERROR(VLOOKUP($D38,表A_RAW!$C:$I,5,0)),"",VLOOKUP($D38,表A_RAW!$C:$I,5,0)) -> 90258 | J38: =IF(ISERROR(VLOOKUP($D38,表A_RAW!$C:$I,7,0)),"",VLOOKUP($D38,表A_RAW!$C:$I,7,0)) -> 0.0506326309 | K38: =IF(ISERROR(VLOOKUP($D38,表C_RAW!$C:$I,4,0)),"",VLOOKUP($D38,表C_RAW!$C:$I,4,0)) -> 982720 | L38: =IF(ISERROR(VLOOKUP($D38,表C_RAW!$C:$I,5,0)),"",VLOOKUP($D38,表C_RAW!$C:$I,5,0)) -> 1017499 | M38: =IF(ISERROR(VLOOKUP($D38,表C_RAW!$C:$I,6,0)),"",VLOOKUP($D38,表C_RAW!$C:$I,6,0)/100) -> -0.0342
A39: 2 | B39: =VLOOKUP(A39,表B_RAW!O:P,2,0) -> 電器電纜 | C39: 1 | D39: =VLOOKUP($B$39&C39,表B_RAW!B:D,2,0) -> 1618 合機 | F39: =IF(ISERROR(VLOOKUP($D39,表B_RAW!$C:$I,4,0)),"",VLOOKUP($D39,表B_RAW!$C:$I,4,0)) -> 190276 | G39: =IF(ISERROR(VLOOKUP($D39,表B_RAW!$C:$I,5,0)),"",VLOOKUP($D39,表B_RAW!$C:$I,5,0)) -> 478542 | H39: =IF(ISERROR(VLOOKUP($D39,表B_RAW!$C:$I,6,0)),"",VLOOKUP($D39,表B_RAW!$C:$I,6,0)/100) -> -0.6024 | I39: =IF(ISERROR(VLOOKUP($D39,表A_RAW!$C:$I,5,0)),"",VLOOKUP($D39,表A_RAW!$C:$I,5,0)) -> 335164 | J39: =IF(ISERROR(VLOOKUP($D39,表A_RAW!$C:$I,7,0)),"",VLOOKUP($D39,表A_RAW!$C:$I,7,0)) -> -0.4322898641 | K39: =IF(ISERROR(VLOOKUP($D39,表C_RAW!$C:$I,4,0)),"",VLOOKUP($D39,表C_RAW!$C:$I,4,0)) -> 3370820 | L39: =IF(ISERROR(VLOOKUP($D39,表C_RAW!$C:$I,5,0)),"",VLOOKUP($D39,表C_RAW!$C:$I,5,0)) -> 2380687 | M39: =IF(ISERROR(VLOOKUP($D39,表C_RAW!$C:$I,6,0)),"",VLOOKUP($D39,表C_RAW!$C:$I,6,0)/100) -> 0.4159
C40: 2 | D40: =VLOOKUP($B$39&C40,表B_RAW!B:D,2,0) -> 1603 華電 | F40: =IF(ISERROR(VLOOKUP($D40,表B_RAW!$C:$I,4,0)),"",VLOOKUP($D40,表B_RAW!$C:$I,4,0)) -> 360165 | G40: =IF(ISERROR(VLOOKUP($D40,表B_RAW!$C:$I,5,0)),"",VLOOKUP($D40,表B_RAW!$C:$I,5,0)) -> 621451 | H40: =IF(ISERROR(VLOOKUP($D40,表B_RAW!$C:$I,6,0)),"",VLOOKUP($D40,表B_RAW!$C:$I,6,0)/100) -> -0.4204 | I40: =IF(ISERROR(VLOOKUP($D40,表A_RAW!$C:$I,5,0)),"",VLOOKUP($D40,表A_RAW!$C:$I,5,0)) -> 254260 | J40: =IF(ISERROR(VLOOKUP($D40,表A_RAW!$C:$I,7,0)),"",VLOOKUP($D40,表A_RAW!$C:$I,7,0)) -> 0.4165224573 | K40: =IF(ISERROR(VLOOKUP($D40,表C_RAW!$C:$I,4,0)),"",VLOOKUP($D40,表C_RAW!$C:$I,4,0)) -> 3408365 | L40: =IF(ISERROR(VLOOKUP($D40,表C_RAW!$C:$I,5,0)),"",VLOOKUP($D40,表C_RAW!$C:$I,5,0)) -> 2710710 | M40: =IF(ISERROR(VLOOKUP($D40,表C_RAW!$C:$I,6,0)),"",VLOOKUP($D40,表C_RAW!$C:$I,6,0)/100) -> 0.2574
C41: 3 | D41: =VLOOKUP($B$39&C41,表B_RAW!B:D,2,0) -> 1626 艾美特-KY | F41: =IF(ISERROR(VLOOKUP($D41,表B_RAW!$C:$I,4,0)),"",VLOOKUP($D41,表B_RAW!$C:$I,4,0)) -> 410611 | G41: =IF(ISERROR(VLOOKUP($D41,表B_RAW!$C:$I,5,0)),"",VLOOKUP($D41,表B_RAW!$C:$I,5,0)) -> 524592 | H41: =IF(ISERROR(VLOOKUP($D41,表B_RAW!$C:$I,6,0)),"",VLOOKUP($D41,表B_RAW!$C:$I,6,0)/100) -> -0.2173 | I41: =IF(ISERROR(VLOOKUP($D41,表A_RAW!$C:$I,5,0)),"",VLOOKUP($D41,表A_RAW!$C:$I,5,0)) -> 488480 | J41: =IF(ISERROR(VLOOKUP($D41,表A_RAW!$C:$I,7,0)),"",VLOOKUP($D41,表A_RAW!$C:$I,7,0)) -> -0.1594108254 | K41: =IF(ISERROR(VLOOKUP($D41,表C_RAW!$C:$I,4,0)),"",VLOOKUP($D41,表C_RAW!$C:$I,4,0)) -> 7325109 | L41: =IF(ISERROR(VLOOKUP($D41,表C_RAW!$C:$I,5,0)),"",VLOOKUP($D41,表C_RAW!$C:$I,5,0)) -> 8280989 | M41: =IF(ISERROR(VLOOKUP($D41,表C_RAW!$C:$I,6,0)),"",VLOOKUP($D41,表C_RAW!$C:$I,6,0)/100) -> -0.1154
B42: =VLOOKUP(A39,表B_RAW!O:T,6,0) -> -9.89 | C42: 4 | D42: =VLOOKUP($B$39&C42,表B_RAW!B:D,2,0) -> 1614 三洋電 | F42: =IF(ISERROR(VLOOKUP($D42,表B_RAW!$C:$I,4,0)),"",VLOOKUP($D42,表B_RAW!$C:$I,4,0)) -> 351880 | G42: =IF(ISERROR(VLOOKUP($D42,表B_RAW!$C:$I,5,0)),"",VLOOKUP($D42,表B_RAW!$C:$I,5,0)) -> 429345 | H42: =IF(ISERROR(VLOOKUP($D42,表B_RAW!$C:$I,6,0)),"",VLOOKUP($D42,表B_RAW!$C:$I,6,0)/100) -> -0.1804 | I42: =IF(ISERROR(VLOOKUP($D42,表A_RAW!$C:$I,5,0)),"",VLOOKUP($D42,表A_RAW!$C:$I,5,0)) -> 420437 | J42: =IF(ISERROR(VLOOKUP($D42,表A_RAW!$C:$I,7,0)),"",VLOOKUP($D42,表A_RAW!$C:$I,7,0)) -> -0.163061291 | K42: =IF(ISERROR(VLOOKUP($D42,表C_RAW!$C:$I,4,0)),"",VLOOKUP($D42,表C_RAW!$C:$I,4,0)) -> 4921721 | L42: =IF(ISERROR(VLOOKUP($D42,表C_RAW!$C:$I,5,0)),"",VLOOKUP($D42,表C_RAW!$C:$I,5,0)) -> 5351443 | M42: =IF(ISERROR(VLOOKUP($D42,表C_RAW!$C:$I,6,0)),"",VLOOKUP($D42,表C_RAW!$C:$I,6,0)/100) -> -0.0803
C43: 5 | D43: =VLOOKUP($B$39&C43,表B_RAW!B:D,2,0) -> 1608 華榮 | F43: =IF(ISERROR(VLOOKUP($D43,表B_RAW!$C:$I,4,0)),"",VLOOKUP($D43,表B_RAW!$C:$I,4,0)) -> 747916 | G43: =IF(ISERROR(VLOOKUP($D43,表B_RAW!$C:$I,5,0)),"",VLOOKUP($D43,表B_RAW!$C:$I,5,0)) -> 905462 | H43: =IF(ISERROR(VLOOKUP($D43,表B_RAW!$C:$I,6,0)),"",VLOOKUP($D43,表B_RAW!$C:$I,6,0)/100) -> -0.174 | I43: =IF(ISERROR(VLOOKUP($D43,表A_RAW!$C:$I,5,0)),"",VLOOKUP($D43,表A_RAW!$C:$I,5,0)) -> 764354 | J43: =IF(ISERROR(VLOOKUP($D43,表A_RAW!$C:$I,7,0)),"",VLOOKUP($D43,表A_RAW!$C:$I,7,0)) -> -0.0215057421 | K43: =IF(ISERROR(VLOOKUP($D43,表C_RAW!$C:$I,4,0)),"",VLOOKUP($D43,表C_RAW!$C:$I,4,0)) -> 7935224 | L43: =IF(ISERROR(VLOOKUP($D43,表C_RAW!$C:$I,5,0)),"",VLOOKUP($D43,表C_RAW!$C:$I,5,0)) -> 9085426 | M43: =IF(ISERROR(VLOOKUP($D43,表C_RAW!$C:$I,6,0)),"",VLOOKUP($D43,表C_RAW!$C:$I,6,0)/100) -> -0.1266
A44: 3 | B44: =VLOOKUP(A44,表B_RAW!O:P,2,0) -> 油電燃氣業 | C44: 1 | D44: =VLOOKUP($B$44&C44,表B_RAW!B:D,2,0) -> 8926 台汽電 | F44: =IF(ISERROR(VLOOKUP($D44,表B_RAW!$C:$I,4,0)),"",VLOOKUP($D44,表B_RAW!$C:$I,4,0)) -> 325770 | G44: =IF(ISERROR(VLOOKUP($D44,表B_RAW!$C:$I,5,0)),"",VLOOKUP($D44,表B_RAW!$C:$I,5,0)) -> 661153 | H44: =IF(ISERROR(VLOOKUP($D44,表B_RAW!$C:$I,6,0)),"",VLOOKUP($D44,表B_RAW!$C:$I,6,0)/100) -> -0.5073 | I44: =IF(ISERROR(VLOOKUP($D44,表A_RAW!$C:$I,5,0)),"",VLOOKUP($D44,表A_RAW!$C:$I,5,0)) -> 337039 | J44: =IF(ISERROR(VLOOKUP($D44,表A_RAW!$C:$I,7,0)),"",VLOOKUP($D44,表A_RAW!$C:$I,7,0)) -> -0.03343529977 | K44: =IF(ISERROR(VLOOKUP($D44,表C_RAW!$C:$I,4,0)),"",VLOOKUP($D44,表C_RAW!$C:$I,4,0)) -> 4261018 | L44: =IF(ISERROR(VLOOKUP($D44,表C_RAW!$C:$I,5,0)),"",VLOOKUP($D44,表C_RAW!$C:$I,5,0)) -> 2942902 | M44: =IF(ISERROR(VLOOKUP($D44,表C_RAW!$C:$I,6,0)),"",VLOOKUP($D44,表C_RAW!$C:$I,6,0)/100) -> 0.4479
C45: 2 | D45: =VLOOKUP($B$44&C45,表B_RAW!B:D,2,0) -> 8908 欣雄 | F45: =IF(ISERROR(VLOOKUP($D45,表B_RAW!$C:$I,4,0)),"",VLOOKUP($D45,表B_RAW!$C:$I,4,0)) -> 520828 | G45: =IF(ISERROR(VLOOKUP($D45,表B_RAW!$C:$I,5,0)),"",VLOOKUP($D45,表B_RAW!$C:$I,5,0)) -> 586606 | H45: =IF(ISERROR(VLOOKUP($D45,表B_RAW!$C:$I,6,0)),"",VLOOKUP($D45,表B_RAW!$C:$I,6,0)/100) -> -0.1121 | I45: =IF(ISERROR(VLOOKUP($D45,表A_RAW!$C:$I,5,0)),"",VLOOKUP($D45,表A_RAW!$C:$I,5,0)) -> 586853 | J45: =IF(ISERROR(VLOOKUP($D45,表A_RAW!$C:$I,7,0)),"",VLOOKUP($D45,表A_RAW!$C:$I,7,0)) -> -0.1125068799 | K45: =IF(ISERROR(VLOOKUP($D45,表C_RAW!$C:$I,4,0)),"",VLOOKUP($D45,表C_RAW!$C:$I,4,0)) -> 5751019 | L45: =IF(ISERROR(VLOOKUP($D45,表C_RAW!$C:$I,5,0)),"",VLOOKUP($D45,表C_RAW!$C:$I,5,0)) -> 5970633 | M45: =IF(ISERROR(VLOOKUP($D45,表C_RAW!$C:$I,6,0)),"",VLOOKUP($D45,表C_RAW!$C:$I,6,0)/100) -> -0.0368
C46: 3 | D46: =VLOOKUP($B$44&C46,表B_RAW!B:D,2,0) -> 6505 台塑化 | F46: =IF(ISERROR(VLOOKUP($D46,表B_RAW!$C:$I,4,0)),"",VLOOKUP($D46,表B_RAW!$C:$I,4,0)) -> 64929770 | G46: =IF(ISERROR(VLOOKUP($D46,表B_RAW!$C:$I,5,0)),"",VLOOKUP($D46,表B_RAW!$C:$I,5,0)) -> 70376594 | H46: =IF(ISERROR(VLOOKUP($D46,表B_RAW!$C:$I,6,0)),"",VLOOKUP($D46,表B_RAW!$C:$I,6,0)/100) -> -0.0774 | I46: =IF(ISERROR(VLOOKUP($D46,表A_RAW!$C:$I,5,0)),"",VLOOKUP($D46,表A_RAW!$C:$I,5,0)) -> 69805243 | J46: =IF(ISERROR(VLOOKUP($D46,表A_RAW!$C:$I,7,0)),"",VLOOKUP($D46,表A_RAW!$C:$I,7,0)) -> -0.06984393708 | K46: =IF(ISERROR(VLOOKUP($D46,表C_RAW!$C:$I,4,0)),"",VLOOKUP($D46,表C_RAW!$C:$I,4,0)) -> 601627711 | L46: =IF(ISERROR(VLOOKUP($D46,表C_RAW!$C:$I,5,0)),"",VLOOKUP($D46,表C_RAW!$C:$I,5,0)) -> 723707067 | M46: =IF(ISERROR(VLOOKUP($D46,表C_RAW!$C:$I,6,0)),"",VLOOKUP($D46,表C_RAW!$C:$I,6,0)/100) -> -0.1687
B47: =VLOOKUP(A44,表B_RAW!O:T,6,0) -> -7.62 | C47: 4 | D47: =VLOOKUP($B$44&C47,表B_RAW!B:D,2,0) -> 8931 大汽電 | F47: =IF(ISERROR(VLOOKUP($D47,表B_RAW!$C:$I,4,0)),"",VLOOKUP($D47,表B_RAW!$C:$I,4,0)) -> 202430 | G47: =IF(ISERROR(VLOOKUP($D47,表B_RAW!$C:$I,5,0)),"",VLOOKUP($D47,表B_RAW!$C:$I,5,0)) -> 213032 | H47: =IF(ISERROR(VLOOKUP($D47,表B_RAW!$C:$I,6,0)),"",VLOOKUP($D47,表B_RAW!$C:$I,6,0)/100) -> -0.0498 | I47: =IF(ISERROR(VLOOKUP($D47,表A_RAW!$C:$I,5,0)),"",VLOOKUP($D47,表A_RAW!$C:$I,5,0)) -> 321598 | J47: =IF(ISERROR(VLOOKUP($D47,表A_RAW!$C:$I,7,0)),"",VLOOKUP($D47,表A_RAW!$C:$I,7,0)) -> -0.3705495681 | K47: =IF(ISERROR(VLOOKUP($D47,表C_RAW!$C:$I,4,0)),"",VLOOKUP($D47,表C_RAW!$C:$I,4,0)) -> 2309524 | L47: =IF(ISERROR(VLOOKUP($D47,表C_RAW!$C:$I,5,0)),"",VLOOKUP($D47,表C_RAW!$C:$I,5,0)) -> 2254998 | M47: =IF(ISERROR(VLOOKUP($D47,表C_RAW!$C:$I,6,0)),"",VLOOKUP($D47,表C_RAW!$C:$I,6,0)/100) -> 0.0242
C48: 5 | D48: =VLOOKUP($B$44&C48,表B_RAW!B:D,2,0) -> 8927 北基 | F48: =IF(ISERROR(VLOOKUP($D48,表B_RAW!$C:$I,4,0)),"",VLOOKUP($D48,表B_RAW!$C:$I,4,0)) -> 687823 | G48: =IF(ISERROR(VLOOKUP($D48,表B_RAW!$C:$I,5,0)),"",VLOOKUP($D48,表B_RAW!$C:$I,5,0)) -> 722730 | H48: =IF(ISERROR(VLOOKUP($D48,表B_RAW!$C:$I,6,0)),"",VLOOKUP($D48,表B_RAW!$C:$I,6,0)/100) -> -0.0483 | I48: =IF(ISERROR(VLOOKUP($D48,表A_RAW!$C:$I,5,0)),"",VLOOKUP($D48,表A_RAW!$C:$I,5,0)) -> 588220 | J48: =IF(ISERROR(VLOOKUP($D48,表A_RAW!$C:$I,7,0)),"",VLOOKUP($D48,表A_RAW!$C:$I,7,0)) -> 0.1693295026 | K48: =IF(ISERROR(VLOOKUP($D48,表C_RAW!$C:$I,4,0)),"",VLOOKUP($D48,表C_RAW!$C:$I,4,0)) -> 6352664 | L48: =IF(ISERROR(VLOOKUP($D48,表C_RAW!$C:$I,5,0)),"",VLOOKUP($D48,表C_RAW!$C:$I,5,0)) -> 5583149 | M48: =IF(ISERROR(VLOOKUP($D48,表C_RAW!$C:$I,6,0)),"",VLOOKUP($D48,表C_RAW!$C:$I,6,0)/100) -> 0.1378
A49: 4 | B49: =VLOOKUP(A49,表B_RAW!O:P,2,0) -> 食品工業 | C49: 1 | D49: =VLOOKUP($B$49&C49,表B_RAW!B:D,2,0) -> 1256 鮮活果汁-KY | F49: =IF(ISERROR(VLOOKUP($D49,表B_RAW!$C:$I,4,0)),"",VLOOKUP($D49,表B_RAW!$C:$I,4,0)) -> 222574 | G49: =IF(ISERROR(VLOOKUP($D49,表B_RAW!$C:$I,5,0)),"",VLOOKUP($D49,表B_RAW!$C:$I,5,0)) -> 444032 | H49: =IF(ISERROR(VLOOKUP($D49,表B_RAW!$C:$I,6,0)),"",VLOOKUP($D49,表B_RAW!$C:$I,6,0)/100) -> -0.4987 | I49: =IF(ISERROR(VLOOKUP($D49,表A_RAW!$C:$I,5,0)),"",VLOOKUP($D49,表A_RAW!$C:$I,5,0)) -> 142872 | J49: =IF(ISERROR(VLOOKUP($D49,表A_RAW!$C:$I,7,0)),"",VLOOKUP($D49,表A_RAW!$C:$I,7,0)) -> 0.557855983 | K49: =IF(ISERROR(VLOOKUP($D49,表C_RAW!$C:$I,4,0)),"",VLOOKUP($D49,表C_RAW!$C:$I,4,0)) -> 4126970 | L49: =IF(ISERROR(VLOOKUP($D49,表C_RAW!$C:$I,5,0)),"",VLOOKUP($D49,表C_RAW!$C:$I,5,0)) -> 3579871 | M49: =IF(ISERROR(VLOOKUP($D49,表C_RAW!$C:$I,6,0)),"",VLOOKUP($D49,表C_RAW!$C:$I,6,0)/100) -> 0.1528
C50: 2 | D50: =VLOOKUP($B$49&C50,表B_RAW!B:D,2,0) -> 1235 興泰 | F50: =IF(ISERROR(VLOOKUP($D50,表B_RAW!$C:$I,4,0)),"",VLOOKUP($D50,表B_RAW!$C:$I,4,0)) -> 3323 | G50: =IF(ISERROR(VLOOKUP($D50,表B_RAW!$C:$I,5,0)),"",VLOOKUP($D50,表B_RAW!$C:$I,5,0)) -> 6537 | H50: =IF(ISERROR(VLOOKUP($D50,表B_RAW!$C:$I,6,0)),"",VLOOKUP($D50,表B_RAW!$C:$I,6,0)/100) -> -0.4917 | I50: =IF(ISERROR(VLOOKUP($D50,表A_RAW!$C:$I,5,0)),"",VLOOKUP($D50,表A_RAW!$C:$I,5,0)) -> 3211 | J50: =IF(ISERROR(VLOOKUP($D50,表A_RAW!$C:$I,7,0)),"",VLOOKUP($D50,表A_RAW!$C:$I,7,0)) -> 0.03488009966 | K50: =IF(ISERROR(VLOOKUP($D50,表C_RAW!$C:$I,4,0)),"",VLOOKUP($D50,表C_RAW!$C:$I,4,0)) -> 36033 | L50: =IF(ISERROR(VLOOKUP($D50,表C_RAW!$C:$I,5,0)),"",VLOOKUP($D50,表C_RAW!$C:$I,5,0)) -> 52054 | M50: =IF(ISERROR(VLOOKUP($D50,表C_RAW!$C:$I,6,0)),"",VLOOKUP($D50,表C_RAW!$C:$I,6,0)/100) -> -0.3078
C51: 3 | D51: =VLOOKUP($B$49&C51,表B_RAW!B:D,2,0) -> 1236 宏亞 | F51: =IF(ISERROR(VLOOKUP($D51,表B_RAW!$C:$I,4,0)),"",VLOOKUP($D51,表B_RAW!$C:$I,4,0)) -> 125408 | G51: =IF(ISERROR(VLOOKUP($D51,表B_RAW!$C:$I,5,0)),"",VLOOKUP($D51,表B_RAW!$C:$I,5,0)) -> 222123 | H51: =IF(ISERROR(VLOOKUP($D51,表B_RAW!$C:$I,6,0)),"",VLOOKUP($D51,表B_RAW!$C:$I,6,0)/100) -> -0.4354 | I51: =IF(ISERROR(VLOOKUP($D51,表A_RAW!$C:$I,5,0)),"",VLOOKUP($D51,表A_RAW!$C:$I,5,0)) -> 137410 | J51: =IF(ISERROR(VLOOKUP($D51,表A_RAW!$C:$I,7,0)),"",VLOOKUP($D51,表A_RAW!$C:$I,7,0)) -> -0.08734444364 | K51: =IF(ISERROR(VLOOKUP($D51,表C_RAW!$C:$I,4,0)),"",VLOOKUP($D51,表C_RAW!$C:$I,4,0)) -> 1546837 | L51: =IF(ISERROR(VLOOKUP($D51,表C_RAW!$C:$I,5,0)),"",VLOOKUP($D51,表C_RAW!$C:$I,5,0)) -> 1598527 | M51: =IF(ISERROR(VLOOKUP($D51,表C_RAW!$C:$I,6,0)),"",VLOOKUP($D51,表C_RAW!$C:$I,6,0)/100) -> -0.0323
B52: =VLOOKUP(A49,表B_RAW!O:T,6,0) -> -6.78 | C52: 4 | D52: =VLOOKUP($B$49&C52,表B_RAW!B:D,2,0) -> 1213 大飲 | F52: =IF(ISERROR(VLOOKUP($D52,表B_RAW!$C:$I,4,0)),"",VLOOKUP($D52,表B_RAW!$C:$I,4,0)) -> 403 | G52: =IF(ISERROR(VLOOKUP($D52,表B_RAW!$C:$I,5,0)),"",VLOOKUP($D52,表B_RAW!$C:$I,5,0)) -> 636 | H52: =IF(ISERROR(VLOOKUP($D52,表B_RAW!$C:$I,6,0)),"",VLOOKUP($D52,表B_RAW!$C:$I,6,0)/100) -> -0.3664 | I52: =IF(ISERROR(VLOOKUP($D52,表A_RAW!$C:$I,5,0)),"",VLOOKUP($D52,表A_RAW!$C:$I,5,0)) -> 30818 | J52: =IF(ISERROR(VLOOKUP($D52,表A_RAW!$C:$I,7,0)),"",VLOOKUP($D52,表A_RAW!$C:$I,7,0)) -> -0.9869232267 | K52: =IF(ISERROR(VLOOKUP($D52,表C_RAW!$C:$I,4,0)),"",VLOOKUP($D52,表C_RAW!$C:$I,4,0)) -> 116889 | L52: =IF(ISERROR(VLOOKUP($D52,表C_RAW!$C:$I,5,0)),"",VLOOKUP($D52,表C_RAW!$C:$I,5,0)) -> 328870 | M52: =IF(ISERROR(VLOOKUP($D52,表C_RAW!$C:$I,6,0)),"",VLOOKUP($D52,表C_RAW!$C:$I,6,0)/100) -> -0.6446
C53: 5 | D53: =VLOOKUP($B$49&C53,表B_RAW!B:D,2,0) -> 1227 佳格 | F53: =IF(ISERROR(VLOOKUP($D53,表B_RAW!$C:$I,4,0)),"",VLOOKUP($D53,表B_RAW!$C:$I,4,0)) -> 2027434 | G53: =IF(ISERROR(VLOOKUP($D53,表B_RAW!$C:$I,5,0)),"",VLOOKUP($D53,表B_RAW!$C:$I,5,0)) -> 3116707 | H53: =IF(ISERROR(VLOOKUP($D53,表B_RAW!$C:$I,6,0)),"",VLOOKUP($D53,表B_RAW!$C:$I,6,0)/100) -> -0.3495 | I53: =IF(ISERROR(VLOOKUP($D53,表A_RAW!$C:$I,5,0)),"",VLOOKUP($D53,表A_RAW!$C:$I,5,0)) -> 2182437 | J53: =IF(ISERROR(VLOOKUP($D53,表A_RAW!$C:$I,7,0)),"",VLOOKUP($D53,表A_RAW!$C:$I,7,0)) -> -0.0710228978 | K53: =IF(ISERROR(VLOOKUP($D53,表C_RAW!$C:$I,4,0)),"",VLOOKUP($D53,表C_RAW!$C:$I,4,0)) -> 22157069 | L53: =IF(ISERROR(VLOOKUP($D53,表C_RAW!$C:$I,5,0)),"",VLOOKUP($D53,表C_RAW!$C:$I,5,0)) -> 22581976 | M53: =IF(ISERROR(VLOOKUP($D53,表C_RAW!$C:$I,6,0)),"",VLOOKUP($D53,表C_RAW!$C:$I,6,0)/100) -> -0.0188
A54: 5 | B54: =VLOOKUP(A54,表B_RAW!O:P,2,0) -> 光電業 | C54: 1 | D54: =VLOOKUP($B$54&C54,表B_RAW!B:D,2,0) -> 3535 晶彩科 | F54: =IF(ISERROR(VLOOKUP($D54,表B_RAW!$C:$I,4,0)),"",VLOOKUP($D54,表B_RAW!$C:$I,4,0)) -> 8245 | G54: =IF(ISERROR(VLOOKUP($D54,表B_RAW!$C:$I,5,0)),"",VLOOKUP($D54,表B_RAW!$C:$I,5,0)) -> 36923 | H54: =IF(ISERROR(VLOOKUP($D54,表B_RAW!$C:$I,6,0)),"",VLOOKUP($D54,表B_RAW!$C:$I,6,0)/100) -> -0.7767 | I54: =IF(ISERROR(VLOOKUP($D54,表A_RAW!$C:$I,5,0)),"",VLOOKUP($D54,表A_RAW!$C:$I,5,0)) -> 85082 | J54: =IF(ISERROR(VLOOKUP($D54,表A_RAW!$C:$I,7,0)),"",VLOOKUP($D54,表A_RAW!$C:$I,7,0)) -> -0.9030934863 | K54: =IF(ISERROR(VLOOKUP($D54,表C_RAW!$C:$I,4,0)),"",VLOOKUP($D54,表C_RAW!$C:$I,4,0)) -> 418771 | L54: =IF(ISERROR(VLOOKUP($D54,表C_RAW!$C:$I,5,0)),"",VLOOKUP($D54,表C_RAW!$C:$I,5,0)) -> 1337161 | M54: =IF(ISERROR(VLOOKUP($D54,表C_RAW!$C:$I,6,0)),"",VLOOKUP($D54,表C_RAW!$C:$I,6,0)/100) -> -0.6868
C55: 2 | D55: =VLOOKUP($B$54&C55,表B_RAW!B:D,2,0) -> 6560 欣普羅 | F55: =IF(ISERROR(VLOOKUP($D55,表B_RAW!$C:$I,4,0)),"",VLOOKUP($D55,表B_RAW!$C:$I,4,0)) -> 4939 | G55: =IF(ISERROR(VLOOKUP($D55,表B_RAW!$C:$I,5,0)),"",VLOOKUP($D55,表B_RAW!$C:$I,5,0)) -> 12069 | H55: =IF(ISERROR(VLOOKUP($D55,表B_RAW!$C:$I,6,0)),"",VLOOKUP($D55,表B_RAW!$C:$I,6,0)/100) -> -0.5908 | I55: =IF(ISERROR(VLOOKUP($D55,表A_RAW!$C:$I,5,0)),"",VLOOKUP($D55,表A_RAW!$C:$I,5,0)) -> 19527 | J55: =IF(ISERROR(VLOOKUP($D55,表A_RAW!$C:$I,7,0)),"",VLOOKUP($D55,表A_RAW!$C:$I,7,0)) -> -0.747068162 | K55: =IF(ISERROR(VLOOKUP($D55,表C_RAW!$C:$I,4,0)),"",VLOOKUP($D55,表C_RAW!$C:$I,4,0)) -> 106951 | L55: =IF(ISERROR(VLOOKUP($D55,表C_RAW!$C:$I,5,0)),"",VLOOKUP($D55,表C_RAW!$C:$I,5,0)) -> 321419 | M55: =IF(ISERROR(VLOOKUP($D55,表C_RAW!$C:$I,6,0)),"",VLOOKUP($D55,表C_RAW!$C:$I,6,0)/100) -> -0.6673
C56: 3 | D56: =VLOOKUP($B$54&C56,表B_RAW!B:D,2,0) -> 6226 光鼎 | F56: =IF(ISERROR(VLOOKUP($D56,表B_RAW!$C:$I,4,0)),"",VLOOKUP($D56,表B_RAW!$C:$I,4,0)) -> 51725 | G56: =IF(ISERROR(VLOOKUP($D56,表B_RAW!$C:$I,5,0)),"",VLOOKUP($D56,表B_RAW!$C:$I,5,0)) -> 118756 | H56: =IF(ISERROR(VLOOKUP($D56,表B_RAW!$C:$I,6,0)),"",VLOOKUP($D56,表B_RAW!$C:$I,6,0)/100) -> -0.5644 | I56: =IF(ISERROR(VLOOKUP($D56,表A_RAW!$C:$I,5,0)),"",VLOOKUP($D56,表A_RAW!$C:$I,5,0)) -> 53218 | J56: =IF(ISERROR(VLOOKUP($D56,表A_RAW!$C:$I,7,0)),"",VLOOKUP($D56,表A_RAW!$C:$I,7,0)) -> -0.02805441768 | K56: =IF(ISERROR(VLOOKUP($D56,表C_RAW!$C:$I,4,0)),"",VLOOKUP($D56,表C_RAW!$C:$I,4,0)) -> 628750 | L56: =IF(ISERROR(VLOOKUP($D56,表C_RAW!$C:$I,5,0)),"",VLOOKUP($D56,表C_RAW!$C:$I,5,0)) -> 812245 | M56: =IF(ISERROR(VLOOKUP($D56,表C_RAW!$C:$I,6,0)),"",VLOOKUP($D56,表C_RAW!$C:$I,6,0)/100) -> -0.2259
B57: =VLOOKUP(A54,表B_RAW!O:T,6,0) -> -5.95 | C57: 4 | D57: =VLOOKUP($B$54&C57,表B_RAW!B:D,2,0) -> 3622 洋華 | F57: =IF(ISERROR(VLOOKUP($D57,表B_RAW!$C:$I,4,0)),"",VLOOKUP($D57,表B_RAW!$C:$I,4,0)) -> 83557 | G57: =IF(ISERROR(VLOOKUP($D57,表B_RAW!$C:$I,5,0)),"",VLOOKUP($D57,表B_RAW!$C:$I,5,0)) -> 178077 | H57: =IF(ISERROR(VLOOKUP($D57,表B_RAW!$C:$I,6,0)),"",VLOOKUP($D57,表B_RAW!$C:$I,6,0)/100) -> -0.5308 | I57: =IF(ISERROR(VLOOKUP($D57,表A_RAW!$C:$I,5,0)),"",VLOOKUP($D57,表A_RAW!$C:$I,5,0)) -> 127686 | J57: =IF(ISERROR(VLOOKUP($D57,表A_RAW!$C:$I,7,0)),"",VLOOKUP($D57,表A_RAW!$C:$I,7,0)) -> -0.3456056263 | K57: =IF(ISERROR(VLOOKUP($D57,表C_RAW!$C:$I,4,0)),"",VLOOKUP($D57,表C_RAW!$C:$I,4,0)) -> 1297620 | L57: =IF(ISERROR(VLOOKUP($D57,表C_RAW!$C:$I,5,0)),"",VLOOKUP($D57,表C_RAW!$C:$I,5,0)) -> 1358337 | M57: =IF(ISERROR(VLOOKUP($D57,表C_RAW!$C:$I,6,0)),"",VLOOKUP($D57,表C_RAW!$C:$I,6,0)/100) -> -0.0447
C58: 5 | D58: =VLOOKUP($B$54&C58,表B_RAW!B:D,2,0) -> 4934 太極 | F58: =IF(ISERROR(VLOOKUP($D58,表B_RAW!$C:$I,4,0)),"",VLOOKUP($D58,表B_RAW!$C:$I,4,0)) -> 67493 | G58: =IF(ISERROR(VLOOKUP($D58,表B_RAW!$C:$I,5,0)),"",VLOOKUP($D58,表B_RAW!$C:$I,5,0)) -> 113743 | H58: =IF(ISERROR(VLOOKUP($D58,表B_RAW!$C:$I,6,0)),"",VLOOKUP($D58,表B_RAW!$C:$I,6,0)/100) -> -0.4066 | I58: =IF(ISERROR(VLOOKUP($D58,表A_RAW!$C:$I,5,0)),"",VLOOKUP($D58,表A_RAW!$C:$I,5,0)) -> 225550 | J58: =IF(ISERROR(VLOOKUP($D58,表A_RAW!$C:$I,7,0)),"",VLOOKUP($D58,表A_RAW!$C:$I,7,0)) -> -0.7007625804 | K58: =IF(ISERROR(VLOOKUP($D58,表C_RAW!$C:$I,4,0)),"",VLOOKUP($D58,表C_RAW!$C:$I,4,0)) -> 2058094 | L58: =IF(ISERROR(VLOOKUP($D58,表C_RAW!$C:$I,5,0)),"",VLOOKUP($D58,表C_RAW!$C:$I,5,0)) -> 1730235 | M58: =IF(ISERROR(VLOOKUP($D58,表C_RAW!$C:$I,6,0)),"",VLOOKUP($D58,表C_RAW!$C:$I,6,0)/100) -> 0.1895

Sheet YOY(單月)
B1: =YEAR(表A_RAW!F2)&"年"&MONTH(表A_RAW!F2)&"月" -> 2023年10月
G2: 成長及衰退前五名之產業YOY%(單月)
B4: 成長前五名之產業 YOY(單月)% | D4: 該產業成長前五名之公司 YOY(單月)% | G4: 單月營收金額(千元) | H4: 本月與上月相較 | J4: 本月與去年同期相較 | L4: 累計營收金額(千元) | M4: 累計營收與去年同期相較
B5: 成長 排名 | C5: 產業 | D5: 排名 | E5: 公司代號&簡稱 | H5: 上月營收金額(千元) | I5: 較上月變動比率(%) | J5: 去年同期金額(千元) | K5: 較去年同期變動比率(%) | M5: 去年累計營收金額(千元) | N5: 較去年同期變動比率(%)
B6: 1 | C6: =VLOOKUP(B6,表A_RAW!N:T,3,0) -> 觀光餐旅 | D6: 1 | E6: =VLOOKUP($C$6&D6,表A_RAW!A:I,3,0) -> 5706 鳳凰 | G6: =IF(ISERROR(VLOOKUP($E6,表A_RAW!$C:$I,4,0)),"",VLOOKUP($E6,表A_RAW!$C:$I,4,0)) -> 317388 | H6: =IF(ISERROR(VLOOKUP($E6,表B_RAW!$C:$I,5,0)),"",VLOOKUP($E6,表B_RAW!$C:$I,5,0)) -> 230018 | I6: =IF(ISERROR(VLOOKUP($E6,表B_RAW!$C:$I,6,0)),"",VLOOKUP($E6,表B_RAW!$C:$I,6,0)/100) -> 0.3798 | J6: =IF(ISERROR(VLOOKUP($E6,表A_RAW!$C:$I,5,0)),"",VLOOKUP($E6,表A_RAW!$C:$I,5,0)) -> 12831 | K6: =IF(ISERROR(VLOOKUP($E6,表A_RAW!$C:$I,7,0)),"",VLOOKUP($E6,表A_RAW!$C:$I,7,0)) -> 23.73602993 | L6: =IF(ISERROR(VLOOKUP($E6,表C_RAW!$C:$I,4,0)),"",VLOOKUP($E6,表C_RAW!$C:$I,4,0)) -> 1944190 | M6: =IF(ISERROR(VLOOKUP($E6,表C_RAW!$C:$I,5,0)),"",VLOOKUP($E6,表C_RAW!$C:$I,5,0)) -> 96872 | N6: =IF(ISERROR(VLOOKUP($E6,表C_RAW!$C:$I,6,0)),"",VLOOKUP($E6,表C_RAW!$C:$I,6,0)/100) -> 19.0697
D7: 2 | E7: =VLOOKUP($C$6&D7,表A_RAW!A:I,3,0) -> 2745 五福 | G7: =IF(ISERROR(VLOOKUP($E7,表A_RAW!$C:$I,4,0)),"",VLOOKUP($E7,表A_RAW!$C:$I,4,0)) -> 664875 | H7: =IF(ISERROR(VLOOKUP($E7,表B_RAW!$C:$I,5,0)),"",VLOOKUP($E7,表B_RAW!$C:$I,5,0)) -> 476103 | I7: =IF(ISERROR(VLOOKUP($E7,表B_RAW!$C:$I,6,0)),"",VLOOKUP($E7,表B_RAW!$C:$I,6,0)/100) -> 0.3965 | J7: =IF(ISERROR(VLOOKUP($E7,表A_RAW!$C:$I,5,0)),"",VLOOKUP($E7,表A_RAW!$C:$I,5,0)) -> 31326 | K7: =IF(ISERROR(VLOOKUP($E7,表A_RAW!$C:$I,7,0)),"",VLOOKUP($E7,表A_RAW!$C:$I,7,0)) -> 20.2243823 | L7: =IF(ISERROR(VLOOKUP($E7,表C_RAW!$C:$I,4,0)),"",VLOOKUP($E7,表C_RAW!$C:$I,4,0)) -> 4056214 | M7: =IF(ISERROR(VLOOKUP($E7,表C_RAW!$C:$I,5,0)),"",VLOOKUP($E7,表C_RAW!$C:$I,5,0)) -> 133415 | N7: =IF(ISERROR(VLOOKUP($E7,表C_RAW!$C:$I,6,0)),"",VLOOKUP($E7,表C_RAW!$C:$I,6,0)/100) -> 29.403
D8: 3 | E8: =VLOOKUP($C$6&D8,表A_RAW!A:I,3,0) -> 2719 燦星旅 | G8: =IF(ISERROR(VLOOKUP($E8,表A_RAW!$C:$I,4,0)),"",VLOOKUP($E8,表A_RAW!$C:$I,4,0)) -> 122449 | H8: =IF(ISERROR(VLOOKUP($E8,表B_RAW!$C:$I,5,0)),"",VLOOKUP($E8,表B_RAW!$C:$I,5,0)) -> 106825 | I8: =IF(ISERROR(VLOOKUP($E8,表B_RAW!$C:$I,6,0)),"",VLOOKUP($E8,表B_RAW!$C:$I,6,0)/100) -> 0.1463 | J8: =IF(ISERROR(VLOOKUP($E8,表A_RAW!$C:$I,5,0)),"",VLOOKUP($E8,表A_RAW!$C:$I,5,0)) -> 6392 | K8: =IF(ISERROR(VLOOKUP($E8,表A_RAW!$C:$I,7,0)),"",VLOOKUP($E8,表A_RAW!$C:$I,7,0)) -> 18.156602 | L8: =IF(ISERROR(VLOOKUP($E8,表C_RAW!$C:$I,4,0)),"",VLOOKUP($E8,表C_RAW!$C:$I,4,0)) -> 868608 | M8: =IF(ISERROR(VLOOKUP($E8,表C_RAW!$C:$I,5,0)),"",VLOOKUP($E8,表C_RAW!$C:$I,5,0)) -> 45599 | N8: =IF(ISERROR(VLOOKUP($E8,表C_RAW!$C:$I,6,0)),"",VLOOKUP($E8,表C_RAW!$C:$I,6,0)/100) -> 18.0488
C9: =VLOOKUP(B6,表A_RAW!N:T,7,0) -> 48.7427063 | D9: 4 | E9: =VLOOKUP($C$6&D9,表A_RAW!A:I,3,0) -> 2743 山富 | G9: =IF(ISERROR(VLOOKUP($E9,表A_RAW!$C:$I,4,0)),"",VLOOKUP($E9,表A_RAW!$C:$I,4,0)) -> 748037 | H9: =IF(ISERROR(VLOOKUP($E9,表B_RAW!$C:$I,5,0)),"",VLOOKUP($E9,表B_RAW!$C:$I,5,0)) -> 531694 | I9: =IF(ISERROR(VLOOKUP($E9,表B_RAW!$C:$I,6,0)),"",VLOOKUP($E9,表B_RAW!$C:$I,6,0)/100) -> 0.4069 | J9: =IF(ISERROR(VLOOKUP($E9,表A_RAW!$C:$I,5,0)),"",VLOOKUP($E9,表A_RAW!$C:$I,5,0)) -> 75087 | K9: =IF(ISERROR(VLOOKUP($E9,表A_RAW!$C:$I,7,0)),"",VLOOKUP($E9,表A_RAW!$C:$I,7,0)) -> 8.962270433 | L9: =IF(ISERROR(VLOOKUP($E9,表C_RAW!$C:$I,4,0)),"",VLOOKUP($E9,表C_RAW!$C:$I,4,0)) -> 4034774 | M9: =IF(ISERROR(VLOOKUP($E9,表C_RAW!$C:$I,5,0)),"",VLOOKUP($E9,表C_RAW!$C:$I,5,0)) -> 323156 | N9: =IF(ISERROR(VLOOKUP($E9,表C_RAW!$C:$I,6,0)),"",VLOOKUP($E9,表C_RAW!$C:$I,6,0)/100) -> 11.4855
D10: 5 | E10: =VLOOKUP($C$6&D10,表A_RAW!A:I,3,0) -> 2734 易飛網 | G10: =IF(ISERROR(VLOOKUP($E10,表A_RAW!$C:$I,4,0)),"",VLOOKUP($E10,表A_RAW!$C:$I,4,0)) -> 221204 | H10: =IF(ISERROR(VLOOKUP($E10,表B_RAW!$C:$I,5,0)),"",VLOOKUP($E10,表B_RAW!$C:$I,5,0)) -> 213919 | I10: =IF(ISERROR(VLOOKUP($E10,表B_RAW!$C:$I,6,0)),"",VLOOKUP($E10,表B_RAW!$C:$I,6,0)/100) -> 0.0341 | J10: =IF(ISERROR(VLOOKUP($E10,表A_RAW!$C:$I,5,0)),"",VLOOKUP($E10,表A_RAW!$C:$I,5,0)) -> 27904 | K10: =IF(ISERROR(VLOOKUP($E10,表A_RAW!$C:$I,7,0)),"",VLOOKUP($E10,表A_RAW!$C:$I,7,0)) -> 6.927322248 | L10: =IF(ISERROR(VLOOKUP($E10,表C_RAW!$C:$I,4,0)),"",VLOOKUP($E10,表C_RAW!$C:$I,4,0)) -> 1794475 | M10: =IF(ISERROR(VLOOKUP($E10,表C_RAW!$C:$I,5,0)),"",VLOOKUP($E10,表C_RAW!$C:$I,5,0)) -> 310548 | N10: =IF(ISERROR(VLOOKUP($E10,表C_RAW!$C:$I,6,0)),"",VLOOKUP($E10,表C_RAW!$C:$I,6,0)/100) -> 4.7784
B11: 2 | C11: =VLOOKUP(B11,表A_RAW!N:T,3,0) -> 金融業 | D11: 1 | E11: =VLOOKUP($C$11&D11,表A_RAW!A:I,3,0) -> 6016 康和證 | G11: =IF(ISERROR(VLOOKUP($E11,表A_RAW!$C:$I,4,0)),"",VLOOKUP($E11,表A_RAW!$C:$I,4,0)) -> -171087 | H11: =IF(ISERROR(VLOOKUP($E11,表B_RAW!$C:$I,5,0)),"",VLOOKUP($E11,表B_RAW!$C:$I,5,0)) -> 96506 | I11: =IF(ISERROR(VLOOKUP($E11,表B_RAW!$C:$I,6,0)),"",VLOOKUP($E11,表B_RAW!$C:$I,6,0)/100) -> -2.7728 | J11: =IF(ISERROR(VLOOKUP($E11,表A_RAW!$C:$I,5,0)),"",VLOOKUP($E11,表A_RAW!$C:$I,5,0)) -> -4466 | K11: =IF(ISERROR(VLOOKUP($E11,表A_RAW!$C:$I,7,0)),"",VLOOKUP($E11,表A_RAW!$C:$I,7,0)) -> 37.30877743 | L11: =IF(ISERROR(VLOOKUP($E11,表C_RAW!$C:$I,4,0)),"",VLOOKUP($E11,表C_RAW!$C:$I,4,0)) -> 2703028 | M11: =IF(ISERROR(VLOOKUP($E11,表C_RAW!$C:$I,5,0)),"",VLOOKUP($E11,表C_RAW!$C:$I,5,0)) -> 1477016 | N11: =IF(ISERROR(VLOOKUP($E11,表C_RAW!$C:$I,6,0)),"",VLOOKUP($E11,表C_RAW!$C:$I,6,0)/100) -> 0.8301
D12: 2 | E12: =VLOOKUP($C$11&D12,表A_RAW!A:I,3,0) -> 2891 中信金 | G12: =IF(ISERROR(VLOOKUP($E12,表A_RAW!$C:$I,4,0)),"",VLOOKUP($E12,表A_RAW!$C:$I,4,0)) -> 11787572 | H12: =IF(ISERROR(VLOOKUP($E12,表B_RAW!$C:$I,5,0)),"",VLOOKUP($E12,表B_RAW!$C:$I,5,0)) -> 12852866 | I12: =IF(ISERROR(VLOOKUP($E12,表B_RAW!$C:$I,6,0)),"",VLOOKUP($E12,表B_RAW!$C:$I,6,0)/100) -> -0.0829 | J12: =IF(ISERROR(VLOOKUP($E12,表A_RAW!$C:$I,5,0)),"",VLOOKUP($E12,表A_RAW!$C:$I,5,0)) -> 3374417 | K12: =IF(ISERROR(VLOOKUP($E12,表A_RAW!$C:$I,7,0)),"",VLOOKUP($E12,表A_RAW!$C:$I,7,0)) -> 2.493217347 | L12: =IF(ISERROR(VLOOKUP($E12,表C_RAW!$C:$I,4,0)),"",VLOOKUP($E12,表C_RAW!$C:$I,4,0)) -> 118671133 | M12: =IF(ISERROR(VLOOKUP($E12,表C_RAW!$C:$I,5,0)),"",VLOOKUP($E12,表C_RAW!$C:$I,5,0)) -> 140132119 | N12: =IF(ISERROR(VLOOKUP($E12,表C_RAW!$C:$I,6,0)),"",VLOOKUP($E12,表C_RAW!$C:$I,6,0)/100) -> -0.1531
D13: 3 | E13: =VLOOKUP($C$11&D13,表A_RAW!A:I,3,0) -> 6020 大展證 | G13: =IF(ISERROR(VLOOKUP($E13,表A_RAW!$C:$I,4,0)),"",VLOOKUP($E13,表A_RAW!$C:$I,4,0)) -> -12391 | H13: =IF(ISERROR(VLOOKUP($E13,表B_RAW!$C:$I,5,0)),"",VLOOKUP($E13,表B_RAW!$C:$I,5,0)) -> 14357 | I13: =IF(ISERROR(VLOOKUP($E13,表B_RAW!$C:$I,6,0)),"",VLOOKUP($E13,表B_RAW!$C:$I,6,0)/100) -> -1.8631 | J13: =IF(ISERROR(VLOOKUP($E13,表A_RAW!$C:$I,5,0)),"",VLOOKUP($E13,表A_RAW!$C:$I,5,0)) -> -5489 | K13: =IF(ISERROR(VLOOKUP($E13,表A_RAW!$C:$I,7,0)),"",VLOOKUP($E13,表A_RAW!$C:$I,7,0)) -> 1.257423939 | L13: =IF(ISERROR(VLOOKUP($E13,表C_RAW!$C:$I,4,0)),"",VLOOKUP($E13,表C_RAW!$C:$I,4,0)) -> 457286 | M13: =IF(ISERROR(VLOOKUP($E13,表C_RAW!$C:$I,5,0)),"",VLOOKUP($E13,表C_RAW!$C:$I,5,0)) -> -175559 | N13: =IF(ISERROR(VLOOKUP($E13,表C_RAW!$C:$I,6,0)),"",VLOOKUP($E13,表C_RAW!$C:$I,6,0)/100) -> 3.6047
C14: =VLOOKUP(B11,表A_RAW!N:T,7,0) -> 39.87214629 | D14: 4 | E14: =VLOOKUP($C$11&D14,表A_RAW!A:I,3,0) -> 2820 華票 | G14: =IF(ISERROR(VLOOKUP($E14,表A_RAW!$C:$I,4,0)),"",VLOOKUP($E14,表A_RAW!$C:$I,4,0)) -> 103835 | H14: =IF(ISERROR(VLOOKUP($E14,表B_RAW!$C:$I,5,0)),"",VLOOKUP($E14,表B_RAW!$C:$I,5,0)) -> 124681 | I14: =IF(ISERROR(VLOOKUP($E14,表B_RAW!$C:$I,6,0)),"",VLOOKUP($E14,表B_RAW!$C:$I,6,0)/100) -> -0.1672 | J14: =IF(ISERROR(VLOOKUP($E14,表A_RAW!$C:$I,5,0)),"",VLOOKUP($E14,表A_RAW!$C:$I,5,0)) -> 57005 | K14: =IF(ISERROR(VLOOKUP($E14,表A_RAW!$C:$I,7,0)),"",VLOOKUP($E14,表A_RAW!$C:$I,7,0)) -> 0.8215068854 | L14: =IF(ISERROR(VLOOKUP($E14,表C_RAW!$C:$I,4,0)),"",VLOOKUP($E14,表C_RAW!$C:$I,4,0)) -> 1775851 | M14: =IF(ISERROR(VLOOKUP($E14,表C_RAW!$C:$I,5,0)),"",VLOOKUP($E14,表C_RAW!$C:$I,5,0)) -> 1462229 | N14: =IF(ISERROR(VLOOKUP($E14,表C_RAW!$C:$I,6,0)),"",VLOOKUP($E14,表C_RAW!$C:$I,6,0)/100) -> 0.2145
D15: 5 | E15: =VLOOKUP($C$11&D15,表A_RAW!A:I,3,0) -> 6005 群益證 | G15: =IF(ISERROR(VLOOKUP($E15,表A_RAW!$C:$I,4,0)),"",VLOOKUP($E15,表A_RAW!$C:$I,4,0)) -> 901164 | H15: =IF(ISERROR(VLOOKUP($E15,表B_RAW!$C:$I,5,0)),"",VLOOKUP($E15,表B_RAW!$C:$I,5,0)) -> 1057053 | I15: =IF(ISERROR(VLOOKUP($E15,表B_RAW!$C:$I,6,0)),"",VLOOKUP($E15,表B_RAW!$C:$I,6,0)/100) -> -0.1475 | J15: =IF(ISERROR(VLOOKUP($E15,表A_RAW!$C:$I,5,0)),"",VLOOKUP($E15,表A_RAW!$C:$I,5,0)) -> 500932 | K15: =IF(ISERROR(VLOOKUP($E15,表A_RAW!$C:$I,7,0)),"",VLOOKUP($E15,表A_RAW!$C:$I,7,0)) -> 0.7989747111 | L15: =IF(ISERROR(VLOOKUP($E15,表C_RAW!$C:$I,4,0)),"",VLOOKUP($E15,表C_RAW!$C:$I,4,0)) -> 10057991 | M15: =IF(ISERROR(VLOOKUP($E15,表C_RAW!$C:$I,5,0)),"",VLOOKUP($E15,表C_RAW!$C:$I,5,0)) -> 6299504 | N15: =IF(ISERROR(VLOOKUP($E15,表C_RAW!$C:$I,6,0)),"",VLOOKUP($E15,表C_RAW!$C:$I,6,0)/100) -> 0.5966
B16: 3 | C16: =VLOOKUP(B16,表A_RAW!N:T,3,0) -> 建材營造 | D16: 1 | E16: =VLOOKUP($C$16&D16,表A_RAW!A:I,3,0) -> 4907 富宇 | G16: =IF(ISERROR(VLOOKUP($E16,表A_RAW!$C:$I,4,0)),"",VLOOKUP($E16,表A_RAW!$C:$I,4,0)) -> 44314 | H16: =IF(ISERROR(VLOOKUP($E16,表B_RAW!$C:$I,5,0)),"",VLOOKUP($E16,表B_RAW!$C:$I,5,0)) -> 881916 | I16: =IF(ISERROR(VLOOKUP($E16,表B_RAW!$C:$I,6,0)),"",VLOOKUP($E16,表B_RAW!$C:$I,6,0)/100) -> -0.9498 | J16: =IF(ISERROR(VLOOKUP($E16,表A_RAW!$C:$I,5,0)),"",VLOOKUP($E16,表A_RAW!$C:$I,5,0)) -> 53 | K16: =IF(ISERROR(VLOOKUP($E16,表A_RAW!$C:$I,7,0)),"",VLOOKUP($E16,表A_RAW!$C:$I,7,0)) -> 835.1132075 | L16: =IF(ISERROR(VLOOKUP($E16,表C_RAW!$C:$I,4,0)),"",VLOOKUP($E16,表C_RAW!$C:$I,4,0)) -> 979785 | M16: =IF(ISERROR(VLOOKUP($E16,表C_RAW!$C:$I,5,0)),"",VLOOKUP($E16,表C_RAW!$C:$I,5,0)) -> 195814 | N16: =IF(ISERROR(VLOOKUP($E16,表C_RAW!$C:$I,6,0)),"",VLOOKUP($E16,表C_RAW!$C:$I,6,0)/100) -> 4.0037
D17: 2 | E17: =VLOOKUP($C$16&D17,表A_RAW!A:I,3,0) -> 2537 聯上發 | G17: =IF(ISERROR(VLOOKUP($E17,表A_RAW!$C:$I,4,0)),"",VLOOKUP($E17,表A_RAW!$C:$I,4,0)) -> 82100 | H17: =IF(ISERROR(VLOOKUP($E17,表B_RAW!$C:$I,5,0)),"",VLOOKUP($E17,表B_RAW!$C:$I,5,0)) -> 71684 | I17: =IF(ISERROR(VLOOKUP($E17,表B_RAW!$C:$I,6,0)),"",VLOOKUP($E17,表B_RAW!$C:$I,6,0)/100) -> 0.1453 | J17: =IF(ISERROR(VLOOKUP($E17,表A_RAW!$C:$I,5,0)),"",VLOOKUP($E17,表A_RAW!$C:$I,5,0)) -> 114 | K17: =IF(ISERROR(VLOOKUP($E17,表A_RAW!$C:$I,7,0)),"",VLOOKUP($E17,表A_RAW!$C:$I,7,0)) -> 719.1754386 | L17: =IF(ISERROR(VLOOKUP($E17,表C_RAW!$C:$I,4,0)),"",VLOOKUP($E17,表C_RAW!$C:$I,4,0)) -> 438749 | M17: =IF(ISERROR(VLOOKUP($E17,表C_RAW!$C:$I,5,0)),"",VLOOKUP($E17,表C_RAW!$C:$I,5,0)) -> 1616767 | N17: =IF(ISERROR(VLOOKUP($E17,表C_RAW!$C:$I,6,0)),"",VLOOKUP($E17,表C_RAW!$C:$I,6,0)/100) -> -0.7286
D18: 3 | E18: =VLOOKUP($C$16&D18,表A_RAW!A:I,3,0) -> 5523 豐謙 | G18: =IF(ISERROR(VLOOKUP($E18,表A_RAW!$C:$I,4,0)),"",VLOOKUP($E18,表A_RAW!$C:$I,4,0)) -> 228311 | H18: =IF(ISERROR(VLOOKUP($E18,表B_RAW!$C:$I,5,0)),"",VLOOKUP($E18,表B_RAW!$C:$I,5,0)) -> 119878 | I18: =IF(ISERROR(VLOOKUP($E18,表B_RAW!$C:$I,6,0)),"",VLOOKUP($E18,表B_RAW!$C:$I,6,0)/100) -> 0.9045 | J18: =IF(ISERROR(VLOOKUP($E18,表A_RAW!$C:$I,5,0)),"",VLOOKUP($E18,表A_RAW!$C:$I,5,0)) -> 349 | K18: =IF(ISERROR(VLOOKUP($E18,表A_RAW!$C:$I,7,0)),"",VLOOKUP($E18,表A_RAW!$C:$I,7,0)) -> 653.1862464 | L18: =IF(ISERROR(VLOOKUP($E18,表C_RAW!$C:$I,4,0)),"",VLOOKUP($E18,表C_RAW!$C:$I,4,0)) -> 2522454 | M18: =IF(ISERROR(VLOOKUP($E18,表C_RAW!$C:$I,5,0)),"",VLOOKUP($E18,表C_RAW!$C:$I,5,0)) -> 215799 | N18: =IF(ISERROR(VLOOKUP($E18,表C_RAW!$C:$I,6,0)),"",VLOOKUP($E18,表C_RAW!$C:$I,6,0)/100) -> 10.6889
C19: =VLOOKUP(B16,表A_RAW!N:T,7,0) -> 31.52519767 | D19: 4 | E19: =VLOOKUP($C$16&D19,表A_RAW!A:I,3,0) -> 1808 潤隆 | G19: =IF(ISERROR(VLOOKUP($E19,表A_RAW!$C:$I,4,0)),"",VLOOKUP($E19,表A_RAW!$C:$I,4,0)) -> 3706771 | H19: =IF(ISERROR(VLOOKUP($E19,表B_RAW!$C:$I,5,0)),"",VLOOKUP($E19,表B_RAW!$C:$I,5,0)) -> 7714736 | I19: =IF(ISERROR(VLOOKUP($E19,表B_RAW!$C:$I,6,0)),"",VLOOKUP($E19,表B_RAW!$C:$I,6,0)/100) -> -0.5195 | J19: =IF(ISERROR(VLOOKUP($E19,表A_RAW!$C:$I,5,0)),"",VLOOKUP($E19,表A_RAW!$C:$I,5,0)) -> 46205 | K19: =IF(ISERROR(VLOOKUP($E19,表A_RAW!$C:$I,7,0)),"",VLOOKUP($E19,表A_RAW!$C:$I,7,0)) -> 79.22445623 | L19: =IF(ISERROR(VLOOKUP($E19,表C_RAW!$C:$I,4,0)),"",VLOOKUP($E19,表C_RAW!$C:$I,4,0)) -> 28173686 | M19: =IF(ISERROR(VLOOKUP($E19,表C_RAW!$C:$I,5,0)),"",VLOOKUP($E19,表C_RAW!$C:$I,5,0)) -> 985087 | N19: =IF(ISERROR(VLOOKUP($E19,表C_RAW!$C:$I,6,0)),"",VLOOKUP($E19,表C_RAW!$C:$I,6,0)/100) -> 27.6002
D20: 5 | E20: =VLOOKUP($C$16&D20,表A_RAW!A:I,3,0) -> 5213 亞昕 | G20: =IF(ISERROR(VLOOKUP($E20,表A_RAW!$C:$I,4,0)),"",VLOOKUP($E20,表A_RAW!$C:$I,4,0)) -> 1255585 | H20: =IF(ISERROR(VLOOKUP($E20,表B_RAW!$C:$I,5,0)),"",VLOOKUP($E20,表B_RAW!$C:$I,5,0)) -> 687792 | I20: =IF(ISERROR(VLOOKUP($E20,表B_RAW!$C:$I,6,0)),"",VLOOKUP($E20,表B_RAW!$C:$I,6,0)/100) -> 0.8255 | J20: =IF(ISERROR(VLOOKUP($E20,表A_RAW!$C:$I,5,0)),"",VLOOKUP($E20,表A_RAW!$C:$I,5,0)) -> 27408 | K20: =IF(ISERROR(VLOOKUP($E20,表A_RAW!$C:$I,7,0)),"",VLOOKUP($E20,表A_RAW!$C:$I,7,0)) -> 44.81089463 | L20: =IF(ISERROR(VLOOKUP($E20,表C_RAW!$C:$I,4,0)),"",VLOOKUP($E20,表C_RAW!$C:$I,4,0)) -> 3817680 | M20: =IF(ISERROR(VLOOKUP($E20,表C_RAW!$C:$I,5,0)),"",VLOOKUP($E20,表C_RAW!$C:$I,5,0)) -> 2792306 | N20: =IF(ISERROR(VLOOKUP($E20,表C_RAW!$C:$I,6,0)),"",VLOOKUP($E20,表C_RAW!$C:$I,6,0)/100) -> 0.3672
B21: 4 | C21: =VLOOKUP(B21,表A_RAW!N:T,3,0) -> 其他 | D21: 1 | E21: =VLOOKUP($C$21&D21,表A_RAW!A:I,3,FALSE) -> 3313 斐成 | G21: =IF(ISERROR(VLOOKUP($E21,表A_RAW!$C:$I,4,0)),"",VLOOKUP($E21,表A_RAW!$C:$I,4,0)) -> 5012 | H21: =IF(ISERROR(VLOOKUP($E21,表B_RAW!$C:$I,5,0)),"",VLOOKUP($E21,表B_RAW!$C:$I,5,0)) -> 26707 | I21: =IF(ISERROR(VLOOKUP($E21,表B_RAW!$C:$I,6,0)),"",VLOOKUP($E21,表B_RAW!$C:$I,6,0)/100) -> -0.8123 | J21: =IF(ISERROR(VLOOKUP($E21,表A_RAW!$C:$I,5,0)),"",VLOOKUP($E21,表A_RAW!$C:$I,5,0)) -> 671 | K21: =IF(ISERROR(VLOOKUP($E21,表A_RAW!$C:$I,7,0)),"",VLOOKUP($E21,表A_RAW!$C:$I,7,0)) -> 6.469448584 | L21: =IF(ISERROR(VLOOKUP($E21,表C_RAW!$C:$I,4,0)),"",VLOOKUP($E21,表C_RAW!$C:$I,4,0)) -> 32801 | M21: =IF(ISERROR(VLOOKUP($E21,表C_RAW!$C:$I,5,0)),"",VLOOKUP($E21,表C_RAW!$C:$I,5,0)) -> 6866 | N21: =IF(ISERROR(VLOOKUP($E21,表C_RAW!$C:$I,6,0)),"",VLOOKUP($E21,表C_RAW!$C:$I,6,0)/100) -> 3.7773
D22: 2 | E22: =VLOOKUP($C$21&D22,表A_RAW!A:I,3,FALSE) -> 4950 牧東 | G22: =IF(ISERROR(VLOOKUP($E22,表A_RAW!$C:$I,4,0)),"",VLOOKUP($E22,表A_RAW!$C:$I,4,0)) -> 5091 | H22: =IF(ISERROR(VLOOKUP($E22,表B_RAW!$C:$I,5,0)),"",VLOOKUP($E22,表B_RAW!$C:$I,5,0)) -> 7743 | I22: =IF(ISERROR(VLOOKUP($E22,表B_RAW!$C:$I,6,0)),"",VLOOKUP($E22,表B_RAW!$C:$I,6,0)/100) -> -0.3425 | J22: =IF(ISERROR(VLOOKUP($E22,表A_RAW!$C:$I,5,0)),"",VLOOKUP($E22,表A_RAW!$C:$I,5,0)) -> 807 | K22: =IF(ISERROR(VLOOKUP($E22,表A_RAW!$C:$I,7,0)),"",VLOOKUP($E22,表A_RAW!$C:$I,7,0)) -> 5.308550186 | L22: =IF(ISERROR(VLOOKUP($E22,表C_RAW!$C:$I,4,0)),"",VLOOKUP($E22,表C_RAW!$C:$I,4,0)) -> 66449 | M22: =IF(ISERROR(VLOOKUP($E22,表C_RAW!$C:$I,5,0)),"",VLOOKUP($E22,表C_RAW!$C:$I,5,0)) -> 102916 | N22: =IF(ISERROR(VLOOKUP($E22,表C_RAW!$C:$I,6,0)),"",VLOOKUP($E22,表C_RAW!$C:$I,6,0)/100) -> -0.3543
D23: 3 | E23: =VLOOKUP($C$21&D23,表A_RAW!A:I,3,FALSE) -> 6240 松崗 | G23: =IF(ISERROR(VLOOKUP($E23,表A_RAW!$C:$I,4,0)),"",VLOOKUP($E23,表A_RAW!$C:$I,4,0)) -> 5689 | H23: =IF(ISERROR(VLOOKUP($E23,表B_RAW!$C:$I,5,0)),"",VLOOKUP($E23,表B_RAW!$C:$I,5,0)) -> 3173 | I23: =IF(ISERROR(VLOOKUP($E23,表B_RAW!$C:$I,6,0)),"",VLOOKUP($E23,表B_RAW!$C:$I,6,0)/100) -> 0.7929 | J23: =IF(ISERROR(VLOOKUP($E23,表A_RAW!$C:$I,5,0)),"",VLOOKUP($E23,表A_RAW!$C:$I,5,0)) -> 1061 | K23: =IF(ISERROR(VLOOKUP($E23,表A_RAW!$C:$I,7,0)),"",VLOOKUP($E23,表A_RAW!$C:$I,7,0)) -> 4.361922714 | L23: =IF(ISERROR(VLOOKUP($E23,表C_RAW!$C:$I,4,0)),"",VLOOKUP($E23,表C_RAW!$C:$I,4,0)) -> 39092 | M23: =IF(ISERROR(VLOOKUP($E23,表C_RAW!$C:$I,5,0)),"",VLOOKUP($E23,表C_RAW!$C:$I,5,0)) -> 10629 | N23: =IF(ISERROR(VLOOKUP($E23,表C_RAW!$C:$I,6,0)),"",VLOOKUP($E23,表C_RAW!$C:$I,6,0)/100) -> 2.6779
C24: =VLOOKUP(B21,表A_RAW!N:T,7,0) -> 18.36665276 | D24: 4 | E24: =VLOOKUP($C$21&D24,表A_RAW!A:I,3,FALSE) -> 2514 龍邦 | G24: =IF(ISERROR(VLOOKUP($E24,表A_RAW!$C:$I,4,0)),"",VLOOKUP($E24,表A_RAW!$C:$I,4,0)) -> 1958164 | H24: =IF(ISERROR(VLOOKUP($E24,表B_RAW!$C:$I,5,0)),"",VLOOKUP($E24,表B_RAW!$C:$I,5,0)) -> 2058366 | I24: =IF(ISERROR(VLOOKUP($E24,表B_RAW!$C:$I,6,0)),"",VLOOKUP($E24,表B_RAW!$C:$I,6,0)/100) -> -0.0487 | J24: =IF(ISERROR(VLOOKUP($E24,表A_RAW!$C:$I,5,0)),"",VLOOKUP($E24,表A_RAW!$C:$I,5,0)) -> 631834 | K24: =IF(ISERROR(VLOOKUP($E24,表A_RAW!$C:$I,7,0)),"",VLOOKUP($E24,表A_RAW!$C:$I,7,0)) -> 2.099174783 | L24: =IF(ISERROR(VLOOKUP($E24,表C_RAW!$C:$I,4,0)),"",VLOOKUP($E24,表C_RAW!$C:$I,4,0)) -> 13603576 | M24: =IF(ISERROR(VLOOKUP($E24,表C_RAW!$C:$I,5,0)),"",VLOOKUP($E24,表C_RAW!$C:$I,5,0)) -> 7226664 | N24: =IF(ISERROR(VLOOKUP($E24,表C_RAW!$C:$I,6,0)),"",VLOOKUP($E24,表C_RAW!$C:$I,6,0)/100) -> 0.8824
D25: 5 | E25: =VLOOKUP($C$21&D25,表A_RAW!A:I,3,FALSE) -> 5345 天揚 | G25: =IF(ISERROR(VLOOKUP($E25,表A_RAW!$C:$I,4,0)),"",VLOOKUP($E25,表A_RAW!$C:$I,4,0)) -> 643 | H25: =IF(ISERROR(VLOOKUP($E25,表B_RAW!$C:$I,5,0)),"",VLOOKUP($E25,表B_RAW!$C:$I,5,0)) -> 864 | I25: =IF(ISERROR(VLOOKUP($E25,表B_RAW!$C:$I,6,0)),"",VLOOKUP($E25,表B_RAW!$C:$I,6,0)/100) -> -0.2558 | J25: =IF(ISERROR(VLOOKUP($E25,表A_RAW!$C:$I,5,0)),"",VLOOKUP($E25,表A_RAW!$C:$I,5,0)) -> 238 | K25: =IF(ISERROR(VLOOKUP($E25,表A_RAW!$C:$I,7,0)),"",VLOOKUP($E25,表A_RAW!$C:$I,7,0)) -> 1.701680672 | L25: =IF(ISERROR(VLOOKUP($E25,表C_RAW!$C:$I,4,0)),"",VLOOKUP($E25,表C_RAW!$C:$I,4,0)) -> 5217 | M25: =IF(ISERROR(VLOOKUP($E25,表C_RAW!$C:$I,5,0)),"",VLOOKUP($E25,表C_RAW!$C:$I,5,0)) -> 5527 | N25: =IF(ISERROR(VLOOKUP($E25,表C_RAW!$C:$I,6,0)),"",VLOOKUP($E25,表C_RAW!$C:$I,6,0)/100) -> -0.0561
B26: 5 | C26: =VLOOKUP(B26,表A_RAW!N:T,3,0) -> 文化創意業 | D26: 1 | E26: =VLOOKUP($C$26&D26,表A_RAW!A:I,3,FALSE) -> 6101 寬魚國際 | G26: =IF(ISERROR(VLOOKUP($E26,表A_RAW!$C:$I,4,0)),"",VLOOKUP($E26,表A_RAW!$C:$I,4,0)) -> 28088 | H26: =IF(ISERROR(VLOOKUP($E26,表B_RAW!$C:$I,5,0)),"",VLOOKUP($E26,表B_RAW!$C:$I,5,0)) -> 75718 | I26: =IF(ISERROR(VLOOKUP($E26,表B_RAW!$C:$I,6,0)),"",VLOOKUP($E26,表B_RAW!$C:$I,6,0)/100) -> -0.629 | J26: =IF(ISERROR(VLOOKUP($E26,表A_RAW!$C:$I,5,0)),"",VLOOKUP($E26,表A_RAW!$C:$I,5,0)) -> 30 | K26: =IF(ISERROR(VLOOKUP($E26,表A_RAW!$C:$I,7,0)),"",VLOOKUP($E26,表A_RAW!$C:$I,7,0)) -> 935.2666667 | L26: =IF(ISERROR(VLOOKUP($E26,表C_RAW!$C:$I,4,0)),"",VLOOKUP($E26,表C_RAW!$C:$I,4,0)) -> 540075 | M26: =IF(ISERROR(VLOOKUP($E26,表C_RAW!$C:$I,5,0)),"",VLOOKUP($E26,表C_RAW!$C:$I,5,0)) -> 54019 | N26: =IF(ISERROR(VLOOKUP($E26,表C_RAW!$C:$I,6,0)),"",VLOOKUP($E26,表C_RAW!$C:$I,6,0)/100) -> 8.9979
D27: 2 | E27: =VLOOKUP($C$26&D27,表A_RAW!A:I,3,FALSE) -> 6169 昱泉 | G27: =IF(ISERROR(VLOOKUP($E27,表A_RAW!$C:$I,4,0)),"",VLOOKUP($E27,表A_RAW!$C:$I,4,0)) -> 1950 | H27: =IF(ISERROR(VLOOKUP($E27,表B_RAW!$C:$I,5,0)),"",VLOOKUP($E27,表B_RAW!$C:$I,5,0)) -> 1919 | I27: =IF(ISERROR(VLOOKUP($E27,表B_RAW!$C:$I,6,0)),"",VLOOKUP($E27,表B_RAW!$C:$I,6,0)/100) -> 0.0162 | J27: =IF(ISERROR(VLOOKUP($E27,表A_RAW!$C:$I,5,0)),"",VLOOKUP($E27,表A_RAW!$C:$I,5,0)) -> 38 | K27: =IF(ISERROR(VLOOKUP($E27,表A_RAW!$C:$I,7,0)),"",VLOOKUP($E27,表A_RAW!$C:$I,7,0)) -> 50.31578947 | L27: =IF(ISERROR(VLOOKUP($E27,表C_RAW!$C:$I,4,0)),"",VLOOKUP($E27,表C_RAW!$C:$I,4,0)) -> 15328 | M27: =IF(ISERROR(VLOOKUP($E27,表C_RAW!$C:$I,5,0)),"",VLOOKUP($E27,表C_RAW!$C:$I,5,0)) -> 2468 | N27: =IF(ISERROR(VLOOKUP($E27,表C_RAW!$C:$I,6,0)),"",VLOOKUP($E27,表C_RAW!$C:$I,6,0)/100) -> 5.2107
D28: 3 | E28: =VLOOKUP($C$26&D28,表A_RAW!A:I,3,FALSE) -> 6111 大宇資 | G28: =IF(ISERROR(VLOOKUP($E28,表A_RAW!$C:$I,4,0)),"",VLOOKUP($E28,表A_RAW!$C:$I,4,0)) -> 288358 | H28: =IF(ISERROR(VLOOKUP($E28,表B_RAW!$C:$I,5,0)),"",VLOOKUP($E28,表B_RAW!$C:$I,5,0)) -> 204398 | I28: =IF(ISERROR(VLOOKUP($E28,表B_RAW!$C:$I,6,0)),"",VLOOKUP($E28,表B_RAW!$C:$I,6,0)/100) -> 0.4108 | J28: =IF(ISERROR(VLOOKUP($E28,表A_RAW!$C:$I,5,0)),"",VLOOKUP($E28,表A_RAW!$C:$I,5,0)) -> 151317 | K28: =IF(ISERROR(VLOOKUP($E28,表A_RAW!$C:$I,7,0)),"",VLOOKUP($E28,表A_RAW!$C:$I,7,0)) -> 0.9056550156 | L28: =IF(ISERROR(VLOOKUP($E28,表C_RAW!$C:$I,4,0)),"",VLOOKUP($E28,表C_RAW!$C:$I,4,0)) -> 2462972 | M28: =IF(ISERROR(VLOOKUP($E28,表C_RAW!$C:$I,5,0)),"",VLOOKUP($E28,表C_RAW!$C:$I,5,0)) -> 1803389 | N28: =IF(ISERROR(VLOOKUP($E28,表C_RAW!$C:$I,6,0)),"",VLOOKUP($E28,表C_RAW!$C:$I,6,0)/100) -> 0.3657
C29: =VLOOKUP(B26,表A_RAW!N:T,7,0) -> 9.639547954 | D29: 4 | E29: =VLOOKUP($C$26&D29,表A_RAW!A:I,3,FALSE) -> 6482 弘煜科 | G29: =IF(ISERROR(VLOOKUP($E29,表A_RAW!$C:$I,4,0)),"",VLOOKUP($E29,表A_RAW!$C:$I,4,0)) -> 45737 | H29: =IF(ISERROR(VLOOKUP($E29,表B_RAW!$C:$I,5,0)),"",VLOOKUP($E29,表B_RAW!$C:$I,5,0)) -> 55196 | I29: =IF(ISERROR(VLOOKUP($E29,表B_RAW!$C:$I,6,0)),"",VLOOKUP($E29,表B_RAW!$C:$I,6,0)/100) -> -0.1714 | J29: =IF(ISERROR(VLOOKUP($E29,表A_RAW!$C:$I,5,0)),"",VLOOKUP($E29,表A_RAW!$C:$I,5,0)) -> 25761 | K29: =IF(ISERROR(VLOOKUP($E29,表A_RAW!$C:$I,7,0)),"",VLOOKUP($E29,表A_RAW!$C:$I,7,0)) -> 0.7754357362 | L29: =IF(ISERROR(VLOOKUP($E29,表C_RAW!$C:$I,4,0)),"",VLOOKUP($E29,表C_RAW!$C:$I,4,0)) -> 341886 | M29: =IF(ISERROR(VLOOKUP($E29,表C_RAW!$C:$I,5,0)),"",VLOOKUP($E29,表C_RAW!$C:$I,5,0)) -> 312611 | N29: =IF(ISERROR(VLOOKUP($E29,表C_RAW!$C:$I,6,0)),"",VLOOKUP($E29,表C_RAW!$C:$I,6,0)/100) -> 0.0936
D30: 5 | E30: =VLOOKUP($C$26&D30,表A_RAW!A:I,3,FALSE) -> 6596 寬宏藝術 | G30: =IF(ISERROR(VLOOKUP($E30,表A_RAW!$C:$I,4,0)),"",VLOOKUP($E30,表A_RAW!$C:$I,4,0)) -> 97676 | H30: =IF(ISERROR(VLOOKUP($E30,表B_RAW!$C:$I,5,0)),"",VLOOKUP($E30,表B_RAW!$C:$I,5,0)) -> 146179 | I30: =IF(ISERROR(VLOOKUP($E30,表B_RAW!$C:$I,6,0)),"",VLOOKUP($E30,表B_RAW!$C:$I,6,0)/100) -> -0.3318 | J30: =IF(ISERROR(VLOOKUP($E30,表A_RAW!$C:$I,5,0)),"",VLOOKUP($E30,表A_RAW!$C:$I,5,0)) -> 74319 | K30: =IF(ISERROR(VLOOKUP($E30,表A_RAW!$C:$I,7,0)),"",VLOOKUP($E30,表A_RAW!$C:$I,7,0)) -> 0.3142803321 | L30: =IF(ISERROR(VLOOKUP($E30,表C_RAW!$C:$I,4,0)),"",VLOOKUP($E30,表C_RAW!$C:$I,4,0)) -> 1025931 | M30: =IF(ISERROR(VLOOKUP($E30,表C_RAW!$C:$I,5,0)),"",VLOOKUP($E30,表C_RAW!$C:$I,5,0)) -> 1063067 | N30: =IF(ISERROR(VLOOKUP($E30,表C_RAW!$C:$I,6,0)),"",VLOOKUP($E30,表C_RAW!$C:$I,6,0)/100) -> -0.0349
B32: 衰退前五名之產業 YOY(單月)% | D32: 該產業衰退前五名之公司 YOY(單月)% | G32: 單月營收金額(千元) | H32: 本月與上月相較 | J32: 本月與去年同期相較 | L32: 累計營收金額(千元) | M32: 累計營收與去年同期相較
B33: 衰退 排名 | C33: 產業 | D33: 排名 | E33: 公司代號&簡稱 | H33: 上月營收金額(千元) | I33: 較上月變動比率(%) | J33: 去年同期金額(千元) | K33: 較去年同期變動比率(%) | M33: 去年累計營收金額(千元) | N33: 較去年同期變動比率(%)
B34: 1 | C34: =VLOOKUP(B34,表A_RAW!O:T,2,0) -> 航運業 | D34: 1 | E34: =VLOOKUP($C$34&D34,表A_RAW!B:I,2,0) -> 2208 台船 | G34: =IF(ISERROR(VLOOKUP($E34,表A_RAW!$C:$I,4,0)),"",VLOOKUP($E34,表A_RAW!$C:$I,4,0)) -> 1608688 | H34: =IF(ISERROR(VLOOKUP($E34,表B_RAW!$C:$I,5,0)),"",VLOOKUP($E34,表B_RAW!$C:$I,5,0)) -> 1600377 | I34: =IF(ISERROR(VLOOKUP($E34,表B_RAW!$C:$I,6,0)),"",VLOOKUP($E34,表B_RAW!$C:$I,6,0)/100) -> 0.0052 | J34: =IF(ISERROR(VLOOKUP($E34,表A_RAW!$C:$I,5,0)),"",VLOOKUP($E34,表A_RAW!$C:$I,5,0)) -> 4074664 | K34: =IF(ISERROR(VLOOKUP($E34,表A_RAW!$C:$I,7,0)),"",VLOOKUP($E34,表A_RAW!$C:$I,7,0)) -> -0.6051973856 | L34: =IF(ISERROR(VLOOKUP($E34,表C_RAW!$C:$I,4,0)),"",VLOOKUP($E34,表C_RAW!$C:$I,4,0)) -> 18457119 | M34: =IF(ISERROR(VLOOKUP($E34,表C_RAW!$C:$I,5,0)),"",VLOOKUP($E34,表C_RAW!$C:$I,5,0)) -> 18165707 | N34: =IF(ISERROR(VLOOKUP($E34,表C_RAW!$C:$I,6,0)),"",VLOOKUP($E34,表C_RAW!$C:$I,6,0)/100) -> 0.016
D35: 2 | E35: =VLOOKUP($C$34&D35,表A_RAW!B:I,2,0) -> 2609 陽明 | G35: =IF(ISERROR(VLOOKUP($E35,表A_RAW!$C:$I,4,0)),"",VLOOKUP($E35,表A_RAW!$C:$I,4,0)) -> 11301611 | H35: =IF(ISERROR(VLOOKUP($E35,表B_RAW!$C:$I,5,0)),"",VLOOKUP($E35,表B_RAW!$C:$I,5,0)) -> 12207961 | I35: =IF(ISERROR(VLOOKUP($E35,表B_RAW!$C:$I,6,0)),"",VLOOKUP($E35,表B_RAW!$C:$I,6,0)/100) -> -0.0742 | J35: =IF(ISERROR(VLOOKUP($E35,表A_RAW!$C:$I,5,0)),"",VLOOKUP($E35,表A_RAW!$C:$I,5,0)) -> 23990181 | K35: =IF(ISERROR(VLOOKUP($E35,表A_RAW!$C:$I,7,0)),"",VLOOKUP($E35,表A_RAW!$C:$I,7,0)) -> -0.5289068057 | L35: =IF(ISERROR(VLOOKUP($E35,表C_RAW!$C:$I,4,0)),"",VLOOKUP($E35,表C_RAW!$C:$I,4,0)) -> 119202536 | M35: =IF(ISERROR(VLOOKUP($E35,表C_RAW!$C:$I,5,0)),"",VLOOKUP($E35,表C_RAW!$C:$I,5,0)) -> 339954661 | N35: =IF(ISERROR(VLOOKUP($E35,表C_RAW!$C:$I,6,0)),"",VLOOKUP($E35,表C_RAW!$C:$I,6,0)/100) -> -0.6494
D36: 3 | E36: =VLOOKUP($C$34&D36,表A_RAW!B:I,2,0) -> 2603 長榮 | G36: =IF(ISERROR(VLOOKUP($E36,表A_RAW!$C:$I,4,0)),"",VLOOKUP($E36,表A_RAW!$C:$I,4,0)) -> 23364349 | H36: =IF(ISERROR(VLOOKUP($E36,表B_RAW!$C:$I,5,0)),"",VLOOKUP($E36,表B_RAW!$C:$I,5,0)) -> 24483411 | I36: =IF(ISERROR(VLOOKUP($E36,表B_RAW!$C:$I,6,0)),"",VLOOKUP($E36,表B_RAW!$C:$I,6,0)/100) -> -0.0457 | J36: =IF(ISERROR(VLOOKUP($E36,表A_RAW!$C:$I,5,0)),"",VLOOKUP($E36,表A_RAW!$C:$I,5,0)) -> 45647733 | K36: =IF(ISERROR(VLOOKUP($E36,表A_RAW!$C:$I,7,0)),"",VLOOKUP($E36,表A_RAW!$C:$I,7,0)) -> -0.4881597077 | L36: =IF(ISERROR(VLOOKUP($E36,表C_RAW!$C:$I,4,0)),"",VLOOKUP($E36,表C_RAW!$C:$I,4,0)) -> 230388028 | M36: =IF(ISERROR(VLOOKUP($E36,表C_RAW!$C:$I,5,0)),"",VLOOKUP($E36,表C_RAW!$C:$I,5,0)) -> 561904966 | N36: =IF(ISERROR(VLOOKUP($E36,表C_RAW!$C:$I,6,0)),"",VLOOKUP($E36,表C_RAW!$C:$I,6,0)/100) -> -0.59
C37: =VLOOKUP(B34,表A_RAW!O:T,6,0) -> -25.83309377 | D37: 4 | E37: =VLOOKUP($C$34&D37,表A_RAW!B:I,2,0) -> 2615 萬海 | G37: =IF(ISERROR(VLOOKUP($E37,表A_RAW!$C:$I,4,0)),"",VLOOKUP($E37,表A_RAW!$C:$I,4,0)) -> 8170544 | H37: =IF(ISERROR(VLOOKUP($E37,表B_RAW!$C:$I,5,0)),"",VLOOKUP($E37,表B_RAW!$C:$I,5,0)) -> 8242483 | I37: =IF(ISERROR(VLOOKUP($E37,表B_RAW!$C:$I,6,0)),"",VLOOKUP($E37,表B_RAW!$C:$I,6,0)/100) -> -0.0087 | J37: =IF(ISERROR(VLOOKUP($E37,表A_RAW!$C:$I,5,0)),"",VLOOKUP($E37,表A_RAW!$C:$I,5,0)) -> 14987205 | K37: =IF(ISERROR(VLOOKUP($E37,表A_RAW!$C:$I,7,0)),"",VLOOKUP($E37,表A_RAW!$C:$I,7,0)) -> -0.4548320384 | L37: =IF(ISERROR(VLOOKUP($E37,表C_RAW!$C:$I,4,0)),"",VLOOKUP($E37,表C_RAW!$C:$I,4,0)) -> 83246162 | M37: =IF(ISERROR(VLOOKUP($E37,表C_RAW!$C:$I,5,0)),"",VLOOKUP($E37,表C_RAW!$C:$I,5,0)) -> 234421764 | N37: =IF(ISERROR(VLOOKUP($E37,表C_RAW!$C:$I,6,0)),"",VLOOKUP($E37,表C_RAW!$C:$I,6,0)/100) -> -0.6449
D38: 5 | E38: =VLOOKUP($C$34&D38,表A_RAW!B:I,2,0) -> 5608 四維航 | G38: =IF(ISERROR(VLOOKUP($E38,表A_RAW!$C:$I,4,0)),"",VLOOKUP($E38,表A_RAW!$C:$I,4,0)) -> 296158 | H38: =IF(ISERROR(VLOOKUP($E38,表B_RAW!$C:$I,5,0)),"",VLOOKUP($E38,表B_RAW!$C:$I,5,0)) -> 275264 | I38: =IF(ISERROR(VLOOKUP($E38,表B_RAW!$C:$I,6,0)),"",VLOOKUP($E38,表B_RAW!$C:$I,6,0)/100) -> 0.0759 | J38: =IF(ISERROR(VLOOKUP($E38,表A_RAW!$C:$I,5,0)),"",VLOOKUP($E38,表A_RAW!$C:$I,5,0)) -> 519184 | K38: =IF(ISERROR(VLOOKUP($E38,表A_RAW!$C:$I,7,0)),"",VLOOKUP($E38,表A_RAW!$C:$I,7,0)) -> -0.4295702487 | L38: =IF(ISERROR(VLOOKUP($E38,表C_RAW!$C:$I,4,0)),"",VLOOKUP($E38,表C_RAW!$C:$I,4,0)) -> 2928334 | M38: =IF(ISERROR(VLOOKUP($E38,表C_RAW!$C:$I,5,0)),"",VLOOKUP($E38,表C_RAW!$C:$I,5,0)) -> 5935832 | N38: =IF(ISERROR(VLOOKUP($E38,表C_RAW!$C:$I,6,0)),"",VLOOKUP($E38,表C_RAW!$C:$I,6,0)/100) -> -0.5067
B39: 2 | C39: =VLOOKUP(B39,表A_RAW!O:T,2,0) -> 農業科技 | D39: 1 | E39: =VLOOKUP($C$39&D39,表A_RAW!B:I,2,0) -> 4171 瑞基 | G39: =IF(ISERROR(VLOOKUP($E39,表A_RAW!$C:$I,4,0)),"",VLOOKUP($E39,表A_RAW!$C:$I,4,0)) -> 17165 | H39: =IF(ISERROR(VLOOKUP($E39,表B_RAW!$C:$I,5,0)),"",VLOOKUP($E39,表B_RAW!$C:$I,5,0)) -> 13805 | I39: =IF(ISERROR(VLOOKUP($E39,表B_RAW!$C:$I,6,0)),"",VLOOKUP($E39,表B_RAW!$C:$I,6,0)/100) -> 0.2434 | J39: =IF(ISERROR(VLOOKUP($E39,表A_RAW!$C:$I,5,0)),"",VLOOKUP($E39,表A_RAW!$C:$I,5,0)) -> 35757 | K39: =IF(ISERROR(VLOOKUP($E39,表A_RAW!$C:$I,7,0)),"",VLOOKUP($E39,表A_RAW!$C:$I,7,0)) -> -0.5199541349 | L39: =IF(ISERROR(VLOOKUP($E39,表C_RAW!$C:$I,4,0)),"",VLOOKUP($E39,表C_RAW!$C:$I,4,0)) -> 187800 | M39: =IF(ISERROR(VLOOKUP($E39,表C_RAW!$C:$I,5,0)),"",VLOOKUP($E39,表C_RAW!$C:$I,5,0)) -> 700508 | N39: =IF(ISERROR(VLOOKUP($E39,表C_RAW!$C:$I,6,0)),"",VLOOKUP($E39,表C_RAW!$C:$I,6,0)/100) -> -0.7319
D40: 2 | E40: =VLOOKUP($C$39&D40,表A_RAW!B:I,2,0) -> 6578 達邦蛋白 | G40: =IF(ISERROR(VLOOKUP($E40,表A_RAW!$C:$I,4,0)),"",VLOOKUP($E40,表A_RAW!$C:$I,4,0)) -> 31348 | H40: =IF(ISERROR(VLOOKUP($E40,表B_RAW!$C:$I,5,0)),"",VLOOKUP($E40,表B_RAW!$C:$I,5,0)) -> 27677 | I40: =IF(ISERROR(VLOOKUP($E40,表B_RAW!$C:$I,6,0)),"",VLOOKUP($E40,表B_RAW!$C:$I,6,0)/100) -> 0.1326 | J40: =IF(ISERROR(VLOOKUP($E40,表A_RAW!$C:$I,5,0)),"",VLOOKUP($E40,表A_RAW!$C:$I,5,0)) -> 41842 | K40: =IF(ISERROR(VLOOKUP($E40,表A_RAW!$C:$I,7,0)),"",VLOOKUP($E40,表A_RAW!$C:$I,7,0)) -> -0.2508006309 | L40: =IF(ISERROR(VLOOKUP($E40,表C_RAW!$C:$I,4,0)),"",VLOOKUP($E40,表C_RAW!$C:$I,4,0)) -> 315163 | M40: =IF(ISERROR(VLOOKUP($E40,表C_RAW!$C:$I,5,0)),"",VLOOKUP($E40,表C_RAW!$C:$I,5,0)) -> 360460 | N40: =IF(ISERROR(VLOOKUP($E40,表C_RAW!$C:$I,6,0)),"",VLOOKUP($E40,表C_RAW!$C:$I,6,0)/100) -> -0.1257
D41: 3 | E41: =VLOOKUP($C$39&D41,表A_RAW!B:I,2,0) -> 1240 茂生農經 | G41: =IF(ISERROR(VLOOKUP($E41,表A_RAW!$C:$I,4,0)),"",VLOOKUP($E41,表A_RAW!$C:$I,4,0)) -> 245925 | H41: =IF(ISERROR(VLOOKUP($E41,表B_RAW!$C:$I,5,0)),"",VLOOKUP($E41,表B_RAW!$C:$I,5,0)) -> 223358 | I41: =IF(ISERROR(VLOOKUP($E41,表B_RAW!$C:$I,6,0)),"",VLOOKUP($E41,表B_RAW!$C:$I,6,0)/100) -> 0.101 | J41: =IF(ISERROR(VLOOKUP($E41,表A_RAW!$C:$I,5,0)),"",VLOOKUP($E41,表A_RAW!$C:$I,5,0)) -> 312492 | K41: =IF(ISERROR(VLOOKUP($E41,表A_RAW!$C:$I,7,0)),"",VLOOKUP($E41,表A_RAW!$C:$I,7,0)) -> -0.2130198533 | L41: =IF(ISERROR(VLOOKUP($E41,表C_RAW!$C:$I,4,0)),"",VLOOKUP($E41,表C_RAW!$C:$I,4,0)) -> 2371277 | M41: =IF(ISERROR(VLOOKUP($E41,表C_RAW!$C:$I,5,0)),"",VLOOKUP($E41,表C_RAW!$C:$I,5,0)) -> 2774635 | N41: =IF(ISERROR(VLOOKUP($E41,表C_RAW!$C:$I,6,0)),"",VLOOKUP($E41,表C_RAW!$C:$I,6,0)/100) -> -0.1454
C42: =VLOOKUP(B39,表A_RAW!O:T,6,0) -> -22.52208209 | D42: 4 | E42: =VLOOKUP($C$39&D42,表A_RAW!B:I,2,0) -> 6508 惠光 | G42: =IF(ISERROR(VLOOKUP($E42,表A_RAW!$C:$I,4,0)),"",VLOOKUP($E42,表A_RAW!$C:$I,4,0)) -> 104932 | H42: =IF(ISERROR(VLOOKUP($E42,表B_RAW!$C:$I,5,0)),"",VLOOKUP($E42,表B_RAW!$C:$I,5,0)) -> 145679 | I42: =IF(ISERROR(VLOOKUP($E42,表B_RAW!$C:$I,6,0)),"",VLOOKUP($E42,表B_RAW!$C:$I,6,0)/100) -> -0.2797 | J42: =IF(ISERROR(VLOOKUP($E42,表A_RAW!$C:$I,5,0)),"",VLOOKUP($E42,表A_RAW!$C:$I,5,0)) -> 125372 | K42: =IF(ISERROR(VLOOKUP($E42,表A_RAW!$C:$I,7,0)),"",VLOOKUP($E42,表A_RAW!$C:$I,7,0)) -> -0.1630348084 | L42: =IF(ISERROR(VLOOKUP($E42,表C_RAW!$C:$I,4,0)),"",VLOOKUP($E42,表C_RAW!$C:$I,4,0)) -> 1401323 | M42: =IF(ISERROR(VLOOKUP($E42,表C_RAW!$C:$I,5,0)),"",VLOOKUP($E42,表C_RAW!$C:$I,5,0)) -> 2349926 | N42: =IF(ISERROR(VLOOKUP($E42,表C_RAW!$C:$I,6,0)),"",VLOOKUP($E42,表C_RAW!$C:$I,6,0)/100) -> -0.4037
D43: 5 | E43: =VLOOKUP($C$39&D43,表A_RAW!B:I,2,0) ->  | G43: =IF(ISERROR(VLOOKUP($E43,表A_RAW!$C:$I,4,0)),"",VLOOKUP($E43,表A_RAW!$C:$I,4,0)) ->  | H43: =IF(ISERROR(VLOOKUP($E43,表B_RAW!$C:$I,5,0)),"",VLOOKUP($E43,表B_RAW!$C:$I,5,0)) ->  | I43: =IF(ISERROR(VLOOKUP($E43,表B_RAW!$C:$I,6,0)),"",VLOOKUP($E43,表B_RAW!$C:$I,6,0)/100) ->  | J43: =IF(ISERROR(VLOOKUP($E43,表A_RAW!$C:$I,5,0)),"",VLOOKUP($E43,表A_RAW!$C:$I,5,0)) ->  | K43: =IF(ISERROR(VLOOKUP($E43,表A_RAW!$C:$I,7,0)),"",VLOOKUP($E43,表A_RAW!$C:$I,7,0)) ->  | L43: =IF(ISERROR(VLOOKUP($E43,表C_RAW!$C:$I,4,0)),"",VLOOKUP($E43,表C_RAW!$C:$I,4,0)) ->  | M43: =IF(ISERROR(VLOOKUP($E43,表C_RAW!$C:$I,5,0)),"",VLOOKUP($E43,表C_RAW!$C:$I,5,0)) ->  | N43: =IF(ISERROR(VLOOKUP($E43,表C_RAW!$C:$I,6,0)),"",VLOOKUP($E43,表C_RAW!$C:$I,6,0)/100) -> 
B44: 3 | C44: =VLOOKUP(B44,表A_RAW!O:T,2,0) -> 運動休閒 | D44: 1 | E44: =VLOOKUP($C$44&D44,表A_RAW!B:I,2,0) -> 8420 明揚 | G44: =IF(ISERROR(VLOOKUP($E44,表A_RAW!$C:$I,4,0)),"",VLOOKUP($E44,表A_RAW!$C:$I,4,0)) -> 12036 | H44: =IF(ISERROR(VLOOKUP($E44,表B_RAW!$C:$I,5,0)),"",VLOOKUP($E44,表B_RAW!$C:$I,5,0)) -> 235822 | I44: =IF(ISERROR(VLOOKUP($E44,表B_RAW!$C:$I,6,0)),"",VLOOKUP($E44,表B_RAW!$C:$I,6,0)/100) -> -0.949 | J44: =IF(ISERROR(VLOOKUP($E44,表A_RAW!$C:$I,5,0)),"",VLOOKUP($E44,表A_RAW!$C:$I,5,0)) -> 325645 | K44: =IF(ISERROR(VLOOKUP($E44,表A_RAW!$C:$I,7,0)),"",VLOOKUP($E44,表A_RAW!$C:$I,7,0)) -> -0.9630395062 | L44: =IF(ISERROR(VLOOKUP($E44,表C_RAW!$C:$I,4,0)),"",VLOOKUP($E44,表C_RAW!$C:$I,4,0)) -> 2788067 | M44: =IF(ISERROR(VLOOKUP($E44,表C_RAW!$C:$I,5,0)),"",VLOOKUP($E44,表C_RAW!$C:$I,5,0)) -> 2890817 | N44: =IF(ISERROR(VLOOKUP($E44,表C_RAW!$C:$I,6,0)),"",VLOOKUP($E44,表C_RAW!$C:$I,6,0)/100) -> -0.0355
D45: 2 | E45: =VLOOKUP($C$44&D45,表A_RAW!B:I,2,0) -> 6804 明係 | G45: =IF(ISERROR(VLOOKUP($E45,表A_RAW!$C:$I,4,0)),"",VLOOKUP($E45,表A_RAW!$C:$I,4,0)) -> 196957 | H45: =IF(ISERROR(VLOOKUP($E45,表B_RAW!$C:$I,5,0)),"",VLOOKUP($E45,表B_RAW!$C:$I,5,0)) -> 234528 | I45: =IF(ISERROR(VLOOKUP($E45,表B_RAW!$C:$I,6,0)),"",VLOOKUP($E45,表B_RAW!$C:$I,6,0)/100) -> -0.1602 | J45: =IF(ISERROR(VLOOKUP($E45,表A_RAW!$C:$I,5,0)),"",VLOOKUP($E45,表A_RAW!$C:$I,5,0)) -> 467333 | K45: =IF(ISERROR(VLOOKUP($E45,表A_RAW!$C:$I,7,0)),"",VLOOKUP($E45,表A_RAW!$C:$I,7,0)) -> -0.5785510546 | L45: =IF(ISERROR(VLOOKUP($E45,表C_RAW!$C:$I,4,0)),"",VLOOKUP($E45,表C_RAW!$C:$I,4,0)) -> 2846102 | M45: =IF(ISERROR(VLOOKUP($E45,表C_RAW!$C:$I,5,0)),"",VLOOKUP($E45,表C_RAW!$C:$I,5,0)) -> 2648367 | N45: =IF(ISERROR(VLOOKUP($E45,表C_RAW!$C:$I,6,0)),"",VLOOKUP($E45,表C_RAW!$C:$I,6,0)/100) -> 0.0747
D46: 3 | E46: =VLOOKUP($C$44&D46,表A_RAW!B:I,2,0) -> 9914 美利達 | G46: =IF(ISERROR(VLOOKUP($E46,表A_RAW!$C:$I,4,0)),"",VLOOKUP($E46,表A_RAW!$C:$I,4,0)) -> 1524575 | H46: =IF(ISERROR(VLOOKUP($E46,表B_RAW!$C:$I,5,0)),"",VLOOKUP($E46,表B_RAW!$C:$I,5,0)) -> 1939296 | I46: =IF(ISERROR(VLOOKUP($E46,表B_RAW!$C:$I,6,0)),"",VLOOKUP($E46,表B_RAW!$C:$I,6,0)/100) -> -0.2139 | J46: =IF(ISERROR(VLOOKUP($E46,表A_RAW!$C:$I,5,0)),"",VLOOKUP($E46,表A_RAW!$C:$I,5,0)) -> 3376878 | K46: =IF(ISERROR(VLOOKUP($E46,表A_RAW!$C:$I,7,0)),"",VLOOKUP($E46,表A_RAW!$C:$I,7,0)) -> -0.5485252947 | L46: =IF(ISERROR(VLOOKUP($E46,表C_RAW!$C:$I,4,0)),"",VLOOKUP($E46,表C_RAW!$C:$I,4,0)) -> 24054553 | M46: =IF(ISERROR(VLOOKUP($E46,表C_RAW!$C:$I,5,0)),"",VLOOKUP($E46,表C_RAW!$C:$I,5,0)) -> 29751228 | N46: =IF(ISERROR(VLOOKUP($E46,表C_RAW!$C:$I,6,0)),"",VLOOKUP($E46,表C_RAW!$C:$I,6,0)/100) -> -0.1915
C47: =VLOOKUP(B44,表A_RAW!O:T,6,0) -> -20.8598503 | D47: 4 | E47: =VLOOKUP($C$44&D47,表A_RAW!B:I,2,0) -> 8924 大田 | G47: =IF(ISERROR(VLOOKUP($E47,表A_RAW!$C:$I,4,0)),"",VLOOKUP($E47,表A_RAW!$C:$I,4,0)) -> 323669 | H47: =IF(ISERROR(VLOOKUP($E47,表B_RAW!$C:$I,5,0)),"",VLOOKUP($E47,表B_RAW!$C:$I,5,0)) -> 269026 | I47: =IF(ISERROR(VLOOKUP($E47,表B_RAW!$C:$I,6,0)),"",VLOOKUP($E47,表B_RAW!$C:$I,6,0)/100) -> 0.2031 | J47: =IF(ISERROR(VLOOKUP($E47,表A_RAW!$C:$I,5,0)),"",VLOOKUP($E47,表A_RAW!$C:$I,5,0)) -> 714539 | K47: =IF(ISERROR(VLOOKUP($E47,表A_RAW!$C:$I,7,0)),"",VLOOKUP($E47,表A_RAW!$C:$I,7,0)) -> -0.5470240253 | L47: =IF(ISERROR(VLOOKUP($E47,表C_RAW!$C:$I,4,0)),"",VLOOKUP($E47,表C_RAW!$C:$I,4,0)) -> 3610431 | M47: =IF(ISERROR(VLOOKUP($E47,表C_RAW!$C:$I,5,0)),"",VLOOKUP($E47,表C_RAW!$C:$I,5,0)) -> 6291722 | N47: =IF(ISERROR(VLOOKUP($E47,表C_RAW!$C:$I,6,0)),"",VLOOKUP($E47,表C_RAW!$C:$I,6,0)/100) -> -0.4262
D48: 5 | E48: =VLOOKUP($C$44&D48,表A_RAW!B:I,2,0) -> 8938 明安 | G48: =IF(ISERROR(VLOOKUP($E48,表A_RAW!$C:$I,4,0)),"",VLOOKUP($E48,表A_RAW!$C:$I,4,0)) -> 954184 | H48: =IF(ISERROR(VLOOKUP($E48,表B_RAW!$C:$I,5,0)),"",VLOOKUP($E48,表B_RAW!$C:$I,5,0)) -> 919903 | I48: =IF(ISERROR(VLOOKUP($E48,表B_RAW!$C:$I,6,0)),"",VLOOKUP($E48,表B_RAW!$C:$I,6,0)/100) -> 0.0373 | J48: =IF(ISERROR(VLOOKUP($E48,表A_RAW!$C:$I,5,0)),"",VLOOKUP($E48,表A_RAW!$C:$I,5,0)) -> 1763331 | K48: =IF(ISERROR(VLOOKUP($E48,表A_RAW!$C:$I,7,0)),"",VLOOKUP($E48,表A_RAW!$C:$I,7,0)) -> -0.4588741422 | L48: =IF(ISERROR(VLOOKUP($E48,表C_RAW!$C:$I,4,0)),"",VLOOKUP($E48,表C_RAW!$C:$I,4,0)) -> 11627019 | M48: =IF(ISERROR(VLOOKUP($E48,表C_RAW!$C:$I,5,0)),"",VLOOKUP($E48,表C_RAW!$C:$I,5,0)) -> 17246437 | N48: =IF(ISERROR(VLOOKUP($E48,表C_RAW!$C:$I,6,0)),"",VLOOKUP($E48,表C_RAW!$C:$I,6,0)/100) -> -0.3258
B49: 4 | C49: =VLOOKUP(B49,表A_RAW!O:T,2,0) -> 水泥工業 | D49: 1 | E49: =VLOOKUP($C$49&D49,表A_RAW!B:I,2,0) -> 1101 台泥 | G49: =IF(ISERROR(VLOOKUP($E49,表A_RAW!$C:$I,4,0)),"",VLOOKUP($E49,表A_RAW!$C:$I,4,0)) -> 9371746 | H49: =IF(ISERROR(VLOOKUP($E49,表B_RAW!$C:$I,5,0)),"",VLOOKUP($E49,表B_RAW!$C:$I,5,0)) -> 8735157 | I49: =IF(ISERROR(VLOOKUP($E49,表B_RAW!$C:$I,6,0)),"",VLOOKUP($E49,表B_RAW!$C:$I,6,0)/100) -> 0.0729 | J49: =IF(ISERROR(VLOOKUP($E49,表A_RAW!$C:$I,5,0)),"",VLOOKUP($E49,表A_RAW!$C:$I,5,0)) -> 11368096 | K49: =IF(ISERROR(VLOOKUP($E49,表A_RAW!$C:$I,7,0)),"",VLOOKUP($E49,表A_RAW!$C:$I,7,0)) -> -0.1756098823 | L49: =IF(ISERROR(VLOOKUP($E49,表C_RAW!$C:$I,4,0)),"",VLOOKUP($E49,表C_RAW!$C:$I,4,0)) -> 90313749 | M49: =IF(ISERROR(VLOOKUP($E49,表C_RAW!$C:$I,5,0)),"",VLOOKUP($E49,表C_RAW!$C:$I,5,0)) -> 90710057 | N49: =IF(ISERROR(VLOOKUP($E49,表C_RAW!$C:$I,6,0)),"",VLOOKUP($E49,表C_RAW!$C:$I,6,0)/100) -> -0.0044
D50: 2 | E50: =VLOOKUP($C$49&D50,表A_RAW!B:I,2,0) -> 1102 亞泥 | G50: =IF(ISERROR(VLOOKUP($E50,表A_RAW!$C:$I,4,0)),"",VLOOKUP($E50,表A_RAW!$C:$I,4,0)) -> 6706168 | H50: =IF(ISERROR(VLOOKUP($E50,表B_RAW!$C:$I,5,0)),"",VLOOKUP($E50,表B_RAW!$C:$I,5,0)) -> 6691905 | I50: =IF(ISERROR(VLOOKUP($E50,表B_RAW!$C:$I,6,0)),"",VLOOKUP($E50,表B_RAW!$C:$I,6,0)/100) -> 0.0021 | J50: =IF(ISERROR(VLOOKUP($E50,表A_RAW!$C:$I,5,0)),"",VLOOKUP($E50,表A_RAW!$C:$I,5,0)) -> 7601097 | K50: =IF(ISERROR(VLOOKUP($E50,表A_RAW!$C:$I,7,0)),"",VLOOKUP($E50,表A_RAW!$C:$I,7,0)) -> -0.1177368214 | L50: =IF(ISERROR(VLOOKUP($E50,表C_RAW!$C:$I,4,0)),"",VLOOKUP($E50,表C_RAW!$C:$I,4,0)) -> 66945254 | M50: =IF(ISERROR(VLOOKUP($E50,表C_RAW!$C:$I,5,0)),"",VLOOKUP($E50,表C_RAW!$C:$I,5,0)) -> 73697894 | N50: =IF(ISERROR(VLOOKUP($E50,表C_RAW!$C:$I,6,0)),"",VLOOKUP($E50,表C_RAW!$C:$I,6,0)/100) -> -0.0916
D51: 3 | E51: =VLOOKUP($C$49&D51,表A_RAW!B:I,2,0) -> 1110 東泥 | G51: =IF(ISERROR(VLOOKUP($E51,表A_RAW!$C:$I,4,0)),"",VLOOKUP($E51,表A_RAW!$C:$I,4,0)) -> 191120 | H51: =IF(ISERROR(VLOOKUP($E51,表B_RAW!$C:$I,5,0)),"",VLOOKUP($E51,表B_RAW!$C:$I,5,0)) -> 169364 | I51: =IF(ISERROR(VLOOKUP($E51,表B_RAW!$C:$I,6,0)),"",VLOOKUP($E51,表B_RAW!$C:$I,6,0)/100) -> 0.1285 | J51: =IF(ISERROR(VLOOKUP($E51,表A_RAW!$C:$I,5,0)),"",VLOOKUP($E51,表A_RAW!$C:$I,5,0)) -> 197515 | K51: =IF(ISERROR(VLOOKUP($E51,表A_RAW!$C:$I,7,0)),"",VLOOKUP($E51,表A_RAW!$C:$I,7,0)) -> -0.0323772878 | L51: =IF(ISERROR(VLOOKUP($E51,表C_RAW!$C:$I,4,0)),"",VLOOKUP($E51,表C_RAW!$C:$I,4,0)) -> 1832642 | M51: =IF(ISERROR(VLOOKUP($E51,表C_RAW!$C:$I,5,0)),"",VLOOKUP($E51,表C_RAW!$C:$I,5,0)) -> 1428523 | N51: =IF(ISERROR(VLOOKUP($E51,表C_RAW!$C:$I,6,0)),"",VLOOKUP($E51,表C_RAW!$C:$I,6,0)/100) -> 0.2829
C52: =VLOOKUP(B49,表A_RAW!O:T,6,0) -> -13.25507847 | D52: 4 | E52: =VLOOKUP($C$49&D52,表A_RAW!B:I,2,0) -> 1109 信大 | G52: =IF(ISERROR(VLOOKUP($E52,表A_RAW!$C:$I,4,0)),"",VLOOKUP($E52,表A_RAW!$C:$I,4,0)) -> 531941 | H52: =IF(ISERROR(VLOOKUP($E52,表B_RAW!$C:$I,5,0)),"",VLOOKUP($E52,表B_RAW!$C:$I,5,0)) -> 490929 | I52: =IF(ISERROR(VLOOKUP($E52,表B_RAW!$C:$I,6,0)),"",VLOOKUP($E52,表B_RAW!$C:$I,6,0)/100) -> 0.0835 | J52: =IF(ISERROR(VLOOKUP($E52,表A_RAW!$C:$I,5,0)),"",VLOOKUP($E52,表A_RAW!$C:$I,5,0)) -> 527209 | K52: =IF(ISERROR(VLOOKUP($E52,表A_RAW!$C:$I,7,0)),"",VLOOKUP($E52,表A_RAW!$C:$I,7,0)) -> 0.008975567564 | L52: =IF(ISERROR(VLOOKUP($E52,表C_RAW!$C:$I,4,0)),"",VLOOKUP($E52,表C_RAW!$C:$I,4,0)) -> 5157727 | M52: =IF(ISERROR(VLOOKUP($E52,表C_RAW!$C:$I,5,0)),"",VLOOKUP($E52,表C_RAW!$C:$I,5,0)) -> 5202650 | N52: =IF(ISERROR(VLOOKUP($E52,表C_RAW!$C:$I,6,0)),"",VLOOKUP($E52,表C_RAW!$C:$I,6,0)/100) -> -0.0086
D53: 5 | E53: =VLOOKUP($C$49&D53,表A_RAW!B:I,2,0) -> 1104 環泥 | G53: =IF(ISERROR(VLOOKUP($E53,表A_RAW!$C:$I,4,0)),"",VLOOKUP($E53,表A_RAW!$C:$I,4,0)) -> 654514 | H53: =IF(ISERROR(VLOOKUP($E53,表B_RAW!$C:$I,5,0)),"",VLOOKUP($E53,表B_RAW!$C:$I,5,0)) -> 618592 | I53: =IF(ISERROR(VLOOKUP($E53,表B_RAW!$C:$I,6,0)),"",VLOOKUP($E53,表B_RAW!$C:$I,6,0)/100) -> 0.0581 | J53: =IF(ISERROR(VLOOKUP($E53,表A_RAW!$C:$I,5,0)),"",VLOOKUP($E53,表A_RAW!$C:$I,5,0)) -> 634981 | K53: =IF(ISERROR(VLOOKUP($E53,表A_RAW!$C:$I,7,0)),"",VLOOKUP($E53,表A_RAW!$C:$I,7,0)) -> 0.03076155035 | L53: =IF(ISERROR(VLOOKUP($E53,表C_RAW!$C:$I,4,0)),"",VLOOKUP($E53,表C_RAW!$C:$I,4,0)) -> 6282268 | M53: =IF(ISERROR(VLOOKUP($E53,表C_RAW!$C:$I,5,0)),"",VLOOKUP($E53,表C_RAW!$C:$I,5,0)) -> 5698929 | N53: =IF(ISERROR(VLOOKUP($E53,表C_RAW!$C:$I,6,0)),"",VLOOKUP($E53,表C_RAW!$C:$I,6,0)/100) -> 0.1024
B54: 5 | C54: =VLOOKUP(B54,表A_RAW!O:T,2,0) -> 貿易百貨 | D54: 1 | E54: =VLOOKUP($C$54&D54,表A_RAW!B:I,2,0) -> 2939 凱羿-KY | G54: =IF(ISERROR(VLOOKUP($E54,表A_RAW!$C:$I,4,0)),"",VLOOKUP($E54,表A_RAW!$C:$I,4,0)) -> 34142 | H54: =IF(ISERROR(VLOOKUP($E54,表B_RAW!$C:$I,5,0)),"",VLOOKUP($E54,表B_RAW!$C:$I,5,0)) -> 39362 | I54: =IF(ISERROR(VLOOKUP($E54,表B_RAW!$C:$I,6,0)),"",VLOOKUP($E54,表B_RAW!$C:$I,6,0)/100) -> -0.1326 | J54: =IF(ISERROR(VLOOKUP($E54,表A_RAW!$C:$I,5,0)),"",VLOOKUP($E54,表A_RAW!$C:$I,5,0)) -> 103168 | K54: =IF(ISERROR(VLOOKUP($E54,表A_RAW!$C:$I,7,0)),"",VLOOKUP($E54,表A_RAW!$C:$I,7,0)) -> -0.6690640509 | L54: =IF(ISERROR(VLOOKUP($E54,表C_RAW!$C:$I,4,0)),"",VLOOKUP($E54,表C_RAW!$C:$I,4,0)) -> 331120 | M54: =IF(ISERROR(VLOOKUP($E54,表C_RAW!$C:$I,5,0)),"",VLOOKUP($E54,表C_RAW!$C:$I,5,0)) -> 655487 | N54: =IF(ISERROR(VLOOKUP($E54,表C_RAW!$C:$I,6,0)),"",VLOOKUP($E54,表C_RAW!$C:$I,6,0)/100) -> -0.4948
D55: 2 | E55: =VLOOKUP($C$54&D55,表A_RAW!B:I,2,0) -> 2905 三商 | G55: =IF(ISERROR(VLOOKUP($E55,表A_RAW!$C:$I,4,0)),"",VLOOKUP($E55,表A_RAW!$C:$I,4,0)) -> 12658497 | H55: =IF(ISERROR(VLOOKUP($E55,表B_RAW!$C:$I,5,0)),"",VLOOKUP($E55,表B_RAW!$C:$I,5,0)) -> 19245906 | I55: =IF(ISERROR(VLOOKUP($E55,表B_RAW!$C:$I,6,0)),"",VLOOKUP($E55,表B_RAW!$C:$I,6,0)/100) -> -0.3423 | J55: =IF(ISERROR(VLOOKUP($E55,表A_RAW!$C:$I,5,0)),"",VLOOKUP($E55,表A_RAW!$C:$I,5,0)) -> 19724877 | K55: =IF(ISERROR(VLOOKUP($E55,表A_RAW!$C:$I,7,0)),"",VLOOKUP($E55,表A_RAW!$C:$I,7,0)) -> -0.3582471009 | L55: =IF(ISERROR(VLOOKUP($E55,表C_RAW!$C:$I,4,0)),"",VLOOKUP($E55,表C_RAW!$C:$I,4,0)) -> 162278201 | M55: =IF(ISERROR(VLOOKUP($E55,表C_RAW!$C:$I,5,0)),"",VLOOKUP($E55,表C_RAW!$C:$I,5,0)) -> 207961333 | N55: =IF(ISERROR(VLOOKUP($E55,表C_RAW!$C:$I,6,0)),"",VLOOKUP($E55,表C_RAW!$C:$I,6,0)/100) -> -0.2197
D56: 3 | E56: =VLOOKUP($C$54&D56,表A_RAW!B:I,2,0) -> 2911 麗嬰房 | G56: =IF(ISERROR(VLOOKUP($E56,表A_RAW!$C:$I,4,0)),"",VLOOKUP($E56,表A_RAW!$C:$I,4,0)) -> 302407 | H56: =IF(ISERROR(VLOOKUP($E56,表B_RAW!$C:$I,5,0)),"",VLOOKUP($E56,表B_RAW!$C:$I,5,0)) -> 233045 | I56: =IF(ISERROR(VLOOKUP($E56,表B_RAW!$C:$I,6,0)),"",VLOOKUP($E56,表B_RAW!$C:$I,6,0)/100) -> 0.2976 | J56: =IF(ISERROR(VLOOKUP($E56,表A_RAW!$C:$I,5,0)),"",VLOOKUP($E56,表A_RAW!$C:$I,5,0)) -> 385382 | K56: =IF(ISERROR(VLOOKUP($E56,表A_RAW!$C:$I,7,0)),"",VLOOKUP($E56,表A_RAW!$C:$I,7,0)) -> -0.2153058524 | L56: =IF(ISERROR(VLOOKUP($E56,表C_RAW!$C:$I,4,0)),"",VLOOKUP($E56,表C_RAW!$C:$I,4,0)) -> 2511191 | M56: =IF(ISERROR(VLOOKUP($E56,表C_RAW!$C:$I,5,0)),"",VLOOKUP($E56,表C_RAW!$C:$I,5,0)) -> 2735695 | N56: =IF(ISERROR(VLOOKUP($E56,表C_RAW!$C:$I,6,0)),"",VLOOKUP($E56,表C_RAW!$C:$I,6,0)/100) -> -0.0821
C57: =VLOOKUP(B54,表A_RAW!O:T,6,0) -> -8.977915479 | D57: 4 | E57: =VLOOKUP($C$54&D57,表A_RAW!B:I,2,0) -> 2915 潤泰全 | G57: =IF(ISERROR(VLOOKUP($E57,表A_RAW!$C:$I,4,0)),"",VLOOKUP($E57,表A_RAW!$C:$I,4,0)) -> 184815 | H57: =IF(ISERROR(VLOOKUP($E57,表B_RAW!$C:$I,5,0)),"",VLOOKUP($E57,表B_RAW!$C:$I,5,0)) -> 232209 | I57: =IF(ISERROR(VLOOKUP($E57,表B_RAW!$C:$I,6,0)),"",VLOOKUP($E57,表B_RAW!$C:$I,6,0)/100) -> -0.2041 | J57: =IF(ISERROR(VLOOKUP($E57,表A_RAW!$C:$I,5,0)),"",VLOOKUP($E57,表A_RAW!$C:$I,5,0)) -> 230599 | K57: =IF(ISERROR(VLOOKUP($E57,表A_RAW!$C:$I,7,0)),"",VLOOKUP($E57,表A_RAW!$C:$I,7,0)) -> -0.1985437925 | L57: =IF(ISERROR(VLOOKUP($E57,表C_RAW!$C:$I,4,0)),"",VLOOKUP($E57,表C_RAW!$C:$I,4,0)) -> 2292830 | M57: =IF(ISERROR(VLOOKUP($E57,表C_RAW!$C:$I,5,0)),"",VLOOKUP($E57,表C_RAW!$C:$I,5,0)) -> 2446033 | N57: =IF(ISERROR(VLOOKUP($E57,表C_RAW!$C:$I,6,0)),"",VLOOKUP($E57,表C_RAW!$C:$I,6,0)/100) -> -0.0626
D58: 5 | E58: =VLOOKUP($C$54&D58,表A_RAW!B:I,2,0) -> 4807 日成-KY | G58: =IF(ISERROR(VLOOKUP($E58,表A_RAW!$C:$I,4,0)),"",VLOOKUP($E58,表A_RAW!$C:$I,4,0)) -> 141972 | H58: =IF(ISERROR(VLOOKUP($E58,表B_RAW!$C:$I,5,0)),"",VLOOKUP($E58,表B_RAW!$C:$I,5,0)) -> 129027 | I58: =IF(ISERROR(VLOOKUP($E58,表B_RAW!$C:$I,6,0)),"",VLOOKUP($E58,表B_RAW!$C:$I,6,0)/100) -> 0.1003 | J58: =IF(ISERROR(VLOOKUP($E58,表A_RAW!$C:$I,5,0)),"",VLOOKUP($E58,表A_RAW!$C:$I,5,0)) -> 164434 | K58: =IF(ISERROR(VLOOKUP($E58,表A_RAW!$C:$I,7,0)),"",VLOOKUP($E58,表A_RAW!$C:$I,7,0)) -> -0.1366019193 | L58: =IF(ISERROR(VLOOKUP($E58,表C_RAW!$C:$I,4,0)),"",VLOOKUP($E58,表C_RAW!$C:$I,4,0)) -> 950762 | M58: =IF(ISERROR(VLOOKUP($E58,表C_RAW!$C:$I,5,0)),"",VLOOKUP($E58,表C_RAW!$C:$I,5,0)) -> 1444603 | N58: =IF(ISERROR(VLOOKUP($E58,表C_RAW!$C:$I,6,0)),"",VLOOKUP($E58,表C_RAW!$C:$I,6,0)/100) -> -0.3419

Sheet YOY(累計)
B1: =YEAR(表A_RAW!F2)&"年"&MONTH(表A_RAW!F2)&"月" -> 2023年10月
C2: 成長及衰退前五名之產業YOY%(累計)
B4: 成長前五名之產業 YOY(累計)% | D4: 該產業成長前五名之公司 YOY(累計)% | G4: 單月營收金額(千元) | H4: 本月與上月相較 | J4: 本月與去年同期相較 | L4: 累計營收金額(千元) | M4: 累計營收與去年同期相較
B5: 成長 排名 | C5: 產業 | D5: 排名 | E5: 公司代號&簡稱 | H5: 上月營收金額(千元) | I5: 較上月變動比率(%) | J5: 去年同期金額(千元) | K5: 較去年同期變動比率(%) | M5: 去年累計營收金額(千元) | N5: 較去年同期變動比率(%)
B6: 1 | C6: =VLOOKUP(B6,表C_RAW!N:P,3,0) -> 觀光餐旅 | D6: 1 | E6: =VLOOKUP($C$6&D6,表C_RAW!A:D,3,0) -> 2745 五福 | G6: =IF(ISERROR(VLOOKUP($E6,表B_RAW!$C:$I,4,0)),"",VLOOKUP($E6,表B_RAW!$C:$I,4,0)) -> 664875 | H6: =IF(ISERROR(VLOOKUP($E6,表B_RAW!$C:$I,5,0)),"",VLOOKUP($E6,表B_RAW!$C:$I,5,0)) -> 476103 | I6: =IF(ISERROR(VLOOKUP($E6,表B_RAW!$C:$I,6,0)),"",VLOOKUP($E6,表B_RAW!$C:$I,6,0)/100) -> 0.3965 | J6: =IF(ISERROR(VLOOKUP($E6,表A_RAW!$C:$I,5,0)),"",VLOOKUP($E6,表A_RAW!$C:$I,5,0)) -> 31326 | K6: =IF(ISERROR(VLOOKUP($E6,表A_RAW!$C:$I,7,0)),"",VLOOKUP($E6,表A_RAW!$C:$I,7,0)) -> 20.2243823 | L6: =IF(ISERROR(VLOOKUP($E6,表C_RAW!$C:$I,4,0)),"",VLOOKUP($E6,表C_RAW!$C:$I,4,0)) -> 4056214 | M6: =IF(ISERROR(VLOOKUP($E6,表C_RAW!$C:$I,5,0)),"",VLOOKUP($E6,表C_RAW!$C:$I,5,0)) -> 133415 | N6: =IF(ISERROR(VLOOKUP($E6,表C_RAW!$C:$I,6,0)),"",VLOOKUP($E6,表C_RAW!$C:$I,6,0)/100) -> 29.403
D7: 2 | E7: =VLOOKUP($C$6&D7,表C_RAW!A:D,3,0) -> 5706 鳳凰 | G7: =IF(ISERROR(VLOOKUP($E7,表B_RAW!$C:$I,4,0)),"",VLOOKUP($E7,表B_RAW!$C:$I,4,0)) -> 317388 | H7: =IF(ISERROR(VLOOKUP($E7,表B_RAW!$C:$I,5,0)),"",VLOOKUP($E7,表B_RAW!$C:$I,5,0)) -> 230018 | I7: =IF(ISERROR(VLOOKUP($E7,表B_RAW!$C:$I,6,0)),"",VLOOKUP($E7,表B_RAW!$C:$I,6,0)/100) -> 0.3798 | J7: =IF(ISERROR(VLOOKUP($E7,表A_RAW!$C:$I,5,0)),"",VLOOKUP($E7,表A_RAW!$C:$I,5,0)) -> 12831 | K7: =IF(ISERROR(VLOOKUP($E7,表A_RAW!$C:$I,7,0)),"",VLOOKUP($E7,表A_RAW!$C:$I,7,0)) -> 23.73602993 | L7: =IF(ISERROR(VLOOKUP($E7,表C_RAW!$C:$I,4,0)),"",VLOOKUP($E7,表C_RAW!$C:$I,4,0)) -> 1944190 | M7: =IF(ISERROR(VLOOKUP($E7,表C_RAW!$C:$I,5,0)),"",VLOOKUP($E7,表C_RAW!$C:$I,5,0)) -> 96872 | N7: =IF(ISERROR(VLOOKUP($E7,表C_RAW!$C:$I,6,0)),"",VLOOKUP($E7,表C_RAW!$C:$I,6,0)/100) -> 19.0697
D8: 3 | E8: =VLOOKUP($C$6&D8,表C_RAW!A:D,3,0) -> 2719 燦星旅 | G8: =IF(ISERROR(VLOOKUP($E8,表B_RAW!$C:$I,4,0)),"",VLOOKUP($E8,表B_RAW!$C:$I,4,0)) -> 122449 | H8: =IF(ISERROR(VLOOKUP($E8,表B_RAW!$C:$I,5,0)),"",VLOOKUP($E8,表B_RAW!$C:$I,5,0)) -> 106825 | I8: =IF(ISERROR(VLOOKUP($E8,表B_RAW!$C:$I,6,0)),"",VLOOKUP($E8,表B_RAW!$C:$I,6,0)/100) -> 0.1463 | J8: =IF(ISERROR(VLOOKUP($E8,表A_RAW!$C:$I,5,0)),"",VLOOKUP($E8,表A_RAW!$C:$I,5,0)) -> 6392 | K8: =IF(ISERROR(VLOOKUP($E8,表A_RAW!$C:$I,7,0)),"",VLOOKUP($E8,表A_RAW!$C:$I,7,0)) -> 18.156602 | L8: =IF(ISERROR(VLOOKUP($E8,表C_RAW!$C:$I,4,0)),"",VLOOKUP($E8,表C_RAW!$C:$I,4,0)) -> 868608 | M8: =IF(ISERROR(VLOOKUP($E8,表C_RAW!$C:$I,5,0)),"",VLOOKUP($E8,表C_RAW!$C:$I,5,0)) -> 45599 | N8: =IF(ISERROR(VLOOKUP($E8,表C_RAW!$C:$I,6,0)),"",VLOOKUP($E8,表C_RAW!$C:$I,6,0)/100) -> 18.0488
C9: =VLOOKUP(B6,表C_RAW!N:T,7,0) -> 49.94 | D9: 4 | E9: =VLOOKUP($C$6&D9,表C_RAW!A:D,3,0) -> 2743 山富 | G9: =IF(ISERROR(VLOOKUP($E9,表B_RAW!$C:$I,4,0)),"",VLOOKUP($E9,表B_RAW!$C:$I,4,0)) -> 748037 | H9: =IF(ISERROR(VLOOKUP($E9,表B_RAW!$C:$I,5,0)),"",VLOOKUP($E9,表B_RAW!$C:$I,5,0)) -> 531694 | I9: =IF(ISERROR(VLOOKUP($E9,表B_RAW!$C:$I,6,0)),"",VLOOKUP($E9,表B_RAW!$C:$I,6,0)/100) -> 0.4069 | J9: =IF(ISERROR(VLOOKUP($E9,表A_RAW!$C:$I,5,0)),"",VLOOKUP($E9,表A_RAW!$C:$I,5,0)) -> 75087 | K9: =IF(ISERROR(VLOOKUP($E9,表A_RAW!$C:$I,7,0)),"",VLOOKUP($E9,表A_RAW!$C:$I,7,0)) -> 8.962270433 | L9: =IF(ISERROR(VLOOKUP($E9,表C_RAW!$C:$I,4,0)),"",VLOOKUP($E9,表C_RAW!$C:$I,4,0)) -> 4034774 | M9: =IF(ISERROR(VLOOKUP($E9,表C_RAW!$C:$I,5,0)),"",VLOOKUP($E9,表C_RAW!$C:$I,5,0)) -> 323156 | N9: =IF(ISERROR(VLOOKUP($E9,表C_RAW!$C:$I,6,0)),"",VLOOKUP($E9,表C_RAW!$C:$I,6,0)/100) -> 11.4855
D10: 5 | E10: =VLOOKUP($C$6&D10,表C_RAW!A:D,3,0) -> 2731 雄獅 | G10: =IF(ISERROR(VLOOKUP($E10,表B_RAW!$C:$I,4,0)),"",VLOOKUP($E10,表B_RAW!$C:$I,4,0)) -> 2606094 | H10: =IF(ISERROR(VLOOKUP($E10,表B_RAW!$C:$I,5,0)),"",VLOOKUP($E10,表B_RAW!$C:$I,5,0)) -> 2208064 | I10: =IF(ISERROR(VLOOKUP($E10,表B_RAW!$C:$I,6,0)),"",VLOOKUP($E10,表B_RAW!$C:$I,6,0)/100) -> 0.1803 | J10: =IF(ISERROR(VLOOKUP($E10,表A_RAW!$C:$I,5,0)),"",VLOOKUP($E10,表A_RAW!$C:$I,5,0)) -> 398967 | K10: =IF(ISERROR(VLOOKUP($E10,表A_RAW!$C:$I,7,0)),"",VLOOKUP($E10,表A_RAW!$C:$I,7,0)) -> 5.532104159 | L10: =IF(ISERROR(VLOOKUP($E10,表C_RAW!$C:$I,4,0)),"",VLOOKUP($E10,表C_RAW!$C:$I,4,0)) -> 18054287 | M10: =IF(ISERROR(VLOOKUP($E10,表C_RAW!$C:$I,5,0)),"",VLOOKUP($E10,表C_RAW!$C:$I,5,0)) -> 2150101 | N10: =IF(ISERROR(VLOOKUP($E10,表C_RAW!$C:$I,6,0)),"",VLOOKUP($E10,表C_RAW!$C:$I,6,0)/100) -> 7.3969
B11: 2 | C11: =VLOOKUP(B11,表C_RAW!N:P,3,0) -> 汽車工業 | D11: 1 | E11: =VLOOKUP($C$11&D11,表C_RAW!A:D,3,0) -> 1512 瑞利 | G11: =IF(ISERROR(VLOOKUP($E11,表B_RAW!$C:$I,4,0)),"",VLOOKUP($E11,表B_RAW!$C:$I,4,0)) -> 97744 | H11: =IF(ISERROR(VLOOKUP($E11,表B_RAW!$C:$I,5,0)),"",VLOOKUP($E11,表B_RAW!$C:$I,5,0)) -> 89068 | I11: =IF(ISERROR(VLOOKUP($E11,表B_RAW!$C:$I,6,0)),"",VLOOKUP($E11,表B_RAW!$C:$I,6,0)/100) -> 0.0974 | J11: =IF(ISERROR(VLOOKUP($E11,表A_RAW!$C:$I,5,0)),"",VLOOKUP($E11,表A_RAW!$C:$I,5,0)) -> 52786 | K11: =IF(ISERROR(VLOOKUP($E11,表A_RAW!$C:$I,7,0)),"",VLOOKUP($E11,表A_RAW!$C:$I,7,0)) -> 0.8517031031 | L11: =IF(ISERROR(VLOOKUP($E11,表C_RAW!$C:$I,4,0)),"",VLOOKUP($E11,表C_RAW!$C:$I,4,0)) -> 976430 | M11: =IF(ISERROR(VLOOKUP($E11,表C_RAW!$C:$I,5,0)),"",VLOOKUP($E11,表C_RAW!$C:$I,5,0)) -> 523937 | N11: =IF(ISERROR(VLOOKUP($E11,表C_RAW!$C:$I,6,0)),"",VLOOKUP($E11,表C_RAW!$C:$I,6,0)/100) -> 0.8636
D12: 2 | E12: =VLOOKUP($C$11&D12,表C_RAW!A:D,3,0) -> 3346 麗清 | G12: =IF(ISERROR(VLOOKUP($E12,表B_RAW!$C:$I,4,0)),"",VLOOKUP($E12,表B_RAW!$C:$I,4,0)) -> 851422 | H12: =IF(ISERROR(VLOOKUP($E12,表B_RAW!$C:$I,5,0)),"",VLOOKUP($E12,表B_RAW!$C:$I,5,0)) -> 962851 | I12: =IF(ISERROR(VLOOKUP($E12,表B_RAW!$C:$I,6,0)),"",VLOOKUP($E12,表B_RAW!$C:$I,6,0)/100) -> -0.1157 | J12: =IF(ISERROR(VLOOKUP($E12,表A_RAW!$C:$I,5,0)),"",VLOOKUP($E12,表A_RAW!$C:$I,5,0)) -> 684410 | K12: =IF(ISERROR(VLOOKUP($E12,表A_RAW!$C:$I,7,0)),"",VLOOKUP($E12,表A_RAW!$C:$I,7,0)) -> 0.2440233194 | L12: =IF(ISERROR(VLOOKUP($E12,表C_RAW!$C:$I,4,0)),"",VLOOKUP($E12,表C_RAW!$C:$I,4,0)) -> 7165608 | M12: =IF(ISERROR(VLOOKUP($E12,表C_RAW!$C:$I,5,0)),"",VLOOKUP($E12,表C_RAW!$C:$I,5,0)) -> 5060639 | N12: =IF(ISERROR(VLOOKUP($E12,表C_RAW!$C:$I,6,0)),"",VLOOKUP($E12,表C_RAW!$C:$I,6,0)/100) -> 0.4159
D13: 3 | E13: =VLOOKUP($C$11&D13,表C_RAW!A:D,3,0) -> 2236 百達-KY | G13: =IF(ISERROR(VLOOKUP($E13,表B_RAW!$C:$I,4,0)),"",VLOOKUP($E13,表B_RAW!$C:$I,4,0)) -> 212007 | H13: =IF(ISERROR(VLOOKUP($E13,表B_RAW!$C:$I,5,0)),"",VLOOKUP($E13,表B_RAW!$C:$I,5,0)) -> 184213 | I13: =IF(ISERROR(VLOOKUP($E13,表B_RAW!$C:$I,6,0)),"",VLOOKUP($E13,表B_RAW!$C:$I,6,0)/100) -> 0.1509 | J13: =IF(ISERROR(VLOOKUP($E13,表A_RAW!$C:$I,5,0)),"",VLOOKUP($E13,表A_RAW!$C:$I,5,0)) -> 115951 | K13: =IF(ISERROR(VLOOKUP($E13,表A_RAW!$C:$I,7,0)),"",VLOOKUP($E13,表A_RAW!$C:$I,7,0)) -> 0.8284189011 | L13: =IF(ISERROR(VLOOKUP($E13,表C_RAW!$C:$I,4,0)),"",VLOOKUP($E13,表C_RAW!$C:$I,4,0)) -> 1514603 | M13: =IF(ISERROR(VLOOKUP($E13,表C_RAW!$C:$I,5,0)),"",VLOOKUP($E13,表C_RAW!$C:$I,5,0)) -> 1142433 | N13: =IF(ISERROR(VLOOKUP($E13,表C_RAW!$C:$I,6,0)),"",VLOOKUP($E13,表C_RAW!$C:$I,6,0)/100) -> 0.3258
C14: =VLOOKUP(B11,表C_RAW!N:T,7,0) -> 13.01 | D14: 4 | E14: =VLOOKUP($C$11&D14,表C_RAW!A:D,3,0) -> 1533 車王電 | G14: =IF(ISERROR(VLOOKUP($E14,表B_RAW!$C:$I,4,0)),"",VLOOKUP($E14,表B_RAW!$C:$I,4,0)) -> 425390 | H14: =IF(ISERROR(VLOOKUP($E14,表B_RAW!$C:$I,5,0)),"",VLOOKUP($E14,表B_RAW!$C:$I,5,0)) -> 332544 | I14: =IF(ISERROR(VLOOKUP($E14,表B_RAW!$C:$I,6,0)),"",VLOOKUP($E14,表B_RAW!$C:$I,6,0)/100) -> 0.2792 | J14: =IF(ISERROR(VLOOKUP($E14,表A_RAW!$C:$I,5,0)),"",VLOOKUP($E14,表A_RAW!$C:$I,5,0)) -> 260060 | K14: =IF(ISERROR(VLOOKUP($E14,表A_RAW!$C:$I,7,0)),"",VLOOKUP($E14,表A_RAW!$C:$I,7,0)) -> 0.6357379066 | L14: =IF(ISERROR(VLOOKUP($E14,表C_RAW!$C:$I,4,0)),"",VLOOKUP($E14,表C_RAW!$C:$I,4,0)) -> 3498653 | M14: =IF(ISERROR(VLOOKUP($E14,表C_RAW!$C:$I,5,0)),"",VLOOKUP($E14,表C_RAW!$C:$I,5,0)) -> 2693573 | N14: =IF(ISERROR(VLOOKUP($E14,表C_RAW!$C:$I,6,0)),"",VLOOKUP($E14,表C_RAW!$C:$I,6,0)/100) -> 0.2989
D15: 5 | E15: =VLOOKUP($C$11&D15,表C_RAW!A:D,3,0) -> 2206 三陽工業 | G15: =IF(ISERROR(VLOOKUP($E15,表B_RAW!$C:$I,4,0)),"",VLOOKUP($E15,表B_RAW!$C:$I,4,0)) -> 5430628 | H15: =IF(ISERROR(VLOOKUP($E15,表B_RAW!$C:$I,5,0)),"",VLOOKUP($E15,表B_RAW!$C:$I,5,0)) -> 5423486 | I15: =IF(ISERROR(VLOOKUP($E15,表B_RAW!$C:$I,6,0)),"",VLOOKUP($E15,表B_RAW!$C:$I,6,0)/100) -> 0.0013 | J15: =IF(ISERROR(VLOOKUP($E15,表A_RAW!$C:$I,5,0)),"",VLOOKUP($E15,表A_RAW!$C:$I,5,0)) -> 4450502 | K15: =IF(ISERROR(VLOOKUP($E15,表A_RAW!$C:$I,7,0)),"",VLOOKUP($E15,表A_RAW!$C:$I,7,0)) -> 0.22022819 | L15: =IF(ISERROR(VLOOKUP($E15,表C_RAW!$C:$I,4,0)),"",VLOOKUP($E15,表C_RAW!$C:$I,4,0)) -> 54839420 | M15: =IF(ISERROR(VLOOKUP($E15,表C_RAW!$C:$I,5,0)),"",VLOOKUP($E15,表C_RAW!$C:$I,5,0)) -> 42557206 | N15: =IF(ISERROR(VLOOKUP($E15,表C_RAW!$C:$I,6,0)),"",VLOOKUP($E15,表C_RAW!$C:$I,6,0)/100) -> 0.2886
B16: 3 | C16: =VLOOKUP(B16,表C_RAW!N:P,3,0) -> 建材營造 | D16: 1 | E16: =VLOOKUP($C$16&D16,表C_RAW!A:D,3,0) -> 6186 新潤 | G16: =IF(ISERROR(VLOOKUP($E16,表B_RAW!$C:$I,4,0)),"",VLOOKUP($E16,表B_RAW!$C:$I,4,0)) -> 194271 | H16: =IF(ISERROR(VLOOKUP($E16,表B_RAW!$C:$I,5,0)),"",VLOOKUP($E16,表B_RAW!$C:$I,5,0)) -> 167038 | I16: =IF(ISERROR(VLOOKUP($E16,表B_RAW!$C:$I,6,0)),"",VLOOKUP($E16,表B_RAW!$C:$I,6,0)/100) -> 0.163 | J16: =IF(ISERROR(VLOOKUP($E16,表A_RAW!$C:$I,5,0)),"",VLOOKUP($E16,表A_RAW!$C:$I,5,0)) -> 12524 | K16: =IF(ISERROR(VLOOKUP($E16,表A_RAW!$C:$I,7,0)),"",VLOOKUP($E16,表A_RAW!$C:$I,7,0)) -> 14.51189716 | L16: =IF(ISERROR(VLOOKUP($E16,表C_RAW!$C:$I,4,0)),"",VLOOKUP($E16,表C_RAW!$C:$I,4,0)) -> 1230415 | M16: =IF(ISERROR(VLOOKUP($E16,表C_RAW!$C:$I,5,0)),"",VLOOKUP($E16,表C_RAW!$C:$I,5,0)) -> 33910 | N16: =IF(ISERROR(VLOOKUP($E16,表C_RAW!$C:$I,6,0)),"",VLOOKUP($E16,表C_RAW!$C:$I,6,0)/100) -> 35.2847
D17: 2 | E17: =VLOOKUP($C$16&D17,表C_RAW!A:D,3,0) -> 1808 潤隆 | G17: =IF(ISERROR(VLOOKUP($E17,表B_RAW!$C:$I,4,0)),"",VLOOKUP($E17,表B_RAW!$C:$I,4,0)) -> 3706771 | H17: =IF(ISERROR(VLOOKUP($E17,表B_RAW!$C:$I,5,0)),"",VLOOKUP($E17,表B_RAW!$C:$I,5,0)) -> 7714736 | I17: =IF(ISERROR(VLOOKUP($E17,表B_RAW!$C:$I,6,0)),"",VLOOKUP($E17,表B_RAW!$C:$I,6,0)/100) -> -0.5195 | J17: =IF(ISERROR(VLOOKUP($E17,表A_RAW!$C:$I,5,0)),"",VLOOKUP($E17,表A_RAW!$C:$I,5,0)) -> 46205 | K17: =IF(ISERROR(VLOOKUP($E17,表A_RAW!$C:$I,7,0)),"",VLOOKUP($E17,表A_RAW!$C:$I,7,0)) -> 79.22445623 | L17: =IF(ISERROR(VLOOKUP($E17,表C_RAW!$C:$I,4,0)),"",VLOOKUP($E17,表C_RAW!$C:$I,4,0)) -> 28173686 | M17: =IF(ISERROR(VLOOKUP($E17,表C_RAW!$C:$I,5,0)),"",VLOOKUP($E17,表C_RAW!$C:$I,5,0)) -> 985087 | N17: =IF(ISERROR(VLOOKUP($E17,表C_RAW!$C:$I,6,0)),"",VLOOKUP($E17,表C_RAW!$C:$I,6,0)/100) -> 27.6002
D18: 3 | E18: =VLOOKUP($C$16&D18,表C_RAW!A:D,3,0) -> 2718 晶悅 | G18: =IF(ISERROR(VLOOKUP($E18,表B_RAW!$C:$I,4,0)),"",VLOOKUP($E18,表B_RAW!$C:$I,4,0)) -> 68706 | H18: =IF(ISERROR(VLOOKUP($E18,表B_RAW!$C:$I,5,0)),"",VLOOKUP($E18,表B_RAW!$C:$I,5,0)) -> 85014 | I18: =IF(ISERROR(VLOOKUP($E18,表B_RAW!$C:$I,6,0)),"",VLOOKUP($E18,表B_RAW!$C:$I,6,0)/100) -> -0.1918 | J18: =IF(ISERROR(VLOOKUP($E18,表A_RAW!$C:$I,5,0)),"",VLOOKUP($E18,表A_RAW!$C:$I,5,0)) -> 7142 | K18: =IF(ISERROR(VLOOKUP($E18,表A_RAW!$C:$I,7,0)),"",VLOOKUP($E18,表A_RAW!$C:$I,7,0)) -> 8.619994399 | L18: =IF(ISERROR(VLOOKUP($E18,表C_RAW!$C:$I,4,0)),"",VLOOKUP($E18,表C_RAW!$C:$I,4,0)) -> 2013614 | M18: =IF(ISERROR(VLOOKUP($E18,表C_RAW!$C:$I,5,0)),"",VLOOKUP($E18,表C_RAW!$C:$I,5,0)) -> 79103 | N18: =IF(ISERROR(VLOOKUP($E18,表C_RAW!$C:$I,6,0)),"",VLOOKUP($E18,表C_RAW!$C:$I,6,0)/100) -> 24.4556
C19: =VLOOKUP(B16,表C_RAW!N:T,7,0) -> 10.37 | D19: 4 | E19: =VLOOKUP($C$16&D19,表C_RAW!A:D,3,0) -> 5523 豐謙 | G19: =IF(ISERROR(VLOOKUP($E19,表B_RAW!$C:$I,4,0)),"",VLOOKUP($E19,表B_RAW!$C:$I,4,0)) -> 228311 | H19: =IF(ISERROR(VLOOKUP($E19,表B_RAW!$C:$I,5,0)),"",VLOOKUP($E19,表B_RAW!$C:$I,5,0)) -> 119878 | I19: =IF(ISERROR(VLOOKUP($E19,表B_RAW!$C:$I,6,0)),"",VLOOKUP($E19,表B_RAW!$C:$I,6,0)/100) -> 0.9045 | J19: =IF(ISERROR(VLOOKUP($E19,表A_RAW!$C:$I,5,0)),"",VLOOKUP($E19,表A_RAW!$C:$I,5,0)) -> 349 | K19: =IF(ISERROR(VLOOKUP($E19,表A_RAW!$C:$I,7,0)),"",VLOOKUP($E19,表A_RAW!$C:$I,7,0)) -> 653.1862464 | L19: =IF(ISERROR(VLOOKUP($E19,表C_RAW!$C:$I,4,0)),"",VLOOKUP($E19,表C_RAW!$C:$I,4,0)) -> 2522454 | M19: =IF(ISERROR(VLOOKUP($E19,表C_RAW!$C:$I,5,0)),"",VLOOKUP($E19,表C_RAW!$C:$I,5,0)) -> 215799 | N19: =IF(ISERROR(VLOOKUP($E19,表C_RAW!$C:$I,6,0)),"",VLOOKUP($E19,表C_RAW!$C:$I,6,0)/100) -> 10.6889
D20: 5 | E20: =VLOOKUP($C$16&D20,表C_RAW!A:D,3,0) -> 5206 坤悅 | G20: =IF(ISERROR(VLOOKUP($E20,表B_RAW!$C:$I,4,0)),"",VLOOKUP($E20,表B_RAW!$C:$I,4,0)) -> 699128 | H20: =IF(ISERROR(VLOOKUP($E20,表B_RAW!$C:$I,5,0)),"",VLOOKUP($E20,表B_RAW!$C:$I,5,0)) -> 371635 | I20: =IF(ISERROR(VLOOKUP($E20,表B_RAW!$C:$I,6,0)),"",VLOOKUP($E20,表B_RAW!$C:$I,6,0)/100) -> 0.8812 | J20: =IF(ISERROR(VLOOKUP($E20,表A_RAW!$C:$I,5,0)),"",VLOOKUP($E20,表A_RAW!$C:$I,5,0)) -> 161534 | K20: =IF(ISERROR(VLOOKUP($E20,表A_RAW!$C:$I,7,0)),"",VLOOKUP($E20,表A_RAW!$C:$I,7,0)) -> 3.328054775 | L20: =IF(ISERROR(VLOOKUP($E20,表C_RAW!$C:$I,4,0)),"",VLOOKUP($E20,表C_RAW!$C:$I,4,0)) -> 2722671 | M20: =IF(ISERROR(VLOOKUP($E20,表C_RAW!$C:$I,5,0)),"",VLOOKUP($E20,表C_RAW!$C:$I,5,0)) -> 282596 | N20: =IF(ISERROR(VLOOKUP($E20,表C_RAW!$C:$I,6,0)),"",VLOOKUP($E20,表C_RAW!$C:$I,6,0)/100) -> 8.6345
B21: 4 | C21: =VLOOKUP(B21,表C_RAW!N:P,3,0) -> 食品工業 | D21: 1 | E21: =VLOOKUP($C$21&D21,表C_RAW!A:D,3,0) -> 1796 金穎生技 | G21: =IF(ISERROR(VLOOKUP($E21,表B_RAW!$C:$I,4,0)),"",VLOOKUP($E21,表B_RAW!$C:$I,4,0)) -> 61530 | H21: =IF(ISERROR(VLOOKUP($E21,表B_RAW!$C:$I,5,0)),"",VLOOKUP($E21,表B_RAW!$C:$I,5,0)) -> 56009 | I21: =IF(ISERROR(VLOOKUP($E21,表B_RAW!$C:$I,6,0)),"",VLOOKUP($E21,表B_RAW!$C:$I,6,0)/100) -> 0.0986 | J21: =IF(ISERROR(VLOOKUP($E21,表A_RAW!$C:$I,5,0)),"",VLOOKUP($E21,表A_RAW!$C:$I,5,0)) -> 55803 | K21: =IF(ISERROR(VLOOKUP($E21,表A_RAW!$C:$I,7,0)),"",VLOOKUP($E21,表A_RAW!$C:$I,7,0)) -> 0.1026288909 | L21: =IF(ISERROR(VLOOKUP($E21,表C_RAW!$C:$I,4,0)),"",VLOOKUP($E21,表C_RAW!$C:$I,4,0)) -> 672352 | M21: =IF(ISERROR(VLOOKUP($E21,表C_RAW!$C:$I,5,0)),"",VLOOKUP($E21,表C_RAW!$C:$I,5,0)) -> 519576 | N21: =IF(ISERROR(VLOOKUP($E21,表C_RAW!$C:$I,6,0)),"",VLOOKUP($E21,表C_RAW!$C:$I,6,0)/100) -> 0.294
D22: 2 | E22: =VLOOKUP($C$21&D22,表C_RAW!A:D,3,0) -> 1233 天仁 | G22: =IF(ISERROR(VLOOKUP($E22,表B_RAW!$C:$I,4,0)),"",VLOOKUP($E22,表B_RAW!$C:$I,4,0)) -> 175783 | H22: =IF(ISERROR(VLOOKUP($E22,表B_RAW!$C:$I,5,0)),"",VLOOKUP($E22,表B_RAW!$C:$I,5,0)) -> 189526 | I22: =IF(ISERROR(VLOOKUP($E22,表B_RAW!$C:$I,6,0)),"",VLOOKUP($E22,表B_RAW!$C:$I,6,0)/100) -> -0.0725 | J22: =IF(ISERROR(VLOOKUP($E22,表A_RAW!$C:$I,5,0)),"",VLOOKUP($E22,表A_RAW!$C:$I,5,0)) -> 149886 | K22: =IF(ISERROR(VLOOKUP($E22,表A_RAW!$C:$I,7,0)),"",VLOOKUP($E22,表A_RAW!$C:$I,7,0)) -> 0.1727779779 | L22: =IF(ISERROR(VLOOKUP($E22,表C_RAW!$C:$I,4,0)),"",VLOOKUP($E22,表C_RAW!$C:$I,4,0)) -> 1746182 | M22: =IF(ISERROR(VLOOKUP($E22,表C_RAW!$C:$I,5,0)),"",VLOOKUP($E22,表C_RAW!$C:$I,5,0)) -> 1477243 | N22: =IF(ISERROR(VLOOKUP($E22,表C_RAW!$C:$I,6,0)),"",VLOOKUP($E22,表C_RAW!$C:$I,6,0)/100) -> 0.1821
D23: 3 | E23: =VLOOKUP($C$21&D23,表C_RAW!A:D,3,0) -> 1256 鮮活果汁-KY | G23: =IF(ISERROR(VLOOKUP($E23,表B_RAW!$C:$I,4,0)),"",VLOOKUP($E23,表B_RAW!$C:$I,4,0)) -> 222574 | H23: =IF(ISERROR(VLOOKUP($E23,表B_RAW!$C:$I,5,0)),"",VLOOKUP($E23,表B_RAW!$C:$I,5,0)) -> 444032 | I23: =IF(ISERROR(VLOOKUP($E23,表B_RAW!$C:$I,6,0)),"",VLOOKUP($E23,表B_RAW!$C:$I,6,0)/100) -> -0.4987 | J23: =IF(ISERROR(VLOOKUP($E23,表A_RAW!$C:$I,5,0)),"",VLOOKUP($E23,表A_RAW!$C:$I,5,0)) -> 142872 | K23: =IF(ISERROR(VLOOKUP($E23,表A_RAW!$C:$I,7,0)),"",VLOOKUP($E23,表A_RAW!$C:$I,7,0)) -> 0.557855983 | L23: =IF(ISERROR(VLOOKUP($E23,表C_RAW!$C:$I,4,0)),"",VLOOKUP($E23,表C_RAW!$C:$I,4,0)) -> 4126970 | M23: =IF(ISERROR(VLOOKUP($E23,表C_RAW!$C:$I,5,0)),"",VLOOKUP($E23,表C_RAW!$C:$I,5,0)) -> 3579871 | N23: =IF(ISERROR(VLOOKUP($E23,表C_RAW!$C:$I,6,0)),"",VLOOKUP($E23,表C_RAW!$C:$I,6,0)/100) -> 0.1528
C24: =VLOOKUP(B21,表C_RAW!N:T,7,0) -> 6.71 | D24: 4 | E24: =VLOOKUP($C$21&D24,表C_RAW!A:D,3,0) -> 1234 黑松 | G24: =IF(ISERROR(VLOOKUP($E24,表B_RAW!$C:$I,4,0)),"",VLOOKUP($E24,表B_RAW!$C:$I,4,0)) -> 960839 | H24: =IF(ISERROR(VLOOKUP($E24,表B_RAW!$C:$I,5,0)),"",VLOOKUP($E24,表B_RAW!$C:$I,5,0)) -> 1017186 | I24: =IF(ISERROR(VLOOKUP($E24,表B_RAW!$C:$I,6,0)),"",VLOOKUP($E24,表B_RAW!$C:$I,6,0)/100) -> -0.0554 | J24: =IF(ISERROR(VLOOKUP($E24,表A_RAW!$C:$I,5,0)),"",VLOOKUP($E24,表A_RAW!$C:$I,5,0)) -> 817431 | K24: =IF(ISERROR(VLOOKUP($E24,表A_RAW!$C:$I,7,0)),"",VLOOKUP($E24,表A_RAW!$C:$I,7,0)) -> 0.1754374375 | L24: =IF(ISERROR(VLOOKUP($E24,表C_RAW!$C:$I,4,0)),"",VLOOKUP($E24,表C_RAW!$C:$I,4,0)) -> 8924963 | M24: =IF(ISERROR(VLOOKUP($E24,表C_RAW!$C:$I,5,0)),"",VLOOKUP($E24,表C_RAW!$C:$I,5,0)) -> 7782622 | N24: =IF(ISERROR(VLOOKUP($E24,表C_RAW!$C:$I,6,0)),"",VLOOKUP($E24,表C_RAW!$C:$I,6,0)/100) -> 0.1468
D25: 5 | E25: =VLOOKUP($C$21&D25,表C_RAW!A:D,3,0) -> 6846 綠茵 | G25: =IF(ISERROR(VLOOKUP($E25,表B_RAW!$C:$I,4,0)),"",VLOOKUP($E25,表B_RAW!$C:$I,4,0)) -> 55142 | H25: =IF(ISERROR(VLOOKUP($E25,表B_RAW!$C:$I,5,0)),"",VLOOKUP($E25,表B_RAW!$C:$I,5,0)) -> 63758 | I25: =IF(ISERROR(VLOOKUP($E25,表B_RAW!$C:$I,6,0)),"",VLOOKUP($E25,表B_RAW!$C:$I,6,0)/100) -> -0.1351 | J25: =IF(ISERROR(VLOOKUP($E25,表A_RAW!$C:$I,5,0)),"",VLOOKUP($E25,表A_RAW!$C:$I,5,0)) -> 63746 | K25: =IF(ISERROR(VLOOKUP($E25,表A_RAW!$C:$I,7,0)),"",VLOOKUP($E25,表A_RAW!$C:$I,7,0)) -> -0.1349731748 | L25: =IF(ISERROR(VLOOKUP($E25,表C_RAW!$C:$I,4,0)),"",VLOOKUP($E25,表C_RAW!$C:$I,4,0)) -> 635122 | M25: =IF(ISERROR(VLOOKUP($E25,表C_RAW!$C:$I,5,0)),"",VLOOKUP($E25,表C_RAW!$C:$I,5,0)) -> 566666 | N25: =IF(ISERROR(VLOOKUP($E25,表C_RAW!$C:$I,6,0)),"",VLOOKUP($E25,表C_RAW!$C:$I,6,0)/100) -> 0.1208
B26: 5 | C26: =VLOOKUP(B26,表C_RAW!N:P,3,0) -> 文化創意業 | D26: 1 | E26: =VLOOKUP($C$26&D26,表C_RAW!A:D,3,0) -> 6101 寬魚國際 | G26: =IF(ISERROR(VLOOKUP($E26,表B_RAW!$C:$I,4,0)),"",VLOOKUP($E26,表B_RAW!$C:$I,4,0)) -> 28088 | H26: =IF(ISERROR(VLOOKUP($E26,表B_RAW!$C:$I,5,0)),"",VLOOKUP($E26,表B_RAW!$C:$I,5,0)) -> 75718 | I26: =IF(ISERROR(VLOOKUP($E26,表B_RAW!$C:$I,6,0)),"",VLOOKUP($E26,表B_RAW!$C:$I,6,0)/100) -> -0.629 | J26: =IF(ISERROR(VLOOKUP($E26,表A_RAW!$C:$I,5,0)),"",VLOOKUP($E26,表A_RAW!$C:$I,5,0)) -> 30 | K26: =IF(ISERROR(VLOOKUP($E26,表A_RAW!$C:$I,7,0)),"",VLOOKUP($E26,表A_RAW!$C:$I,7,0)) -> 935.2666667 | L26: =IF(ISERROR(VLOOKUP($E26,表C_RAW!$C:$I,4,0)),"",VLOOKUP($E26,表C_RAW!$C:$I,4,0)) -> 540075 | M26: =IF(ISERROR(VLOOKUP($E26,表C_RAW!$C:$I,5,0)),"",VLOOKUP($E26,表C_RAW!$C:$I,5,0)) -> 54019 | N26: =IF(ISERROR(VLOOKUP($E26,表C_RAW!$C:$I,6,0)),"",VLOOKUP($E26,表C_RAW!$C:$I,6,0)/100) -> 8.9979
D27: 2 | E27: =VLOOKUP($C$26&D27,表C_RAW!A:D,3,0) -> 6169 昱泉 | G27: =IF(ISERROR(VLOOKUP($E27,表B_RAW!$C:$I,4,0)),"",VLOOKUP($E27,表B_RAW!$C:$I,4,0)) -> 1950 | H27: =IF(ISERROR(VLOOKUP($E27,表B_RAW!$C:$I,5,0)),"",VLOOKUP($E27,表B_RAW!$C:$I,5,0)) -> 1919 | I27: =IF(ISERROR(VLOOKUP($E27,表B_RAW!$C:$I,6,0)),"",VLOOKUP($E27,表B_RAW!$C:$I,6,0)/100) -> 0.0162 | J27: =IF(ISERROR(VLOOKUP($E27,表A_RAW!$C:$I,5,0)),"",VLOOKUP($E27,表A_RAW!$C:$I,5,0)) -> 38 | K27: =IF(ISERROR(VLOOKUP($E27,表A_RAW!$C:$I,7,0)),"",VLOOKUP($E27,表A_RAW!$C:$I,7,0)) -> 50.31578947 | L27: =IF(ISERROR(VLOOKUP($E27,表C_RAW!$C:$I,4,0)),"",VLOOKUP($E27,表C_RAW!$C:$I,4,0)) -> 15328 | M27: =IF(ISERROR(VLOOKUP($E27,表C_RAW!$C:$I,5,0)),"",VLOOKUP($E27,表C_RAW!$C:$I,5,0)) -> 2468 | N27: =IF(ISERROR(VLOOKUP($E27,表C_RAW!$C:$I,6,0)),"",VLOOKUP($E27,表C_RAW!$C:$I,6,0)/100) -> 5.2107
D28: 3 | E28: =VLOOKUP($C$26&D28,表C_RAW!A:D,3,0) -> 6111 大宇資 | G28: =IF(ISERROR(VLOOKUP($E28,表B_RAW!$C:$I,4,0)),"",VLOOKUP($E28,表B_RAW!$C:$I,4,0)) -> 288358 | H28: =IF(ISERROR(VLOOKUP($E28,表B_RAW!$C:$I,5,0)),"",VLOOKUP($E28,表B_RAW!$C:$I,5,0)) -> 204398 | I28: =IF(ISERROR(VLOOKUP($E28,表B_RAW!$C:$I,6,0)),"",VLOOKUP($E28,表B_RAW!$C:$I,6,0)/100) -> 0.4108 | J28: =IF(ISERROR(VLOOKUP($E28,表A_RAW!$C:$I,5,0)),"",VLOOKUP($E28,表A_RAW!$C:$I,5,0)) -> 151317 | K28: =IF(ISERROR(VLOOKUP($E28,表A_RAW!$C:$I,7,0)),"",VLOOKUP($E28,表A_RAW!$C:$I,7,0)) -> 0.9056550156 | L28: =IF(ISERROR(VLOOKUP($E28,表C_RAW!$C:$I,4,0)),"",VLOOKUP($E28,表C_RAW!$C:$I,4,0)) -> 2462972 | M28: =IF(ISERROR(VLOOKUP($E28,表C_RAW!$C:$I,5,0)),"",VLOOKUP($E28,表C_RAW!$C:$I,5,0)) -> 1803389 | N28: =IF(ISERROR(VLOOKUP($E28,表C_RAW!$C:$I,6,0)),"",VLOOKUP($E28,表C_RAW!$C:$I,6,0)/100) -> 0.3657
C29: =VLOOKUP(B26,表C_RAW!N:T,7,0) -> 5.54 | D29: 4 | E29: =VLOOKUP($C$26&D29,表C_RAW!A:D,3,0) -> 8446 華研 | G29: =IF(ISERROR(VLOOKUP($E29,表B_RAW!$C:$I,4,0)),"",VLOOKUP($E29,表B_RAW!$C:$I,4,0)) -> 88693 | H29: =IF(ISERROR(VLOOKUP($E29,表B_RAW!$C:$I,5,0)),"",VLOOKUP($E29,表B_RAW!$C:$I,5,0)) -> 88352 | I29: =IF(ISERROR(VLOOKUP($E29,表B_RAW!$C:$I,6,0)),"",VLOOKUP($E29,表B_RAW!$C:$I,6,0)/100) -> 0.0039 | J29: =IF(ISERROR(VLOOKUP($E29,表A_RAW!$C:$I,5,0)),"",VLOOKUP($E29,表A_RAW!$C:$I,5,0)) -> 98240 | K29: =IF(ISERROR(VLOOKUP($E29,表A_RAW!$C:$I,7,0)),"",VLOOKUP($E29,表A_RAW!$C:$I,7,0)) -> -0.09718037459 | L29: =IF(ISERROR(VLOOKUP($E29,表C_RAW!$C:$I,4,0)),"",VLOOKUP($E29,表C_RAW!$C:$I,4,0)) -> 909149 | M29: =IF(ISERROR(VLOOKUP($E29,表C_RAW!$C:$I,5,0)),"",VLOOKUP($E29,表C_RAW!$C:$I,5,0)) -> 740625 | N29: =IF(ISERROR(VLOOKUP($E29,表C_RAW!$C:$I,6,0)),"",VLOOKUP($E29,表C_RAW!$C:$I,6,0)/100) -> 0.2275
D30: 5 | E30: =VLOOKUP($C$26&D30,表C_RAW!A:D,3,0) -> 2926 誠品生活 | G30: =IF(ISERROR(VLOOKUP($E30,表B_RAW!$C:$I,4,0)),"",VLOOKUP($E30,表B_RAW!$C:$I,4,0)) -> 636341 | H30: =IF(ISERROR(VLOOKUP($E30,表B_RAW!$C:$I,5,0)),"",VLOOKUP($E30,表B_RAW!$C:$I,5,0)) -> 656509 | I30: =IF(ISERROR(VLOOKUP($E30,表B_RAW!$C:$I,6,0)),"",VLOOKUP($E30,表B_RAW!$C:$I,6,0)/100) -> -0.0307 | J30: =IF(ISERROR(VLOOKUP($E30,表A_RAW!$C:$I,5,0)),"",VLOOKUP($E30,表A_RAW!$C:$I,5,0)) -> 535609 | K30: =IF(ISERROR(VLOOKUP($E30,表A_RAW!$C:$I,7,0)),"",VLOOKUP($E30,表A_RAW!$C:$I,7,0)) -> 0.1880700287 | L30: =IF(ISERROR(VLOOKUP($E30,表C_RAW!$C:$I,4,0)),"",VLOOKUP($E30,表C_RAW!$C:$I,4,0)) -> 5288086 | M30: =IF(ISERROR(VLOOKUP($E30,表C_RAW!$C:$I,5,0)),"",VLOOKUP($E30,表C_RAW!$C:$I,5,0)) -> 4456112 | N30: =IF(ISERROR(VLOOKUP($E30,表C_RAW!$C:$I,6,0)),"",VLOOKUP($E30,表C_RAW!$C:$I,6,0)/100) -> 0.1867
B32: 衰退前五名之產業 YOY(累計)% | D32: 該產業衰退前五名之公司 YOY(累計)% | G32: 單月營收金額(千元) | H32: 本月與上月相較 | J32: 本月與去年同期相較 | L32: 累計營收金額(千元) | M32: 累計營收與去年同期相較
B33: 衰退 排名 | C33: 產業 | D33: 排名 | E33: 公司代號&簡稱 | H33: 上月營收金額(千元) | I33: 較上月變動比率(%) | J33: 去年同期金額(千元) | K33: 較去年同期變動比率(%) | M33: 去年累計營收金額(千元) | N33: 較去年同期變動比率(%)
B34: 1 | C34: =VLOOKUP(B34,表C_RAW!O:P,2,0) -> 航運業 | D34: 1 | E34: =VLOOKUP($C$34&D34,表C_RAW!B:D,2,0) -> 2609 陽明 | G34: =IF(ISERROR(VLOOKUP($E34,表B_RAW!$C:$I,4,0)),"",VLOOKUP($E34,表B_RAW!$C:$I,4,0)) -> 11301611 | H34: =IF(ISERROR(VLOOKUP($E34,表B_RAW!$C:$I,5,0)),"",VLOOKUP($E34,表B_RAW!$C:$I,5,0)) -> 12207961 | I34: =IF(ISERROR(VLOOKUP($E34,表B_RAW!$C:$I,6,0)),"",VLOOKUP($E34,表B_RAW!$C:$I,6,0)/100) -> -0.0742 | J34: =IF(ISERROR(VLOOKUP($E34,表A_RAW!$C:$I,5,0)),"",VLOOKUP($E34,表A_RAW!$C:$I,5,0)) -> 23990181 | K34: =IF(ISERROR(VLOOKUP($E34,表A_RAW!$C:$I,7,0)),"",VLOOKUP($E34,表A_RAW!$C:$I,7,0)) -> -0.5289068057 | L34: =IF(ISERROR(VLOOKUP($E34,表C_RAW!$C:$I,4,0)),"",VLOOKUP($E34,表C_RAW!$C:$I,4,0)) -> 119202536 | M34: =IF(ISERROR(VLOOKUP($E34,表C_RAW!$C:$I,5,0)),"",VLOOKUP($E34,表C_RAW!$C:$I,5,0)) -> 339954661 | N34: =IF(ISERROR(VLOOKUP($E34,表C_RAW!$C:$I,6,0)),"",VLOOKUP($E34,表C_RAW!$C:$I,6,0)/100) -> -0.6494
D35: 2 | E35: =VLOOKUP($C$34&D35,表C_RAW!B:D,2,0) -> 2615 萬海 | G35: =IF(ISERROR(VLOOKUP($E35,表B_RAW!$C:$I,4,0)),"",VLOOKUP($E35,表B_RAW!$C:$I,4,0)) -> 8170544 | H35: =IF(ISERROR(VLOOKUP($E35,表B_RAW!$C:$I,5,0)),"",VLOOKUP($E35,表B_RAW!$C:$I,5,0)) -> 8242483 | I35: =IF(ISERROR(VLOOKUP($E35,表B_RAW!$C:$I,6,0)),"",VLOOKUP($E35,表B_RAW!$C:$I,6,0)/100) -> -0.0087 | J35: =IF(ISERROR(VLOOKUP($E35,表A_RAW!$C:$I,5,0)),"",VLOOKUP($E35,表A_RAW!$C:$I,5,0)) -> 14987205 | K35: =IF(ISERROR(VLOOKUP($E35,表A_RAW!$C:$I,7,0)),"",VLOOKUP($E35,表A_RAW!$C:$I,7,0)) -> -0.4548320384 | L35: =IF(ISERROR(VLOOKUP($E35,表C_RAW!$C:$I,4,0)),"",VLOOKUP($E35,表C_RAW!$C:$I,4,0)) -> 83246162 | M35: =IF(ISERROR(VLOOKUP($E35,表C_RAW!$C:$I,5,0)),"",VLOOKUP($E35,表C_RAW!$C:$I,5,0)) -> 234421764 | N35: =IF(ISERROR(VLOOKUP($E35,表C_RAW!$C:$I,6,0)),"",VLOOKUP($E35,表C_RAW!$C:$I,6,0)/100) -> -0.6449
D36: 3 | E36: =VLOOKUP($C$34&D36,表C_RAW!B:D,2,0) -> 2603 長榮 | G36: =IF(ISERROR(VLOOKUP($E36,表B_RAW!$C:$I,4,0)),"",VLOOKUP($E36,表B_RAW!$C:$I,4,0)) -> 23364349 | H36: =IF(ISERROR(VLOOKUP($E36,表B_RAW!$C:$I,5,0)),"",VLOOKUP($E36,表B_RAW!$C:$I,5,0)) -> 24483411 | I36: =IF(ISERROR(VLOOKUP($E36,表B_RAW!$C:$I,6,0)),"",VLOOKUP($E36,表B_RAW!$C:$I,6,0)/100) -> -0.0457 | J36: =IF(ISERROR(VLOOKUP($E36,表A_RAW!$C:$I,5,0)),"",VLOOKUP($E36,表A_RAW!$C:$I,5,0)) -> 45647733 | K36: =IF(ISERROR(VLOOKUP($E36,表A_RAW!$C:$I,7,0)),"",VLOOKUP($E36,表A_RAW!$C:$I,7,0)) -> -0.4881597077 | L36: =IF(ISERROR(VLOOKUP($E36,表C_RAW!$C:$I,4,0)),"",VLOOKUP($E36,表C_RAW!$C:$I,4,0)) -> 230388028 | M36: =IF(ISERROR(VLOOKUP($E36,表C_RAW!$C:$I,5,0)),"",VLOOKUP($E36,表C_RAW!$C:$I,5,0)) -> 561904966 | N36: =IF(ISERROR(VLOOKUP($E36,表C_RAW!$C:$I,6,0)),"",VLOOKUP($E36,表C_RAW!$C:$I,6,0)/100) -> -0.59
C37: =VLOOKUP(B34,表C_RAW!O:T,6,0) -> -39.92 | D37: 4 | E37: =VLOOKUP($C$34&D37,表C_RAW!B:D,2,0) -> 2636 台驊投控 | G37: =IF(ISERROR(VLOOKUP($E37,表B_RAW!$C:$I,4,0)),"",VLOOKUP($E37,表B_RAW!$C:$I,4,0)) -> 1331130 | H37: =IF(ISERROR(VLOOKUP($E37,表B_RAW!$C:$I,5,0)),"",VLOOKUP($E37,表B_RAW!$C:$I,5,0)) -> 1265684 | I37: =IF(ISERROR(VLOOKUP($E37,表B_RAW!$C:$I,6,0)),"",VLOOKUP($E37,表B_RAW!$C:$I,6,0)/100) -> 0.0517 | J37: =IF(ISERROR(VLOOKUP($E37,表A_RAW!$C:$I,5,0)),"",VLOOKUP($E37,表A_RAW!$C:$I,5,0)) -> 1582411 | K37: =IF(ISERROR(VLOOKUP($E37,表A_RAW!$C:$I,7,0)),"",VLOOKUP($E37,表A_RAW!$C:$I,7,0)) -> -0.1587962925 | L37: =IF(ISERROR(VLOOKUP($E37,表C_RAW!$C:$I,4,0)),"",VLOOKUP($E37,表C_RAW!$C:$I,4,0)) -> 11942197 | M37: =IF(ISERROR(VLOOKUP($E37,表C_RAW!$C:$I,5,0)),"",VLOOKUP($E37,表C_RAW!$C:$I,5,0)) -> 25577291 | N37: =IF(ISERROR(VLOOKUP($E37,表C_RAW!$C:$I,6,0)),"",VLOOKUP($E37,表C_RAW!$C:$I,6,0)/100) -> -0.5331
D38: 5 | E38: =VLOOKUP($C$34&D38,表C_RAW!B:D,2,0) -> 5609 中菲行 | G38: =IF(ISERROR(VLOOKUP($E38,表B_RAW!$C:$I,4,0)),"",VLOOKUP($E38,表B_RAW!$C:$I,4,0)) -> 1945211 | H38: =IF(ISERROR(VLOOKUP($E38,表B_RAW!$C:$I,5,0)),"",VLOOKUP($E38,表B_RAW!$C:$I,5,0)) -> 1817018 | I38: =IF(ISERROR(VLOOKUP($E38,表B_RAW!$C:$I,6,0)),"",VLOOKUP($E38,表B_RAW!$C:$I,6,0)/100) -> 0.0706 | J38: =IF(ISERROR(VLOOKUP($E38,表A_RAW!$C:$I,5,0)),"",VLOOKUP($E38,表A_RAW!$C:$I,5,0)) -> 2884387 | K38: =IF(ISERROR(VLOOKUP($E38,表A_RAW!$C:$I,7,0)),"",VLOOKUP($E38,表A_RAW!$C:$I,7,0)) -> -0.3256067927 | L38: =IF(ISERROR(VLOOKUP($E38,表C_RAW!$C:$I,4,0)),"",VLOOKUP($E38,表C_RAW!$C:$I,4,0)) -> 17610579 | M38: =IF(ISERROR(VLOOKUP($E38,表C_RAW!$C:$I,5,0)),"",VLOOKUP($E38,表C_RAW!$C:$I,5,0)) -> 35998423 | N38: =IF(ISERROR(VLOOKUP($E38,表C_RAW!$C:$I,6,0)),"",VLOOKUP($E38,表C_RAW!$C:$I,6,0)/100) -> -0.5108
B39: 2 | C39: =VLOOKUP(B39,表C_RAW!O:P,2,0) -> 農業科技 | D39: 1 | E39: =VLOOKUP($C$39&D39,表C_RAW!B:D,2,0) -> 4171 瑞基 | G39: =IF(ISERROR(VLOOKUP($E39,表B_RAW!$C:$I,4,0)),"",VLOOKUP($E39,表B_RAW!$C:$I,4,0)) -> 17165 | H39: =IF(ISERROR(VLOOKUP($E39,表B_RAW!$C:$I,5,0)),"",VLOOKUP($E39,表B_RAW!$C:$I,5,0)) -> 13805 | I39: =IF(ISERROR(VLOOKUP($E39,表B_RAW!$C:$I,6,0)),"",VLOOKUP($E39,表B_RAW!$C:$I,6,0)/100) -> 0.2434 | J39: =IF(ISERROR(VLOOKUP($E39,表A_RAW!$C:$I,5,0)),"",VLOOKUP($E39,表A_RAW!$C:$I,5,0)) -> 35757 | K39: =IF(ISERROR(VLOOKUP($E39,表A_RAW!$C:$I,7,0)),"",VLOOKUP($E39,表A_RAW!$C:$I,7,0)) -> -0.5199541349 | L39: =IF(ISERROR(VLOOKUP($E39,表C_RAW!$C:$I,4,0)),"",VLOOKUP($E39,表C_RAW!$C:$I,4,0)) -> 187800 | M39: =IF(ISERROR(VLOOKUP($E39,表C_RAW!$C:$I,5,0)),"",VLOOKUP($E39,表C_RAW!$C:$I,5,0)) -> 700508 | N39: =IF(ISERROR(VLOOKUP($E39,表C_RAW!$C:$I,6,0)),"",VLOOKUP($E39,表C_RAW!$C:$I,6,0)/100) -> -0.7319
D40: 2 | E40: =VLOOKUP($C$39&D40,表C_RAW!B:D,2,0) -> 6508 惠光 | G40: =IF(ISERROR(VLOOKUP($E40,表B_RAW!$C:$I,4,0)),"",VLOOKUP($E40,表B_RAW!$C:$I,4,0)) -> 104932 | H40: =IF(ISERROR(VLOOKUP($E40,表B_RAW!$C:$I,5,0)),"",VLOOKUP($E40,表B_RAW!$C:$I,5,0)) -> 145679 | I40: =IF(ISERROR(VLOOKUP($E40,表B_RAW!$C:$I,6,0)),"",VLOOKUP($E40,表B_RAW!$C:$I,6,0)/100) -> -0.2797 | J40: =IF(ISERROR(VLOOKUP($E40,表A_RAW!$C:$I,5,0)),"",VLOOKUP($E40,表A_RAW!$C:$I,5,0)) -> 125372 | K40: =IF(ISERROR(VLOOKUP($E40,表A_RAW!$C:$I,7,0)),"",VLOOKUP($E40,表A_RAW!$C:$I,7,0)) -> -0.1630348084 | L40: =IF(ISERROR(VLOOKUP($E40,表C_RAW!$C:$I,4,0)),"",VLOOKUP($E40,表C_RAW!$C:$I,4,0)) -> 1401323 | M40: =IF(ISERROR(VLOOKUP($E40,表C_RAW!$C:$I,5,0)),"",VLOOKUP($E40,表C_RAW!$C:$I,5,0)) -> 2349926 | N40: =IF(ISERROR(VLOOKUP($E40,表C_RAW!$C:$I,6,0)),"",VLOOKUP($E40,表C_RAW!$C:$I,6,0)/100) -> -0.4037
D41: 3 | E41: =VLOOKUP($C$39&D41,表C_RAW!B:D,2,0) -> 1240 茂生農經 | G41: =IF(ISERROR(VLOOKUP($E41,表B_RAW!$C:$I,4,0)),"",VLOOKUP($E41,表B_RAW!$C:$I,4,0)) -> 245925 | H41: =IF(ISERROR(VLOOKUP($E41,表B_RAW!$C:$I,5,0)),"",VLOOKUP($E41,表B_RAW!$C:$I,5,0)) -> 223358 | I41: =IF(ISERROR(VLOOKUP($E41,表B_RAW!$C:$I,6,0)),"",VLOOKUP($E41,表B_RAW!$C:$I,6,0)/100) -> 0.101 | J41: =IF(ISERROR(VLOOKUP($E41,表A_RAW!$C:$I,5,0)),"",VLOOKUP($E41,表A_RAW!$C:$I,5,0)) -> 312492 | K41: =IF(ISERROR(VLOOKUP($E41,表A_RAW!$C:$I,7,0)),"",VLOOKUP($E41,表A_RAW!$C:$I,7,0)) -> -0.2130198533 | L41: =IF(ISERROR(VLOOKUP($E41,表C_RAW!$C:$I,4,0)),"",VLOOKUP($E41,表C_RAW!$C:$I,4,0)) -> 2371277 | M41: =IF(ISERROR(VLOOKUP($E41,表C_RAW!$C:$I,5,0)),"",VLOOKUP($E41,表C_RAW!$C:$I,5,0)) -> 2774635 | N41: =IF(ISERROR(VLOOKUP($E41,表C_RAW!$C:$I,6,0)),"",VLOOKUP($E41,表C_RAW!$C:$I,6,0)/100) -> -0.1454
C42: =VLOOKUP(B39,表C_RAW!O:T,6,0) -> -30.88 | D42: 4 | E42: =VLOOKUP($C$39&D42,表C_RAW!B:D,2,0) -> 6578 達邦蛋白 | G42: =IF(ISERROR(VLOOKUP($E42,表B_RAW!$C:$I,4,0)),"",VLOOKUP($E42,表B_RAW!$C:$I,4,0)) -> 31348 | H42: =IF(ISERROR(VLOOKUP($E42,表B_RAW!$C:$I,5,0)),"",VLOOKUP($E42,表B_RAW!$C:$I,5,0)) -> 27677 | I42: =IF(ISERROR(VLOOKUP($E42,表B_RAW!$C:$I,6,0)),"",VLOOKUP($E42,表B_RAW!$C:$I,6,0)/100) -> 0.1326 | J42: =IF(ISERROR(VLOOKUP($E42,表A_RAW!$C:$I,5,0)),"",VLOOKUP($E42,表A_RAW!$C:$I,5,0)) -> 41842 | K42: =IF(ISERROR(VLOOKUP($E42,表A_RAW!$C:$I,7,0)),"",VLOOKUP($E42,表A_RAW!$C:$I,7,0)) -> -0.2508006309 | L42: =IF(ISERROR(VLOOKUP($E42,表C_RAW!$C:$I,4,0)),"",VLOOKUP($E42,表C_RAW!$C:$I,4,0)) -> 315163 | M42: =IF(ISERROR(VLOOKUP($E42,表C_RAW!$C:$I,5,0)),"",VLOOKUP($E42,表C_RAW!$C:$I,5,0)) -> 360460 | N42: =IF(ISERROR(VLOOKUP($E42,表C_RAW!$C:$I,6,0)),"",VLOOKUP($E42,表C_RAW!$C:$I,6,0)/100) -> -0.1257
D43: 5 | E43: =VLOOKUP($C$39&D43,表C_RAW!B:D,2,0) ->  | G43: =IF(ISERROR(VLOOKUP($E43,表B_RAW!$C:$I,4,0)),"",VLOOKUP($E43,表B_RAW!$C:$I,4,0)) ->  | H43: =IF(ISERROR(VLOOKUP($E43,表B_RAW!$C:$I,5,0)),"",VLOOKUP($E43,表B_RAW!$C:$I,5,0)) ->  | I43: =IF(ISERROR(VLOOKUP($E43,表B_RAW!$C:$I,6,0)),"",VLOOKUP($E43,表B_RAW!$C:$I,6,0)/100) ->  | J43: =IF(ISERROR(VLOOKUP($E43,表A_RAW!$C:$I,5,0)),"",VLOOKUP($E43,表A_RAW!$C:$I,5,0)) ->  | K43: =IF(ISERROR(VLOOKUP($E43,表A_RAW!$C:$I,7,0)),"",VLOOKUP($E43,表A_RAW!$C:$I,7,0)) ->  | L43: =IF(ISERROR(VLOOKUP($E43,表C_RAW!$C:$I,4,0)),"",VLOOKUP($E43,表C_RAW!$C:$I,4,0)) ->  | M43: =IF(ISERROR(VLOOKUP($E43,表C_RAW!$C:$I,5,0)),"",VLOOKUP($E43,表C_RAW!$C:$I,5,0)) ->  | N43: =IF(ISERROR(VLOOKUP($E43,表C_RAW!$C:$I,6,0)),"",VLOOKUP($E43,表C_RAW!$C:$I,6,0)/100) -> 
B44: 3 | C44: =VLOOKUP(B44,表C_RAW!O:P,2,0) -> 塑膠工業 | D44: 1 | E44: =VLOOKUP($C$44&D44,表C_RAW!B:D,2,0) -> 4303 信立 | G44: =IF(ISERROR(VLOOKUP($E44,表B_RAW!$C:$I,4,0)),"",VLOOKUP($E44,表B_RAW!$C:$I,4,0)) -> 9079 | H44: =IF(ISERROR(VLOOKUP($E44,表B_RAW!$C:$I,5,0)),"",VLOOKUP($E44,表B_RAW!$C:$I,5,0)) -> 11120 | I44: =IF(ISERROR(VLOOKUP($E44,表B_RAW!$C:$I,6,0)),"",VLOOKUP($E44,表B_RAW!$C:$I,6,0)/100) -> -0.1835 | J44: =IF(ISERROR(VLOOKUP($E44,表A_RAW!$C:$I,5,0)),"",VLOOKUP($E44,表A_RAW!$C:$I,5,0)) -> 18605 | K44: =IF(ISERROR(VLOOKUP($E44,表A_RAW!$C:$I,7,0)),"",VLOOKUP($E44,表A_RAW!$C:$I,7,0)) -> -0.5120128998 | L44: =IF(ISERROR(VLOOKUP($E44,表C_RAW!$C:$I,4,0)),"",VLOOKUP($E44,表C_RAW!$C:$I,4,0)) -> 135544 | M44: =IF(ISERROR(VLOOKUP($E44,表C_RAW!$C:$I,5,0)),"",VLOOKUP($E44,表C_RAW!$C:$I,5,0)) -> 275890 | N44: =IF(ISERROR(VLOOKUP($E44,表C_RAW!$C:$I,6,0)),"",VLOOKUP($E44,表C_RAW!$C:$I,6,0)/100) -> -0.5087
D45: 2 | E45: =VLOOKUP($C$44&D45,表C_RAW!B:D,2,0) -> 1308 亞聚 | G45: =IF(ISERROR(VLOOKUP($E45,表B_RAW!$C:$I,4,0)),"",VLOOKUP($E45,表B_RAW!$C:$I,4,0)) -> 538938 | H45: =IF(ISERROR(VLOOKUP($E45,表B_RAW!$C:$I,5,0)),"",VLOOKUP($E45,表B_RAW!$C:$I,5,0)) -> 572692 | I45: =IF(ISERROR(VLOOKUP($E45,表B_RAW!$C:$I,6,0)),"",VLOOKUP($E45,表B_RAW!$C:$I,6,0)/100) -> -0.0589 | J45: =IF(ISERROR(VLOOKUP($E45,表A_RAW!$C:$I,5,0)),"",VLOOKUP($E45,表A_RAW!$C:$I,5,0)) -> 879815 | K45: =IF(ISERROR(VLOOKUP($E45,表A_RAW!$C:$I,7,0)),"",VLOOKUP($E45,表A_RAW!$C:$I,7,0)) -> -0.3874416781 | L45: =IF(ISERROR(VLOOKUP($E45,表C_RAW!$C:$I,4,0)),"",VLOOKUP($E45,表C_RAW!$C:$I,4,0)) -> 5578499 | M45: =IF(ISERROR(VLOOKUP($E45,表C_RAW!$C:$I,5,0)),"",VLOOKUP($E45,表C_RAW!$C:$I,5,0)) -> 8190718 | N45: =IF(ISERROR(VLOOKUP($E45,表C_RAW!$C:$I,6,0)),"",VLOOKUP($E45,表C_RAW!$C:$I,6,0)/100) -> -0.3189
D46: 3 | E46: =VLOOKUP($C$44&D46,表C_RAW!B:D,2,0) -> 1321 大洋 | G46: =IF(ISERROR(VLOOKUP($E46,表B_RAW!$C:$I,4,0)),"",VLOOKUP($E46,表B_RAW!$C:$I,4,0)) -> 321339 | H46: =IF(ISERROR(VLOOKUP($E46,表B_RAW!$C:$I,5,0)),"",VLOOKUP($E46,表B_RAW!$C:$I,5,0)) -> 357833 | I46: =IF(ISERROR(VLOOKUP($E46,表B_RAW!$C:$I,6,0)),"",VLOOKUP($E46,表B_RAW!$C:$I,6,0)/100) -> -0.102 | J46: =IF(ISERROR(VLOOKUP($E46,表A_RAW!$C:$I,5,0)),"",VLOOKUP($E46,表A_RAW!$C:$I,5,0)) -> 428190 | K46: =IF(ISERROR(VLOOKUP($E46,表A_RAW!$C:$I,7,0)),"",VLOOKUP($E46,表A_RAW!$C:$I,7,0)) -> -0.2495410916 | L46: =IF(ISERROR(VLOOKUP($E46,表C_RAW!$C:$I,4,0)),"",VLOOKUP($E46,表C_RAW!$C:$I,4,0)) -> 3929634 | M46: =IF(ISERROR(VLOOKUP($E46,表C_RAW!$C:$I,5,0)),"",VLOOKUP($E46,表C_RAW!$C:$I,5,0)) -> 5611951 | N46: =IF(ISERROR(VLOOKUP($E46,表C_RAW!$C:$I,6,0)),"",VLOOKUP($E46,表C_RAW!$C:$I,6,0)/100) -> -0.2998
C47: =VLOOKUP(B44,表C_RAW!O:T,6,0) -> -20.3 | D47: 4 | E47: =VLOOKUP($C$44&D47,表C_RAW!B:D,2,0) -> 1310 台苯 | G47: =IF(ISERROR(VLOOKUP($E47,表B_RAW!$C:$I,4,0)),"",VLOOKUP($E47,表B_RAW!$C:$I,4,0)) -> 891484 | H47: =IF(ISERROR(VLOOKUP($E47,表B_RAW!$C:$I,5,0)),"",VLOOKUP($E47,表B_RAW!$C:$I,5,0)) -> 806466 | I47: =IF(ISERROR(VLOOKUP($E47,表B_RAW!$C:$I,6,0)),"",VLOOKUP($E47,表B_RAW!$C:$I,6,0)/100) -> 0.1054 | J47: =IF(ISERROR(VLOOKUP($E47,表A_RAW!$C:$I,5,0)),"",VLOOKUP($E47,表A_RAW!$C:$I,5,0)) -> 765461 | K47: =IF(ISERROR(VLOOKUP($E47,表A_RAW!$C:$I,7,0)),"",VLOOKUP($E47,表A_RAW!$C:$I,7,0)) -> 0.1646367352 | L47: =IF(ISERROR(VLOOKUP($E47,表C_RAW!$C:$I,4,0)),"",VLOOKUP($E47,表C_RAW!$C:$I,4,0)) -> 7836675 | M47: =IF(ISERROR(VLOOKUP($E47,表C_RAW!$C:$I,5,0)),"",VLOOKUP($E47,表C_RAW!$C:$I,5,0)) -> 11164151 | N47: =IF(ISERROR(VLOOKUP($E47,表C_RAW!$C:$I,6,0)),"",VLOOKUP($E47,表C_RAW!$C:$I,6,0)/100) -> -0.2981
D48: 5 | E48: =VLOOKUP($C$44&D48,表C_RAW!B:D,2,0) -> 1303 南亞 | G48: =IF(ISERROR(VLOOKUP($E48,表B_RAW!$C:$I,4,0)),"",VLOOKUP($E48,表B_RAW!$C:$I,4,0)) -> 21722488 | H48: =IF(ISERROR(VLOOKUP($E48,表B_RAW!$C:$I,5,0)),"",VLOOKUP($E48,表B_RAW!$C:$I,5,0)) -> 22141297 | I48: =IF(ISERROR(VLOOKUP($E48,表B_RAW!$C:$I,6,0)),"",VLOOKUP($E48,表B_RAW!$C:$I,6,0)/100) -> -0.0189 | J48: =IF(ISERROR(VLOOKUP($E48,表A_RAW!$C:$I,5,0)),"",VLOOKUP($E48,表A_RAW!$C:$I,5,0)) -> 26628431 | K48: =IF(ISERROR(VLOOKUP($E48,表A_RAW!$C:$I,7,0)),"",VLOOKUP($E48,表A_RAW!$C:$I,7,0)) -> -0.1842370285 | L48: =IF(ISERROR(VLOOKUP($E48,表C_RAW!$C:$I,4,0)),"",VLOOKUP($E48,表C_RAW!$C:$I,4,0)) -> 218485874 | M48: =IF(ISERROR(VLOOKUP($E48,表C_RAW!$C:$I,5,0)),"",VLOOKUP($E48,表C_RAW!$C:$I,5,0)) -> 306041011 | N48: =IF(ISERROR(VLOOKUP($E48,表C_RAW!$C:$I,6,0)),"",VLOOKUP($E48,表C_RAW!$C:$I,6,0)/100) -> -0.2861
B49: 4 | C49: =VLOOKUP(B49,表C_RAW!O:P,2,0) -> 光電業 | D49: 1 | E49: =VLOOKUP($C$49&D49,表C_RAW!B:D,2,0) -> 6222 上揚 | G49: =IF(ISERROR(VLOOKUP($E49,表B_RAW!$C:$I,4,0)),"",VLOOKUP($E49,表B_RAW!$C:$I,4,0)) -> 114 | H49: =IF(ISERROR(VLOOKUP($E49,表B_RAW!$C:$I,5,0)),"",VLOOKUP($E49,表B_RAW!$C:$I,5,0)) -> 147 | I49: =IF(ISERROR(VLOOKUP($E49,表B_RAW!$C:$I,6,0)),"",VLOOKUP($E49,表B_RAW!$C:$I,6,0)/100) -> -0.2245 | J49: =IF(ISERROR(VLOOKUP($E49,表A_RAW!$C:$I,5,0)),"",VLOOKUP($E49,表A_RAW!$C:$I,5,0)) -> 465 | K49: =IF(ISERROR(VLOOKUP($E49,表A_RAW!$C:$I,7,0)),"",VLOOKUP($E49,表A_RAW!$C:$I,7,0)) -> -0.7548387097 | L49: =IF(ISERROR(VLOOKUP($E49,表C_RAW!$C:$I,4,0)),"",VLOOKUP($E49,表C_RAW!$C:$I,4,0)) -> 2284 | M49: =IF(ISERROR(VLOOKUP($E49,表C_RAW!$C:$I,5,0)),"",VLOOKUP($E49,表C_RAW!$C:$I,5,0)) -> 8649 | N49: =IF(ISERROR(VLOOKUP($E49,表C_RAW!$C:$I,6,0)),"",VLOOKUP($E49,表C_RAW!$C:$I,6,0)/100) -> -0.7359
D50: 2 | E50: =VLOOKUP($C$49&D50,表C_RAW!B:D,2,0) -> 6706 惠特 | G50: =IF(ISERROR(VLOOKUP($E50,表B_RAW!$C:$I,4,0)),"",VLOOKUP($E50,表B_RAW!$C:$I,4,0)) -> 101021 | H50: =IF(ISERROR(VLOOKUP($E50,表B_RAW!$C:$I,5,0)),"",VLOOKUP($E50,表B_RAW!$C:$I,5,0)) -> 78846 | I50: =IF(ISERROR(VLOOKUP($E50,表B_RAW!$C:$I,6,0)),"",VLOOKUP($E50,表B_RAW!$C:$I,6,0)/100) -> 0.2812 | J50: =IF(ISERROR(VLOOKUP($E50,表A_RAW!$C:$I,5,0)),"",VLOOKUP($E50,表A_RAW!$C:$I,5,0)) -> 126310 | K50: =IF(ISERROR(VLOOKUP($E50,表A_RAW!$C:$I,7,0)),"",VLOOKUP($E50,表A_RAW!$C:$I,7,0)) -> -0.2002137598 | L50: =IF(ISERROR(VLOOKUP($E50,表C_RAW!$C:$I,4,0)),"",VLOOKUP($E50,表C_RAW!$C:$I,4,0)) -> 1173698 | M50: =IF(ISERROR(VLOOKUP($E50,表C_RAW!$C:$I,5,0)),"",VLOOKUP($E50,表C_RAW!$C:$I,5,0)) -> 4201556 | N50: =IF(ISERROR(VLOOKUP($E50,表C_RAW!$C:$I,6,0)),"",VLOOKUP($E50,表C_RAW!$C:$I,6,0)/100) -> -0.7207
D51: 3 | E51: =VLOOKUP($C$49&D51,表C_RAW!B:D,2,0) -> 3535 晶彩科 | G51: =IF(ISERROR(VLOOKUP($E51,表B_RAW!$C:$I,4,0)),"",VLOOKUP($E51,表B_RAW!$C:$I,4,0)) -> 8245 | H51: =IF(ISERROR(VLOOKUP($E51,表B_RAW!$C:$I,5,0)),"",VLOOKUP($E51,表B_RAW!$C:$I,5,0)) -> 36923 | I51: =IF(ISERROR(VLOOKUP($E51,表B_RAW!$C:$I,6,0)),"",VLOOKUP($E51,表B_RAW!$C:$I,6,0)/100) -> -0.7767 | J51: =IF(ISERROR(VLOOKUP($E51,表A_RAW!$C:$I,5,0)),"",VLOOKUP($E51,表A_RAW!$C:$I,5,0)) -> 85082 | K51: =IF(ISERROR(VLOOKUP($E51,表A_RAW!$C:$I,7,0)),"",VLOOKUP($E51,表A_RAW!$C:$I,7,0)) -> -0.9030934863 | L51: =IF(ISERROR(VLOOKUP($E51,表C_RAW!$C:$I,4,0)),"",VLOOKUP($E51,表C_RAW!$C:$I,4,0)) -> 418771 | M51: =IF(ISERROR(VLOOKUP($E51,表C_RAW!$C:$I,5,0)),"",VLOOKUP($E51,表C_RAW!$C:$I,5,0)) -> 1337161 | N51: =IF(ISERROR(VLOOKUP($E51,表C_RAW!$C:$I,6,0)),"",VLOOKUP($E51,表C_RAW!$C:$I,6,0)/100) -> -0.6868
C52: =VLOOKUP(B49,表C_RAW!O:T,6,0) -> -16.11 | D52: 4 | E52: =VLOOKUP($C$49&D52,表C_RAW!B:D,2,0) -> 6560 欣普羅 | G52: =IF(ISERROR(VLOOKUP($E52,表B_RAW!$C:$I,4,0)),"",VLOOKUP($E52,表B_RAW!$C:$I,4,0)) -> 4939 | H52: =IF(ISERROR(VLOOKUP($E52,表B_RAW!$C:$I,5,0)),"",VLOOKUP($E52,表B_RAW!$C:$I,5,0)) -> 12069 | I52: =IF(ISERROR(VLOOKUP($E52,表B_RAW!$C:$I,6,0)),"",VLOOKUP($E52,表B_RAW!$C:$I,6,0)/100) -> -0.5908 | J52: =IF(ISERROR(VLOOKUP($E52,表A_RAW!$C:$I,5,0)),"",VLOOKUP($E52,表A_RAW!$C:$I,5,0)) -> 19527 | K52: =IF(ISERROR(VLOOKUP($E52,表A_RAW!$C:$I,7,0)),"",VLOOKUP($E52,表A_RAW!$C:$I,7,0)) -> -0.747068162 | L52: =IF(ISERROR(VLOOKUP($E52,表C_RAW!$C:$I,4,0)),"",VLOOKUP($E52,表C_RAW!$C:$I,4,0)) -> 106951 | M52: =IF(ISERROR(VLOOKUP($E52,表C_RAW!$C:$I,5,0)),"",VLOOKUP($E52,表C_RAW!$C:$I,5,0)) -> 321419 | N52: =IF(ISERROR(VLOOKUP($E52,表C_RAW!$C:$I,6,0)),"",VLOOKUP($E52,表C_RAW!$C:$I,6,0)/100) -> -0.6673
D53: 5 | E53: =VLOOKUP($C$49&D53,表C_RAW!B:D,2,0) -> 3691 碩禾 | G53: =IF(ISERROR(VLOOKUP($E53,表B_RAW!$C:$I,4,0)),"",VLOOKUP($E53,表B_RAW!$C:$I,4,0)) -> 242029 | H53: =IF(ISERROR(VLOOKUP($E53,表B_RAW!$C:$I,5,0)),"",VLOOKUP($E53,表B_RAW!$C:$I,5,0)) -> 196074 | I53: =IF(ISERROR(VLOOKUP($E53,表B_RAW!$C:$I,6,0)),"",VLOOKUP($E53,表B_RAW!$C:$I,6,0)/100) -> 0.2344 | J53: =IF(ISERROR(VLOOKUP($E53,表A_RAW!$C:$I,5,0)),"",VLOOKUP($E53,表A_RAW!$C:$I,5,0)) -> 440836 | K53: =IF(ISERROR(VLOOKUP($E53,表A_RAW!$C:$I,7,0)),"",VLOOKUP($E53,表A_RAW!$C:$I,7,0)) -> -0.4509772342 | L53: =IF(ISERROR(VLOOKUP($E53,表C_RAW!$C:$I,4,0)),"",VLOOKUP($E53,表C_RAW!$C:$I,4,0)) -> 2173666 | M53: =IF(ISERROR(VLOOKUP($E53,表C_RAW!$C:$I,5,0)),"",VLOOKUP($E53,表C_RAW!$C:$I,5,0)) -> 5067010 | N53: =IF(ISERROR(VLOOKUP($E53,表C_RAW!$C:$I,6,0)),"",VLOOKUP($E53,表C_RAW!$C:$I,6,0)/100) -> -0.571
B54: 5 | C54: =VLOOKUP(B54,表C_RAW!O:P,2,0) -> 油電燃氣業 | D54: 1 | E54: =VLOOKUP($C$54&D54,表C_RAW!B:D,2,0) -> 6505 台塑化 | G54: =IF(ISERROR(VLOOKUP($E54,表B_RAW!$C:$I,4,0)),"",VLOOKUP($E54,表B_RAW!$C:$I,4,0)) -> 64929770 | H54: =IF(ISERROR(VLOOKUP($E54,表B_RAW!$C:$I,5,0)),"",VLOOKUP($E54,表B_RAW!$C:$I,5,0)) -> 70376594 | I54: =IF(ISERROR(VLOOKUP($E54,表B_RAW!$C:$I,6,0)),"",VLOOKUP($E54,表B_RAW!$C:$I,6,0)/100) -> -0.0774 | J54: =IF(ISERROR(VLOOKUP($E54,表A_RAW!$C:$I,5,0)),"",VLOOKUP($E54,表A_RAW!$C:$I,5,0)) -> 69805243 | K54: =IF(ISERROR(VLOOKUP($E54,表A_RAW!$C:$I,7,0)),"",VLOOKUP($E54,表A_RAW!$C:$I,7,0)) -> -0.06984393708 | L54: =IF(ISERROR(VLOOKUP($E54,表C_RAW!$C:$I,4,0)),"",VLOOKUP($E54,表C_RAW!$C:$I,4,0)) -> 601627711 | M54: =IF(ISERROR(VLOOKUP($E54,表C_RAW!$C:$I,5,0)),"",VLOOKUP($E54,表C_RAW!$C:$I,5,0)) -> 723707067 | N54: =IF(ISERROR(VLOOKUP($E54,表C_RAW!$C:$I,6,0)),"",VLOOKUP($E54,表C_RAW!$C:$I,6,0)/100) -> -0.1687
D55: 2 | E55: =VLOOKUP($C$54&D55,表C_RAW!B:D,2,0) -> 2616 山隆 | G55: =IF(ISERROR(VLOOKUP($E55,表B_RAW!$C:$I,4,0)),"",VLOOKUP($E55,表B_RAW!$C:$I,4,0)) -> 1360633 | H55: =IF(ISERROR(VLOOKUP($E55,表B_RAW!$C:$I,5,0)),"",VLOOKUP($E55,表B_RAW!$C:$I,5,0)) -> 1376592 | I55: =IF(ISERROR(VLOOKUP($E55,表B_RAW!$C:$I,6,0)),"",VLOOKUP($E55,表B_RAW!$C:$I,6,0)/100) -> -0.0116 | J55: =IF(ISERROR(VLOOKUP($E55,表A_RAW!$C:$I,5,0)),"",VLOOKUP($E55,表A_RAW!$C:$I,5,0)) -> 1460015 | K55: =IF(ISERROR(VLOOKUP($E55,表A_RAW!$C:$I,7,0)),"",VLOOKUP($E55,表A_RAW!$C:$I,7,0)) -> -0.06806916367 | L55: =IF(ISERROR(VLOOKUP($E55,表C_RAW!$C:$I,4,0)),"",VLOOKUP($E55,表C_RAW!$C:$I,4,0)) -> 13584592 | M55: =IF(ISERROR(VLOOKUP($E55,表C_RAW!$C:$I,5,0)),"",VLOOKUP($E55,表C_RAW!$C:$I,5,0)) -> 15556028 | N55: =IF(ISERROR(VLOOKUP($E55,表C_RAW!$C:$I,6,0)),"",VLOOKUP($E55,表C_RAW!$C:$I,6,0)/100) -> -0.1267
D56: 3 | E56: =VLOOKUP($C$54&D56,表C_RAW!B:D,2,0) -> 8908 欣雄 | G56: =IF(ISERROR(VLOOKUP($E56,表B_RAW!$C:$I,4,0)),"",VLOOKUP($E56,表B_RAW!$C:$I,4,0)) -> 520828 | H56: =IF(ISERROR(VLOOKUP($E56,表B_RAW!$C:$I,5,0)),"",VLOOKUP($E56,表B_RAW!$C:$I,5,0)) -> 586606 | I56: =IF(ISERROR(VLOOKUP($E56,表B_RAW!$C:$I,6,0)),"",VLOOKUP($E56,表B_RAW!$C:$I,6,0)/100) -> -0.1121 | J56: =IF(ISERROR(VLOOKUP($E56,表A_RAW!$C:$I,5,0)),"",VLOOKUP($E56,表A_RAW!$C:$I,5,0)) -> 586853 | K56: =IF(ISERROR(VLOOKUP($E56,表A_RAW!$C:$I,7,0)),"",VLOOKUP($E56,表A_RAW!$C:$I,7,0)) -> -0.1125068799 | L56: =IF(ISERROR(VLOOKUP($E56,表C_RAW!$C:$I,4,0)),"",VLOOKUP($E56,表C_RAW!$C:$I,4,0)) -> 5751019 | M56: =IF(ISERROR(VLOOKUP($E56,表C_RAW!$C:$I,5,0)),"",VLOOKUP($E56,表C_RAW!$C:$I,5,0)) -> 5970633 | N56: =IF(ISERROR(VLOOKUP($E56,表C_RAW!$C:$I,6,0)),"",VLOOKUP($E56,表C_RAW!$C:$I,6,0)/100) -> -0.0368
C57: =VLOOKUP(B54,表C_RAW!O:T,6,0) -> -15.49 | D57: 4 | E57: =VLOOKUP($C$54&D57,表C_RAW!B:D,2,0) -> 9931 欣高 | G57: =IF(ISERROR(VLOOKUP($E57,表B_RAW!$C:$I,4,0)),"",VLOOKUP($E57,表B_RAW!$C:$I,4,0)) -> 100696 | H57: =IF(ISERROR(VLOOKUP($E57,表B_RAW!$C:$I,5,0)),"",VLOOKUP($E57,表B_RAW!$C:$I,5,0)) -> 90501 | I57: =IF(ISERROR(VLOOKUP($E57,表B_RAW!$C:$I,6,0)),"",VLOOKUP($E57,表B_RAW!$C:$I,6,0)/100) -> 0.1127 | J57: =IF(ISERROR(VLOOKUP($E57,表A_RAW!$C:$I,5,0)),"",VLOOKUP($E57,表A_RAW!$C:$I,5,0)) -> 91099 | K57: =IF(ISERROR(VLOOKUP($E57,表A_RAW!$C:$I,7,0)),"",VLOOKUP($E57,表A_RAW!$C:$I,7,0)) -> 0.1053469303 | L57: =IF(ISERROR(VLOOKUP($E57,表C_RAW!$C:$I,4,0)),"",VLOOKUP($E57,表C_RAW!$C:$I,4,0)) -> 1021587 | M57: =IF(ISERROR(VLOOKUP($E57,表C_RAW!$C:$I,5,0)),"",VLOOKUP($E57,表C_RAW!$C:$I,5,0)) -> 1035608 | N57: =IF(ISERROR(VLOOKUP($E57,表C_RAW!$C:$I,6,0)),"",VLOOKUP($E57,表C_RAW!$C:$I,6,0)/100) -> -0.0135
D58: 5 | E58: =VLOOKUP($C$54&D58,表C_RAW!B:D,2,0) -> 9918 欣天然 | G58: =IF(ISERROR(VLOOKUP($E58,表B_RAW!$C:$I,4,0)),"",VLOOKUP($E58,表B_RAW!$C:$I,4,0)) -> 142930 | H58: =IF(ISERROR(VLOOKUP($E58,表B_RAW!$C:$I,5,0)),"",VLOOKUP($E58,表B_RAW!$C:$I,5,0)) -> 117250 | I58: =IF(ISERROR(VLOOKUP($E58,表B_RAW!$C:$I,6,0)),"",VLOOKUP($E58,表B_RAW!$C:$I,6,0)/100) -> 0.219 | J58: =IF(ISERROR(VLOOKUP($E58,表A_RAW!$C:$I,5,0)),"",VLOOKUP($E58,表A_RAW!$C:$I,5,0)) -> 125580 | K58: =IF(ISERROR(VLOOKUP($E58,表A_RAW!$C:$I,7,0)),"",VLOOKUP($E58,表A_RAW!$C:$I,7,0)) -> 0.1381589425 | L58: =IF(ISERROR(VLOOKUP($E58,表C_RAW!$C:$I,4,0)),"",VLOOKUP($E58,表C_RAW!$C:$I,4,0)) -> 1604706 | M58: =IF(ISERROR(VLOOKUP($E58,表C_RAW!$C:$I,5,0)),"",VLOOKUP($E58,表C_RAW!$C:$I,5,0)) -> 1602756 | N58: =IF(ISERROR(VLOOKUP($E58,表C_RAW!$C:$I,6,0)),"",VLOOKUP($E58,表C_RAW!$C:$I,6,0)/100) -> 0.0012

Sheet 表A_RAW
D1: TSE新產業_名稱 | E1: TSE新產業_代碼 | F1: 單月營收(千元) | G1: 去年單月營收(千元) | H1: 本月較去年同期變動金額 | I1: 較去年同期變動比率(%) | J1: 產業位址 | K1: 產業家數 | L1: 排名(正向) | M1: 排名(反向) | N1: 排名(正向) | O1: 排名(反向) | P1: 產業營收 | Q1: 單月營收(千元) | R1: 去年單月營收(千元) | S1: 本月較去年同期變動金額 | T1: 較去年同期變動比率(%) | U1: 排名(正向) | V1: 排名(反向)
A2: 排名(正向) | B2: 排名(反向) | C2: 公司 | E2: 2023-10-31 | F2: 2023-10-31 | G2: 2023-10-31 | N2: =U2 -> 31 | O2: =V2 -> 4 | P2: 水泥工業 | Q2: =SUMIF($D:$D,$P2,F:F) -> 18163978 | R2: =SUMIF($D:$D,$P2,G:G) -> 20939529 | S2: =Q2-R2 -> -2775551 | T2: =S2/R2*100 -> -13.25507847 | U2: =RANK(T2,T:T) -> 31 | V2: =RANK(T2,T:T,1) -> 4
A3: =$D3&L3 -> 水泥工業7 | B3: =$D3&M3 -> 水泥工業1 | C3: 1101 台泥 | D3: 水泥工業 | E3: M1100 | F3: 9371746 | G3: 11368096 | H3: =F3-G3 -> -1996350 | I3: =IF(ISERROR((H3/G3)*100),"",(H3/G3)) -> -0.1756098823 | J3: =IF(E3="","",MATCH(E3,E:E,0)) -> 3 | K3: =COUNTIF(D:D,D3) -> 7 | L3: =IF(I3="","",RANK(I3,OFFSET(I$1,$J3-1,,$K3,),0)) -> 7 | M3: =IF(I3="","",RANK(I3,OFFSET(I$1,$J3-1,,$K3,),1)) -> 1 | N3: =U3 -> 8 | O3: =V3 -> 27 | P3: 食品工業 | Q3: =SUMIF($D:$D,$P3,F:F) -> 78367754 | R3: 72400564 | S3: =Q3-R3 -> 5967190 | T3: =S3/R3*100 -> 8.241910933 | U3: =RANK(T3,T:T) -> 8 | V3: 27
A4: 水泥工業6 | B4: 水泥工業2 | C4: 1102 亞泥 | D4: 水泥工業 | E4: M1100 | F4: 6706168 | G4: 7601097 | H4: =F4-G4 -> -894929 | I4: =IF(ISERROR((H4/G4)*100),"",(H4/G4)) -> -0.1177368214 | J4: =IF(E4="","",MATCH(E4,E:E,0)) -> 3 | K4: =COUNTIF(D:D,D4) -> 7 | L4: =IF(I4="","",RANK(I4,OFFSET(I$1,$J4-1,,$K4,),0)) -> 6 | M4: =IF(I4="","",RANK(I4,OFFSET(I$1,$J4-1,,$K4,),1)) -> 2 | N4: 20 | O4: 15 | P4: 塑膠工業 | Q4: 90008457 | R4: 94629589 | S4: -4621132 | T4: -4.88339012 | U4: 20 | V4: 15
A5: 水泥工業1 | B5: 水泥工業7 | C5: 1103 嘉泥 | D5: 水泥工業 | E5: M1100 | F5: 257343 | G5: 209429 | H5: 47914 | I5: 0.2287839793 | J5: 3 | K5: 7 | L5: =IF(I5="","",RANK(I5,OFFSET(I$1,$J5-1,,$K5,),0)) -> 1 | M5: 7 | N5: 19 | O5: 16 | P5: 紡織纖維 | Q5: 48047933 | R5: 50126853 | S5: -2078920 | T5: -4.147318005 | U5: 19 | V5: 16
A6: 水泥工業3 | B6: 水泥工業5 | C6: 1104 環泥 | D6: 水泥工業 | E6: M1100 | F6: 654514 | G6: 634981 | H6: 19533 | I6: 0.03076155035 | J6: 3 | K6: 7 | L6: 3 | M6: 5 | N6: 16 | O6: 19 | P6: 電機機械 | Q6: 39486255 | R6: 39232540 | S6: 253715 | T6: 0.6466953198 | U6: 16 | V6: 19
A7: 水泥工業2 | B7: 水泥工業6 | C7: 1108 幸福 | D7: 水泥工業 | E7: M1100 | F7: 451146 | G7: 401202 | H7: 49944 | I7: 0.1244859198 | J7: 3 | K7: 7 | L7: 2 | M7: 6 | N7: 12 | O7: 23 | P7: 電器電纜 | Q7: 22821303 | R7: 21770663 | S7: 1050640 | T7: 4.825943978 | U7: 12 | V7: 23
A8: 水泥工業4 | B8: 水泥工業4 | C8: 1109 信大 | D8: 水泥工業 | E8: M1100 | F8: 531941 | G8: 527209 | H8: 4732 | I8: 0.008975567564 | J8: 3 | K8: 7 | L8: 4 | M8: 4 | N8: 28 | O8: 7 | P8: 化學工業 | Q8: 24583148 | R8: 26745560 | S8: -2162412 | T8: -8.085125157 | U8: 28 | V8: 7
A9: 水泥工業5 | B9: 水泥工業3 | C9: 1110 東泥 | D9: 水泥工業 | E9: M1100 | F9: 191120 | G9: 197515 | H9: -6395 | I9: -0.0323772878 | J9: 3 | K9: 7 | L9: 5 | M9: 3 | N9: 15 | O9: 20 | P9: 生技醫療 | Q9: 23872262 | R9: 23639753 | S9: 232509 | T9: 0.9835508857 | U9: 15 | V9: 20
A10: 食品工業9 | B10: 食品工業21 | C10: 1201 味全 | D10: 食品工業 | E10: M1200 | F10: 1894929 | G10: 1719108 | H10: 175821 | I10: 0.1022745517 | J10: 10 | K10: 29 | L10: 9 | M10: 21 | N10: 7 | O10: 28 | P10: 玻璃陶瓷 | Q10: 5210970 | R10: 4782679 | S10: 428291 | T10: 8.955043815 | U10: 7 | V10: 28
A11: 食品工業18 | B11: 食品工業12 | C11: 1203 味王 | D11: 食品工業 | E11: M1200 | F11: 504360 | G11: 534997 | H11: -30637 | I11: -0.05726574168 | J11: 10 | K11: 29 | L11: 18 | M11: 12 | N11: 18 | O11: 17 | P11: 造紙工業 | Q11: 17505116 | R11: 18072879 | S11: -567763 | T11: -3.1415194 | U11: 18 | V11: 17
A12: 食品工業22 | B12: 食品工業8 | C12: 1210 大成 | D12: 食品工業 | E12: M1200 | F12: 8992288 | G12: 10031178 | H12: -1038890 | I12: -0.1035661016 | J12: 10 | K12: 29 | L12: 22 | M12: 8 | N12: 25 | O12: 10 | P12: 鋼鐵工業 | Q12: 81453996 | R12: 86432137 | S12: -4978141 | T12: -5.759594953 | U12: 25 | V12: 10
A13: 食品工業29 | B13: 食品工業1 | C13: 1213 大飲 | D13: 食品工業 | E13: M1200 | F13: 403 | G13: 30818 | H13: -30415 | I13: -0.9869232267 | J13: 10 | K13: 29 | L13: 29 | M13: 1 | N13: 22 | O13: 13 | P13: 橡膠工業 | Q13: 17109668 | R13: 18072507 | S13: -962839 | T13: -5.327644914 | U13: 22 | V13: 13
A14: 食品工業17 | B14: 食品工業13 | C14: 1215 卜蜂 | D14: 食品工業 | E14: M1200 | F14: 2382360 | G14: 2364883 | H14: 17477 | I14: 0.007390217613 | J14: 10 | K14: 29 | L14: 17 | M14: 13 | N14: 6 | O14: 29 | P14: 汽車工業 | Q14: 59484480 | R14: 54595143 | S14: 4889337 | T14: 8.955626327 | U14: 6 | V14: 29
A15: 食品工業6 | B15: 食品工業24 | C15: 1216 統一 | D15: 食品工業 | E15: M1200 | F15: 49801476 | G15: 42927337 | H15: 6874139 | I15: 0.1601342986 | J15: 10 | K15: 29 | L15: 6 | M15: 24 | N15: 11 | O15: 24 | P15: 半導體 | Q15: 496451438 | R15: 468285114 | S15: 28166324 | T15: 6.014780987 | U15: 11 | V15: 24
A16: 食品工業15 | B16: 食品工業15 | C16: 1217 愛之味 | D16: 食品工業 | E16: M1200 | F16: 323973 | G16: 316358 | H16: 7615 | I16: 0.02407083115 | J16: 10 | K16: 29 | L16: 15 | M16: 15 | N16: 17 | O16: 18 | P16: 電腦及週邊 | Q16: 663834657 | R16: 681947913 | S16: -18113256 | T16: -2.656105496 | U16: 17 | V16: 18
A17: 食品工業10 | B17: 食品工業20 | C17: 1218 泰山 | D17: 食品工業 | E17: M1200 | F17: 893674 | G17: 845561 | H17: 48113 | I17: 0.05690068487 | J17: 10 | K17: 29 | L17: 10 | M17: 20 | N17: 29 | O17: 6 | P17: 光電業 | Q17: 103927799 | R17: 113280016 | S17: -9352217 | T17: -8.255840112 | U17: 29 | V17: 6
A18: 食品工業23 | B18: 食品工業7 | C18: 1219 福壽 | D18: 食品工業 | E18: M1200 | F18: 1280865 | G18: 1443910 | H18: -163045 | I18: -0.1129190878 | J18: 10 | K18: 29 | L18: 23 | M18: 7 | N18: 24 | O18: 11 | P18: 通信網路業 | Q18: 99232579 | R18: 105016841 | S18: -5784262 | T18: -5.507937532 | U18: 24 | V18: 11
A19: 食品工業26 | B19: 食品工業4 | C19: 1220 台榮 | D19: 食品工業 | E19: M1200 | F19: 289053 | G19: 334007 | H19: -44954 | I19: -0.1345899936 | J19: 10 | K19: 29 | L19: 26 | M19: 4 | N19: 27 | O19: 8 | P19: 電子零組件 | Q19: 203953347 | R19: 220861509 | S19: -16908162 | T19: -7.655549433 | U19: 27 | V19: 8
A20: 食品工業19 | B20: 食品工業11 | C20: 1225 福懋油 | D20: 食品工業 | E20: M1200 | F20: 1212955 | G20: 1291928 | H20: -78973 | I20: -0.06112801952 | J20: 10 | K20: 29 | L20: 19 | M20: 11 | N20: 13 | O20: 22 | P20: 電子通路業 | Q20: 231872970 | R20: 223171977 | S20: =Q20-R20 -> 8700993 | T20: 3.898783851 | U20: 13 | V20: 22
A21: 食品工業20 | B21: 食品工業10 | C21: 1227 佳格 | D21: 食品工業 | E21: M1200 | F21: 2027434 | G21: 2182437 | H21: -155003 | I21: -0.0710228978 | J21: 10 | K21: 29 | L21: 20 | M21: 10 | N21: 23 | O21: 12 | P21: 資訊服務業 | Q21: 12322881 | R21: 13022675 | S21: -699794 | T21: -5.37365787 | U21: 23 | V21: 12
A22: 食品工業2 | B22: 食品工業28 | C22: 1229 聯華 | D22: 食品工業 | E22: M1200 | F22: 1200893 | G22: 908917 | H22: 291976 | I22: 0.3212350523 | J22: 10 | K22: 29 | L22: 2 | M22: 28 | N22: 21 | O22: 14 | P22: 其他電子業 | Q22: 811019212 | R22: 853377634 | S22: -42358422 | T22: -4.963619893 | U22: 21 | V22: 14
A23: 食品工業16 | B23: 食品工業14 | C23: 1231 聯華食 | D23: 食品工業 | E23: M1200 | F23: 874442 | G23: 866871 | H23: 7571 | I23: 0.008733710091 | J23: 10 | K23: 29 | L23: 16 | M23: 14 | N23: 9 | O23: 26 | P23: 綠能環保 | Q23: 5973543 | R23: 5527280 | S23: 446263 | T23: 8.073826548 | U23: 9 | V23: 26
A24: 食品工業25 | B24: 食品工業5 | C24: 1232 大統益 | D24: 食品工業 | E24: M1200 | F24: 1922344 | G24: 2198870 | H24: -276526 | I24: -0.1257582304 | J24: 10 | K24: 29 | L24: 25 | M24: 5 | N24: 14 | O24: 21 | P24: 數位雲端 | Q24: 14951768 | R24: 14554245 | S24: 397523 | T24: 2.731319969 | U24: 14 | V24: 21
A25: 食品工業5 | B25: 食品工業25 | C25: 1233 天仁 | D25: 食品工業 | E25: M1200 | F25: 175783 | G25: 149886 | H25: 25897 | I25: 0.1727779779 | J25: 10 | K25: 29 | L25: 5 | M25: 25 | N25: 3 | O25: 32 | P25: 建材營造 | Q25: 49335779 | R25: 37510515 | S25: 11825264 | T25: 31.52519767 | U25: 3 | V25: 32
A26: 食品工業4 | B26: 食品工業26 | C26: 1234 黑松 | D26: 食品工業 | E26: M1200 | F26: 960839 | G26: 817431 | H26: 143408 | I26: 0.1754374375 | J26: 10 | K26: 29 | L26: 4 | M26: 26 | N26: 34 | O26: 1 | P26: 航運業 | Q26: 99733223 | R26: 134471327 | S26: -34738104 | T26: -25.83309377 | U26: 34 | V26: 1
A27: 食品工業14 | B27: 食品工業16 | C27: 1235 興泰 | D27: 食品工業 | E27: M1200 | F27: 3323 | G27: 3211 | H27: 112 | I27: 0.03488009966 | J27: 10 | K27: 29 | L27: 14 | M27: 16 | N27: 1 | O27: 34 | P27: 觀光餐旅 | Q27: 14208531 | R27: 9552422 | S27: 4656109 | T27: 48.7427063 | U27: 1 | V27: 34
A28: 食品工業21 | B28: 食品工業9 | C28: 1236 宏亞 | D28: 食品工業 | E28: M1200 | F28: 125408 | G28: 137410 | H28: -12002 | I28: -0.08734444364 | J28: 10 | K28: 29 | L28: 21 | M28: 9 | N28: 2 | O28: 33 | P28: 金融業 | Q28: 123151746 | R28: 88045940 | S28: 35105806 | T28: 39.87214629 | U28: 2 | V28: 33
A29: 食品工業1 | B29: 食品工業29 | C29: 1256 鮮活果汁-KY | D29: 食品工業 | E29: M1200 | F29: 222574 | G29: 142872 | H29: 79702 | I29: 0.557855983 | J29: 10 | K29: 29 | L29: 1 | M29: 29 | N29: 30 | O29: 5 | P29: 貿易百貨 | Q29: 49954836 | R29: 54882105 | S29: -4927269 | T29: -8.977915479 | U29: 30 | V29: 5
A30: 食品工業13 | B30: 食品工業17 | C30: 1264 德麥 | D30: 食品工業 | E30: M1200 | F30: 458599 | G30: 437074 | H30: 21525 | I30: 0.04924795344 | J30: 10 | K30: 29 | L30: 13 | M30: 17 | N30: =U30 -> 5 | O30: =V30 -> 30 | P30: 文化創意業 | Q30: =SUMIF($D:$D,$P30,F:F) -> 4126098 | R30: =SUMIF($D:$D,$P30,G:G) -> 3763330 | S30: =Q30-R30 -> 362768 | T30: =S30/R30*100 -> 9.639547954 | U30: =RANK(T30,T:T) -> 5 | V30: =RANK(T30,T:T,1) -> 30
A31: 食品工業11 | B31: 食品工業19 | C31: 1702 南僑 | D31: 食品工業 | E31: M1200 | F31: 1808824 | G31: 1720526 | H31: 88298 | I31: 0.05132035203 | J31: 10 | K31: 29 | L31: 11 | M31: 19 | N31: 33 | O31: 2 | P31: 農業科技 | Q31: 399370 | R31: 515463 | S31: -116093 | T31: -22.52208209 | U31: 33 | V31: 2
A32: 食品工業24 | B32: 食品工業6 | C32: 1737 臺鹽 | D32: 食品工業 | E32: M1200 | F32: 264995 | G32: 300649 | H32: -35654 | I32: -0.1185901167 | J32: 10 | K32: 29 | L32: 24 | M32: 6 | N32: 32 | O32: 3 | P32: 運動休閒 | Q32: 48089159 | R32: 60764554 | S32: -12675395 | T32: -20.8598503 | U32: 32 | V32: 3
A33: 食品工業8 | B33: 食品工業22 | C33: 1796 金穎生技 | D33: 食品工業 | E33: M1200 | F33: 61530 | G33: 55803 | H33: 5727 | I33: 0.1026288909 | J33: 10 | K33: 29 | L33: 8 | M33: 22 | N33: 10 | O33: 25 | P33: 居家生活 | Q33: 21632836 | R33: 20337834 | S33: 1295002 | T33: 6.367452896 | U33: 10 | V33: 25
A34: 食品工業3 | B34: 食品工業27 | C34: 3054 立萬利 | D34: 食品工業 | E34: M1200 | F34: 3849 | G34: 3192 | H34: 657 | I34: 0.2058270677 | J34: 10 | K34: 29 | L34: 3 | M34: 27 | N34: 26 | O34: 9 | P34: 油電燃氣業 | Q34: 71033832 | R34: 75956562 | S34: -4922730 | T34: -6.480980537 | U34: 26 | V34: 9
A35: 食品工業12 | B35: 食品工業18 | C35: 4205 中華食 | D35: 食品工業 | E35: M1200 | F35: 167832 | G35: 159746 | H35: 8086 | I35: 0.05061785585 | J35: 10 | K35: 29 | L35: 12 | M35: 18 | N35: 4 | O35: 31 | P35: 其他 | Q35: 52685312 | R35: 44510266 | S35: 8175046 | T35: 18.36665276 | U35: 4 | V35: 31
A36: 食品工業7 | B36: 食品工業23 | C36: 4207 環泰 | D36: 食品工業 | E36: M1200 | F36: 457587 | G36: 410617 | H36: 46970 | I36: 0.1143888344 | J36: 10 | K36: 29 | L36: 7 | M36: 23 | N36: 0 | O36: 0
A37: 食品工業28 | B37: 食品工業2 | C37: 4712 南璋 | D37: 食品工業 | E37: M1200 | F37: 20 | G37: 1221 | H37: -1201 | I37: -0.9836199836 | J37: 10 | K37: 29 | L37: 28 | M37: 2 | N37: 0 | O37: 0
A38: 食品工業27 | B38: 食品工業3 | C38: 6846 綠茵 | D38: 食品工業 | E38: M1200 | F38: 55142 | G38: 63746 | H38: -8604 | I38: -0.1349731748 | J38: 10 | K38: 29 | L38: 27 | M38: 3 | N38: 0 | O38: 0
A39: 塑膠工業15 | B39: 塑膠工業11 | C39: 1301 台塑 | D39: 塑膠工業 | E39: M1300 | F39: 16306347 | G39: 17040281 | H39: -733934 | I39: -0.04307053387 | J39: 39 | K39: 25 | L39: 15 | M39: 11 | N39: 0 | O39: 0
A40: 塑膠工業20 | B40: 塑膠工業6 | C40: 1303 南亞 | D40: 塑膠工業 | E40: M1300 | F40: 21722488 | G40: 26628431 | H40: -4905943 | I40: -0.1842370285 | J40: 39 | K40: 25 | L40: 20 | M40: 6 | N40: 0 | O40: 0
A41: 塑膠工業19 | B41: 塑膠工業7 | C41: 1304 台聚 | D41: 塑膠工業 | E41: M1300 | F41: 4296205 | G41: 5068232 | H41: -772027 | I41: -0.1523266891 | J41: 39 | K41: 25 | L41: 19 | M41: 7 | N41: 0 | O41: 0
A42: 塑膠工業14 | B42: 塑膠工業12 | C42: 1305 華夏 | D42: 塑膠工業 | E42: M1300 | F42: 1046806 | G42: 1086250 | H42: -39444 | I42: -0.03631208285 | J42: 39 | K42: 25 | L42: 14 | M42: 12 | N42: 0 | O42: 0
A43: 塑膠工業11 | B43: 塑膠工業15 | C43: 1307 三芳 | D43: 塑膠工業 | E43: M1300 | F43: 837011 | G43: 816520 | H43: 20491 | I43: 0.02509552736 | J43: 39 | K43: 25 | L43: 11 | M43: 15 | N43: 0 | O43: 0
A44: 塑膠工業23 | B44: 塑膠工業3 | C44: 1308 亞聚 | D44: 塑膠工業 | E44: M1300 | F44: 538938 | G44: 879815 | H44: -340877 | I44: -0.3874416781 | J44: 39 | K44: 25 | L44: 23 | M44: 3 | N44: 0 | O44: 0
A45: 塑膠工業10 | B45: 塑膠工業16 | C45: 1309 台達化 | D45: 塑膠工業 | E45: M1300 | F45: 1451953 | G45: 1299689 | H45: 152264 | I45: 0.1171541807 | J45: 39 | K45: 25 | L45: 10 | M45: 16 | N45: 0 | O45: 0
A46: 塑膠工業9 | B46: 塑膠工業17 | C46: 1310 台苯 | D46: 塑膠工業 | E46: M1300 | F46: 891484 | G46: 765461 | H46: 126023 | I46: 0.1646367352 | J46: 39 | K46: 25 | L46: 9 | M46: 17 | N46: 0 | O46: 0
A47: 塑膠工業16 | B47: 塑膠工業10 | C47: 1312 國喬 | D47: 塑膠工業 | E47: M1300 | F47: 1298379 | G47: 1387943 | H47: -89564 | I47: -0.06453002753 | J47: 39 | K47: 25 | L47: 16 | M47: 10 | N47: 0 | O47: 0
A48: 塑膠工業6 | B48: 塑膠工業20 | C48: 1313 聯成 | D48: 塑膠工業 | E48: M1300 | F48: 6323633 | G48: 5073138 | H48: 1250495 | I48: 0.2464933932 | J48: 39 | K48: 25 | L48: 6 | M48: 20 | N48: 0 | O48: 0
A49: 塑膠工業3 | B49: 塑膠工業23 | C49: 1314 中石化 | D49: 塑膠工業 | E49: M1300 | F49: 2237466 | G49: 1455340 | H49: 782126 | I49: 0.5374180604 | J49: 39 | K49: 25 | L49: 3 | M49: 23 | N49: 0 | O49: 0
A50: 塑膠工業22 | B50: 塑膠工業4 | C50: 1315 達新 | D50: 塑膠工業 | E50: M1300 | F50: 136905 | G50: 210962 | H50: -74057 | I50: -0.3510442639 | J50: 39 | K50: 25 | L50: 22 | M50: 4 | N50: 0 | O50: 0
A51: 塑膠工業21 | B51: 塑膠工業5 | C51: 1321 大洋 | D51: 塑膠工業 | E51: M1300 | F51: 321339 | G51: 428190 | H51: -106851 | I51: -0.2495410916 | J51: 39 | K51: 25 | L51: 21 | M51: 5 | N51: 0 | O51: 0
A52: 塑膠工業18 | B52: 塑膠工業8 | C52: 1323 永裕 | D52: 塑膠工業 | E52: M1300 | F52: 283758 | G52: 319037 | H52: -35279 | I52: -0.1105796506 | J52: 39 | K52: 25 | L52: 18 | M52: 8 | N52: 0 | O52: 0
A53: 塑膠工業7 | B53: 塑膠工業19 | C53: 1324 地球 | D53: 塑膠工業 | E53: M1300 | F53: 90322 | G53: 72801 | H53: 17521 | I53: 0.240669771 | J53: 39 | K53: 25 | L53: 7 | M53: 19 | N53: 0 | O53: 0
A54: 塑膠工業17 | B54: 塑膠工業9 | C54: 1325 恒大 | D54: 塑膠工業 | E54: M1300 | F54: 30260 | G54: 33874 | H54: -3614 | I54: -0.1066894964 | J54: 39 | K54: 25 | L54: 17 | M54: 9 | N54: 0 | O54: 0
A55: 塑膠工業13 | B55: 塑膠工業13 | C55: 1326 台化 | D55: 塑膠工業 | E55: M1300 | F55: 30166153 | G55: 30444806 | H55: -278653 | I55: -0.009152727069 | J55: 39 | K55: 25 | L55: 13 | M55: 13 | N55: 0 | O55: 0
A56: 塑膠工業2 | B56: 塑膠工業24 | C56: 1337 再生-KY | D56: 塑膠工業 | E56: M1300 | F56: 75105 | G56: 48082 | H56: 27023 | I56: 0.5620190508 | J56: 39 | K56: 25 | L56: 2 | M56: 24 | N56: 0 | O56: 0
A57: 塑膠工業4 | B57: 塑膠工業22 | C57: 1340 勝悅-KY | D57: 塑膠工業 | E57: M1300 | F57: 59538 | G57: 41769 | H57: 17769 | I57: 0.4254111901 | J57: 39 | K57: 25 | L57: 4 | M57: 22 | N57: 0 | O57: 0
A58: 塑膠工業12 | B58: 塑膠工業14 | C58: 1341 富林-KY | D58: 塑膠工業 | E58: M1300 | F58: 227573 | G58: 223036 | H58: 4537 | I58: 0.02034200757 | J58: 39 | K58: 25 | L58: 12 | M58: 14 | N58: 0 | O58: 0
A59: 塑膠工業25 | B59: 塑膠工業1 | C59: 4303 信立 | D59: 塑膠工業 | E59: M1300 | F59: 9079 | G59: 18605 | H59: -9526 | I59: -0.5120128998 | J59: 39 | K59: 25 | L59: 25 | M59: 1 | N59: 0 | O59: 0
A60: 塑膠工業24 | B60: 塑膠工業2 | C60: 4304 勝昱 | D60: 塑膠工業 | E60: M1300 | F60: 22405 | G60: 39203 | H60: -16798 | I60: -0.4284876157 | J60: 39 | K60: 25 | L60: 24 | M60: 2 | N60: 0 | O60: 0
A61: 塑膠工業5 | B61: 塑膠工業21 | C61: 4305 世坤 | D61: 塑膠工業 | E61: M1300 | F61: 88701 | G61: 66315 | H61: 22386 | I61: 0.3375706854 | J61: 39 | K61: 25 | L61: 5 | M61: 21 | N61: 0 | O61: 0
A62: 塑膠工業8 | B62: 塑膠工業18 | C62: 4306 炎洲 | D62: 塑膠工業 | E62: M1300 | F62: 1309994 | G62: 1067287 | H62: 242707 | I62: 0.227405562 | J62: 39 | K62: 25 | L62: 8 | M62: 18 | N62: 0 | O62: 0
A63: 塑膠工業1 | B63: 塑膠工業25 | C63: 9950 萬國通 | D63: 塑膠工業 | E63: M1300 | F63: 236615 | G63: 114522 | H63: 122093 | I63: 1.066109568 | J63: 39 | K63: 25 | L63: 1 | M63: 25 | N63: 0 | O63: 0
A64: 紡織纖維15 | B64: 紡織纖維38 | C64: 1402 遠東新 | D64: 紡織纖維 | E64: M1400 | F64: 22437543 | G64: 22391824 | H64: 45719 | I64: 0.002041772033 | J64: 64 | K64: 52 | L64: 15 | M64: 38 | N64: 0 | O64: 0
A65: 紡織纖維25 | B65: 紡織纖維28 | C65: 1409 新纖 | D65: 紡織纖維 | E65: M1400 | F65: 3253929 | G65: 3487325 | H65: -233396 | I65: -0.06692694257 | J65: 64 | K65: 52 | L65: 25 | M65: 28 | N65: 0 | O65: 0
A66: 紡織纖維49 | B66: 紡織纖維4 | C66: 1410 南染 | D66: 紡織纖維 | E66: M1400 | F66: 18540 | G66: 35487 | H66: -16947 | I66: -0.477555161 | J66: 64 | K66: 52 | L66: 49 | M66: 4 | N66: 0 | O66: 0
A67: =$D67&L67 -> 紡織纖維27 | B67: =$D67&M67 -> 紡織纖維26 | C67: 1413 宏洲 | D67: 紡織纖維 | E67: M1400 | F67: 222728 | G67: 245129 | H67: -22401 | I67: -0.09138453631 | J67: =IF(E67="","",MATCH(E67,E:E,0)) -> 64 | K67: =COUNTIF(D:D,D67) -> 52 | L67: 27 | M67: 26 | N67: 0 | O67: 0
A68: 紡織纖維17 | B68: 紡織纖維36 | C68: 1414 東和 | D68: 紡織纖維 | E68: M1400 | F68: 46067 | G68: 46849 | H68: =F68-G68 -> -782 | I68: =IF(ISERROR((H68/G68)*100),"",(H68/G68)) -> -0.01669192512 | J68: 64 | K68: 52 | L68: =IF(I68="","",RANK(I68,OFFSET(I$1,$J68-1,,$K68,),0)) -> 17 | M68: =IF(I68="","",RANK(I68,OFFSET(I$1,$J68-1,,$K68,),1)) -> 36 | N68: 0 | O68: 0
A69: 紡織纖維31 | B69: 紡織纖維22 | C69: 1417 嘉裕 | D69: 紡織纖維 | E69: M1400 | F69: 112364 | G69: 137357 | H69: -24993 | I69: -0.1819565075 | J69: 64 | K69: 52 | L69: 31 | M69: 22 | N69: 0 | O69: 0
A70: 紡織纖維52 | B70: 紡織纖維1 | C70: 1418 東華 | D70: 紡織纖維 | E70: M1400 | F70: 258 | G70: 1761 | H70: -1503 | I70: -0.8534923339 | J70: 64 | K70: 52 | L70: 52 | M70: 1 | N70: 0 | O70: 0
A71: 紡織纖維26 | B71: 紡織纖維27 | C71: 1419 新紡 | D71: 紡織纖維 | E71: M1400 | F71: 327793 | G71: 357743 | H71: -29950 | I71: -0.08371931806 | J71: 64 | K71: 52 | L71: 26 | M71: 27 | N71: 0 | O71: 0
A72: 紡織纖維11 | B72: 紡織纖維42 | C72: 1423 利華 | D72: 紡織纖維 | E72: M1400 | F72: 9973 | G72: 9328 | H72: 645 | I72: 0.06914665523 | J72: 64 | K72: 52 | L72: 11 | M72: 42 | N72: 0 | O72: 0
A73: 紡織纖維28 | B73: 紡織纖維25 | C73: 1434 福懋 | D73: 紡織纖維 | E73: M1400 | F73: 2217809 | G73: 2626721 | H73: -408912 | I73: -0.1556739372 | J73: 64 | K73: 52 | L73: 28 | M73: 25 | N73: 0 | O73: 0
A74: 紡織纖維24 | B74: 紡織纖維29 | C74: 1440 南紡 | D74: 紡織纖維 | E74: M1400 | F74: 1749050 | G74: 1870857 | H74: -121807 | I74: -0.06510759508 | J74: 64 | K74: 52 | L74: 24 | M74: 29 | N74: 0 | O74: 0
A75: 紡織纖維9 | B75: 紡織纖維44 | C75: 1441 大東 | D75: 紡織纖維 | E75: M1400 | F75: 133170 | G75: 116047 | H75: 17123 | I75: 0.1475522849 | J75: 64 | K75: 52 | L75: 9 | M75: 44 | N75: 0 | O75: 0
A76: 紡織纖維44 | B76: 紡織纖維9 | C76: 1444 力麗 | D76: 紡織纖維 | E76: M1400 | F76: 535533 | G76: 853767 | H76: -318234 | I76: -0.3727410406 | J76: 64 | K76: 52 | L76: 44 | M76: 9 | N76: 0 | O76: 0
A77: 紡織纖維36 | B77: 紡織纖維17 | C77: 1445 大宇 | D77: 紡織纖維 | E77: M1400 | F77: 105406 | G77: 135940 | H77: -30534 | I77: -0.2246138002 | J77: 64 | K77: 52 | L77: 36 | M77: 17 | N77: 0 | O77: 0
A78: 紡織纖維45 | B78: 紡織纖維8 | C78: 1446 宏和 | D78: 紡織纖維 | E78: M1400 | F78: 10093 | G78: 16767 | H78: -6674 | I78: -0.3980437765 | J78: 64 | K78: 52 | L78: 45 | M78: 8 | N78: 0 | O78: 0
A79: 紡織纖維19 | B79: 紡織纖維34 | C79: 1447 力鵬 | D79: 紡織纖維 | E79: M1400 | F79: 2627957 | G79: 2721596 | H79: -93639 | I79: -0.03440591476 | J79: 64 | K79: 52 | L79: 19 | M79: 34 | N79: 0 | O79: 0
A80: 紡織纖維8 | B80: 紡織纖維45 | C80: 1449 佳和 | D80: 紡織纖維 | E80: M1400 | F80: 239989 | G80: 200910 | H80: 39079 | I80: 0.1945099796 | J80: 64 | K80: 52 | L80: 8 | M80: 45 | N80: 0 | O80: 0
A81: 紡織纖維48 | B81: 紡織纖維5 | C81: 1451 年興 | D81: 紡織纖維 | E81: M1400 | F81: 353359 | G81: 642537 | H81: -289178 | I81: -0.4500565726 | J81: 64 | K81: 52 | L81: 48 | M81: 5 | N81: 0 | O81: 0
A82: 紡織纖維22 | B82: 紡織纖維31 | C82: 1452 宏益 | D82: 紡織纖維 | E82: M1400 | F82: 117060 | G82: 124496 | H82: -7436 | I82: -0.05972882663 | J82: 64 | K82: 52 | L82: 22 | M82: 31 | N82: 0 | O82: 0
A83: 紡織纖維23 | B83: 紡織纖維30 | C83: 1454 台富 | D83: 紡織纖維 | E83: M1400 | F83: 117788 | G83: 125290 | H83: -7502 | I83: -0.05987708516 | J83: 64 | K83: 52 | L83: 23 | M83: 30 | N83: 0 | O83: 0
A84: 紡織纖維6 | B84: 紡織纖維47 | C84: 1455 集盛 | D84: 紡織纖維 | E84: M1400 | F84: 759281 | G84: 624203 | H84: 135078 | I84: 0.2164007542 | J84: 64 | K84: 52 | L84: 6 | M84: 47 | N84: 0 | O84: 0
A85: 紡織纖維30 | B85: 紡織纖維23 | C85: 1457 宜進 | D85: 紡織纖維 | E85: M1400 | F85: 297085 | G85: 359933 | H85: -62848 | I85: -0.1746102747 | J85: 64 | K85: 52 | L85: 30 | M85: 23 | N85: 0 | O85: 0
A86: 紡織纖維2 | B86: 紡織纖維51 | C86: 1459 聯發 | D86: 紡織纖維 | E86: M1400 | F86: 148718 | G86: 97027 | H86: 51691 | I86: 0.5327486164 | J86: 64 | K86: 52 | L86: 2 | M86: 51 | N86: 0 | O86: 0
A87: 紡織纖維10 | B87: 紡織纖維43 | C87: 1460 宏遠 | D87: 紡織纖維 | E87: M1400 | F87: 750216 | G87: 692200 | H87: 58016 | I87: 0.08381392661 | J87: 64 | K87: 52 | L87: 10 | M87: 43 | N87: 0 | O87: 0
A88: 紡織纖維41 | B88: 紡織纖維12 | C88: 1463 強盛 | D88: 紡織纖維 | E88: M1400 | F88: 30055 | G88: 44495 | H88: -14440 | I88: -0.3245308462 | J88: 64 | K88: 52 | L88: 41 | M88: 12 | N88: 0 | O88: 0
A89: 紡織纖維29 | B89: 紡織纖維24 | C89: 1464 得力 | D89: 紡織纖維 | E89: M1400 | F89: 857638 | G89: 1036980 | H89: -179342 | I89: -0.1729464406 | J89: 64 | K89: 52 | L89: 29 | M89: 24 | N89: 0 | O89: 0
A90: 紡織纖維50 | B90: 紡織纖維3 | C90: 1465 偉全 | D90: 紡織纖維 | E90: M1400 | F90: 31064 | G90: 75030 | H90: -43966 | I90: -0.5859789418 | J90: 64 | K90: 52 | L90: 50 | M90: 3 | N90: 0 | O90: 0
A91: 紡織纖維3 | B91: 紡織纖維50 | C91: 1466 聚隆 | D91: 紡織纖維 | E91: M1400 | F91: 243687 | G91: 161181 | H91: 82506 | I91: 0.5118841551 | J91: 64 | K91: 52 | L91: 3 | M91: 50 | N91: 0 | O91: 0
A92: 紡織纖維33 | B92: 紡織纖維20 | C92: 1467 南緯 | D92: 紡織纖維 | E92: M1400 | F92: 336060 | G92: 421799 | H92: -85739 | I92: -0.2032698039 | J92: 64 | K92: 52 | L92: 33 | M92: 20 | N92: 0 | O92: 0
A93: 紡織纖維40 | B93: 紡織纖維13 | C93: 1468 昶和 | D93: 紡織纖維 | E93: M1400 | F93: 69010 | G93: 96725 | H93: -27715 | I93: -0.2865339881 | J93: 64 | K93: 52 | L93: 40 | M93: 13 | N93: 0 | O93: 0
A94: 紡織纖維21 | B94: 紡織纖維32 | C94: 1470 大統新創 | D94: 紡織纖維 | E94: M1400 | F94: 44711 | G94: 47546 | H94: -2835 | I94: -0.059626467 | J94: 64 | K94: 52 | L94: 21 | M94: 32 | N94: =U94 -> 0 | O94: =V94 -> 0
A95: 紡織纖維35 | B95: 紡織纖維18 | C95: 1473 台南 | D95: 紡織纖維 | E95: M1400 | F95: 401621 | G95: 514145 | H95: -112524 | I95: -0.2188565483 | J95: 64 | K95: 52 | L95: 35 | M95: 18 | N95: 0 | O95: 0
A96: 紡織纖維16 | B96: 紡織纖維37 | C96: 1474 弘裕 | D96: 紡織纖維 | E96: M1400 | F96: 223492 | G96: 223226 | H96: 266 | I96: 0.001191617464 | J96: 64 | K96: 52 | L96: 16 | M96: 37 | N96: 0 | O96: 0
A97: 紡織纖維14 | B97: 紡織纖維39 | C97: 1475 業旺 | D97: 紡織纖維 | E97: M1400 | F97: 107714 | G97: 106418 | H97: 1296 | I97: 0.01217839087 | J97: 64 | K97: 52 | L97: 14 | M97: 39 | N97: 0 | O97: 0
A98: 紡織纖維5 | B98: 紡織纖維48 | C98: 1476 儒鴻 | D98: 紡織纖維 | E98: M1400 | F98: 2856878 | G98: 2255613 | H98: 601265 | I98: 0.2665639008 | J98: 64 | K98: 52 | L98: 5 | M98: 48 | N98: 0 | O98: 0
A99: 紡織纖維12 | B99: 紡織纖維41 | C99: 1477 聚陽 | D99: 紡織纖維 | E99: M1400 | F99: 2477334 | G99: 2431827 | H99: 45507 | I99: 0.01871309102 | J99: 64 | K99: 52 | L99: 12 | M99: 41 | N99: 0 | O99: 0
A100: 紡織纖維4 | B100: 紡織纖維49 | C100: 4401 東隆興 | D100: 紡織纖維 | E100: M1400 | F100: 308957 | G100: 241311 | H100: 67646 | I100: 0.2803270468 | J100: 64 | K100: 52 | L100: 4 | M100: 49 | N100: 0 | O100: 0
A101: 紡織纖維32 | B101: 紡織纖維21 | C101: 4402 福大 | D101: 紡織纖維 | E101: M1400 | F101: 10943 | G101: 13668 | H101: -2725 | I101: -0.1993707931 | J101: 64 | K101: 52 | L101: 32 | M101: 21 | N101: 0 | O101: 0
A102: 紡織纖維47 | B102: 紡織纖維6 | C102: 4406 新昕纖 | D102: 紡織纖維 | E102: M1400 | F102: 29335 | G102: 52462 | H102: -23127 | I102: -0.4408333651 | J102: 64 | K102: 52 | L102: 47 | M102: 6 | N102: 0 | O102: 0
A103: 紡織纖維46 | B103: 紡織纖維7 | C103: 4413 飛寶企業 | D103: 紡織纖維 | E103: M1400 | F103: 39500 | G103: 70081 | H103: -30581 | I103: -0.4363664902 | J103: 64 | K103: 52 | L103: 46 | M103: 7 | N103: 0 | O103: 0
A104: 紡織纖維37 | B104: 紡織纖維16 | C104: 4414 如興 | D104: 紡織纖維 | E104: M1400 | F104: 1027454 | G104: 1377205 | H104: -349751 | I104: -0.2539571088 | J104: 64 | K104: 52 | L104: 37 | M104: 16 | N104: 0 | O104: 0
A105: 紡織纖維42 | B105: 紡織纖維11 | C105: 4417 金洲 | D105: 紡織纖維 | E105: M1400 | F105: 238283 | G105: 354165 | H105: -115882 | I105: -0.327197775 | J105: 64 | K105: 52 | L105: 42 | M105: 11 | N105: 0 | O105: 0
A106: 紡織纖維1 | B106: 紡織纖維52 | C106: 4419 元勝 | D106: 紡織纖維 | E106: M1400 | F106: 30123 | G106: 18674 | H106: 11449 | I106: 0.6130984256 | J106: 64 | K106: 52 | L106: 1 | M106: 52 | N106: 0 | O106: 0
A107: 紡織纖維39 | B107: 紡織纖維14 | C107: 4420 光明 | D107: 紡織纖維 | E107: M1400 | F107: 58466 | G107: 80768 | H107: -22302 | I107: -0.2761242076 | J107: 64 | K107: 52 | L107: 39 | M107: 14 | N107: 0 | O107: 0
A108: 紡織纖維34 | B108: 紡織纖維19 | C108: 4426 利勤 | D108: 紡織纖維 | E108: M1400 | F108: 97965 | G108: 123776 | H108: -25811 | I108: -0.208529925 | J108: 64 | K108: 52 | L108: 34 | M108: 19 | N108: 0 | O108: 0
A109: 紡織纖維51 | B109: 紡織纖維2 | C109: 4432 銘旺實 | D109: 紡織纖維 | E109: M1400 | F109: 38463 | G109: 102544 | H109: -64081 | I109: -0.6249122328 | J109: 64 | K109: 52 | L109: 51 | M109: 2 | N109: 0 | O109: 0
A110: 紡織纖維18 | B110: 紡織纖維35 | C110: 4433 興采 | D110: 紡織纖維 | E110: M1400 | F110: 201623 | G110: 207634 | H110: -6011 | I110: -0.02894997929 | J110: 64 | K110: 52 | L110: 18 | M110: 35 | N110: 0 | O110: 0
A111: 紡織纖維38 | B111: 紡織纖維15 | C111: 4438 廣越 | D111: 紡織纖維 | E111: M1400 | F111: 1113161 | G111: 1521658 | H111: -408497 | I111: -0.2684551982 | J111: 64 | K111: 52 | L111: 38 | M111: 15 | N111: 0 | O111: 0
A112: 紡織纖維20 | B112: 紡織纖維33 | C112: 4439 冠星-KY | D112: 紡織纖維 | E112: M1400 | F112: 312770 | G112: 330004 | H112: -17234 | I112: -0.05222360941 | J112: 64 | K112: 52 | L112: 20 | M112: 33 | N112: 0 | O112: 0
A113: 紡織纖維43 | B113: 紡織纖維10 | C113: 4440 宜新實業 | D113: 紡織纖維 | E113: M1400 | F113: 73576 | G113: 115040 | H113: -41464 | I113: -0.3604311544 | J113: 64 | K113: 52 | L113: 43 | M113: 10 | N113: 0 | O113: 0
A114: 紡織纖維7 | B114: 紡織纖維46 | C114: 4442 竣邦國際 | D114: 紡織纖維 | E114: M1400 | F114: 74938 | G114: 62283 | H114: 12655 | I114: 0.2031854599 | J114: 64 | K114: 52 | L114: 7 | M114: 46 | N114: 0 | O114: 0
A115: 紡織纖維13 | B115: 紡織纖維40 | C115: 6506 雙邦 | D115: 紡織纖維 | E115: M1400 | F115: 121403 | G115: 119501 | H115: 1902 | I115: 0.0159161848 | J115: 64 | K115: 52 | L115: 13 | M115: 40 | N115: 0 | O115: 0
A116: 電機機械56 | B116: 電機機械40 | C116: 1503 士電 | D116: 電機機械 | E116: M1500 | F116: 2343233 | G116: 2581368 | H116: -238135 | I116: -0.09225147286 | J116: 116 | K116: 95 | L116: 56 | M116: 40 | N116: 0 | O116: 0
A117: 電機機械47 | B117: 電機機械49 | C117: 1504 東元 | D117: 電機機械 | E117: M1500 | F117: 4664515 | G117: 4733008 | H117: -68493 | I117: -0.01447134676 | J117: 116 | K117: 95 | L117: 47 | M117: 49 | N117: 0 | O117: 0
A118: 電機機械51 | B118: 電機機械45 | C118: 1506 正道 | D118: 電機機械 | E118: M1500 | F118: 94325 | G118: 98107 | H118: -3782 | I118: -0.03854974671 | J118: 116 | K118: 95 | L118: 51 | M118: 45 | N118: 0 | O118: 0
A119: 電機機械18 | B119: 電機機械78 | C119: 1513 中興電 | D119: 電機機械 | E119: M1500 | F119: 2005685 | G119: 1632622 | H119: 373063 | I119: 0.2285054348 | J119: 116 | K119: 95 | L119: 18 | M119: 78 | N119: 0 | O119: 0
A120: 電機機械26 | B120: 電機機械70 | C120: 1514 亞力 | D120: 電機機械 | E120: M1500 | F120: 938539 | G120: 800822 | H120: 137717 | I120: 0.1719695513 | J120: 116 | K120: 95 | L120: 26 | M120: 70 | N120: 0 | O120: 0
A121: 電機機械2 | B121: 電機機械94 | C121: 1515 力山 | D121: 電機機械 | E121: M1500 | F121: 876716 | G121: 221008 | H121: 655708 | I121: 2.966897126 | J121: 116 | K121: 95 | L121: 2 | M121: 94 | N121: 0 | O121: 0
A122: 電機機械94 | B122: 電機機械2 | C122: 1517 利奇 | D122: 電機機械 | E122: M1500 | F122: 118924 | G122: 322574 | H122: -203650 | I122: -0.6313280054 | J122: 116 | K122: 95 | L122: 94 | M122: 2 | N122: 0 | O122: 0
A123: 電機機械4 | B123: 電機機械92 | C123: 1519 華城 | D123: 電機機械 | E123: M1500 | F123: 1345186 | G123: 558201 | H123: 786985 | I123: 1.409859531 | J123: 116 | K123: 95 | L123: 4 | M123: 92 | N123: 0 | O123: 0
A124: 電機機械93 | B124: 電機機械3 | C124: 1526 日馳 | D124: 電機機械 | E124: M1500 | F124: 56934 | G124: 153303 | H124: -96369 | I124: -0.6286178353 | J124: 116 | K124: 95 | L124: 93 | M124: 3 | N124: 0 | O124: 0
A125: 電機機械52 | B125: 電機機械44 | C125: 1527 鑽全 | D125: 電機機械 | E125: M1500 | F125: 200496 | G125: 209171 | H125: -8675 | I125: -0.04147324438 | J125: 116 | K125: 95 | L125: 52 | M125: 44 | N125: 0 | O125: 0
A126: 電機機械33 | B126: 電機機械63 | C126: 1528 恩德 | D126: 電機機械 | E126: M1500 | F126: 365141 | G126: 326923 | H126: 38218 | I126: 0.1169021452 | J126: 116 | K126: 95 | L126: 33 | M126: 63 | N126: 0 | O126: 0
A127: 電機機械1 | B127: 電機機械95 | C127: 1529 樂事綠能 | D127: 電機機械 | E127: M1500 | F127: 76617 | G127: 18858 | H127: 57759 | I127: 3.062838053 | J127: 116 | K127: 95 | L127: 1 | M127: 95 | N127: 0 | O127: 0
A128: 電機機械85 | B128: 電機機械11 | C128: 1530 亞崴 | D128: 電機機械 | E128: M1500 | F128: 129164 | G128: 232272 | H128: -103108 | I128: -0.4439105876 | J128: 116 | K128: 95 | L128: 85 | M128: 11 | N128: 0 | O128: 0
A129: 電機機械15 | B129: 電機機械81 | C129: 1531 高林股 | D129: 電機機械 | E129: M1500 | F129: 110562 | G129: 87704 | H129: 22858 | I129: 0.2606266533 | J129: 116 | K129: 95 | L129: 15 | M129: 81 | N129: 0 | O129: 0
A130: 電機機械54 | B130: 電機機械42 | C130: 1532 勤美 | D130: 電機機械 | E130: M1500 | F130: 1018575 | G130: 1086761 | H130: -68186 | I130: -0.0627424061 | J130: 116 | K130: 95 | L130: 54 | M130: 42 | N130: 0 | O130: 0
A131: =$D131&L131 -> 電機機械27 | B131: =$D131&M131 -> 電機機械69 | C131: 1535 中宇 | D131: 電機機械 | E131: M1500 | F131: 845468 | G131: 726818 | H131: 118650 | I131: 0.1632458194 | J131: =IF(E131="","",MATCH(E131,E:E,0)) -> 116 | K131: =COUNTIF(D:D,D131) -> 95 | L131: 27 | M131: 69 | N131: 0 | O131: 0
A132: 電機機械38 | B132: 電機機械58 | C132: 1537 廣隆 | D132: 電機機械 | E132: M1500 | F132: 636835 | G132: 604352 | H132: =F132-G132 -> 32483 | I132: =IF(ISERROR((H132/G132)*100),"",(H132/G132)) -> 0.05374847771 | J132: 116 | K132: 95 | L132: =IF(I132="","",RANK(I132,OFFSET(I$1,$J132-1,,$K132,),0)) -> 38 | M132: =IF(I132="","",RANK(I132,OFFSET(I$1,$J132-1,,$K132,),1)) -> 58 | N132: 0 | O132: 0
A133: 電機機械92 | B133: 電機機械4 | C133: 1538 正峰 | D133: 電機機械 | E133: M1500 | F133: 13566 | G133: 34794 | H133: -21228 | I133: -0.6101051906 | J133: 116 | K133: 95 | L133: 92 | M133: 4 | N133: 0 | O133: 0
A134: 電機機械10 | B134: 電機機械86 | C134: 1539 巨庭 | D134: 電機機械 | E134: M1500 | F134: 157494 | G134: 112048 | H134: 45446 | I134: 0.4055940311 | J134: 116 | K134: 95 | L134: 10 | M134: 86 | N134: 0 | O134: 0
A135: 電機機械14 | B135: 電機機械82 | C135: 1540 喬福 | D135: 電機機械 | E135: M1500 | F135: 81030 | G135: 61604 | H135: 19426 | I135: 0.3153366665 | J135: 116 | K135: 95 | L135: 14 | M135: 82 | N135: 0 | O135: 0
A136: 電機機械6 | B136: 電機機械90 | C136: 1541 錩泰 | D136: 電機機械 | E136: M1500 | F136: 395570 | G136: 236321 | H136: 159249 | I136: 0.6738673245 | J136: 116 | K136: 95 | L136: 6 | M136: 90 | N136: 0 | O136: 0
A137: 電機機械57 | B137: 電機機械39 | C137: 1558 伸興 | D137: 電機機械 | E137: M1500 | F137: 572850 | G137: 672141 | H137: -99291 | I137: -0.1477234687 | J137: 116 | K137: 95 | L137: 57 | M137: 39 | N137: 0 | O137: 0
A138: 電機機械43 | B138: 電機機械53 | C138: 1560 中砂 | D138: 電機機械 | E138: M1500 | F138: 553579 | G138: 537502 | H138: 16077 | I138: 0.02991058638 | J138: 116 | K138: 95 | L138: 43 | M138: 53 | N138: 0 | O138: 0
A139: 電機機械90 | B139: 電機機械6 | C139: 1570 力肯 | D139: 電機機械 | E139: M1500 | F139: 24795 | G139: 55065 | H139: -30270 | I139: -0.5497139744 | J139: 116 | K139: 95 | L139: 90 | M139: 6 | N139: 0 | O139: 0
A140: 電機機械25 | B140: 電機機械71 | C140: 1580 新麥 | D140: 電機機械 | E140: M1500 | F140: 375983 | G140: 320649 | H140: 55334 | I140: 0.172568759 | J140: 116 | K140: 95 | L140: 25 | M140: 71 | N140: 0 | O140: 0
A141: 電機機械55 | B141: 電機機械41 | C141: 1583 程泰 | D141: 電機機械 | E141: M1500 | F141: 453815 | G141: 493728 | H141: -39913 | I141: -0.08084005768 | J141: 116 | K141: 95 | L141: 55 | M141: 41 | N141: 0 | O141: 0
A142: 電機機械17 | B142: 電機機械79 | C142: 1586 和勤 | D142: 電機機械 | E142: M1500 | F142: 226050 | G142: 183921 | H142: 42129 | I142: 0.2290603031 | J142: 116 | K142: 95 | L142: 17 | M142: 79 | N142: 0 | O142: 0
A143: 電機機械68 | B143: 電機機械28 | C143: 1589 永冠-KY | D143: 電機機械 | E143: M1500 | F143: 678255 | G143: 883902 | H143: -205647 | I143: -0.2326581454 | J143: 116 | K143: 95 | L143: 68 | M143: 28 | N143: 0 | O143: 0
A144: 電機機械22 | B144: 電機機械74 | C144: 1590 亞德客-KY | D144: 電機機械 | E144: M1500 | F144: 2395758 | G144: 1974139 | H144: 421619 | I144: 0.2135710809 | J144: 116 | K144: 95 | L144: 22 | M144: 74 | N144: 0 | O144: 0
A145: 電機機械95 | B145: 電機機械1 | C145: 1591 駿吉-KY | D145: 電機機械 | E145: M1500 | F145: 6338 | G145: 75367 | H145: -69029 | I145: -0.915904839 | J145: 116 | K145: 95 | L145: 95 | M145: 1 | N145: 0 | O145: 0
A146: 電機機械83 | B146: 電機機械13 | C146: 1597 直得 | D146: 電機機械 | E146: M1500 | F146: 80316 | G146: 131796 | H146: -51480 | I146: -0.3906036602 | J146: 116 | K146: 95 | L146: 83 | M146: 13 | N146: 0 | O146: 0
A147: 電機機械80 | B147: 電機機械16 | C147: 1599 宏佳騰 | D147: 電機機械 | E147: M1500 | F147: 170654 | G147: 269781 | H147: -99127 | I147: -0.3674350677 | J147: 116 | K147: 95 | L147: 80 | M147: 16 | N147: 0 | O147: 0
A148: 電機機械53 | B148: 電機機械43 | C148: 2049 上銀 | D148: 電機機械 | E148: M1500 | F148: 2000161 | G148: 2110428 | H148: -110267 | I148: -0.0522486434 | J148: 116 | K148: 95 | L148: 53 | M148: 43 | N148: 0 | O148: 0
A149: 電機機械60 | B149: 電機機械36 | C149: 2066 世德 | D149: 電機機械 | E149: M1500 | F149: 208542 | G149: 252072 | H149: -43530 | I149: -0.1726887556 | J149: 116 | K149: 95 | L149: 60 | M149: 36 | N149: 0 | O149: 0
A150: 電機機械73 | B150: 電機機械23 | C150: 2067 嘉鋼 | D150: 電機機械 | E150: M1500 | F150: 80213 | G150: 116845 | H150: -36632 | I150: -0.31350935 | J150: 116 | K150: 95 | L150: 73 | M150: 23 | N150: 0 | O150: 0
A151: 電機機械91 | B151: 電機機械5 | C151: 2070 精湛 | D151: 電機機械 | E151: M1500 | F151: 42394 | G151: 107337 | H151: -64943 | I151: -0.6050383372 | J151: 116 | K151: 95 | L151: 91 | M151: 5 | N151: 0 | O151: 0
A152: 電機機械8 | B152: 電機機械88 | C152: 2230 泰茂 | D152: 電機機械 | E152: M1500 | F152: 66590 | G152: 42806 | H152: 23784 | I152: 0.5556230435 | J152: 116 | K152: 95 | L152: 8 | M152: 88 | N152: 0 | O152: 0
A153: 電機機械19 | B153: 電機機械77 | C153: 2235 謚源 | D153: 電機機械 | E153: M1500 | F153: 60675 | G153: 49445 | H153: 11230 | I153: 0.2271210436 | J153: 116 | K153: 95 | L153: 19 | M153: 77 | N153: 0 | O153: 0
A154: 電機機械64 | B154: 電機機械32 | C154: 2371 大同 | D154: 電機機械 | E154: M1500 | F154: 3499622 | G154: 4366880 | H154: -867258 | I154: -0.1985989997 | J154: 116 | K154: 95 | L154: 64 | M154: 32 | N154: 0 | O154: 0
A155: 電機機械45 | B155: 電機機械51 | C155: 3162 精確 | D155: 電機機械 | E155: M1500 | F155: 314172 | G155: 307776 | H155: 6396 | I155: 0.02078134747 | J155: 116 | K155: 95 | L155: 45 | M155: 51 | N155: 0 | O155: 0
A156: 電機機械32 | B156: 電機機械64 | C156: 3167 大量 | D156: 電機機械 | E156: M1500 | F156: 158231 | G156: 140349 | H156: 17882 | I156: 0.1274109541 | J156: 116 | K156: 95 | L156: 32 | M156: 64 | N156: 0 | O156: 0
A157: 電機機械9 | B157: 電機機械87 | C157: 3226 至寶電 | D157: 電機機械 | E157: M1500 | F157: 188197 | G157: 126017 | H157: 62180 | I157: 0.4934254902 | J157: 116 | K157: 95 | L157: 9 | M157: 87 | N157: 0 | O157: 0
A158: 電機機械81 | B158: 電機機械15 | C158: 3379 彬台 | D158: 電機機械 | E158: M1500 | F158: 24628 | G158: 39464 | H158: -14836 | I158: -0.3759375633 | J158: 116 | K158: 95 | L158: 81 | M158: 15 | N158: =U158 -> 0 | O158: =V158 -> 0
A159: 電機機械29 | B159: 電機機械67 | C159: 3426 台興 | D159: 電機機械 | E159: M1500 | F159: 64107 | G159: 55537 | H159: 8570 | I159: 0.1543115401 | J159: 116 | K159: 95 | L159: 29 | M159: 67 | N159: 0 | O159: 0
A160: 電機機械74 | B160: 電機機械22 | C160: 3685 元創精密 | D160: 電機機械 | E160: M1500 | F160: 95443 | G160: 141700 | H160: -46257 | I160: -0.3264431898 | J160: 116 | K160: 95 | L160: 74 | M160: 22 | N160: 0 | O160: 0
A161: 電機機械44 | B161: 電機機械52 | C161: 4502 健信 | D161: 電機機械 | E161: M1500 | F161: 137693 | G161: 134268 | H161: 3425 | I161: 0.02550868412 | J161: 116 | K161: 95 | L161: 44 | M161: 52 | N161: 0 | O161: 0
A162: 電機機械7 | B162: 電機機械89 | C162: 4503 金雨 | D162: 電機機械 | E162: M1500 | F162: 31860 | G162: 20016 | H162: 11844 | I162: 0.5917266187 | J162: 116 | K162: 95 | L162: 7 | M162: 89 | N162: 0 | O162: 0
A163: 電機機械50 | B163: 電機機械46 | C163: 4506 崇友 | D163: 電機機械 | E163: M1500 | F163: 387198 | G163: 395188 | H163: -7990 | I163: -0.02021822525 | J163: 116 | K163: 95 | L163: 50 | M163: 46 | N163: 0 | O163: 0
A164: 電機機械39 | B164: 電機機械57 | C164: 4510 高鋒 | D164: 電機機械 | E164: M1500 | F164: 169372 | G164: 160791 | H164: 8581 | I164: 0.05336741484 | J164: 116 | K164: 95 | L164: 39 | M164: 57 | N164: 0 | O164: 0
A165: 電機機械76 | B165: 電機機械20 | C165: 4513 福裕 | D165: 電機機械 | E165: M1500 | F165: 89613 | G165: 137090 | H165: -47477 | I165: -0.3463199358 | J165: 116 | K165: 95 | L165: 76 | M165: 20 | N165: 0 | O165: 0
A166: 電機機械5 | B166: 電機機械91 | C166: 4523 永彰 | D166: 電機機械 | E166: M1500 | F166: 74827 | G166: 44055 | H166: 30772 | I166: 0.6984905232 | J166: 116 | K166: 95 | L166: 5 | M166: 91 | N166: 0 | O166: 0
A167: 電機機械65 | B167: 電機機械31 | C167: 4526 東台 | D167: 電機機械 | E167: M1500 | F167: 547976 | G167: 684718 | H167: -136742 | I167: -0.1997055722 | J167: 116 | K167: 95 | L167: 65 | M167: 31 | N167: 0 | O167: 0
A168: 電機機械88 | B168: 電機機械8 | C168: 4527 方方土霖 | D168: 電機機械 | E168: M1500 | F168: 177254 | G168: 347587 | H168: -170333 | I168: -0.4900442191 | J168: 116 | K168: 95 | L168: 88 | M168: 8 | N168: 0 | O168: 0
A169: 電機機械72 | B169: 電機機械24 | C169: 4528 江興鍛 | D169: 電機機械 | E169: M1500 | F169: 160094 | G169: 224373 | H169: -64279 | I169: -0.2864827764 | J169: 116 | K169: 95 | L169: 72 | M169: 24 | N169: 0 | O169: 0
A170: 電機機械11 | B170: 電機機械85 | C170: 4532 瑞智 | D170: 電機機械 | E170: M1500 | F170: 1224674 | G170: 910184 | H170: 314490 | I170: 0.3455235425 | J170: 116 | K170: 95 | L170: 11 | M170: 85 | N170: 0 | O170: 0
A171: 電機機械13 | B171: 電機機械83 | C171: 4533 協易機 | D171: 電機機械 | E171: M1500 | F171: 427815 | G171: 319786 | H171: 108029 | I171: 0.3378165398 | J171: 116 | K171: 95 | L171: 13 | M171: 83 | N171: 0 | O171: 0
A172: 電機機械16 | B172: 電機機械80 | C172: 4534 慶騰 | D172: 電機機械 | E172: M1500 | F172: 58577 | G172: 47396 | H172: 11181 | I172: 0.2359059836 | J172: 116 | K172: 95 | L172: 16 | M172: 80 | N172: 0 | O172: 0
A173: 電機機械49 | B173: 電機機械47 | C173: 4535 至興 | D173: 電機機械 | E173: M1500 | F173: 266570 | G173: 271867 | H173: -5297 | I173: -0.01948379171 | J173: 116 | K173: 95 | L173: 49 | M173: 47 | N173: 0 | O173: 0
A174: 電機機械89 | B174: 電機機械7 | C174: 4538 大詠城 | D174: 電機機械 | E174: M1500 | F174: 26020 | G174: 55679 | H174: -29659 | I174: -0.5326783886 | J174: 116 | K174: 95 | L174: 89 | M174: 7 | N174: 0 | O174: 0
A175: 電機機械79 | B175: 電機機械17 | C175: 4540 全球傳動 | D175: 電機機械 | E175: M1500 | F175: 149449 | G175: 236183 | H175: -86734 | I175: -0.3672321886 | J175: 116 | K175: 95 | L175: 79 | M175: 17 | N175: 0 | O175: 0
A176: 電機機械46 | B176: 電機機械50 | C176: 4543 萬在 | D176: 電機機械 | E176: M1500 | F176: 58079 | G176: 58241 | H176: -162 | I176: -0.002781545647 | J176: 116 | K176: 95 | L176: 46 | M176: 50 | N176: 0 | O176: 0
A177: 電機機械59 | B177: 電機機械37 | C177: 4549 桓達 | D177: 電機機械 | E177: M1500 | F177: 113150 | G177: 134440 | H177: -21290 | I177: -0.158360607 | J177: 116 | K177: 95 | L177: 59 | M177: 37 | N177: 0 | O177: 0
A178: 電機機械24 | B178: 電機機械72 | C178: 4550 長佳 | D178: 電機機械 | E178: M1500 | F178: 153624 | G178: 129023 | H178: 24601 | I178: 0.1906714307 | J178: 116 | K178: 95 | L178: 24 | M178: 72 | N178: 0 | O178: 0
A179: 電機機械40 | B179: 電機機械56 | C179: 4552 力達-KY | D179: 電機機械 | E179: M1500 | F179: 476701 | G179: 452906 | H179: 23795 | I179: 0.05253849585 | J179: 116 | K179: 95 | L179: 40 | M179: 56 | N179: 0 | O179: 0
A180: 電機機械67 | B180: 電機機械29 | C180: 4555 氣立 | D180: 電機機械 | E180: M1500 | F180: 91263 | G180: 118125 | H180: -26862 | I180: -0.2274031746 | J180: 116 | K180: 95 | L180: 67 | M180: 29 | N180: 0 | O180: 0
A181: 電機機械30 | B181: 電機機械66 | C181: 4558 寶緯 | D181: 電機機械 | E181: M1500 | F181: 140709 | G181: 122053 | H181: 18656 | I181: 0.15285163 | J181: 116 | K181: 95 | L181: 30 | M181: 66 | N181: 0 | O181: 0
A182: 電機機械61 | B182: 電機機械35 | C182: 4560 強信-KY | D182: 電機機械 | E182: M1500 | F182: 108184 | G182: 131117 | H182: -22933 | I182: -0.174904856 | J182: 116 | K182: 95 | L182: 61 | M182: 35 | N182: 0 | O182: 0
A183: 電機機械36 | B183: 電機機械60 | C183: 4561 健椿 | D183: 電機機械 | E183: M1500 | F183: 87336 | G183: 81476 | H183: 5860 | I183: 0.07192302028 | J183: 116 | K183: 95 | L183: 36 | M183: 60 | N183: 0 | O183: 0
A184: 電機機械87 | B184: 電機機械9 | C184: 4562 穎漢 | D184: 電機機械 | E184: M1500 | F184: 43827 | G184: 82478 | H184: -38651 | I184: -0.4686219355 | J184: 116 | K184: 95 | L184: 87 | M184: 9 | N184: 0 | O184: 0
A185: 電機機械48 | B185: 電機機械48 | C185: 4563 百德 | D185: 電機機械 | E185: M1500 | F185: 199346 | G185: 203131 | H185: -3785 | I185: -0.01863329575 | J185: 116 | K185: 95 | L185: 48 | M185: 48 | N185: 0 | O185: 0
A186: 電機機械77 | B186: 電機機械19 | C186: 4564 元翎 | D186: 電機機械 | E186: M1500 | F186: 99786 | G186: 153993 | H186: -54207 | I186: -0.3520095069 | J186: 116 | K186: 95 | L186: 77 | M186: 19 | N186: 0 | O186: 0
A187: 電機機械69 | B187: 電機機械27 | C187: 4566 時碩工業 | D187: 電機機械 | E187: M1500 | F187: 315535 | G187: 412160 | H187: -96625 | I187: -0.2344356561 | J187: 116 | K187: 95 | L187: 69 | M187: 27 | N187: 0 | O187: 0
A188: 電機機械28 | B188: 電機機械68 | C188: 4568 科際精密 | D188: 電機機械 | E188: M1500 | F188: 74912 | G188: 64828 | H188: 10084 | I188: 0.155550071 | J188: 116 | K188: 95 | L188: 28 | M188: 68 | N188: 0 | O188: 0
A189: 電機機械37 | B189: 電機機械59 | C189: 4571 鈞興-KY | D189: 電機機械 | E189: M1500 | F189: 175355 | G189: 166137 | H189: 9218 | I189: 0.0554843292 | J189: 116 | K189: 95 | L189: 37 | M189: 59 | N189: 0 | O189: 0
A190: 電機機械35 | B190: 電機機械61 | C190: 4572 駐龍 | D190: 電機機械 | E190: M1500 | F190: 65063 | G190: 60157 | H190: 4906 | I190: 0.08155326895 | J190: 116 | K190: 95 | L190: 35 | M190: 61 | N190: 0 | O190: 0
A191: 電機機械62 | B191: 電機機械34 | C191: 4576 大銀微系統 | D191: 電機機械 | E191: M1500 | F191: 190620 | G191: 231950 | H191: -41330 | I191: -0.1781849537 | J191: 116 | K191: 95 | L191: 62 | M191: 34 | N191: 0 | O191: 0
A192: 電機機械20 | B192: 電機機械76 | C192: 4580 捷流閥業 | D192: 電機機械 | E192: M1500 | F192: 201711 | G192: 165259 | H192: 36452 | I192: 0.2205749762 | J192: 116 | K192: 95 | L192: 20 | M192: 76 | N192: 0 | O192: 0
A193: 電機機械34 | B193: 電機機械62 | C193: 4583 台灣精銳 | D193: 電機機械 | E193: M1500 | F193: 240051 | G193: 215927 | H193: 24124 | I193: 0.1117229434 | J193: 116 | K193: 95 | L193: 34 | M193: 62 | N193: 0 | O193: 0
A194: 電機機械23 | B194: 電機機械73 | C194: 4584 君帆 | D194: 電機機械 | E194: M1500 | F194: 92678 | G194: 76599 | H194: 16079 | I194: 0.2099113565 | J194: 116 | K194: 95 | L194: 23 | M194: 73 | N194: 0 | O194: 0
A195: =$D195&L195 -> 電機機械75 | B195: =$D195&M195 -> 電機機械21 | C195: 5288 豐祥-KY | D195: 電機機械 | E195: M1500 | F195: 544560 | G195: 832341 | H195: -287781 | I195: -0.3457489178 | J195: =IF(E195="","",MATCH(E195,E:E,0)) -> 116 | K195: =COUNTIF(D:D,D195) -> 95 | L195: 75 | M195: 21 | N195: 0 | O195: 0
A196: 電機機械3 | B196: 電機機械93 | C196: 6122 擎邦 | D196: 電機機械 | E196: M1500 | F196: 707568 | G196: 227569 | H196: =F196-G196 -> 479999 | I196: =IF(ISERROR((H196/G196)*100),"",(H196/G196)) -> 2.109245987 | J196: 116 | K196: 95 | L196: =IF(I196="","",RANK(I196,OFFSET(I$1,$J196-1,,$K196,),0)) -> 3 | M196: =IF(I196="","",RANK(I196,OFFSET(I$1,$J196-1,,$K196,),1)) -> 93 | N196: 0 | O196: 0
A197: 電機機械82 | B197: 電機機械14 | C197: 6425 易發 | D197: 電機機械 | E197: M1500 | F197: 83800 | G197: 137033 | H197: -53233 | I197: -0.3884684711 | J197: 116 | K197: 95 | L197: 82 | M197: 14 | N197: 0 | O197: 0
A198: 電機機械58 | B198: 電機機械38 | C198: 6603 富強鑫 | D198: 電機機械 | E198: M1500 | F198: 296241 | G198: 349257 | H198: -53016 | I198: -0.1517965281 | J198: 116 | K198: 95 | L198: 58 | M198: 38 | N198: 0 | O198: 0
A199: 電機機械71 | B199: 電機機械25 | C199: 6606 建德工業 | D199: 電機機械 | E199: M1500 | F199: 52668 | G199: 71204 | H199: -18536 | I199: -0.2603224538 | J199: 116 | K199: 95 | L199: 71 | M199: 25 | N199: 0 | O199: 0
A200: 電機機械86 | B200: 電機機械10 | C200: 6609 瀧澤科 | D200: 電機機械 | E200: M1500 | F200: 169147 | G200: 305314 | H200: -136167 | I200: -0.4459900299 | J200: 116 | K200: 95 | L200: 86 | M200: 10 | N200: 0 | O200: 0
... 2800 more rows

Sheet 表B_RAW
A1: 排名(正向) | B1: 排名(反向) | D1: TSE新產業_名稱 | E1: TSE新產業_代碼 | F1: 單月營收(千元) | G1: 單月營收(千元) | H1: 單月營收與上月比％ | J1: 產業位址 | K1: 產業家數 | L1: 排名(正向) | M1: 排名(反向) | N1: 排名(正向) | O1: 排名(反向) | P1: 產業營收 | Q1: 單月營收(千元) | R1: 上月單月營收(千元) | S1: 本月較上月變動金額 | T1: 單月營收與上月比％ | U1: 排名(正向) | V1: 排名(反向)
C2: 公司 | F2: 2023-10-31 | G2: 2023-09-28 | H2: 2023-10-31 | N2: =U2 -> 5 | O2: =V2 -> 30 | P2: 水泥工業 | Q2: =SUMIF($D:$D,$P2,F:F) -> 18163978 | R2: =SUMIF($D:$D,$P2,G:G) -> 17343097 | S2: =Q2-R2 -> 820881 | T2: =ROUND(S2/R2*100,2) -> 4.73 | U2: =RANK(T2,T:T) -> 5 | V2: =RANK(T2,T:T,1) -> 30
A3: =D3&L3 -> 水泥工業5 | B3: =D3&M3 -> 水泥工業3 | C3: 1101 台泥 | D3: 水泥工業 | E3: M1100 | F3: 9371746 | G3: 8735157 | H3: 7.29 | I3: =F3-G3 -> 636589 | J3: =IF(E3="","",MATCH(E3,E:E,0)) -> 3 | K3: =COUNTIF(D:D,D3) -> 7 | L3: =IF(H3="","",RANK(H3,OFFSET(H$1,$J3-1,,$K3,),0)) -> 5 | M3: =IF(H3="","",RANK(H3,OFFSET(H$1,$J3-1,,$K3,),1)) -> 3 | N3: =U3 -> 31 | O3: =V3 -> 4 | P3: 食品工業 | Q3: =SUMIF($D:$D,$P3,F:F) -> 78367754 | R3: =SUMIF($D:$D,$P3,G:G) -> 84067628 | S3: =Q3-R3 -> -5699874 | T3: =ROUND(S3/R3*100,2) -> -6.78 | U3: =RANK(T3,T:T) -> 31 | V3: 4
A4: =D4&L4 -> 水泥工業7 | B4: =D4&M4 -> 水泥工業1 | C4: 1102 亞泥 | D4: 水泥工業 | E4: M1100 | F4: 6706168 | G4: 6691905 | H4: 0.21 | I4: =F4-G4 -> 14263 | J4: =IF(E4="","",MATCH(E4,E:E,0)) -> 3 | K4: =COUNTIF(D:D,D4) -> 7 | L4: =IF(H4="","",RANK(H4,OFFSET(H$1,$J4-1,,$K4,),0)) -> 7 | M4: =IF(H4="","",RANK(H4,OFFSET(H$1,$J4-1,,$K4,),1)) -> 1 | N4: 26 | O4: 9 | P4: 塑膠工業 | Q4: 90008457 | R4: 92892209 | S4: -2883752 | T4: -3.1 | U4: 26 | V4: 9
A5: 水泥工業3 | B5: 水泥工業5 | C5: 1103 嘉泥 | D5: 水泥工業 | E5: M1100 | F5: 257343 | G5: 232979 | H5: 10.46 | I5: 24364 | J5: 3 | K5: 7 | L5: 3 | M5: 5 | N5: 25 | O5: 10 | P5: 紡織纖維 | Q5: 48047933 | R5: 49493100 | S5: -1445167 | T5: -2.92 | U5: 25 | V5: 10
A6: 水泥工業6 | B6: 水泥工業2 | C6: 1104 環泥 | D6: 水泥工業 | E6: M1100 | F6: 654514 | G6: 618592 | H6: 5.81 | I6: 35922 | J6: 3 | K6: 7 | L6: 6 | M6: 2 | N6: 28 | O6: 7 | P6: 電機機械 | Q6: 39486255 | R6: 41608485 | S6: -2122230 | T6: -5.1 | U6: 28 | V6: 7
A7: 水泥工業2 | B7: 水泥工業6 | C7: 1108 幸福 | D7: 水泥工業 | E7: M1100 | F7: 451146 | G7: 404171 | H7: 11.62 | I7: 46975 | J7: 3 | K7: 7 | L7: 2 | M7: 6 | N7: 33 | O7: 2 | P7: 電器電纜 | Q7: 22821303 | R7: 25325022 | S7: -2503719 | T7: -9.89 | U7: 33 | V7: 2
A8: 水泥工業4 | B8: 水泥工業4 | C8: 1109 信大 | D8: 水泥工業 | E8: M1100 | F8: 531941 | G8: 490929 | H8: 8.35 | I8: 41012 | J8: 3 | K8: 7 | L8: 4 | M8: 4 | N8: 29 | O8: 6 | P8: 化學工業 | Q8: 24583148 | R8: 25999741 | S8: -1416593 | T8: -5.45 | U8: 29 | V8: 6
A9: 水泥工業1 | B9: 水泥工業7 | C9: 1110 東泥 | D9: 水泥工業 | E9: M1100 | F9: 191120 | G9: 169364 | H9: 12.85 | I9: 21756 | J9: 3 | K9: 7 | L9: 1 | M9: 7 | N9: 4 | O9: 31 | P9: 生技醫療 | Q9: 23872262 | R9: 22675233 | S9: 1197029 | T9: 5.28 | U9: 4 | V9: 31
A10: 食品工業13 | B10: 食品工業17 | C10: 1201 味全 | D10: 食品工業 | E10: M1200 | F10: 1894929 | G10: 1944806 | H10: -2.56 | I10: -49877 | J10: 10 | K10: 29 | L10: 13 | M10: 17 | N10: 13 | O10: 22 | P10: 玻璃陶瓷 | Q10: 5210970 | R10: 5155121 | S10: 55849 | T10: 1.08 | U10: 13 | V10: 22
A11: 食品工業18 | B11: 食品工業12 | C11: 1203 味王 | D11: 食品工業 | E11: M1200 | F11: 504360 | G11: 544257 | H11: -7.33 | I11: -39897 | J11: 10 | K11: 29 | L11: 18 | M11: 12 | N11: 7 | O11: 28 | P11: 造紙工業 | Q11: 17505116 | R11: 16911993 | S11: 593123 | T11: 3.51 | U11: 7 | V11: 28
A12: 食品工業14 | B12: 食品工業16 | C12: 1210 大成 | D12: 食品工業 | E12: M1200 | F12: 8992288 | G12: 9291296 | H12: -3.22 | I12: -299008 | J12: 10 | K12: 29 | L12: 14 | M12: 16 | N12: 19 | O12: 16 | P12: 鋼鐵工業 | Q12: 81453996 | R12: 82086751 | S12: -632755 | T12: -0.77 | U12: 19 | V12: 16
A13: 食品工業26 | B13: 食品工業4 | C13: 1213 大飲 | D13: 食品工業 | E13: M1200 | F13: 403 | G13: 636 | H13: -36.64 | I13: -233 | J13: 10 | K13: 29 | L13: 26 | M13: 4 | N13: 27 | O13: 8 | P13: 橡膠工業 | Q13: 17109668 | R13: 17881210 | S13: -771542 | T13: -4.31 | U13: 27 | V13: 8
A14: 食品工業11 | B14: 食品工業19 | C14: 1215 卜蜂 | D14: 食品工業 | E14: M1200 | F14: 2382360 | G14: 2437231 | H14: -2.25 | I14: -54871 | J14: 10 | K14: 29 | L14: 11 | M14: 19 | N14: 10 | O14: 25 | P14: 汽車工業 | Q14: 59484480 | R14: 58439615 | S14: 1044865 | T14: 1.79 | U14: 10 | V14: 25
A15: 食品工業16 | B15: 食品工業14 | C15: 1216 統一 | D15: 食品工業 | E15: M1200 | F15: 49801476 | G15: 53366181 | H15: -6.68 | I15: -3564705 | J15: 10 | K15: 29 | L15: 16 | M15: 14 | N15: 1 | O15: 34 | P15: 半導體 | Q15: 496451438 | R15: 429040461 | S15: 67410977 | T15: 15.71 | U15: 1 | V15: 34
A16: 食品工業24 | B16: 食品工業6 | C16: 1217 愛之味 | D16: 食品工業 | E16: M1200 | F16: 323973 | G16: 485332 | H16: -33.25 | I16: -161359 | J16: 10 | K16: 29 | L16: 24 | M16: 6 | N16: 23 | O16: 12 | P16: 電腦及週邊 | Q16: 663834657 | R16: 681277378 | S16: -17442721 | T16: -2.56 | U16: 23 | V16: 12
A17: 食品工業22 | B17: 食品工業8 | C17: 1218 泰山 | D17: 食品工業 | E17: M1200 | F17: 893674 | G17: 1070356 | H17: -16.51 | I17: -176682 | J17: 10 | K17: 29 | L17: 22 | M17: 8 | N17: 30 | O17: 5 | P17: 光電業 | Q17: 103927799 | R17: 110498329 | S17: -6570530 | T17: -5.95 | U17: 30 | V17: 5
A18: 食品工業12 | B18: 食品工業18 | C18: 1219 福壽 | D18: 食品工業 | E18: M1200 | F18: 1280865 | G18: 1310734 | H18: -2.28 | I18: -29869 | J18: 10 | K18: 29 | L18: 12 | M18: 18 | N18: 17 | O18: 18 | P18: 通信網路業 | Q18: 99232579 | R18: 99859930 | S18: -627351 | T18: -0.63 | U18: 17 | V18: 18
A19: 食品工業10 | B19: 食品工業20 | C19: 1220 台榮 | D19: 食品工業 | E19: M1200 | F19: 289053 | G19: 295646 | H19: -2.23 | I19: -6593 | J19: 10 | K19: 29 | L19: 10 | M19: 20 | N19: 22 | O19: 13 | P19: 電子零組件 | Q19: 203953347 | R19: 208815133 | S19: -4861786 | T19: -2.33 | U19: 22 | V19: 13
A20: 食品工業8 | B20: 食品工業22 | C20: 1225 福懋油 | D20: 食品工業 | E20: M1200 | F20: 1212955 | G20: 1184327 | H20: 2.42 | I20: 28628 | J20: 10 | K20: 29 | L20: 8 | M20: 22 | N20: 21 | O20: 14 | P20: 電子通路業 | Q20: 231872970 | R20: 236968404 | S20: -5095434 | T20: -2.15 | U20: 21 | V20: 14
A21: 食品工業25 | B21: 食品工業5 | C21: 1227 佳格 | D21: 食品工業 | E21: M1200 | F21: 2027434 | G21: 3116707 | H21: -34.95 | I21: -1089273 | J21: 10 | K21: 29 | L21: 25 | M21: 5 | N21: 20 | O21: 15 | P21: 資訊服務業 | Q21: 12322881 | R21: 12556230 | S21: -233349 | T21: -1.86 | U21: 20 | V21: 15
A22: 食品工業3 | B22: 食品工業27 | C22: 1229 聯華 | D22: 食品工業 | E22: M1200 | F22: 1200893 | G22: 861221 | H22: 39.44 | I22: 339672 | J22: 10 | K22: 29 | L22: 3 | M22: 27 | N22: 2 | O22: 33 | P22: 其他電子業 | Q22: 811019212 | R22: 738627976 | S22: 72391236 | T22: 9.8 | U22: 2 | V22: 33
A23: 食品工業6 | B23: 食品工業24 | C23: 1231 聯華食 | D23: 食品工業 | E23: M1200 | F23: 874442 | G23: 796194 | H23: 9.83 | I23: 78248 | J23: 10 | K23: 29 | L23: 6 | M23: 24 | N23: 6 | O23: 29 | P23: 綠能環保 | Q23: 5973543 | R23: 5745372 | S23: 228171 | T23: 3.97 | U23: 6 | V23: 29
A24: 食品工業7 | B24: 食品工業23 | C24: 1232 大統益 | D24: 食品工業 | E24: M1200 | F24: 1922344 | G24: 1874068 | H24: 2.58 | I24: 48276 | J24: 10 | K24: 29 | L24: 7 | M24: 23 | N24: 15 | O24: 20 | P24: 數位雲端 | Q24: 14951768 | R24: 15027511 | S24: -75743 | T24: -0.5 | U24: 15 | V24: 20
A25: 食品工業17 | B25: 食品工業13 | C25: 1233 天仁 | D25: 食品工業 | E25: M1200 | F25: 175783 | G25: 189526 | H25: -7.25 | I25: -13743 | J25: 10 | K25: 29 | L25: 17 | M25: 13 | N25: 16 | O25: 19 | P25: 建材營造 | Q25: 49335779 | R25: 49645739 | S25: -309960 | T25: -0.62 | U25: 16 | V25: 19
A26: 食品工業15 | B26: 食品工業15 | C26: 1234 黑松 | D26: 食品工業 | E26: M1200 | F26: 960839 | G26: 1017186 | H26: -5.54 | I26: -56347 | J26: 10 | K26: 29 | L26: 15 | M26: 15 | N26: 11 | O26: 24 | P26: 航運業 | Q26: 99733223 | R26: 98331537 | S26: 1401686 | T26: 1.43 | U26: 11 | V26: 24
A27: 食品工業28 | B27: 食品工業2 | C27: 1235 興泰 | D27: 食品工業 | E27: M1200 | F27: 3323 | G27: 6537 | H27: -49.17 | I27: -3214 | J27: 10 | K27: 29 | L27: 28 | M27: 2 | N27: 3 | O27: 32 | P27: 觀光餐旅 | Q27: 14208531 | R27: 13004777 | S27: 1203754 | T27: 9.26 | U27: 3 | V27: 32
A28: 食品工業27 | B28: 食品工業3 | C28: 1236 宏亞 | D28: 食品工業 | E28: M1200 | F28: 125408 | G28: 222123 | H28: -43.54 | I28: -96715 | J28: 10 | K28: 29 | L28: 27 | M28: 3 | N28: 9 | O28: 26 | P28: 金融業 | Q28: 123151746 | R28: 120736441 | S28: 2415305 | T28: 2 | U28: 9 | V28: 26
A29: 食品工業29 | B29: 食品工業1 | C29: 1256 鮮活果汁-KY | D29: 食品工業 | E29: M1200 | F29: 222574 | G29: 444032 | H29: -49.87 | I29: -221458 | J29: 10 | K29: 29 | L29: 29 | M29: 1 | N29: 34 | O29: 1 | P29: 貿易百貨 | Q29: 49954836 | R29: 55992044 | S29: -6037208 | T29: -10.78 | U29: 34 | V29: 1
A30: 食品工業21 | B30: 食品工業9 | C30: 1264 德麥 | D30: 食品工業 | E30: M1200 | F30: 458599 | G30: 537887 | H30: -14.74 | I30: -79288 | J30: 10 | K30: 29 | L30: 21 | M30: 9 | N30: =U30 -> 18 | O30: =V30 -> 17 | P30: 文化創意業 | Q30: =SUMIF($D:$D,$P30,F:F) -> 4126098 | R30: =SUMIF($D:$D,$P30,G:G) -> 4156413 | S30: =Q30-R30 -> -30315 | T30: =ROUND(S30/R30*100,2) -> -0.73 | U30: =RANK(T30,T:T) -> 18 | V30: =RANK(T30,T:T,1) -> 17
A31: 食品工業19 | B31: 食品工業11 | C31: 1702 南僑 | D31: 食品工業 | E31: M1200 | F31: 1808824 | G31: 2046638 | H31: -11.62 | I31: -237814 | J31: 10 | K31: 29 | L31: 19 | M31: 11 | N31: 24 | O31: 11 | P31: 農業科技 | Q31: 399370 | R31: 410519 | S31: -11149 | T31: -2.72 | U31: 24 | V31: 11
A32: 食品工業23 | B32: 食品工業7 | C32: 1737 臺鹽 | D32: 食品工業 | E32: M1200 | F32: 264995 | G32: 332827 | H32: -20.38 | I32: -67832 | J32: 10 | K32: 29 | L32: 23 | M32: 7 | N32: 8 | O32: 27 | P32: 運動休閒 | Q32: 48089159 | R32: 47108114 | S32: 981045 | T32: 2.08 | U32: 8 | V32: 27
A33: 食品工業5 | B33: 食品工業25 | C33: 1796 金穎生技 | D33: 食品工業 | E33: M1200 | F33: 61530 | G33: 56009 | H33: 9.86 | I33: 5521 | J33: 10 | K33: 29 | L33: 5 | M33: 25 | N33: 12 | O33: 23 | P33: 居家生活 | Q33: 21632836 | R33: 21394327 | S33: 238509 | T33: 1.11 | U33: 12 | V33: 23
A34: 食品工業2 | B34: 食品工業28 | C34: 3054 立萬利 | D34: 食品工業 | E34: M1200 | F34: 3849 | G34: 2400 | H34: 60.38 | I34: 1449 | J34: 10 | K34: 29 | L34: 2 | M34: 28 | N34: 32 | O34: 3 | P34: 油電燃氣業 | Q34: 71033832 | R34: 76889256 | S34: -5855424 | T34: -7.62 | U34: 32 | V34: 3
A35: 食品工業9 | B35: 食品工業21 | C35: 4205 中華食 | D35: 食品工業 | E35: M1200 | F35: 167832 | G35: 163894 | H35: 2.4 | I35: 3938 | J35: 10 | K35: 29 | L35: 9 | M35: 21 | N35: 14 | O35: 21 | P35: 其他 | Q35: 52685312 | R35: 52808407 | S35: -123095 | T35: -0.23 | U35: 14 | V35: 21
A36: 食品工業4 | B36: 食品工業26 | C36: 4207 環泰 | D36: 食品工業 | E36: M1200 | F36: 457587 | G36: 405808 | H36: 12.76 | I36: 51779 | J36: 10 | K36: 29 | L36: 4 | M36: 26 | N36: 0 | O36: 0
A37: 食品工業1 | B37: 食品工業29 | C37: 4712 南璋 | D37: 食品工業 | E37: M1200 | F37: 20 | G37: 11 | H37: 81.82 | I37: 9 | J37: 10 | K37: 29 | L37: 1 | M37: 29 | N37: 0 | O37: 0
A38: 食品工業20 | B38: 食品工業10 | C38: 6846 綠茵 | D38: 食品工業 | E38: M1200 | F38: 55142 | G38: 63758 | H38: -13.51 | I38: -8616 | J38: 10 | K38: 29 | L38: 20 | M38: 10 | N38: 0 | O38: 0
A39: 塑膠工業11 | B39: 塑膠工業15 | C39: 1301 台塑 | D39: 塑膠工業 | E39: M1300 | F39: 16306347 | G39: 16588777 | H39: -1.7 | I39: -282430 | J39: 39 | K39: 25 | L39: 11 | M39: 15 | N39: 0 | O39: 0
A40: 塑膠工業12 | B40: 塑膠工業14 | C40: 1303 南亞 | D40: 塑膠工業 | E40: M1300 | F40: 21722488 | G40: 22141297 | H40: -1.89 | I40: -418809 | J40: 39 | K40: 25 | L40: 12 | M40: 14 | N40: 0 | O40: 0
A41: 塑膠工業16 | B41: 塑膠工業10 | C41: 1304 台聚 | D41: 塑膠工業 | E41: M1300 | F41: 4296205 | G41: 4506836 | H41: -4.67 | I41: -210631 | J41: 39 | K41: 25 | L41: 16 | M41: 10 | N41: 0 | O41: 0
A42: 塑膠工業6 | B42: 塑膠工業20 | C42: 1305 華夏 | D42: 塑膠工業 | E42: M1300 | F42: 1046806 | G42: 966666 | H42: 8.29 | I42: 80140 | J42: 39 | K42: 25 | L42: 6 | M42: 20 | N42: 0 | O42: 0
A43: 塑膠工業10 | B43: 塑膠工業16 | C43: 1307 三芳 | D43: 塑膠工業 | E43: M1300 | F43: 837011 | G43: 838162 | H43: -0.14 | I43: -1151 | J43: 39 | K43: 25 | L43: 10 | M43: 16 | N43: 0 | O43: 0
A44: 塑膠工業19 | B44: 塑膠工業7 | C44: 1308 亞聚 | D44: 塑膠工業 | E44: M1300 | F44: 538938 | G44: 572692 | H44: -5.89 | I44: -33754 | J44: 39 | K44: 25 | L44: 19 | M44: 7 | N44: 0 | O44: 0
A45: 塑膠工業13 | B45: 塑膠工業13 | C45: 1309 台達化 | D45: 塑膠工業 | E45: M1300 | F45: 1451953 | G45: 1491814 | H45: -2.67 | I45: -39861 | J45: 39 | K45: 25 | L45: 13 | M45: 13 | N45: 0 | O45: 0
A46: 塑膠工業5 | B46: 塑膠工業21 | C46: 1310 台苯 | D46: 塑膠工業 | E46: M1300 | F46: 891484 | G46: 806466 | H46: 10.54 | I46: 85018 | J46: 39 | K46: 25 | L46: 5 | M46: 21 | N46: 0 | O46: 0
A47: 塑膠工業18 | B47: 塑膠工業8 | C47: 1312 國喬 | D47: 塑膠工業 | E47: M1300 | F47: 1298379 | G47: 1366098 | H47: -4.96 | I47: -67719 | J47: 39 | K47: 25 | L47: 18 | M47: 8 | N47: 0 | O47: 0
A48: 塑膠工業21 | B48: 塑膠工業5 | C48: 1313 聯成 | D48: 塑膠工業 | E48: M1300 | F48: 6323633 | G48: 7063372 | H48: -10.47 | I48: -739739 | J48: 39 | K48: 25 | L48: 21 | M48: 5 | N48: 0 | O48: 0
A49: 塑膠工業25 | B49: 塑膠工業1 | C49: 1314 中石化 | D49: 塑膠工業 | E49: M1300 | F49: 2237466 | G49: 2843927 | H49: -21.32 | I49: -606461 | J49: 39 | K49: 25 | L49: 25 | M49: 1 | N49: 0 | O49: 0
A50: 塑膠工業9 | B50: 塑膠工業17 | C50: 1315 達新 | D50: 塑膠工業 | E50: M1300 | F50: 136905 | G50: 134277 | H50: 1.96 | I50: 2628 | J50: 39 | K50: 25 | L50: 9 | M50: 17 | N50: 0 | O50: 0
A51: 塑膠工業20 | B51: 塑膠工業6 | C51: 1321 大洋 | D51: 塑膠工業 | E51: M1300 | F51: 321339 | G51: 357833 | H51: -10.2 | I51: -36494 | J51: 39 | K51: 25 | L51: 20 | M51: 6 | N51: 0 | O51: 0
A52: 塑膠工業8 | B52: 塑膠工業18 | C52: 1323 永裕 | D52: 塑膠工業 | E52: M1300 | F52: 283758 | G52: 278061 | H52: 2.05 | I52: 5697 | J52: 39 | K52: 25 | L52: 8 | M52: 18 | N52: 0 | O52: 0
A53: 塑膠工業3 | B53: 塑膠工業23 | C53: 1324 地球 | D53: 塑膠工業 | E53: M1300 | F53: 90322 | G53: 77612 | H53: 16.38 | I53: 12710 | J53: 39 | K53: 25 | L53: 3 | M53: 23 | N53: 0 | O53: 0
A54: 塑膠工業17 | B54: 塑膠工業9 | C54: 1325 恒大 | D54: 塑膠工業 | E54: M1300 | F54: 30260 | G54: 31793 | H54: -4.82 | I54: -1533 | J54: 39 | K54: 25 | L54: 17 | M54: 9 | N54: 0 | O54: 0
A55: 塑膠工業14 | B55: 塑膠工業12 | C55: 1326 台化 | D55: 塑膠工業 | E55: M1300 | F55: 30166153 | G55: 30995485 | H55: -2.68 | I55: -829332 | J55: 39 | K55: 25 | L55: 14 | M55: 12 | N55: 0 | O55: 0
A56: 塑膠工業4 | B56: 塑膠工業22 | C56: 1337 再生-KY | D56: 塑膠工業 | E56: M1300 | F56: 75105 | G56: 66442 | H56: 13.04 | I56: 8663 | J56: 39 | K56: 25 | L56: 4 | M56: 22 | N56: 0 | O56: 0
A57: 塑膠工業1 | B57: 塑膠工業25 | C57: 1340 勝悅-KY | D57: 塑膠工業 | E57: M1300 | F57: 59538 | G57: 48654 | H57: 22.37 | I57: 10884 | J57: 39 | K57: 25 | L57: 1 | M57: 25 | N57: 0 | O57: 0
A58: 塑膠工業7 | B58: 塑膠工業19 | C58: 1341 富林-KY | D58: 塑膠工業 | E58: M1300 | F58: 227573 | G58: 221362 | H58: 2.81 | I58: 6211 | J58: 39 | K58: 25 | L58: 7 | M58: 19 | N58: 0 | O58: 0
A59: 塑膠工業23 | B59: 塑膠工業3 | C59: 4303 信立 | D59: 塑膠工業 | E59: M1300 | F59: 9079 | G59: 11120 | H59: -18.35 | I59: -2041 | J59: 39 | K59: 25 | L59: 23 | M59: 3 | N59: 0 | O59: 0
A60: 塑膠工業24 | B60: 塑膠工業2 | C60: 4304 勝昱 | D60: 塑膠工業 | E60: M1300 | F60: 22405 | G60: 28202 | H60: -20.56 | I60: -5797 | J60: 39 | K60: 25 | L60: 24 | M60: 2 | N60: 0 | O60: 0
A61: 塑膠工業15 | B61: 塑膠工業11 | C61: 4305 世坤 | D61: 塑膠工業 | E61: M1300 | F61: 88701 | G61: 92370 | H61: -3.97 | I61: -3669 | J61: 39 | K61: 25 | L61: 15 | M61: 11 | N61: 0 | O61: 0
A62: 塑膠工業2 | B62: 塑膠工業24 | C62: 4306 炎洲 | D62: 塑膠工業 | E62: M1300 | F62: 1309994 | G62: 1076933 | H62: 21.64 | I62: 233061 | J62: 39 | K62: 25 | L62: 2 | M62: 24 | N62: 0 | O62: 0
A63: 塑膠工業22 | B63: 塑膠工業4 | C63: 9950 萬國通 | D63: 塑膠工業 | E63: M1300 | F63: 236615 | G63: 285958 | H63: -17.26 | I63: -49343 | J63: 39 | K63: 25 | L63: 22 | M63: 4 | N63: 0 | O63: 0
A64: 紡織纖維24 | B64: 紡織纖維28 | C64: 1402 遠東新 | D64: 紡織纖維 | E64: M1400 | F64: 22437543 | G64: 23162130 | H64: -3.13 | I64: -724587 | J64: 64 | K64: 52 | L64: 24 | M64: 28 | N64: 0 | O64: 0
A65: 紡織纖維39 | B65: 紡織纖維13 | C65: 1409 新纖 | D65: 紡織纖維 | E65: M1400 | F65: 3253929 | G65: 3829791 | H65: -15.04 | I65: -575862 | J65: 64 | K65: 52 | L65: 39 | M65: 13 | N65: 0 | O65: 0
A66: 紡織纖維11 | B66: 紡織纖維41 | C66: 1410 南染 | D66: 紡織纖維 | E66: M1400 | F66: 18540 | G66: 16372 | H66: 13.24 | I66: 2168 | J66: 64 | K66: 52 | L66: 11 | M66: 41 | N66: 0 | O66: 0
A67: 紡織纖維13 | B67: 紡織纖維39 | C67: 1413 宏洲 | D67: 紡織纖維 | E67: M1400 | F67: 222728 | G67: 202309 | H67: 10.09 | I67: 20419 | J67: 64 | K67: 52 | L67: 13 | M67: 39 | N67: 0 | O67: 0
A68: =D68&L68 -> 紡織纖維30 | B68: =D68&M68 -> 紡織纖維22 | C68: 1414 東和 | D68: 紡織纖維 | E68: M1400 | F68: 46067 | G68: 48748 | H68: -5.5 | I68: =F68-G68 -> -2681 | J68: =IF(E68="","",MATCH(E68,E:E,0)) -> 64 | K68: =COUNTIF(D:D,D68) -> 52 | L68: =IF(H68="","",RANK(H68,OFFSET(H$1,$J68-1,,$K68,),0)) -> 30 | M68: =IF(H68="","",RANK(H68,OFFSET(H$1,$J68-1,,$K68,),1)) -> 22 | N68: 0 | O68: 0
A69: 紡織纖維9 | B69: 紡織纖維43 | C69: 1417 嘉裕 | D69: 紡織纖維 | E69: M1400 | F69: 112364 | G69: 94040 | H69: 19.49 | I69: 18324 | J69: 64 | K69: 52 | L69: 9 | M69: 43 | N69: 0 | O69: 0
A70: 紡織纖維51 | B70: 紡織纖維1 | C70: 1418 東華 | D70: 紡織纖維 | E70: M1400 | F70: 258 | G70: 1137 | H70: -77.31 | I70: -879 | J70: 64 | K70: 52 | L70: 51 | M70: 1 | N70: 0 | O70: 0
A71: 紡織纖維23 | B71: 紡織纖維29 | C71: 1419 新紡 | D71: 紡織纖維 | E71: M1400 | F71: 327793 | G71: 334093 | H71: -1.89 | I71: -6300 | J71: 64 | K71: 52 | L71: 23 | M71: 29 | N71: 0 | O71: 0
A72: 紡織纖維4 | B72: 紡織纖維48 | C72: 1423 利華 | D72: 紡織纖維 | E72: M1400 | F72: 9973 | G72: 6637 | H72: 50.26 | I72: 3336 | J72: 64 | K72: 52 | L72: 4 | M72: 48 | N72: 0 | O72: 0
A73: 紡織纖維31 | B73: 紡織纖維21 | C73: 1434 福懋 | D73: 紡織纖維 | E73: M1400 | F73: 2217809 | G73: 2407270 | H73: -7.87 | I73: -189461 | J73: 64 | K73: 52 | L73: 31 | M73: 21 | N73: 0 | O73: 0
A74: 紡織纖維10 | B74: 紡織纖維42 | C74: 1440 南紡 | D74: 紡織纖維 | E74: M1400 | F74: 1749050 | G74: 1477426 | H74: 18.38 | I74: 271624 | J74: 64 | K74: 52 | L74: 10 | M74: 42 | N74: 0 | O74: 0
A75: 紡織纖維2 | B75: 紡織纖維50 | C75: 1441 大東 | D75: 紡織纖維 | E75: M1400 | F75: 133170 | G75: 74396 | H75: 79 | I75: 58774 | J75: 64 | K75: 52 | L75: 2 | M75: 50 | N75: 0 | O75: 0
A76: 紡織纖維44 | B76: 紡織纖維8 | C76: 1444 力麗 | D76: 紡織纖維 | E76: M1400 | F76: 535533 | G76: 683136 | H76: -21.61 | I76: -147603 | J76: 64 | K76: 52 | L76: 44 | M76: 8 | N76: 0 | O76: 0
A77: 紡織纖維7 | B77: 紡織纖維45 | C77: 1445 大宇 | D77: 紡織纖維 | E77: M1400 | F77: 105406 | G77: 86848 | H77: 21.37 | I77: 18558 | J77: 64 | K77: 52 | L77: 7 | M77: 45 | N77: 0 | O77: 0
A78: 紡織纖維5 | B78: 紡織纖維47 | C78: 1446 宏和 | D78: 紡織纖維 | E78: M1400 | F78: 10093 | G78: 7358 | H78: 37.17 | I78: 2735 | J78: 64 | K78: 52 | L78: 5 | M78: 47 | N78: 0 | O78: 0
A79: 紡織纖維1 | B79: 紡織纖維51 | C79: 1447 力鵬 | D79: 紡織纖維 | E79: M1400 | F79: 2627957 | G79: 1328742 | H79: 97.78 | I79: 1299215 | J79: 64 | K79: 52 | L79: 1 | M79: 51 | N79: 0 | O79: 0
A80: 紡織纖維19 | B80: 紡織纖維33 | C80: 1449 佳和 | D80: 紡織纖維 | E80: M1400 | F80: 239989 | G80: 236451 | H80: 1.5 | I80: 3538 | J80: 64 | K80: 52 | L80: 19 | M80: 33 | N80: 0 | O80: 0
A81: 紡織纖維45 | B81: 紡織纖維7 | C81: 1451 年興 | D81: 紡織纖維 | E81: M1400 | F81: 353359 | G81: 461901 | H81: -23.5 | I81: -108542 | J81: 64 | K81: 52 | L81: 45 | M81: 7 | N81: 0 | O81: 0
A82: 紡織纖維6 | B82: 紡織纖維46 | C82: 1452 宏益 | D82: 紡織纖維 | E82: M1400 | F82: 117060 | G82: 93126 | H82: 25.7 | I82: 23934 | J82: 64 | K82: 52 | L82: 6 | M82: 46 | N82: 0 | O82: 0
A83: 紡織纖維40 | B83: 紡織纖維12 | C83: 1454 台富 | D83: 紡織纖維 | E83: M1400 | F83: 117788 | G83: 138803 | H83: -15.14 | I83: -21015 | J83: 64 | K83: 52 | L83: 40 | M83: 12 | N83: 0 | O83: 0
A84: 紡織纖維14 | B84: 紡織纖維38 | C84: 1455 集盛 | D84: 紡織纖維 | E84: M1400 | F84: 759281 | G84: 690467 | H84: 9.97 | I84: 68814 | J84: 64 | K84: 52 | L84: 14 | M84: 38 | N84: 0 | O84: 0
A85: 紡織纖維29 | B85: 紡織纖維23 | C85: 1457 宜進 | D85: 紡織纖維 | E85: M1400 | F85: 297085 | G85: 313769 | H85: -5.32 | I85: -16684 | J85: 64 | K85: 52 | L85: 29 | M85: 23 | N85: 0 | O85: 0
A86: 紡織纖維3 | B86: 紡織纖維49 | C86: 1459 聯發 | D86: 紡織纖維 | E86: M1400 | F86: 148718 | G86: 98023 | H86: 51.72 | I86: 50695 | J86: 64 | K86: 52 | L86: 3 | M86: 49 | N86: 0 | O86: 0
A87: 紡織纖維18 | B87: 紡織纖維34 | C87: 1460 宏遠 | D87: 紡織纖維 | E87: M1400 | F87: 750216 | G87: 720391 | H87: 4.14 | I87: 29825 | J87: 64 | K87: 52 | L87: 18 | M87: 34 | N87: 0 | O87: 0
A88: 紡織纖維43 | B88: 紡織纖維9 | C88: 1463 強盛 | D88: 紡織纖維 | E88: M1400 | F88: 30055 | G88: 38000 | H88: -20.91 | I88: -7945 | J88: 64 | K88: 52 | L88: 43 | M88: 9 | N88: 0 | O88: 0
A89: 紡織纖維33 | B89: 紡織纖維18 | C89: 1464 得力 | D89: 紡織纖維 | E89: M1400 | F89: 857638 | G89: 961770 | H89: -10.83 | I89: -104132 | J89: 64 | K89: 52 | L89: 33 | M89: 18 | N89: 0 | O89: 0
A90: 紡織纖維46 | B90: 紡織纖維6 | C90: 1465 偉全 | D90: 紡織纖維 | E90: M1400 | F90: 31064 | G90: 40641 | H90: -23.56 | I90: -9577 | J90: 64 | K90: 52 | L90: 46 | M90: 6 | N90: 0 | O90: 0
A91: 紡織纖維20 | B91: 紡織纖維32 | C91: 1466 聚隆 | D91: 紡織纖維 | E91: M1400 | F91: 243687 | G91: 242571 | H91: 0.46 | I91: 1116 | J91: 64 | K91: 52 | L91: 20 | M91: 32 | N91: 0 | O91: 0
A92: 紡織纖維47 | B92: 紡織纖維5 | C92: 1467 南緯 | D92: 紡織纖維 | E92: M1400 | F92: 336060 | G92: 489276 | H92: -31.31 | I92: -153216 | J92: 64 | K92: 52 | L92: 47 | M92: 5 | N92: 0 | O92: 0
A93: 紡織纖維41 | B93: 紡織纖維11 | C93: 1468 昶和 | D93: 紡織纖維 | E93: M1400 | F93: 69010 | G93: 81874 | H93: -15.71 | I93: -12864 | J93: 64 | K93: 52 | L93: 41 | M93: 11 | N93: 0 | O93: 0
A94: 紡織纖維17 | B94: 紡織纖維35 | C94: 1470 大統新創 | D94: 紡織纖維 | E94: M1400 | F94: 44711 | G94: 42437 | H94: 5.36 | I94: 2274 | J94: 64 | K94: 52 | L94: 17 | M94: 35 | N94: =U94 -> 0 | O94: =V94 -> 0
A95: 紡織纖維21 | B95: 紡織纖維31 | C95: 1473 台南 | D95: 紡織纖維 | E95: M1400 | F95: 401621 | G95: 404571 | H95: -0.73 | I95: -2950 | J95: 64 | K95: 52 | L95: 21 | M95: 31 | N95: 0 | O95: 0
A96: 紡織纖維27 | B96: 紡織纖維25 | C96: 1474 弘裕 | D96: 紡織纖維 | E96: M1400 | F96: 223492 | G96: 235637 | H96: -5.15 | I96: -12145 | J96: 64 | K96: 52 | L96: 27 | M96: 25 | N96: 0 | O96: 0
A97: 紡織纖維26 | B97: 紡織纖維26 | C97: 1475 業旺 | D97: 紡織纖維 | E97: M1400 | F97: 107714 | G97: 112605 | H97: -4.34 | I97: -4891 | J97: 64 | K97: 52 | L97: 26 | M97: 26 | N97: 0 | O97: 0
A98: 紡織纖維8 | B98: 紡織纖維44 | C98: 1476 儒鴻 | D98: 紡織纖維 | E98: M1400 | F98: 2856878 | G98: 2382299 | H98: 19.92 | I98: 474579 | J98: 64 | K98: 52 | L98: 8 | M98: 44 | N98: 0 | O98: 0
A99: 紡織纖維36 | B99: 紡織纖維16 | C99: 1477 聚陽 | D99: 紡織纖維 | E99: M1400 | F99: 2477334 | G99: 2800342 | H99: -11.53 | I99: -323008 | J99: 64 | K99: 52 | L99: 36 | M99: 16 | N99: 0 | O99: 0
A100: 紡織纖維15 | B100: 紡織纖維37 | C100: 4401 東隆興 | D100: 紡織纖維 | E100: M1400 | F100: 308957 | G100: 285499 | H100: 8.22 | I100: 23458 | J100: 64 | K100: 52 | L100: 15 | M100: 37 | N100: 0 | O100: 0
A101: 紡織纖維37 | B101: 紡織纖維15 | C101: 4402 福大 | D101: 紡織纖維 | E101: M1400 | F101: 10943 | G101: 12797 | H101: -14.49 | I101: -1854 | J101: 64 | K101: 52 | L101: 37 | M101: 15 | N101: 0 | O101: 0
A102: 紡織纖維42 | B102: 紡織纖維10 | C102: 4406 新昕纖 | D102: 紡織纖維 | E102: M1400 | F102: 29335 | G102: 34838 | H102: -15.8 | I102: -5503 | J102: 64 | K102: 52 | L102: 42 | M102: 10 | N102: 0 | O102: 0
A103: 紡織纖維32 | B103: 紡織纖維20 | C103: 4413 飛寶企業 | D103: 紡織纖維 | E103: M1400 | F103: 39500 | G103: 43619 | H103: -9.44 | I103: -4119 | J103: 64 | K103: 52 | L103: 32 | M103: 20 | N103: 0 | O103: 0
A104: 紡織纖維28 | B104: 紡織纖維24 | C104: 4414 如興 | D104: 紡織纖維 | E104: M1400 | F104: 1027454 | G104: 1085047 | H104: -5.31 | I104: -57593 | J104: 64 | K104: 52 | L104: 28 | M104: 24 | N104: 0 | O104: 0
A105: 紡織纖維22 | B105: 紡織纖維30 | C105: 4417 金洲 | D105: 紡織纖維 | E105: M1400 | F105: 238283 | G105: 242812 | H105: -1.87 | I105: -4529 | J105: 64 | K105: 52 | L105: 22 | M105: 30 | N105: 0 | O105: 0
A106: 紡織纖維12 | B106: 紡織纖維40 | C106: 4419 元勝 | D106: 紡織纖維 | E106: M1400 | F106: 30123 | G106: 27033 | H106: 11.43 | I106: 3090 | J106: 64 | K106: 52 | L106: 12 | M106: 40 | N106: 0 | O106: 0
A107: 紡織纖維33 | B107: 紡織纖維18 | C107: 4420 光明 | D107: 紡織纖維 | E107: M1400 | F107: 58466 | G107: 65564 | H107: -10.83 | I107: -7098 | J107: 64 | K107: 52 | L107: 33 | M107: 18 | N107: 0 | O107: 0
A108: 紡織纖維38 | B108: 紡織纖維14 | C108: 4426 利勤 | D108: 紡織纖維 | E108: M1400 | F108: 97965 | G108: 114837 | H108: -14.69 | I108: -16872 | J108: 64 | K108: 52 | L108: 38 | M108: 14 | N108: 0 | O108: 0
A109: 紡織纖維50 | B109: 紡織纖維2 | C109: 4432 銘旺實 | D109: 紡織纖維 | E109: M1400 | F109: 38463 | G109: 102372 | H109: -62.43 | I109: -63909 | J109: 64 | K109: 52 | L109: 50 | M109: 2 | N109: 0 | O109: 0
A110: 紡織纖維35 | B110: 紡織纖維17 | C110: 4433 興采 | D110: 紡織纖維 | E110: M1400 | F110: 201623 | G110: 226379 | H110: -10.94 | I110: -24756 | J110: 64 | K110: 52 | L110: 35 | M110: 17 | N110: 0 | O110: 0
A111: 紡織纖維49 | B111: 紡織纖維3 | C111: 4438 廣越 | D111: 紡織纖維 | E111: M1400 | F111: 1113161 | G111: 2232541 | H111: -50.14 | I111: -1119380 | J111: 64 | K111: 52 | L111: 49 | M111: 3 | N111: 0 | O111: 0
A112: 紡織纖維48 | B112: 紡織纖維4 | C112: 4439 冠星-KY | D112: 紡織纖維 | E112: M1400 | F112: 312770 | G112: 482386 | H112: -35.16 | I112: -169616 | J112: 64 | K112: 52 | L112: 48 | M112: 4 | N112: 0 | O112: 0
A113: 紡織纖維25 | B113: 紡織纖維27 | C113: 4440 宜新實業 | D113: 紡織纖維 | E113: M1400 | F113: 73576 | G113: 76828 | H113: -4.23 | I113: -3252 | J113: 64 | K113: 52 | L113: 25 | M113: 27 | N113: 0 | O113: 0
A114: 紡織纖維 | B114: 紡織纖維 | C114: 4442 竣邦國際 | D114: 紡織纖維 | E114: M1400 | F114: 74938 | I114: 74938 | J114: 64 | K114: 52 | N114: 0 | O114: 0
A115: 紡織纖維16 | B115: 紡織纖維36 | C115: 6506 雙邦 | D115: 紡織纖維 | E115: M1400 | F115: 121403 | G115: 115161 | H115: 5.42 | I115: 6242 | J115: 64 | K115: 52 | L115: 16 | M115: 36 | N115: 0 | O115: 0
A116: 電機機械34 | B116: 電機機械62 | C116: 1503 士電 | D116: 電機機械 | E116: M1500 | F116: 2343233 | G116: 2388149 | H116: -1.88 | I116: -44916 | J116: 116 | K116: 95 | L116: 34 | M116: 62 | N116: 0 | O116: 0
A117: 電機機械55 | B117: 電機機械41 | C117: 1504 東元 | D117: 電機機械 | E117: M1500 | F117: 4664515 | G117: 5300860 | H117: -12 | I117: -636345 | J117: 116 | K117: 95 | L117: 55 | M117: 41 | N117: 0 | O117: 0
A118: 電機機械31 | B118: 電機機械65 | C118: 1506 正道 | D118: 電機機械 | E118: M1500 | F118: 94325 | G118: 93680 | H118: 0.69 | I118: 645 | J118: 116 | K118: 95 | L118: 31 | M118: 65 | N118: 0 | O118: 0
A119: 電機機械13 | B119: 電機機械83 | C119: 1513 中興電 | D119: 電機機械 | E119: M1500 | F119: 2005685 | G119: 1709458 | H119: 17.33 | I119: 296227 | J119: 116 | K119: 95 | L119: 13 | M119: 83 | N119: 0 | O119: 0
A120: 電機機械10 | B120: 電機機械86 | C120: 1514 亞力 | D120: 電機機械 | E120: M1500 | F120: 938539 | G120: 777195 | H120: 20.76 | I120: 161344 | J120: 116 | K120: 95 | L120: 10 | M120: 86 | N120: 0 | O120: 0
A121: 電機機械17 | B121: 電機機械79 | C121: 1515 力山 | D121: 電機機械 | E121: M1500 | F121: 876716 | G121: 796888 | H121: 10.02 | I121: 79828 | J121: 116 | K121: 95 | L121: 17 | M121: 79 | N121: 0 | O121: 0
A122: 電機機械35 | B122: 電機機械61 | C122: 1517 利奇 | D122: 電機機械 | E122: M1500 | F122: 118924 | G122: 121960 | H122: -2.49 | I122: -3036 | J122: 116 | K122: 95 | L122: 35 | M122: 61 | N122: 0 | O122: 0
A123: 電機機械41 | B123: 電機機械55 | C123: 1519 華城 | D123: 電機機械 | E123: M1500 | F123: 1345186 | G123: 1441440 | H123: -6.68 | I123: -96254 | J123: 116 | K123: 95 | L123: 41 | M123: 55 | N123: 0 | O123: 0
A124: 電機機械30 | B124: 電機機械66 | C124: 1526 日馳 | D124: 電機機械 | E124: M1500 | F124: 56934 | G124: 55961 | H124: 1.74 | I124: 973 | J124: 116 | K124: 95 | L124: 30 | M124: 66 | N124: 0 | O124: 0
A125: 電機機械59 | B125: 電機機械37 | C125: 1527 鑽全 | D125: 電機機械 | E125: M1500 | F125: 200496 | G125: 233099 | H125: -13.99 | I125: -32603 | J125: 116 | K125: 95 | L125: 59 | M125: 37 | N125: 0 | O125: 0
A126: 電機機械8 | B126: 電機機械88 | C126: 1528 恩德 | D126: 電機機械 | E126: M1500 | F126: 365141 | G126: 290165 | H126: 25.84 | I126: 74976 | J126: 116 | K126: 95 | L126: 8 | M126: 88 | N126: 0 | O126: 0
A127: 電機機械89 | B127: 電機機械7 | C127: 1529 樂事綠能 | D127: 電機機械 | E127: M1500 | F127: 76617 | G127: 114243 | H127: -32.94 | I127: -37626 | J127: 116 | K127: 95 | L127: 89 | M127: 7 | N127: 0 | O127: 0
A128: 電機機械95 | B128: 電機機械1 | C128: 1530 亞崴 | D128: 電機機械 | E128: M1500 | F128: 129164 | G128: 271990 | H128: -52.51 | I128: -142826 | J128: 116 | K128: 95 | L128: 95 | M128: 1 | N128: 0 | O128: 0
A129: 電機機械39 | B129: 電機機械57 | C129: 1531 高林股 | D129: 電機機械 | E129: M1500 | F129: 110562 | G129: 117776 | H129: -6.13 | I129: -7214 | J129: 116 | K129: 95 | L129: 39 | M129: 57 | N129: 0 | O129: 0
A130: 電機機械62 | B130: 電機機械34 | C130: 1532 勤美 | D130: 電機機械 | E130: M1500 | F130: 1018575 | G130: 1201528 | H130: -15.23 | I130: -182953 | J130: 116 | K130: 95 | L130: 62 | M130: 34 | N130: 0 | O130: 0
A131: 電機機械15 | B131: 電機機械81 | C131: 1535 中宇 | D131: 電機機械 | E131: M1500 | F131: 845468 | G131: 749850 | H131: 12.75 | I131: 95618 | J131: 116 | K131: 95 | L131: 15 | M131: 81 | N131: 0 | O131: 0
A132: =D132&L132 -> 電機機械11 | B132: =D132&M132 -> 電機機械85 | C132: 1537 廣隆 | D132: 電機機械 | E132: M1500 | F132: 636835 | G132: 534044 | H132: 19.25 | I132: =F132-G132 -> 102791 | J132: =IF(E132="","",MATCH(E132,E:E,0)) -> 116 | K132: =COUNTIF(D:D,D132) -> 95 | L132: =IF(H132="","",RANK(H132,OFFSET(H$1,$J132-1,,$K132,),0)) -> 11 | M132: =IF(H132="","",RANK(H132,OFFSET(H$1,$J132-1,,$K132,),1)) -> 85 | N132: 0 | O132: 0
A133: 電機機械48 | B133: 電機機械48 | C133: 1538 正峰 | D133: 電機機械 | E133: M1500 | F133: 13566 | G133: 14900 | H133: -8.95 | I133: -1334 | J133: 116 | K133: 95 | L133: 48 | M133: 48 | N133: 0 | O133: 0
A134: 電機機械23 | B134: 電機機械73 | C134: 1539 巨庭 | D134: 電機機械 | E134: M1500 | F134: 157494 | G134: 150541 | H134: 4.62 | I134: 6953 | J134: 116 | K134: 95 | L134: 23 | M134: 73 | N134: 0 | O134: 0
A135: 電機機械1 | B135: 電機機械95 | C135: 1540 喬福 | D135: 電機機械 | E135: M1500 | F135: 81030 | G135: 26831 | H135: 202 | I135: 54199 | J135: 116 | K135: 95 | L135: 1 | M135: 95 | N135: 0 | O135: 0
A136: 電機機械4 | B136: 電機機械92 | C136: 1541 錩泰 | D136: 電機機械 | E136: M1500 | F136: 395570 | G136: 245401 | H136: 61.19 | I136: 150169 | J136: 116 | K136: 95 | L136: 4 | M136: 92 | N136: 0 | O136: 0
A137: 電機機械78 | B137: 電機機械18 | C137: 1558 伸興 | D137: 電機機械 | E137: M1500 | F137: 572850 | G137: 735363 | H137: -22.1 | I137: -162513 | J137: 116 | K137: 95 | L137: 78 | M137: 18 | N137: 0 | O137: 0
A138: 電機機械37 | B138: 電機機械59 | C138: 1560 中砂 | D138: 電機機械 | E138: M1500 | F138: 553579 | G138: 569539 | H138: -2.8 | I138: -15960 | J138: 116 | K138: 95 | L138: 37 | M138: 59 | N138: 0 | O138: 0
A139: 電機機械9 | B139: 電機機械87 | C139: 1570 力肯 | D139: 電機機械 | E139: M1500 | F139: 24795 | G139: 20095 | H139: 23.39 | I139: 4700 | J139: 116 | K139: 95 | L139: 9 | M139: 87 | N139: 0 | O139: 0
A140: 電機機械65 | B140: 電機機械31 | C140: 1580 新麥 | D140: 電機機械 | E140: M1500 | F140: 375983 | G140: 449843 | H140: -16.42 | I140: -73860 | J140: 116 | K140: 95 | L140: 65 | M140: 31 | N140: 0 | O140: 0
A141: 電機機械43 | B141: 電機機械53 | C141: 1583 程泰 | D141: 電機機械 | E141: M1500 | F141: 453815 | G141: 486883 | H141: -6.79 | I141: -33068 | J141: 116 | K141: 95 | L141: 43 | M141: 53 | N141: 0 | O141: 0
A142: 電機機械24 | B142: 電機機械72 | C142: 1586 和勤 | D142: 電機機械 | E142: M1500 | F142: 226050 | G142: 216274 | H142: 4.52 | I142: 9776 | J142: 116 | K142: 95 | L142: 24 | M142: 72 | N142: 0 | O142: 0
A143: 電機機械28 | B143: 電機機械68 | C143: 1589 永冠-KY | D143: 電機機械 | E143: M1500 | F143: 678255 | G143: 663609 | H143: 2.21 | I143: 14646 | J143: 116 | K143: 95 | L143: 28 | M143: 68 | N143: 0 | O143: 0
A144: 電機機械45 | B144: 電機機械51 | C144: 1590 亞德客-KY | D144: 電機機械 | E144: M1500 | F144: 2395758 | G144: 2591877 | H144: -7.57 | I144: -196119 | J144: 116 | K144: 95 | L144: 45 | M144: 51 | N144: 0 | O144: 0
A145: 電機機械84 | B145: 電機機械12 | C145: 1591 駿吉-KY | D145: 電機機械 | E145: M1500 | F145: 6338 | G145: 8575 | H145: -26.09 | I145: -2237 | J145: 116 | K145: 95 | L145: 84 | M145: 12 | N145: 0 | O145: 0
A146: 電機機械36 | B146: 電機機械60 | C146: 1597 直得 | D146: 電機機械 | E146: M1500 | F146: 80316 | G146: 82550 | H146: -2.71 | I146: -2234 | J146: 116 | K146: 95 | L146: 36 | M146: 60 | N146: 0 | O146: 0
A147: 電機機械94 | B147: 電機機械2 | C147: 1599 宏佳騰 | D147: 電機機械 | E147: M1500 | F147: 170654 | G147: 315732 | H147: -45.95 | I147: -145078 | J147: 116 | K147: 95 | L147: 94 | M147: 2 | N147: 0 | O147: 0
A148: 電機機械44 | B148: 電機機械52 | C148: 2049 上銀 | D148: 電機機械 | E148: M1500 | F148: 2000161 | G148: 2161208 | H148: -7.45 | I148: -161047 | J148: 116 | K148: 95 | L148: 44 | M148: 52 | N148: 0 | O148: 0
A149: 電機機械46 | B149: 電機機械50 | C149: 2066 世德 | D149: 電機機械 | E149: M1500 | F149: 208542 | G149: 226534 | H149: -7.94 | I149: -17992 | J149: 116 | K149: 95 | L149: 46 | M149: 50 | N149: 0 | O149: 0
A150: 電機機械71 | B150: 電機機械25 | C150: 2067 嘉鋼 | D150: 電機機械 | E150: M1500 | F150: 80213 | G150: 98246 | H150: -18.35 | I150: -18033 | J150: 116 | K150: 95 | L150: 71 | M150: 25 | N150: 0 | O150: 0
A151: 電機機械82 | B151: 電機機械14 | C151: 2070 精湛 | D151: 電機機械 | E151: M1500 | F151: 42394 | G151: 57087 | H151: -25.74 | I151: -14693 | J151: 116 | K151: 95 | L151: 82 | M151: 14 | N151: 0 | O151: 0
A152: 電機機械19 | B152: 電機機械77 | C152: 2230 泰茂 | D152: 電機機械 | E152: M1500 | F152: 66590 | G152: 62200 | H152: 7.06 | I152: 4390 | J152: 116 | K152: 95 | L152: 19 | M152: 77 | N152: 0 | O152: 0
A153: 電機機械32 | B153: 電機機械64 | C153: 2235 謚源 | D153: 電機機械 | E153: M1500 | F153: 60675 | G153: 60338 | H153: 0.56 | I153: 337 | J153: 116 | K153: 95 | L153: 32 | M153: 64 | N153: 0 | O153: 0
A154: 電機機械42 | B154: 電機機械54 | C154: 2371 大同 | D154: 電機機械 | E154: M1500 | F154: 3499622 | G154: 3752193 | H154: -6.73 | I154: -252571 | J154: 116 | K154: 95 | L154: 42 | M154: 54 | N154: 0 | O154: 0
A155: 電機機械14 | B155: 電機機械82 | C155: 3162 精確 | D155: 電機機械 | E155: M1500 | F155: 314172 | G155: 270444 | H155: 16.17 | I155: 43728 | J155: 116 | K155: 95 | L155: 14 | M155: 82 | N155: 0 | O155: 0
A156: 電機機械7 | B156: 電機機械89 | C156: 3167 大量 | D156: 電機機械 | E156: M1500 | F156: 158231 | G156: 120769 | H156: 31.02 | I156: 37462 | J156: 116 | K156: 95 | L156: 7 | M156: 89 | N156: 0 | O156: 0
A157: 電機機械60 | B157: 電機機械36 | C157: 3226 至寶電 | D157: 電機機械 | E157: M1500 | F157: 188197 | G157: 218999 | H157: -14.06 | I157: -30802 | J157: 116 | K157: 95 | L157: 60 | M157: 36 | N157: 0 | O157: 0
A158: 電機機械75 | B158: 電機機械21 | C158: 3379 彬台 | D158: 電機機械 | E158: M1500 | F158: 24628 | G158: 30970 | H158: -20.48 | I158: -6342 | J158: 116 | K158: 95 | L158: 75 | M158: 21 | N158: =U158 -> 0 | O158: =V158 -> 0
A159: 電機機械5 | B159: 電機機械91 | C159: 3426 台興 | D159: 電機機械 | E159: M1500 | F159: 64107 | G159: 43086 | H159: 48.79 | I159: 21021 | J159: 116 | K159: 95 | L159: 5 | M159: 91 | N159: 0 | O159: 0
A160: 電機機械73 | B160: 電機機械23 | C160: 3685 元創精密 | D160: 電機機械 | E160: M1500 | F160: 95443 | G160: 118857 | H160: -19.7 | I160: -23414 | J160: 116 | K160: 95 | L160: 73 | M160: 23 | N160: 0 | O160: 0
A161: 電機機械77 | B161: 電機機械19 | C161: 4502 健信 | D161: 電機機械 | E161: M1500 | F161: 137693 | G161: 175577 | H161: -21.58 | I161: -37884 | J161: 116 | K161: 95 | L161: 77 | M161: 19 | N161: 0 | O161: 0
A162: 電機機械25 | B162: 電機機械71 | C162: 4503 金雨 | D162: 電機機械 | E162: M1500 | F162: 31860 | G162: 30688 | H162: 3.82 | I162: 1172 | J162: 116 | K162: 95 | L162: 25 | M162: 71 | N162: 0 | O162: 0
A163: 電機機械80 | B163: 電機機械16 | C163: 4506 崇友 | D163: 電機機械 | E163: M1500 | F163: 387198 | G163: 506335 | H163: -23.53 | I163: -119137 | J163: 116 | K163: 95 | L163: 80 | M163: 16 | N163: 0 | O163: 0
A164: 電機機械61 | B164: 電機機械35 | C164: 4510 高鋒 | D164: 電機機械 | E164: M1500 | F164: 169372 | G164: 198820 | H164: -14.81 | I164: -29448 | J164: 116 | K164: 95 | L164: 61 | M164: 35 | N164: 0 | O164: 0
A165: 電機機械74 | B165: 電機機械22 | C165: 4513 福裕 | D165: 電機機械 | E165: M1500 | F165: 89613 | G165: 111674 | H165: -19.75 | I165: -22061 | J165: 116 | K165: 95 | L165: 74 | M165: 22 | N165: 0 | O165: 0
A166: 電機機械2 | B166: 電機機械94 | C166: 4523 永彰 | D166: 電機機械 | E166: M1500 | F166: 74827 | G166: 39371 | H166: 90.06 | I166: 35456 | J166: 116 | K166: 95 | L166: 2 | M166: 94 | N166: 0 | O166: 0
A167: 電機機械85 | B167: 電機機械11 | C167: 4526 東台 | D167: 電機機械 | E167: M1500 | F167: 547976 | G167: 749164 | H167: -26.86 | I167: -201188 | J167: 116 | K167: 95 | L167: 85 | M167: 11 | N167: 0 | O167: 0
A168: 電機機械93 | B168: 電機機械3 | C168: 4527 方方土霖 | D168: 電機機械 | E168: M1500 | F168: 177254 | G168: 303924 | H168: -41.68 | I168: -126670 | J168: 116 | K168: 95 | L168: 93 | M168: 3 | N168: 0 | O168: 0
A169: 電機機械21 | B169: 電機機械75 | C169: 4528 江興鍛 | D169: 電機機械 | E169: M1500 | F169: 160094 | G169: 152128 | H169: 5.24 | I169: 7966 | J169: 116 | K169: 95 | L169: 21 | M169: 75 | N169: 0 | O169: 0
A170: 電機機械26 | B170: 電機機械70 | C170: 4532 瑞智 | D170: 電機機械 | E170: M1500 | F170: 1224674 | G170: 1194250 | H170: 2.55 | I170: 30424 | J170: 116 | K170: 95 | L170: 26 | M170: 70 | N170: 0 | O170: 0
A171: 電機機械6 | B171: 電機機械90 | C171: 4533 協易機 | D171: 電機機械 | E171: M1500 | F171: 427815 | G171: 302363 | H171: 41.49 | I171: 125452 | J171: 116 | K171: 95 | L171: 6 | M171: 90 | N171: 0 | O171: 0
A172: 電機機械40 | B172: 電機機械56 | C172: 4534 慶騰 | D172: 電機機械 | E172: M1500 | F172: 58577 | G172: 62458 | H172: -6.21 | I172: -3881 | J172: 116 | K172: 95 | L172: 40 | M172: 56 | N172: 0 | O172: 0
A173: 電機機械16 | B173: 電機機械80 | C173: 4535 至興 | D173: 電機機械 | E173: M1500 | F173: 266570 | G173: 239599 | H173: 11.26 | I173: 26971 | J173: 116 | K173: 95 | L173: 16 | M173: 80 | N173: 0 | O173: 0
A174: 電機機械72 | B174: 電機機械24 | C174: 4538 大詠城 | D174: 電機機械 | E174: M1500 | F174: 26020 | G174: 32240 | H174: -19.29 | I174: -6220 | J174: 116 | K174: 95 | L174: 72 | M174: 24 | N174: 0 | O174: 0
A175: 電機機械64 | B175: 電機機械32 | C175: 4540 全球傳動 | D175: 電機機械 | E175: M1500 | F175: 149449 | G175: 176788 | H175: -15.46 | I175: -27339 | J175: 116 | K175: 95 | L175: 64 | M175: 32 | N175: 0 | O175: 0
A176: 電機機械18 | B176: 電機機械78 | C176: 4543 萬在 | D176: 電機機械 | E176: M1500 | F176: 58079 | G176: 53993 | H176: 7.57 | I176: 4086 | J176: 116 | K176: 95 | L176: 18 | M176: 78 | N176: 0 | O176: 0
A177: 電機機械81 | B177: 電機機械15 | C177: 4549 桓達 | D177: 電機機械 | E177: M1500 | F177: 113150 | G177: 148065 | H177: -23.58 | I177: -34915 | J177: 116 | K177: 95 | L177: 81 | M177: 15 | N177: 0 | O177: 0
A178: 電機機械86 | B178: 電機機械10 | C178: 4550 長佳 | D178: 電機機械 | E178: M1500 | F178: 153624 | G178: 210768 | H178: -27.11 | I178: -57144 | J178: 116 | K178: 95 | L178: 86 | M178: 10 | N178: 0 | O178: 0
A179: 電機機械63 | B179: 電機機械33 | C179: 4552 力達-KY | D179: 電機機械 | E179: M1500 | F179: 476701 | G179: 563816 | H179: -15.45 | I179: -87115 | J179: 116 | K179: 95 | L179: 63 | M179: 33 | N179: 0 | O179: 0
A180: 電機機械52 | B180: 電機機械44 | C180: 4555 氣立 | D180: 電機機械 | E180: M1500 | F180: 91263 | G180: 102528 | H180: -10.99 | I180: -11265 | J180: 116 | K180: 95 | L180: 52 | M180: 44 | N180: 0 | O180: 0
A181: 電機機械66 | B181: 電機機械30 | C181: 4558 寶緯 | D181: 電機機械 | E181: M1500 | F181: 140709 | G181: 169104 | H181: -16.79 | I181: -28395 | J181: 116 | K181: 95 | L181: 66 | M181: 30 | N181: 0 | O181: 0
A182: 電機機械29 | B182: 電機機械67 | C182: 4560 強信-KY | D182: 電機機械 | E182: M1500 | F182: 108184 | G182: 106230 | H182: 1.84 | I182: 1954 | J182: 116 | K182: 95 | L182: 29 | M182: 67 | N182: 0 | O182: 0
A183: 電機機械88 | B183: 電機機械8 | C183: 4561 健椿 | D183: 電機機械 | E183: M1500 | F183: 87336 | G183: 124749 | H183: -29.99 | I183: -37413 | J183: 116 | K183: 95 | L183: 88 | M183: 8 | N183: 0 | O183: 0
A184: 電機機械91 | B184: 電機機械5 | C184: 4562 穎漢 | D184: 電機機械 | E184: M1500 | F184: 43827 | G184: 73298 | H184: -40.21 | I184: -29471 | J184: 116 | K184: 95 | L184: 91 | M184: 5 | N184: 0 | O184: 0
A185: 電機機械92 | B185: 電機機械4 | C185: 4563 百德 | D185: 電機機械 | E185: M1500 | F185: 199346 | G185: 337720 | H185: -40.97 | I185: -138374 | J185: 116 | K185: 95 | L185: 92 | M185: 4 | N185: 0 | O185: 0
A186: 電機機械20 | B186: 電機機械76 | C186: 4564 元翎 | D186: 電機機械 | E186: M1500 | F186: 99786 | G186: 94473 | H186: 5.62 | I186: 5313 | J186: 116 | K186: 95 | L186: 20 | M186: 76 | N186: 0 | O186: 0
A187: 電機機械54 | B187: 電機機械42 | C187: 4566 時碩工業 | D187: 電機機械 | E187: M1500 | F187: 315535 | G187: 356366 | H187: -11.46 | I187: -40831 | J187: 116 | K187: 95 | L187: 54 | M187: 42 | N187: 0 | O187: 0
A188: 電機機械87 | B188: 電機機械9 | C188: 4568 科際精密 | D188: 電機機械 | E188: M1500 | F188: 74912 | G188: 104599 | H188: -28.38 | I188: -29687 | J188: 116 | K188: 95 | L188: 87 | M188: 9 | N188: 0 | O188: 0
A189: 電機機械68 | B189: 電機機械27 | C189: 4571 鈞興-KY | D189: 電機機械 | E189: M1500 | F189: 175355 | G189: 213718 | H189: -17.95 | I189: -38363 | J189: 116 | K189: 95 | L189: 68 | M189: 27 | N189: 0 | O189: 0
A190: 電機機械67 | B190: 電機機械29 | C190: 4572 駐龍 | D190: 電機機械 | E190: M1500 | F190: 65063 | G190: 78778 | H190: -17.41 | I190: -13715 | J190: 116 | K190: 95 | L190: 67 | M190: 29 | N190: 0 | O190: 0
A191: 電機機械27 | B191: 電機機械69 | C191: 4576 大銀微系統 | D191: 電機機械 | E191: M1500 | F191: 190620 | G191: 186295 | H191: 2.32 | I191: 4325 | J191: 116 | K191: 95 | L191: 27 | M191: 69 | N191: 0 | O191: 0
A192: 電機機械50 | B192: 電機機械46 | C192: 4580 捷流閥業 | D192: 電機機械 | E192: M1500 | F192: 201711 | G192: 225318 | H192: -10.48 | I192: -23607 | J192: 116 | K192: 95 | L192: 50 | M192: 46 | N192: 0 | O192: 0
A193: 電機機械12 | B193: 電機機械84 | C193: 4583 台灣精銳 | D193: 電機機械 | E193: M1500 | F193: 240051 | G193: 201638 | H193: 19.05 | I193: 38413 | J193: 116 | K193: 95 | L193: 12 | M193: 84 | N193: 0 | O193: 0
A194: 電機機械51 | B194: 電機機械45 | C194: 4584 君帆 | D194: 電機機械 | E194: M1500 | F194: 92678 | G194: 103803 | H194: -10.72 | I194: -11125 | J194: 116 | K194: 95 | L194: 51 | M194: 45 | N194: 0 | O194: 0
A195: 電機機械47 | B195: 電機機械49 | C195: 5288 豐祥-KY | D195: 電機機械 | E195: M1500 | F195: 544560 | G195: 593275 | H195: -8.21 | I195: -48715 | J195: 116 | K195: 95 | L195: 47 | M195: 49 | N195: 0 | O195: 0
A196: =D196&L196 -> 電機機械3 | B196: =D196&M196 -> 電機機械93 | C196: 6122 擎邦 | D196: 電機機械 | E196: M1500 | F196: 707568 | G196: 427280 | H196: 65.6 | I196: =F196-G196 -> 280288 | J196: =IF(E196="","",MATCH(E196,E:E,0)) -> 116 | K196: =COUNTIF(D:D,D196) -> 95 | L196: =IF(H196="","",RANK(H196,OFFSET(H$1,$J196-1,,$K196,),0)) -> 3 | M196: =IF(H196="","",RANK(H196,OFFSET(H$1,$J196-1,,$K196,),1)) -> 93 | N196: 0 | O196: 0
A197: 電機機械57 | B197: 電機機械39 | C197: 6425 易發 | D197: 電機機械 | E197: M1500 | F197: 83800 | G197: 96329 | H197: -13.01 | I197: -12529 | J197: 116 | K197: 95 | L197: 57 | M197: 39 | N197: 0 | O197: 0
A198: 電機機械49 | B198: 電機機械47 | C198: 6603 富強鑫 | D198: 電機機械 | E198: M1500 | F198: 296241 | G198: 329018 | H198: -9.96 | I198: -32777 | J198: 116 | K198: 95 | L198: 49 | M198: 47 | N198: 0 | O198: 0
A199: 電機機械79 | B199: 電機機械17 | C199: 6606 建德工業 | D199: 電機機械 | E199: M1500 | F199: 52668 | G199: 68199 | H199: -22.77 | I199: -15531 | J199: 116 | K199: 95 | L199: 79 | M199: 17 | N199: 0 | O199: 0
A200: 電機機械70 | B200: 電機機械26 | C200: 6609 瀧澤科 | D200: 電機機械 | E200: M1500 | F200: 169147 | G200: 206715 | H200: -18.17 | I200: -37568 | J200: 116 | K200: 95 | L200: 70 | M200: 26 | N200: 0 | O200: 0
... 2800 more rows

Sheet 表C_RAW
A1: 排名(正向) | B1: 排名(反向) | D1: TSE新產業_名稱 | E1: TSE新產業_代碼 | F1: 累計營收(千元) | G1: 去年累計營收(千元) | H1: 累計營收成長率％ | J1: 產業位址 | K1: 產業家數 | L1: 排名(正向) | M1: 排名(反向) | N1: 排名(正向) | O1: 排名(反向) | P1: 產業營收 | Q1: 單月營收(千元) | R1: 上月單月營收(千元) | S1: 本月較上月變動金額 | T1: 單月營收與上月比％ | U1: 排名(正向) | V1: 排名(反向)
C2: 公司 | E2: 2023-10-31 | F2: 2023-10-31 | G2: 2023-10-31 | H2: 2023-10-31 | N2: =U2 -> 16 | O2: =V2 -> 19 | P2: 水泥工業 | Q2: =SUMIF($D:$D,$P2,F:F) -> 177045867 | R2: =SUMIF($D:$D,$P2,G:G) -> 181888686 | S2: =Q2-R2 -> -4842819 | T2: =ROUND(S2/R2*100,2) -> -2.66 | U2: =RANK(T2,T:T) -> 16 | V2: =RANK(T2,T:T,1) -> 19
A3: =D3&L3 -> 水泥工業5 | B3: =D3&M3 -> 水泥工業3 | C3: 1101 台泥 | D3: 水泥工業 | E3: M1100 | F3: 90313749 | G3: 90710057 | H3: -0.44 | I3: =F3-G3 -> -396308 | J3: =IF(E3="","",MATCH(E3,E:E,0)) -> 3 | K3: =COUNTIF(D:D,D3) -> 7 | L3: =IF(H3="","",RANK(H3,OFFSET(H$1,$J3-1,,$K3,),0)) -> 5 | M3: =IF(H3="","",RANK(H3,OFFSET(H$1,$J3-1,,$K3,),1)) -> 3 | N3: =U3 -> 4 | O3: 31 | P3: 食品工業 | Q3: =SUMIF($D:$D,$P3,F:F) -> 776668332 | R3: 727833844 | S3: =Q3-R3 -> 48834488 | T3: =ROUND(S3/R3*100,2) -> 6.71 | U3: =RANK(T3,T:T) -> 4 | V3: 31
A4: =D4&L4 -> 水泥工業7 | B4: =D4&M4 -> 水泥工業1 | C4: 1102 亞泥 | D4: 水泥工業 | E4: M1100 | F4: 66945254 | G4: 73697894 | H4: -9.16 | I4: =F4-G4 -> -6752640 | J4: =IF(E4="","",MATCH(E4,E:E,0)) -> 3 | K4: =COUNTIF(D:D,D4) -> 7 | L4: =IF(H4="","",RANK(H4,OFFSET(H$1,$J4-1,,$K4,),0)) -> 7 | M4: =IF(H4="","",RANK(H4,OFFSET(H$1,$J4-1,,$K4,),1)) -> 1 | N4: 32 | O4: 3 | P4: 塑膠工業 | Q4: 872815363 | R4: 1095109417 | S4: -222294054 | T4: -20.3 | U4: 32 | V4: 3
A5: 水泥工業1 | B5: 水泥工業7 | C5: 1103 嘉泥 | D5: 水泥工業 | E5: M1100 | F5: 2372574 | G5: 1803252 | H5: 31.57 | I5: 569322 | J5: 3 | K5: 7 | L5: 1 | M5: 7 | N5: 25 | O5: 10 | P5: 紡織纖維 | Q5: 474999276 | R5: 539080504 | S5: -64081228 | T5: -11.89 | U5: 25 | V5: 10
A6: 水泥工業4 | B6: 水泥工業4 | C6: 1104 環泥 | D6: 水泥工業 | E6: M1100 | F6: 6282268 | G6: 5698929 | H6: 10.24 | I6: 583339 | J6: 3 | K6: 7 | L6: 4 | M6: 4 | N6: 13 | O6: 22 | P6: 電機機械 | Q6: 398617503 | R6: 394693053 | S6: 3924450 | T6: 0.99 | U6: 13 | V6: 22
A7: 水泥工業3 | B7: 水泥工業5 | C7: 1108 幸福 | D7: 水泥工業 | E7: M1100 | F7: 4141653 | G7: 3347381 | H7: 23.73 | I7: 794272 | J7: 3 | K7: 7 | L7: 3 | M7: 5 | N7: 9 | O7: 26 | P7: 電器電纜 | Q7: 244980334 | R7: 237426061 | S7: 7554273 | T7: 3.18 | U7: 9 | V7: 26
A8: 水泥工業6 | B8: 水泥工業2 | C8: 1109 信大 | D8: 水泥工業 | E8: M1100 | F8: 5157727 | G8: 5202650 | H8: -0.86 | I8: -44923 | J8: 3 | K8: 7 | L8: 6 | M8: 2 | N8: 22 | O8: 13 | P8: 化學工業 | Q8: 248597201 | R8: 277318316 | S8: -28721115 | T8: -10.36 | U8: 22 | V8: 13
A9: 水泥工業2 | B9: 水泥工業6 | C9: 1110 東泥 | D9: 水泥工業 | E9: M1100 | F9: 1832642 | G9: 1428523 | H9: 28.29 | I9: 404119 | J9: 3 | K9: 7 | L9: 2 | M9: 6 | N9: 7 | O9: 28 | P9: 生技醫療 | Q9: 225790385 | R9: 217445483 | S9: 8344902 | T9: 3.84 | U9: 7 | V9: 28
A10: 食品工業12 | B10: 食品工業18 | C10: 1201 味全 | D10: 食品工業 | E10: M1200 | F10: 17885259 | G10: 16933521 | H10: 5.62 | I10: 951738 | J10: 10 | K10: 29 | L10: 12 | M10: 18 | N10: 10 | O10: 25 | P10: 玻璃陶瓷 | Q10: 48189815 | R10: 47253007 | S10: 936808 | T10: 1.98 | U10: 10 | V10: 25
A11: 食品工業18 | B11: 食品工業12 | C11: 1203 味王 | D11: 食品工業 | E11: M1200 | F11: 5223257 | G11: 5231391 | H11: -0.16 | I11: -8134 | J11: 10 | K11: 29 | L11: 18 | M11: 12 | N11: 20 | O11: 15 | P11: 造紙工業 | Q11: 162608422 | R11: 180311966 | S11: -17703544 | T11: -9.82 | U11: 20 | V11: 15
A12: 食品工業19 | B12: 食品工業11 | C12: 1210 大成 | D12: 食品工業 | E12: M1200 | F12: 92145772 | G12: 92807833 | H12: -0.71 | I12: -662061 | J12: 10 | K12: 29 | L12: 19 | M12: 11 | N12: 29 | O12: 6 | P12: 鋼鐵工業 | Q12: 836569490 | R12: 985245990 | S12: -148676500 | T12: -15.09 | U12: 29 | V12: 6
A13: 食品工業28 | B13: 食品工業2 | C13: 1213 大飲 | D13: 食品工業 | E13: M1200 | F13: 116889 | G13: 328870 | H13: -64.46 | I13: -211981 | J13: 10 | K13: 29 | L13: 28 | M13: 2 | N13: 23 | O13: 12 | P13: 橡膠工業 | Q13: 172777689 | R13: 192855487 | S13: -20077798 | T13: -10.41 | U13: 23 | V13: 12
A14: 食品工業14 | B14: 食品工業16 | C14: 1215 卜蜂 | D14: 食品工業 | E14: M1200 | F14: 24332804 | G14: 23615890 | H14: 3.04 | I14: 716914 | J14: 10 | K14: 29 | L14: 14 | M14: 16 | N14: 2 | O14: 33 | P14: 汽車工業 | Q14: 586947512 | R14: 519355396 | S14: 67592116 | T14: 13.01 | U14: 2 | V14: 33
A15: 食品工業8 | B15: 食品工業22 | C15: 1216 統一 | D15: 食品工業 | E15: M1200 | F15: 483652868 | G15: 439427488 | H15: 10.06 | I15: 44225380 | J15: 10 | K15: 29 | L15: 8 | M15: 22 | N15: 26 | O15: 9 | P15: 半導體 | Q15: 4082060557 | R15: 4677728610 | S15: -595668053 | T15: -12.73 | U15: 26 | V15: 9
A16: 食品工業15 | B16: 食品工業15 | C16: 1217 愛之味 | D16: 食品工業 | E16: M1200 | F16: 4280118 | G16: 4160219 | H16: 2.88 | I16: 119899 | J16: 10 | K16: 29 | L16: 15 | M16: 15 | N16: 19 | O16: 16 | P16: 電腦及週邊 | Q16: 5971245959 | R16: 6593030451 | S16: -621784492 | T16: -9.43 | U16: 19 | V16: 16
A17: 食品工業17 | B17: 食品工業13 | C17: 1218 泰山 | D17: 食品工業 | E17: M1200 | F17: 9479640 | G17: 9329439 | H17: 1.61 | I17: 150201 | J17: 10 | K17: 29 | L17: 17 | M17: 13 | N17: 31 | O17: 4 | P17: 光電業 | Q17: 987513861 | R17: 1177156648 | S17: -189642787 | T17: -16.11 | U17: 31 | V17: 4
A18: 食品工業22 | B18: 食品工業8 | C18: 1219 福壽 | D18: 食品工業 | E18: M1200 | F18: 13680823 | G18: 14087578 | H18: -2.89 | I18: -406755 | J18: 10 | K18: 29 | L18: 22 | M18: 8 | N18: 11 | O18: 24 | P18: 通信網路業 | Q18: 948680254 | R18: 934224576 | S18: 14455678 | T18: 1.55 | U18: 11 | V18: 24
A19: 食品工業26 | B19: 食品工業4 | C19: 1220 台榮 | D19: 食品工業 | E19: M1200 | F19: 2643847 | G19: 2888952 | H19: -8.48 | I19: -245105 | J19: 10 | K19: 29 | L19: 26 | M19: 4 | N19: 21 | O19: 14 | P19: 電子零組件 | Q19: 1858423473 | R19: 2063998254 | S19: -205574781 | T19: -9.96 | U19: 21 | V19: 14
A20: 食品工業24 | B20: 食品工業6 | C20: 1225 福懋油 | D20: 食品工業 | E20: M1200 | F20: 12125626 | G20: 12536537 | H20: -3.28 | I20: -410911 | J20: 10 | K20: 29 | L20: 24 | M20: 6 | N20: 24 | O20: 11 | P20: 電子通路業 | Q20: 1962590803 | R20: 2196466675 | S20: -233875872 | T20: -10.65 | U20: 24 | V20: 11
A21: 食品工業21 | B21: 食品工業9 | C21: 1227 佳格 | D21: 食品工業 | E21: M1200 | F21: 22157069 | G21: 22581976 | H21: -1.88 | I21: -424907 | J21: 10 | K21: 29 | L21: 21 | M21: 9 | N21: 6 | O21: 29 | P21: 資訊服務業 | Q21: 121739901 | R21: 117103791 | S21: 4636110 | T21: 3.96 | U21: 6 | V21: 29
A22: 食品工業13 | B22: 食品工業17 | C22: 1229 聯華 | D22: 食品工業 | E22: M1200 | F22: 10487622 | G22: 10155633 | H22: 3.27 | I22: 331989 | J22: 10 | K22: 29 | L22: 13 | M22: 17 | N22: 18 | O22: 17 | P22: 其他電子業 | Q22: 5719345886 | R22: 6136033997 | S22: -416688111 | T22: -6.79 | U22: 18 | V22: 17
A23: 食品工業16 | B23: 食品工業14 | C23: 1231 聯華食 | D23: 食品工業 | E23: M1200 | F23: 8863900 | G23: 8629827 | H23: 2.71 | I23: 234073 | J23: 10 | K23: 29 | L23: 16 | M23: 14 | N23: 15 | O23: 20 | P23: 綠能環保 | Q23: 54884004 | R23: 55338939 | S23: -454935 | T23: -0.82 | U23: 15 | V23: 20
A24: 食品工業20 | B24: 食品工業10 | C24: 1232 大統益 | D24: 食品工業 | E24: M1200 | F24: 19630101 | G24: 19886821 | H24: -1.29 | I24: -256720 | J24: 10 | K24: 29 | L24: 20 | M24: 10 | N24: 12 | O24: 23 | P24: 數位雲端 | Q24: 150901661 | R24: 148714127 | S24: 2187534 | T24: 1.47 | U24: 12 | V24: 23
A25: 食品工業2 | B25: 食品工業28 | C25: 1233 天仁 | D25: 食品工業 | E25: M1200 | F25: 1746182 | G25: 1477243 | H25: 18.21 | I25: 268939 | J25: 10 | K25: 29 | L25: 2 | M25: 28 | N25: 3 | O25: 32 | P25: 建材營造 | Q25: 391172939 | R25: 354408066 | S25: 36764873 | T25: 10.37 | U25: 3 | V25: 32
A26: 食品工業4 | B26: 食品工業26 | C26: 1234 黑松 | D26: 食品工業 | E26: M1200 | F26: 8924963 | G26: 7782622 | H26: 14.68 | I26: 1142341 | J26: 10 | K26: 29 | L26: 4 | M26: 26 | N26: 34 | O26: 1 | P26: 航運業 | Q26: 970611446 | R26: 1615428713 | S26: -644817267 | T26: -39.92 | U26: 34 | V26: 1
A27: 食品工業27 | B27: 食品工業3 | C27: 1235 興泰 | D27: 食品工業 | E27: M1200 | F27: 36033 | G27: 52054 | H27: -30.78 | I27: -16021 | J27: 10 | K27: 29 | L27: 27 | M27: 3 | N27: 1 | O27: 34 | P27: 觀光餐旅 | Q27: 125589801 | R27: 83757872 | S27: 41831929 | T27: 49.94 | U27: 1 | V27: 34
A28: 食品工業23 | B28: 食品工業7 | C28: 1236 宏亞 | D28: 食品工業 | E28: M1200 | F28: 1546837 | G28: 1598527 | H28: -3.23 | I28: -51690 | J28: 10 | K28: 29 | L28: 23 | M28: 7 | N28: 28 | O28: 7 | P28: 金融業 | Q28: 1448146890 | R28: 1687541851 | S28: -239394961 | T28: -14.19 | U28: 28 | V28: 7
A29: 食品工業3 | B29: 食品工業27 | C29: 1256 鮮活果汁-KY | D29: 食品工業 | E29: M1200 | F29: 4126970 | G29: 3579871 | H29: 15.28 | I29: 547099 | J29: 10 | K29: 29 | L29: 3 | M29: 27 | N29: 17 | O29: 18 | P29: 貿易百貨 | Q29: 521523034 | R29: 548394991 | S29: -26871957 | T29: -4.9 | U29: 17 | V29: 18
A30: 食品工業7 | B30: 食品工業23 | C30: 1264 德麥 | D30: 食品工業 | E30: M1200 | F30: 4666406 | G30: 4203226 | H30: 11.02 | I30: 463180 | J30: 10 | K30: 29 | L30: 7 | M30: 23 | N30: =U30 -> 5 | O30: =V30 -> 30 | P30: 文化創意業 | Q30: =SUMIF($D:$D,$P30,F:F) -> 40859667 | R30: =SUMIF($D:$D,$P30,G:G) -> 38716423 | S30: =Q30-R30 -> 2143244 | T30: =ROUND(S30/R30*100,2) -> 5.54 | U30: =RANK(T30,T:T) -> 5 | V30: =RANK(T30,T:T,1) -> 30
A31: 食品工業6 | B31: 食品工業24 | C31: 1702 南僑 | D31: 食品工業 | E31: M1200 | F31: 18617545 | G31: 16682359 | H31: 11.6 | I31: 1935186 | J31: 10 | K31: 29 | L31: 6 | M31: 24 | N31: 33 | O31: 2 | P31: 農業科技 | Q31: 4275563 | R31: 6185529 | S31: -1909966 | T31: -30.88 | U31: 33 | V31: 2
A32: 食品工業25 | B32: 食品工業5 | C32: 1737 臺鹽 | D32: 食品工業 | E32: M1200 | F32: 2910245 | G32: 3069872 | H32: -5.2 | I32: -159627 | J32: 10 | K32: 29 | L32: 25 | M32: 5 | N32: 27 | O32: 8 | P32: 運動休閒 | Q32: 500148384 | R32: 575181964 | S32: -75033580 | T32: -13.05 | U32: 27 | V32: 8
A33: 食品工業1 | B33: 食品工業29 | C33: 1796 金穎生技 | D33: 食品工業 | E33: M1200 | F33: 672352 | G33: 519576 | H33: 29.4 | I33: 152776 | J33: 10 | K33: 29 | L33: 1 | M33: 29 | N33: 14 | O33: 21 | P33: 居家生活 | Q33: 202759289 | R33: 203551918 | S33: -792629 | T33: -0.39 | U33: 14 | V33: 21
A34: 食品工業11 | B34: 食品工業19 | C34: 3054 立萬利 | D34: 食品工業 | E34: M1200 | F34: 28659 | G34: 27005 | H34: 6.12 | I34: 1654 | J34: 10 | K34: 29 | L34: 11 | M34: 19 | N34: 30 | O34: 5 | P34: 油電燃氣業 | Q34: 663770162 | R34: 785395629 | S34: -121625467 | T34: -15.49 | U34: 30 | V34: 5
A35: 食品工業9 | B35: 食品工業21 | C35: 4205 中華食 | D35: 食品工業 | E35: M1200 | F35: 1610436 | G35: 1504591 | H35: 7.03 | I35: 105845 | J35: 10 | K35: 29 | L35: 9 | M35: 21 | N35: 8 | O35: 27 | P35: 其他 | Q35: 495965910 | R35: 478232794 | S35: 17733116 | T35: 3.71 | U35: 8 | V35: 27
A36: 食品工業10 | B36: 食品工業20 | C36: 4207 環泰 | D36: 食品工業 | E36: M1200 | F36: 4440901 | G36: 4166429 | H36: 6.59 | I36: 274472 | J36: 10 | K36: 29 | L36: 10 | M36: 20 | N36: 0 | O36: 0
A37: 食品工業29 | B37: 食品工業1 | C37: 4712 南璋 | D37: 食品工業 | E37: M1200 | F37: 86 | G37: 1828 | H37: -95.3 | I37: -1742 | J37: 10 | K37: 29 | L37: 29 | M37: 1 | N37: 0 | O37: 0
A38: 食品工業5 | B38: 食品工業25 | C38: 6846 綠茵 | D38: 食品工業 | E38: M1200 | F38: 635122 | G38: 566666 | H38: 12.08 | I38: 68456 | J38: 10 | K38: 29 | L38: 5 | M38: 25 | N38: 0 | O38: 0
A39: 塑膠工業18 | B39: 塑膠工業8 | C39: 1301 台塑 | D39: 塑膠工業 | E39: M1300 | F39: 167702279 | G39: 217621552 | H39: -22.94 | I39: -49919273 | J39: 39 | K39: 25 | L39: 18 | M39: 8 | N39: 0 | O39: 0
A40: 塑膠工業21 | B40: 塑膠工業5 | C40: 1303 南亞 | D40: 塑膠工業 | E40: M1300 | F40: 218485874 | G40: 306041011 | H40: -28.61 | I40: -87555137 | J40: 39 | K40: 25 | L40: 21 | M40: 5 | N40: 0 | O40: 0
A41: 塑膠工業17 | B41: 塑膠工業9 | C41: 1304 台聚 | D41: 塑膠工業 | E41: M1300 | F41: 43733211 | G41: 56359289 | H41: -22.4 | I41: -12626078 | J41: 39 | K41: 25 | L41: 17 | M41: 9 | N41: 0 | O41: 0
A42: 塑膠工業19 | B42: 塑膠工業7 | C42: 1305 華夏 | D42: 塑膠工業 | E42: M1300 | F42: 11532707 | G42: 15217174 | H42: -24.21 | I42: -3684467 | J42: 39 | K42: 25 | L42: 19 | M42: 7 | N42: 0 | O42: 0
A43: 塑膠工業9 | B43: 塑膠工業17 | C43: 1307 三芳 | D43: 塑膠工業 | E43: M1300 | F43: 8508620 | G43: 9199420 | H43: -7.51 | I43: -690800 | J43: 39 | K43: 25 | L43: 9 | M43: 17 | N43: 0 | O43: 0
A44: 塑膠工業24 | B44: 塑膠工業2 | C44: 1308 亞聚 | D44: 塑膠工業 | E44: M1300 | F44: 5578499 | G44: 8190718 | H44: -31.89 | I44: -2612219 | J44: 39 | K44: 25 | L44: 24 | M44: 2 | N44: 0 | O44: 0
A45: 塑膠工業15 | B45: 塑膠工業11 | C45: 1309 台達化 | D45: 塑膠工業 | E45: M1300 | F45: 12597827 | G45: 15538125 | H45: -18.92 | I45: -2940298 | J45: 39 | K45: 25 | L45: 15 | M45: 11 | N45: 0 | O45: 0
A46: 塑膠工業22 | B46: 塑膠工業4 | C46: 1310 台苯 | D46: 塑膠工業 | E46: M1300 | F46: 7836675 | G46: 11164151 | H46: -29.81 | I46: -3327476 | J46: 39 | K46: 25 | L46: 22 | M46: 4 | N46: 0 | O46: 0
A47: 塑膠工業11 | B47: 塑膠工業15 | C47: 1312 國喬 | D47: 塑膠工業 | E47: M1300 | F47: 13283370 | G47: 15622619 | H47: -14.97 | I47: -2339249 | J47: 39 | K47: 25 | L47: 11 | M47: 15 | N47: 0 | O47: 0
A48: 塑膠工業6 | B48: 塑膠工業20 | C48: 1313 聯成 | D48: 塑膠工業 | E48: M1300 | F48: 59831110 | G48: 61544093 | H48: -2.78 | I48: -1712983 | J48: 39 | K48: 25 | L48: 6 | M48: 20 | N48: 0 | O48: 0
A49: 塑膠工業8 | B49: 塑膠工業18 | C49: 1314 中石化 | D49: 塑膠工業 | E49: M1300 | F49: 21277065 | G49: 22599178 | H49: -5.85 | I49: -1322113 | J49: 39 | K49: 25 | L49: 8 | M49: 18 | N49: 0 | O49: 0
A50: 塑膠工業16 | B50: 塑膠工業10 | C50: 1315 達新 | D50: 塑膠工業 | E50: M1300 | F50: 1829938 | G50: 2269366 | H50: -19.36 | I50: -439428 | J50: 39 | K50: 25 | L50: 16 | M50: 10 | N50: 0 | O50: 0
A51: 塑膠工業23 | B51: 塑膠工業3 | C51: 1321 大洋 | D51: 塑膠工業 | E51: M1300 | F51: 3929634 | G51: 5611951 | H51: -29.98 | I51: -1682317 | J51: 39 | K51: 25 | L51: 23 | M51: 3 | N51: 0 | O51: 0
A52: 塑膠工業10 | B52: 塑膠工業16 | C52: 1323 永裕 | D52: 塑膠工業 | E52: M1300 | F52: 2790179 | G52: 3172771 | H52: -12.06 | I52: -382592 | J52: 39 | K52: 25 | L52: 10 | M52: 16 | N52: 0 | O52: 0
A53: 塑膠工業7 | B53: 塑膠工業19 | C53: 1324 地球 | D53: 塑膠工業 | E53: M1300 | F53: 788562 | G53: 811871 | H53: -2.87 | I53: -23309 | J53: 39 | K53: 25 | L53: 7 | M53: 19 | N53: 0 | O53: 0
A54: 塑膠工業20 | B54: 塑膠工業6 | C54: 1325 恒大 | D54: 塑膠工業 | E54: M1300 | F54: 340187 | G54: 471399 | H54: -27.83 | I54: -131212 | J54: 39 | K54: 25 | L54: 20 | M54: 6 | N54: 0 | O54: 0
A55: 塑膠工業12 | B55: 塑膠工業14 | C55: 1326 台化 | D55: 塑膠工業 | E55: M1300 | F55: 275187944 | G55: 324373574 | H55: -15.16 | I55: -49185630 | J55: 39 | K55: 25 | L55: 12 | M55: 14 | N55: 0 | O55: 0
A56: 塑膠工業3 | B56: 塑膠工業23 | C56: 1337 再生-KY | D56: 塑膠工業 | E56: M1300 | F56: 615445 | G56: 516971 | H56: 19.05 | I56: 98474 | J56: 39 | K56: 25 | L56: 3 | M56: 23 | N56: 0 | O56: 0
A57: 塑膠工業2 | B57: 塑膠工業24 | C57: 1340 勝悅-KY | D57: 塑膠工業 | E57: M1300 | F57: 490939 | G57: 402012 | H57: 22.12 | I57: 88927 | J57: 39 | K57: 25 | L57: 2 | M57: 24 | N57: 0 | O57: 0
A58: 塑膠工業14 | B58: 塑膠工業12 | C58: 1341 富林-KY | D58: 塑膠工業 | E58: M1300 | F58: 2107121 | G58: 2540047 | H58: -17.04 | I58: -432926 | J58: 39 | K58: 25 | L58: 14 | M58: 12 | N58: 0 | O58: 0
A59: 塑膠工業25 | B59: 塑膠工業1 | C59: 4303 信立 | D59: 塑膠工業 | E59: M1300 | F59: 135544 | G59: 275890 | H59: -50.87 | I59: -140346 | J59: 39 | K59: 25 | L59: 25 | M59: 1 | N59: 0 | O59: 0
A60: 塑膠工業4 | B60: 塑膠工業22 | C60: 4304 勝昱 | D60: 塑膠工業 | E60: M1300 | F60: 401201 | G60: 355062 | H60: 12.99 | I60: 46139 | J60: 39 | K60: 25 | L60: 4 | M60: 22 | N60: 0 | O60: 0
A61: 塑膠工業5 | B61: 塑膠工業21 | C61: 4305 世坤 | D61: 塑膠工業 | E61: M1300 | F61: 776082 | G61: 773507 | H61: 0.33 | I61: 2575 | J61: 39 | K61: 25 | L61: 5 | M61: 21 | N61: 0 | O61: 0
A62: 塑膠工業13 | B62: 塑膠工業13 | C62: 4306 炎洲 | D62: 塑膠工業 | E62: M1300 | F62: 10529198 | G62: 12643643 | H62: -16.72 | I62: -2114445 | J62: 39 | K62: 25 | L62: 13 | M62: 13 | N62: 0 | O62: 0
A63: 塑膠工業1 | B63: 塑膠工業25 | C63: 9950 萬國通 | D63: 塑膠工業 | E63: M1300 | F63: 2526152 | G63: 1794023 | H63: 40.81 | I63: 732129 | J63: 39 | K63: 25 | L63: 1 | M63: 25 | N63: 0 | O63: 0
A64: 紡織纖維11 | B64: 紡織纖維42 | C64: 1402 遠東新 | D64: 紡織纖維 | E64: M1400 | F64: 212701845 | G64: 222273455 | H64: -4.31 | I64: -9571610 | J64: 64 | K64: 52 | L64: 11 | M64: 42 | N64: 0 | O64: 0
A65: 紡織纖維21 | B65: 紡織纖維32 | C65: 1409 新纖 | D65: 紡織纖維 | E65: M1400 | F65: 33011334 | G65: 40230279 | H65: -17.94 | I65: -7218945 | J65: 64 | K65: 52 | L65: 21 | M65: 32 | N65: 0 | O65: 0
A66: 紡織纖維50 | B66: 紡織纖維3 | C66: 1410 南染 | D66: 紡織纖維 | E66: M1400 | F66: 184553 | G66: 327988 | H66: -43.73 | I66: -143435 | J66: 64 | K66: 52 | L66: 50 | M66: 3 | N66: 0 | O66: 0
A67: 紡織纖維48 | B67: 紡織纖維5 | C67: 1413 宏洲 | D67: 紡織纖維 | E67: M1400 | F67: 1673038 | G67: 2746187 | H67: -39.08 | I67: -1073149 | J67: 64 | K67: 52 | L67: 48 | M67: 5 | N67: 0 | O67: 0
A68: =D68&L68 -> 紡織纖維26 | B68: =D68&M68 -> 紡織纖維27 | C68: 1414 東和 | D68: 紡織纖維 | E68: M1400 | F68: 467886 | G68: 594773 | H68: -21.33 | I68: =F68-G68 -> -126887 | J68: =IF(E68="","",MATCH(E68,E:E,0)) -> 64 | K68: =COUNTIF(D:D,D68) -> 52 | L68: =IF(H68="","",RANK(H68,OFFSET(H$1,$J68-1,,$K68,),0)) -> 26 | M68: =IF(H68="","",RANK(H68,OFFSET(H$1,$J68-1,,$K68,),1)) -> 27 | N68: 0 | O68: 0
A69: 紡織纖維7 | B69: 紡織纖維46 | C69: 1417 嘉裕 | D69: 紡織纖維 | E69: M1400 | F69: 1229425 | G69: 1240940 | H69: -0.93 | I69: -11515 | J69: 64 | K69: 52 | L69: 7 | M69: 46 | N69: 0 | O69: 0
A70: 紡織纖維2 | B70: 紡織纖維51 | C70: 1418 東華 | D70: 紡織纖維 | E70: M1400 | F70: 17255 | G70: 13421 | H70: 28.57 | I70: 3834 | J70: 64 | K70: 52 | L70: 2 | M70: 51 | N70: 0 | O70: 0
A71: 紡織纖維9 | B71: 紡織纖維44 | C71: 1419 新紡 | D71: 紡織纖維 | E71: M1400 | F71: 2656250 | G71: 2753058 | H71: -3.52 | I71: -96808 | J71: 64 | K71: 52 | L71: 9 | M71: 44 | N71: 0 | O71: 0
A72: 紡織纖維39 | B72: 紡織纖維14 | C72: 1423 利華 | D72: 紡織纖維 | E72: M1400 | F72: 101248 | G72: 145554 | H72: -30.44 | I72: -44306 | J72: 64 | K72: 52 | L72: 39 | M72: 14 | N72: 0 | O72: 0
A73: 紡織纖維22 | B73: 紡織纖維31 | C73: 1434 福懋 | D73: 紡織纖維 | E73: M1400 | F73: 24242947 | G73: 29572005 | H73: -18.02 | I73: -5329058 | J73: 64 | K73: 52 | L73: 22 | M73: 31 | N73: 0 | O73: 0
A74: 紡織纖維15 | B74: 紡織纖維38 | C74: 1440 南紡 | D74: 紡織纖維 | E74: M1400 | F74: 16766550 | G74: 18363727 | H74: -8.7 | I74: -1597177 | J74: 64 | K74: 52 | L74: 15 | M74: 38 | N74: 0 | O74: 0
A75: 紡織纖維31 | B75: 紡織纖維22 | C75: 1441 大東 | D75: 紡織纖維 | E75: M1400 | F75: 1007536 | G75: 1345807 | H75: -25.14 | I75: -338271 | J75: 64 | K75: 52 | L75: 31 | M75: 22 | N75: 0 | O75: 0
A76: 紡織纖維44 | B76: 紡織纖維9 | C76: 1444 力麗 | D76: 紡織纖維 | E76: M1400 | F76: 7089730 | G76: 10764479 | H76: -34.14 | I76: -3674749 | J76: 64 | K76: 52 | L76: 44 | M76: 9 | N76: 0 | O76: 0
A77: 紡織纖維13 | B77: 紡織纖維40 | C77: 1445 大宇 | D77: 紡織纖維 | E77: M1400 | F77: 1157021 | G77: 1224213 | H77: -5.49 | I77: -67192 | J77: 64 | K77: 52 | L77: 13 | M77: 40 | N77: 0 | O77: 0
A78: 紡織纖維17 | B78: 紡織纖維36 | C78: 1446 宏和 | D78: 紡織纖維 | E78: M1400 | F78: 108581 | G78: 126915 | H78: -14.45 | I78: -18334 | J78: 64 | K78: 52 | L78: 17 | M78: 36 | N78: 0 | O78: 0
A79: 紡織纖維5 | B79: 紡織纖維48 | C79: 1447 力鵬 | D79: 紡織纖維 | E79: M1400 | F79: 25171281 | G79: 24105312 | H79: 4.42 | I79: 1065969 | J79: 64 | K79: 52 | L79: 5 | M79: 48 | N79: 0 | O79: 0
A80: 紡織纖維4 | B80: 紡織纖維49 | C80: 1449 佳和 | D80: 紡織纖維 | E80: M1400 | F80: 2274567 | G80: 2172069 | H80: 4.72 | I80: 102498 | J80: 64 | K80: 52 | L80: 4 | M80: 49 | N80: 0 | O80: 0
A81: 紡織纖維38 | B81: 紡織纖維15 | C81: 1451 年興 | D81: 紡織纖維 | E81: M1400 | F81: 5239641 | G81: 7496243 | H81: -30.1 | I81: -2256602 | J81: 64 | K81: 52 | L81: 38 | M81: 15 | N81: 0 | O81: 0
A82: 紡織纖維47 | B82: 紡織纖維6 | C82: 1452 宏益 | D82: 紡織纖維 | E82: M1400 | F82: 951781 | G82: 1553355 | H82: -38.73 | I82: -601574 | J82: 64 | K82: 52 | L82: 47 | M82: 6 | N82: 0 | O82: 0
A83: 紡織纖維19 | B83: 紡織纖維34 | C83: 1454 台富 | D83: 紡織纖維 | E83: M1400 | F83: 1287000 | G83: 1530988 | H83: -15.94 | I83: -243988 | J83: 64 | K83: 52 | L83: 19 | M83: 34 | N83: 0 | O83: 0
A84: 紡織纖維28 | B84: 紡織纖維25 | C84: 1455 集盛 | D84: 紡織纖維 | E84: M1400 | F84: 6222633 | G84: 8149286 | H84: -23.64 | I84: -1926653 | J84: 64 | K84: 52 | L84: 28 | M84: 25 | N84: 0 | O84: 0
A85: 紡織纖維41 | B85: 紡織纖維12 | C85: 1457 宜進 | D85: 紡織纖維 | E85: M1400 | F85: 2598080 | G85: 3771412 | H85: -31.11 | I85: -1173332 | J85: 64 | K85: 52 | L85: 41 | M85: 12 | N85: 0 | O85: 0
A86: 紡織纖維51 | B86: 紡織纖維2 | C86: 1459 聯發 | D86: 紡織纖維 | E86: M1400 | F86: 914254 | G86: 1697278 | H86: -46.13 | I86: -783024 | J86: 64 | K86: 52 | L86: 51 | M86: 2 | N86: 0 | O86: 0
A87: 紡織纖維29 | B87: 紡織纖維24 | C87: 1460 宏遠 | D87: 紡織纖維 | E87: M1400 | F87: 6305544 | G87: 8300690 | H87: -24.04 | I87: -1995146 | J87: 64 | K87: 52 | L87: 29 | M87: 24 | N87: 0 | O87: 0
A88: 紡織纖維40 | B88: 紡織纖維13 | C88: 1463 強盛 | D88: 紡織纖維 | E88: M1400 | F88: 290760 | G88: 421359 | H88: -30.99 | I88: -130599 | J88: 64 | K88: 52 | L88: 40 | M88: 13 | N88: 0 | O88: 0
A89: 紡織纖維27 | B89: 紡織纖維26 | C89: 1464 得力 | D89: 紡織纖維 | E89: M1400 | F89: 8086563 | G89: 10325934 | H89: -21.69 | I89: -2239371 | J89: 64 | K89: 52 | L89: 27 | M89: 26 | N89: 0 | O89: 0
A90: 紡織纖維10 | B90: 紡織纖維43 | C90: 1465 偉全 | D90: 紡織纖維 | E90: M1400 | F90: 467240 | G90: 487397 | H90: -4.14 | I90: -20157 | J90: 64 | K90: 52 | L90: 10 | M90: 43 | N90: 0 | O90: 0
A91: 紡織纖維18 | B91: 紡織纖維35 | C91: 1466 聚隆 | D91: 紡織纖維 | E91: M1400 | F91: 2004410 | G91: 2355259 | H91: -14.9 | I91: -350849 | J91: 64 | K91: 52 | L91: 18 | M91: 35 | N91: 0 | O91: 0
A92: 紡織纖維32 | B92: 紡織纖維21 | C92: 1467 南緯 | D92: 紡織纖維 | E92: M1400 | F92: 3865630 | G92: 5262366 | H92: -26.54 | I92: -1396736 | J92: 64 | K92: 52 | L92: 32 | M92: 21 | N92: 0 | O92: 0
A93: 紡織纖維30 | B93: 紡織纖維23 | C93: 1468 昶和 | D93: 紡織纖維 | E93: M1400 | F93: 862529 | G93: 1145488 | H93: -24.7 | I93: -282959 | J93: 64 | K93: 52 | L93: 30 | M93: 23 | N93: 0 | O93: 0
A94: 紡織纖維34 | B94: 紡織纖維19 | C94: 1470 大統新創 | D94: 紡織纖維 | E94: M1400 | F94: 571733 | G94: 783144 | H94: -27 | I94: -211411 | J94: 64 | K94: 52 | L94: 34 | M94: 19 | N94: =U94 -> 0 | O94: =V94 -> 0
A95: 紡織纖維20 | B95: 紡織纖維33 | C95: 1473 台南 | D95: 紡織纖維 | E95: M1400 | F95: 5333141 | G95: 6406368 | H95: -16.75 | I95: -1073227 | J95: 64 | K95: 52 | L95: 20 | M95: 33 | N95: 0 | O95: 0
A96: 紡織纖維25 | B96: 紡織纖維28 | C96: 1474 弘裕 | D96: 紡織纖維 | E96: M1400 | F96: 2145772 | G96: 2723810 | H96: -21.22 | I96: -578038 | J96: 64 | K96: 52 | L96: 25 | M96: 28 | N96: 0 | O96: 0
A97: 紡織纖維3 | B97: 紡織纖維50 | C97: 1475 業旺 | D97: 紡織纖維 | E97: M1400 | F97: 1052060 | G97: 965382 | H97: 8.98 | I97: 86678 | J97: 64 | K97: 52 | L97: 3 | M97: 50 | N97: 0 | O97: 0
A98: 紡織纖維33 | B98: 紡織纖維20 | C98: 1476 儒鴻 | D98: 紡織纖維 | E98: M1400 | F98: 25148406 | G98: 34361481 | H98: -26.81 | I98: -9213075 | J98: 64 | K98: 52 | L98: 33 | M98: 20 | N98: 0 | O98: 0
A99: 紡織纖維8 | B99: 紡織纖維45 | C99: 1477 聚陽 | D99: 紡織纖維 | E99: M1400 | F99: 26807770 | G99: 27151713 | H99: -1.27 | I99: -343943 | J99: 64 | K99: 52 | L99: 8 | M99: 45 | N99: 0 | O99: 0
A100: 紡織纖維45 | B100: 紡織纖維8 | C100: 4401 東隆興 | D100: 紡織纖維 | E100: M1400 | F100: 2324970 | G100: 3653040 | H100: -36.36 | I100: -1328070 | J100: 64 | K100: 52 | L100: 45 | M100: 8 | N100: 0 | O100: 0
A101: 紡織纖維52 | B101: 紡織纖維1 | C101: 4402 福大 | D101: 紡織纖維 | E101: M1400 | F101: 67883 | G101: 145632 | H101: -53.39 | I101: -77749 | J101: 64 | K101: 52 | L101: 52 | M101: 1 | N101: 0 | O101: 0
A102: 紡織纖維42 | B102: 紡織纖維11 | C102: 4406 新昕纖 | D102: 紡織纖維 | E102: M1400 | F102: 333930 | G102: 489686 | H102: -31.81 | I102: -155756 | J102: 64 | K102: 52 | L102: 42 | M102: 11 | N102: 0 | O102: 0
A103: 紡織纖維49 | B103: 紡織纖維4 | C103: 4413 飛寶企業 | D103: 紡織纖維 | E103: M1400 | F103: 396637 | G103: 655185 | H103: -39.46 | I103: -258548 | J103: 64 | K103: 52 | L103: 49 | M103: 4 | N103: 0 | O103: 0
A104: 紡織纖維24 | B104: 紡織纖維29 | C104: 4414 如興 | D104: 紡織纖維 | E104: M1400 | F104: 11737924 | G104: 14605637 | H104: -19.63 | I104: -2867713 | J104: 64 | K104: 52 | L104: 24 | M104: 29 | N104: 0 | O104: 0
A105: 紡織纖維14 | B105: 紡織纖維39 | C105: 4417 金洲 | D105: 紡織纖維 | E105: M1400 | F105: 2468173 | G105: 2675124 | H105: -7.74 | I105: -206951 | J105: 64 | K105: 52 | L105: 14 | M105: 39 | N105: 0 | O105: 0
A106: 紡織纖維1 | B106: 紡織纖維52 | C106: 4419 元勝 | D106: 紡織纖維 | E106: M1400 | F106: 314826 | G106: 180254 | H106: 74.66 | I106: 134572 | J106: 64 | K106: 52 | L106: 1 | M106: 52 | N106: 0 | O106: 0
A107: 紡織纖維36 | B107: 紡織纖維16 | C107: 4420 光明 | D107: 紡織纖維 | E107: M1400 | F107: 553385 | G107: 790769 | H107: -30.02 | I107: -237384 | J107: 64 | K107: 52 | L107: 36 | M107: 16 | N107: 0 | O107: 0
A108: 紡織纖維6 | B108: 紡織纖維47 | C108: 4426 利勤 | D108: 紡織纖維 | E108: M1400 | F108: 1095769 | G108: 1091244 | H108: 0.41 | I108: 4525 | J108: 64 | K108: 52 | L108: 6 | M108: 47 | N108: 0 | O108: 0
A109: 紡織纖維35 | B109: 紡織纖維18 | C109: 4432 銘旺實 | D109: 紡織纖維 | E109: M1400 | F109: 948488 | G109: 1316220 | H109: -27.94 | I109: -367732 | J109: 64 | K109: 52 | L109: 35 | M109: 18 | N109: 0 | O109: 0
A110: 紡織纖維23 | B110: 紡織纖維30 | C110: 4433 興采 | D110: 紡織纖維 | E110: M1400 | F110: 2222669 | G110: 2729047 | H110: -18.56 | I110: -506378 | J110: 64 | K110: 52 | L110: 23 | M110: 30 | N110: 0 | O110: 0
A111: 紡織纖維16 | B111: 紡織纖維37 | C111: 4438 廣越 | D111: 紡織纖維 | E111: M1400 | F111: 15036925 | G111: 17135319 | H111: -12.25 | I111: -2098394 | J111: 64 | K111: 52 | L111: 16 | M111: 37 | N111: 0 | O111: 0
A112: 紡織纖維43 | B112: 紡織纖維10 | C112: 4439 冠星-KY | D112: 紡織纖維 | E112: M1400 | F112: 4532337 | G112: 6688442 | H112: -32.24 | I112: -2156105 | J112: 64 | K112: 52 | L112: 43 | M112: 10 | N112: 0 | O112: 0
A113: 紡織纖維46 | B113: 紡織纖維7 | C113: 4440 宜新實業 | D113: 紡織纖維 | E113: M1400 | F113: 819624 | G113: 1304622 | H113: -37.18 | I113: -484998 | J113: 64 | K113: 52 | L113: 46 | M113: 7 | N113: 0 | O113: 0
A114: 紡織纖維12 | B114: 紡織纖維41 | C114: 4442 竣邦國際 | D114: 紡織纖維 | E114: M1400 | F114: 826432 | G114: 868638 | H114: -4.86 | I114: -42206 | J114: 64 | K114: 52 | L114: 12 | M114: 41 | N114: 0 | O114: 0
A115: 紡織纖維36 | B115: 紡織纖維16 | C115: 6506 雙邦 | D115: 紡織纖維 | E115: M1400 | F115: 1303310 | G115: 1862510 | H115: -30.02 | I115: -559200 | J115: 64 | K115: 52 | L115: 36 | M115: 16 | N115: 0 | O115: 0
A116: 電機機械25 | B116: 電機機械71 | C116: 1503 士電 | D116: 電機機械 | E116: M1500 | F116: 26694448 | G116: 25350160 | H116: 5.3 | I116: 1344288 | J116: 116 | K116: 95 | L116: 25 | M116: 71 | N116: 0 | O116: 0
A117: 電機機械30 | B117: 電機機械66 | C117: 1504 東元 | D117: 電機機械 | E117: M1500 | F117: 49695792 | G117: 47995396 | H117: 3.54 | I117: 1700396 | J117: 116 | K117: 95 | L117: 30 | M117: 66 | N117: 0 | O117: 0
A118: 電機機械35 | B118: 電機機械61 | C118: 1506 正道 | D118: 電機機械 | E118: M1500 | F118: 947600 | G118: 956651 | H118: -0.95 | I118: -9051 | J118: 116 | K118: 95 | L118: 35 | M118: 61 | N118: 0 | O118: 0
A119: 電機機械14 | B119: 電機機械82 | C119: 1513 中興電 | D119: 電機機械 | E119: M1500 | F119: 18303903 | G119: 15380444 | H119: 19.01 | I119: 2923459 | J119: 116 | K119: 95 | L119: 14 | M119: 82 | N119: 0 | O119: 0
A120: 電機機械15 | B120: 電機機械81 | C120: 1514 亞力 | D120: 電機機械 | E120: M1500 | F120: 7035734 | G120: 6026507 | H120: 16.75 | I120: 1009227 | J120: 116 | K120: 95 | L120: 15 | M120: 81 | N120: 0 | O120: 0
A121: 電機機械12 | B121: 電機機械84 | C121: 1515 力山 | D121: 電機機械 | E121: M1500 | F121: 4823540 | G121: 3873343 | H121: 24.53 | I121: 950197 | J121: 116 | K121: 95 | L121: 12 | M121: 84 | N121: 0 | O121: 0
A122: 電機機械94 | B122: 電機機械2 | C122: 1517 利奇 | D122: 電機機械 | E122: M1500 | F122: 1600041 | G122: 4460832 | H122: -64.13 | I122: -2860791 | J122: 116 | K122: 95 | L122: 94 | M122: 2 | N122: 0 | O122: 0
A123: 電機機械3 | B123: 電機機械93 | C123: 1519 華城 | D123: 電機機械 | E123: M1500 | F123: 9632917 | G123: 5643439 | H123: 70.69 | I123: 3989478 | J123: 116 | K123: 95 | L123: 3 | M123: 93 | N123: 0 | O123: 0
A124: 電機機械91 | B124: 電機機械5 | C124: 1526 日馳 | D124: 電機機械 | E124: M1500 | F124: 909259 | G124: 1871736 | H124: -51.42 | I124: -962477 | J124: 116 | K124: 95 | L124: 91 | M124: 5 | N124: 0 | O124: 0
A125: 電機機械81 | B125: 電機機械15 | C125: 1527 鑽全 | D125: 電機機械 | E125: M1500 | F125: 2321706 | G125: 3420944 | H125: -32.13 | I125: -1099238 | J125: 116 | K125: 95 | L125: 81 | M125: 15 | N125: 0 | O125: 0
A126: 電機機械28 | B126: 電機機械68 | C126: 1528 恩德 | D126: 電機機械 | E126: M1500 | F126: 3169177 | G126: 3044402 | H126: 4.1 | I126: 124775 | J126: 116 | K126: 95 | L126: 28 | M126: 68 | N126: 0 | O126: 0
A127: 電機機械1 | B127: 電機機械95 | C127: 1529 樂事綠能 | D127: 電機機械 | E127: M1500 | F127: 608079 | G127: 220969 | H127: 175.19 | I127: 387110 | J127: 116 | K127: 95 | L127: 1 | M127: 95 | N127: 0 | O127: 0
A128: 電機機械73 | B128: 電機機械23 | C128: 1530 亞崴 | D128: 電機機械 | E128: M1500 | F128: 1987823 | G128: 2665129 | H128: -25.41 | I128: -677306 | J128: 116 | K128: 95 | L128: 73 | M128: 23 | N128: 0 | O128: 0
A129: 電機機械89 | B129: 電機機械7 | C129: 1531 高林股 | D129: 電機機械 | E129: M1500 | F129: 1219728 | G129: 2118977 | H129: -42.44 | I129: -899249 | J129: 116 | K129: 95 | L129: 89 | M129: 7 | N129: 0 | O129: 0
A130: 電機機械16 | B130: 電機機械80 | C130: 1532 勤美 | D130: 電機機械 | E130: M1500 | F130: 13986698 | G130: 12241823 | H130: 14.25 | I130: 1744875 | J130: 116 | K130: 95 | L130: 16 | M130: 80 | N130: 0 | O130: 0
A131: 電機機械23 | B131: 電機機械73 | C131: 1535 中宇 | D131: 電機機械 | E131: M1500 | F131: 7546394 | G131: 7090847 | H131: 6.42 | I131: 455547 | J131: 116 | K131: 95 | L131: 23 | M131: 73 | N131: 0 | O131: 0
A132: =D132&L132 -> 電機機械60 | B132: =D132&M132 -> 電機機械36 | C132: 1537 廣隆 | D132: 電機機械 | E132: M1500 | F132: 5300157 | G132: 6339176 | H132: -16.39 | I132: =F132-G132 -> -1039019 | J132: =IF(E132="","",MATCH(E132,E:E,0)) -> 116 | K132: =COUNTIF(D:D,D132) -> 95 | L132: =IF(H132="","",RANK(H132,OFFSET(H$1,$J132-1,,$K132,),0)) -> 60 | M132: =IF(H132="","",RANK(H132,OFFSET(H$1,$J132-1,,$K132,),1)) -> 36 | N132: 0 | O132: 0
A133: 電機機械78 | B133: 電機機械18 | C133: 1538 正峰 | D133: 電機機械 | E133: M1500 | F133: 172641 | G133: 238021 | H133: -27.47 | I133: -65380 | J133: 116 | K133: 95 | L133: 78 | M133: 18 | N133: 0 | O133: 0
A134: 電機機械90 | B134: 電機機械6 | C134: 1539 巨庭 | D134: 電機機械 | E134: M1500 | F134: 1259037 | G134: 2321017 | H134: -45.75 | I134: -1061980 | J134: 116 | K134: 95 | L134: 90 | M134: 6 | N134: 0 | O134: 0
A135: 電機機械20 | B135: 電機機械76 | C135: 1540 喬福 | D135: 電機機械 | E135: M1500 | F135: 458071 | G135: 414146 | H135: 10.61 | I135: 43925 | J135: 116 | K135: 95 | L135: 20 | M135: 76 | N135: 0 | O135: 0
A136: 電機機械75 | B136: 電機機械21 | C136: 1541 錩泰 | D136: 電機機械 | E136: M1500 | F136: 2683682 | G136: 3636090 | H136: -26.19 | I136: -952408 | J136: 116 | K136: 95 | L136: 75 | M136: 21 | N136: 0 | O136: 0
A137: 電機機械27 | B137: 電機機械69 | C137: 1558 伸興 | D137: 電機機械 | E137: M1500 | F137: 6255452 | G137: 5978626 | H137: 4.63 | I137: 276826 | J137: 116 | K137: 95 | L137: 27 | M137: 69 | N137: 0 | O137: 0
A138: 電機機械48 | B138: 電機機械48 | C138: 1560 中砂 | D138: 電機機械 | E138: M1500 | F138: 5340042 | G138: 5855813 | H138: -8.81 | I138: -515771 | J138: 116 | K138: 95 | L138: 48 | M138: 48 | N138: 0 | O138: 0
A139: 電機機械86 | B139: 電機機械10 | C139: 1570 力肯 | D139: 電機機械 | E139: M1500 | F139: 331119 | G139: 526862 | H139: -37.15 | I139: -195743 | J139: 116 | K139: 95 | L139: 86 | M139: 10 | N139: 0 | O139: 0
A140: 電機機械18 | B140: 電機機械78 | C140: 1580 新麥 | D140: 電機機械 | E140: M1500 | F140: 3681992 | G140: 3230134 | H140: 13.99 | I140: 451858 | J140: 116 | K140: 95 | L140: 18 | M140: 78 | N140: 0 | O140: 0
A141: 電機機械63 | B141: 電機機械33 | C141: 1583 程泰 | D141: 電機機械 | E141: M1500 | F141: 4340622 | G141: 5357439 | H141: -18.98 | I141: -1016817 | J141: 116 | K141: 95 | L141: 63 | M141: 33 | N141: 0 | O141: 0
A142: 電機機械56 | B142: 電機機械40 | C142: 1586 和勤 | D142: 電機機械 | E142: M1500 | F142: 1839694 | G142: 2133367 | H142: -13.77 | I142: -293673 | J142: 116 | K142: 95 | L142: 56 | M142: 40 | N142: 0 | O142: 0
A143: 電機機械42 | B143: 電機機械54 | C143: 1589 永冠-KY | D143: 電機機械 | E143: M1500 | F143: 7176863 | G143: 7508195 | H143: -4.41 | I143: -331332 | J143: 116 | K143: 95 | L143: 42 | M143: 54 | N143: 0 | O143: 0
A144: 電機機械17 | B144: 電機機械79 | C144: 1590 亞德客-KY | D144: 電機機械 | E144: M1500 | F144: 24867320 | G144: 21782660 | H144: 14.16 | I144: 3084660 | J144: 116 | K144: 95 | L144: 17 | M144: 79 | N144: 0 | O144: 0
A145: 電機機械95 | B145: 電機機械1 | C145: 1591 駿吉-KY | D145: 電機機械 | E145: M1500 | F145: 59326 | G145: 638451 | H145: -90.71 | I145: -579125 | J145: 116 | K145: 95 | L145: 95 | M145: 1 | N145: 0 | O145: 0
A146: 電機機械84 | B146: 電機機械12 | C146: 1597 直得 | D146: 電機機械 | E146: M1500 | F146: 918713 | G146: 1398177 | H146: -34.29 | I146: -479464 | J146: 116 | K146: 95 | L146: 84 | M146: 12 | N146: 0 | O146: 0
A147: 電機機械85 | B147: 電機機械11 | C147: 1599 宏佳騰 | D147: 電機機械 | E147: M1500 | F147: 1838582 | G147: 2914367 | H147: -36.91 | I147: -1075785 | J147: 116 | K147: 95 | L147: 85 | M147: 11 | N147: 0 | O147: 0
A148: 電機機械64 | B148: 電機機械32 | C148: 2049 上銀 | D148: 電機機械 | E148: M1500 | F148: 20875153 | G148: 25832970 | H148: -19.19 | I148: -4957817 | J148: 116 | K148: 95 | L148: 64 | M148: 32 | N148: 0 | O148: 0
A149: 電機機械36 | B149: 電機機械59 | C149: 2066 世德 | D149: 電機機械 | E149: M1500 | F149: 2315145 | G149: 2384940 | H149: -2.93 | I149: -69795 | J149: 116 | K149: 95 | L149: 36 | M149: 59 | N149: 0 | O149: 0
A150: 電機機械33 | B150: 電機機械63 | C150: 2067 嘉鋼 | D150: 電機機械 | E150: M1500 | F150: 1000782 | G150: 1002801 | H150: -0.2 | I150: -2019 | J150: 116 | K150: 95 | L150: 33 | M150: 63 | N150: 0 | O150: 0
A151: 電機機械50 | B151: 電機機械46 | C151: 2070 精湛 | D151: 電機機械 | E151: M1500 | F151: 457577 | G151: 506066 | H151: -9.58 | I151: -48489 | J151: 116 | K151: 95 | L151: 50 | M151: 46 | N151: 0 | O151: 0
A152: 電機機械13 | B152: 電機機械83 | C152: 2230 泰茂 | D152: 電機機械 | E152: M1500 | F152: 495993 | G152: 413598 | H152: 19.92 | I152: 82395 | J152: 116 | K152: 95 | L152: 13 | M152: 83 | N152: 0 | O152: 0
A153: 電機機械74 | B153: 電機機械22 | C153: 2235 謚源 | D153: 電機機械 | E153: M1500 | F153: 479736 | G153: 644258 | H153: -25.54 | I153: -164522 | J153: 116 | K153: 95 | L153: 74 | M153: 22 | N153: 0 | O153: 0
A154: 電機機械7 | B154: 電機機械89 | C154: 2371 大同 | D154: 電機機械 | E154: M1500 | F154: 39309568 | G154: 26075174 | H154: 50.75 | I154: 13234394 | J154: 116 | K154: 95 | L154: 7 | M154: 89 | N154: 0 | O154: 0
A155: 電機機械5 | B155: 電機機械91 | C155: 3162 精確 | D155: 電機機械 | E155: M1500 | F155: 2795025 | G155: 1809600 | H155: 54.46 | I155: 985425 | J155: 116 | K155: 95 | L155: 5 | M155: 91 | N155: 0 | O155: 0
A156: 電機機械92 | B156: 電機機械4 | C156: 3167 大量 | D156: 電機機械 | E156: M1500 | F156: 978832 | G156: 2103394 | H156: -53.46 | I156: -1124562 | J156: 116 | K156: 95 | L156: 92 | M156: 4 | N156: 0 | O156: 0
A157: 電機機械52 | B157: 電機機械44 | C157: 3226 至寶電 | D157: 電機機械 | E157: M1500 | F157: 1782947 | G157: 1999848 | H157: -10.85 | I157: -216901 | J157: 116 | K157: 95 | L157: 52 | M157: 44 | N157: 0 | O157: 0
A158: 電機機械49 | B158: 電機機械47 | C158: 3379 彬台 | D158: 電機機械 | E158: M1500 | F158: 364057 | G158: 401642 | H158: -9.36 | I158: -37585 | J158: 116 | K158: 95 | L158: 49 | M158: 47 | N158: =U158 -> 0 | O158: =V158 -> 0
A159: 電機機械53 | B159: 電機機械43 | C159: 3426 台興 | D159: 電機機械 | E159: M1500 | F159: 527024 | G159: 597200 | H159: -11.75 | I159: -70176 | J159: 116 | K159: 95 | L159: 53 | M159: 43 | N159: 0 | O159: 0
A160: 電機機械38 | B160: 電機機械58 | C160: 3685 元創精密 | D160: 電機機械 | E160: M1500 | F160: 1236320 | G160: 1274346 | H160: -2.98 | I160: -38026 | J160: 116 | K160: 95 | L160: 38 | M160: 58 | N160: 0 | O160: 0
A161: 電機機械41 | B161: 電機機械55 | C161: 4502 健信 | D161: 電機機械 | E161: M1500 | F161: 1216292 | G161: 1262788 | H161: -3.68 | I161: -46496 | J161: 116 | K161: 95 | L161: 41 | M161: 55 | N161: 0 | O161: 0
A162: 電機機械6 | B162: 電機機械90 | C162: 4503 金雨 | D162: 電機機械 | E162: M1500 | F162: 211903 | G162: 139325 | H162: 52.09 | I162: 72578 | J162: 116 | K162: 95 | L162: 6 | M162: 90 | N162: 0 | O162: 0
A163: 電機機械19 | B163: 電機機械77 | C163: 4506 崇友 | D163: 電機機械 | E163: M1500 | F163: 4372549 | G163: 3908617 | H163: 11.87 | I163: 463932 | J163: 116 | K163: 95 | L163: 19 | M163: 77 | N163: 0 | O163: 0
A164: 電機機械36 | B164: 電機機械59 | C164: 4510 高鋒 | D164: 電機機械 | E164: M1500 | F164: 1692171 | G164: 1743184 | H164: -2.93 | I164: -51013 | J164: 116 | K164: 95 | L164: 36 | M164: 59 | N164: 0 | O164: 0
A165: 電機機械67 | B165: 電機機械29 | C165: 4513 福裕 | D165: 電機機械 | E165: M1500 | F165: 1078841 | G165: 1366660 | H165: -21.06 | I165: -287819 | J165: 116 | K165: 95 | L165: 67 | M165: 29 | N165: 0 | O165: 0
A166: 電機機械24 | B166: 電機機械72 | C166: 4523 永彰 | D166: 電機機械 | E166: M1500 | F166: 486838 | G166: 461667 | H166: 5.45 | I166: 25171 | J166: 116 | K166: 95 | L166: 24 | M166: 72 | N166: 0 | O166: 0
A167: 電機機械46 | B167: 電機機械50 | C167: 4526 東台 | D167: 電機機械 | E167: M1500 | F167: 6256232 | G167: 6821259 | H167: -8.28 | I167: -565027 | J167: 116 | K167: 95 | L167: 46 | M167: 50 | N167: 0 | O167: 0
A168: 電機機械22 | B168: 電機機械74 | C168: 4527 方方土霖 | D168: 電機機械 | E168: M1500 | F168: 2461677 | G168: 2310389 | H168: 6.55 | I168: 151288 | J168: 116 | K168: 95 | L168: 22 | M168: 74 | N168: 0 | O168: 0
A169: 電機機械72 | B169: 電機機械24 | C169: 4528 江興鍛 | D169: 電機機械 | E169: M1500 | F169: 1582258 | G169: 2034732 | H169: -22.24 | I169: -452474 | J169: 116 | K169: 95 | L169: 72 | M169: 24 | N169: 0 | O169: 0
A170: 電機機械55 | B170: 電機機械41 | C170: 4532 瑞智 | D170: 電機機械 | E170: M1500 | F170: 13669266 | G170: 15767467 | H170: -13.31 | I170: -2098201 | J170: 116 | K170: 95 | L170: 55 | M170: 41 | N170: 0 | O170: 0
A171: 電機機械32 | B171: 電機機械64 | C171: 4533 協易機 | D171: 電機機械 | E171: M1500 | F171: 3020430 | G171: 2965138 | H171: 1.86 | I171: 55292 | J171: 116 | K171: 95 | L171: 32 | M171: 64 | N171: 0 | O171: 0
A172: 電機機械70 | B172: 電機機械26 | C172: 4534 慶騰 | D172: 電機機械 | E172: M1500 | F172: 572117 | G172: 728815 | H172: -21.5 | I172: -156698 | J172: 116 | K172: 95 | L172: 70 | M172: 26 | N172: 0 | O172: 0
A173: 電機機械51 | B173: 電機機械45 | C173: 4535 至興 | D173: 電機機械 | E173: M1500 | F173: 2355905 | G173: 2610293 | H173: -9.75 | I173: -254388 | J173: 116 | K173: 95 | L173: 51 | M173: 45 | N173: 0 | O173: 0
A174: 電機機械77 | B174: 電機機械19 | C174: 4538 大詠城 | D174: 電機機械 | E174: M1500 | F174: 375785 | G174: 515833 | H174: -27.15 | I174: -140048 | J174: 116 | K174: 95 | L174: 77 | M174: 19 | N174: 0 | O174: 0
A175: 電機機械69 | B175: 電機機械27 | C175: 4540 全球傳動 | D175: 電機機械 | E175: M1500 | F175: 2258585 | G175: 2873871 | H175: -21.41 | I175: -615286 | J175: 116 | K175: 95 | L175: 69 | M175: 27 | N175: 0 | O175: 0
A176: 電機機械59 | B176: 電機機械37 | C176: 4543 萬在 | D176: 電機機械 | E176: M1500 | F176: 705446 | G176: 837121 | H176: -15.73 | I176: -131675 | J176: 116 | K176: 95 | L176: 59 | M176: 37 | N176: 0 | O176: 0
A177: 電機機械45 | B177: 電機機械51 | C177: 4549 桓達 | D177: 電機機械 | E177: M1500 | F177: 1135793 | G177: 1221693 | H177: -7.03 | I177: -85900 | J177: 116 | K177: 95 | L177: 45 | M177: 51 | N177: 0 | O177: 0
A178: 電機機械9 | B178: 電機機械87 | C178: 4550 長佳 | D178: 電機機械 | E178: M1500 | F178: 1524028 | G178: 1104268 | H178: 38.01 | I178: 419760 | J178: 116 | K178: 95 | L178: 9 | M178: 87 | N178: 0 | O178: 0
A179: 電機機械39 | B179: 電機機械57 | C179: 4552 力達-KY | D179: 電機機械 | E179: M1500 | F179: 4061700 | G179: 4187229 | H179: -3 | I179: -125529 | J179: 116 | K179: 95 | L179: 39 | M179: 57 | N179: 0 | O179: 0
A180: 電機機械76 | B180: 電機機械20 | C180: 4555 氣立 | D180: 電機機械 | E180: M1500 | F180: 1128564 | G180: 1541088 | H180: -26.77 | I180: -412524 | J180: 116 | K180: 95 | L180: 76 | M180: 20 | N180: 0 | O180: 0
A181: 電機機械62 | B181: 電機機械34 | C181: 4558 寶緯 | D181: 電機機械 | E181: M1500 | F181: 1406737 | G181: 1729440 | H181: -18.66 | I181: -322703 | J181: 116 | K181: 95 | L181: 62 | M181: 34 | N181: 0 | O181: 0
A182: 電機機械83 | B182: 電機機械13 | C182: 4560 強信-KY | D182: 電機機械 | E182: M1500 | F182: 1016845 | G182: 1542846 | H182: -34.09 | I182: -526001 | J182: 116 | K182: 95 | L182: 83 | M182: 13 | N182: 0 | O182: 0
A183: 電機機械29 | B183: 電機機械67 | C183: 4561 健椿 | D183: 電機機械 | E183: M1500 | F183: 984623 | G183: 950015 | H183: 3.64 | I183: 34608 | J183: 116 | K183: 95 | L183: 29 | M183: 67 | N183: 0 | O183: 0
A184: 電機機械40 | B184: 電機機械56 | C184: 4562 穎漢 | D184: 電機機械 | E184: M1500 | F184: 606800 | G184: 627867 | H184: -3.36 | I184: -21067 | J184: 116 | K184: 95 | L184: 40 | M184: 56 | N184: 0 | O184: 0
A185: 電機機械34 | B185: 電機機械62 | C185: 4563 百德 | D185: 電機機械 | E185: M1500 | F185: 2133419 | G185: 2139581 | H185: -0.29 | I185: -6162 | J185: 116 | K185: 95 | L185: 34 | M185: 62 | N185: 0 | O185: 0
A186: 電機機械80 | B186: 電機機械16 | C186: 4564 元翎 | D186: 電機機械 | E186: M1500 | F186: 1116704 | G186: 1628729 | H186: -31.44 | I186: -512025 | J186: 116 | K186: 95 | L186: 80 | M186: 16 | N186: 0 | O186: 0
A187: 電機機械58 | B187: 電機機械38 | C187: 4566 時碩工業 | D187: 電機機械 | E187: M1500 | F187: 3530617 | G187: 4187501 | H187: -15.69 | I187: -656884 | J187: 116 | K187: 95 | L187: 58 | M187: 38 | N187: 0 | O187: 0
A188: 電機機械71 | B188: 電機機械25 | C188: 4568 科際精密 | D188: 電機機械 | E188: M1500 | F188: 885645 | G188: 1131899 | H188: -21.76 | I188: -246254 | J188: 116 | K188: 95 | L188: 71 | M188: 25 | N188: 0 | O188: 0
A189: 電機機械43 | B189: 電機機械53 | C189: 4571 鈞興-KY | D189: 電機機械 | E189: M1500 | F189: 1913436 | G189: 2010622 | H189: -4.83 | I189: -97186 | J189: 116 | K189: 95 | L189: 43 | M189: 53 | N189: 0 | O189: 0
A190: 電機機械11 | B190: 電機機械85 | C190: 4572 駐龍 | D190: 電機機械 | E190: M1500 | F190: 692470 | G190: 526893 | H190: 31.43 | I190: 165577 | J190: 116 | K190: 95 | L190: 11 | M190: 85 | N190: 0 | O190: 0
A191: 電機機械82 | B191: 電機機械14 | C191: 4576 大銀微系統 | D191: 電機機械 | E191: M1500 | F191: 1815186 | G191: 2745323 | H191: -33.88 | I191: -930137 | J191: 116 | K191: 95 | L191: 82 | M191: 14 | N191: 0 | O191: 0
A192: 電機機械26 | B192: 電機機械70 | C192: 4580 捷流閥業 | D192: 電機機械 | E192: M1500 | F192: 2282637 | G192: 2168597 | H192: 5.26 | I192: 114040 | J192: 116 | K192: 95 | L192: 26 | M192: 70 | N192: 0 | O192: 0
A193: 電機機械65 | B193: 電機機械31 | C193: 4583 台灣精銳 | D193: 電機機械 | E193: M1500 | F193: 2244624 | G193: 2779012 | H193: -19.23 | I193: -534388 | J193: 116 | K193: 95 | L193: 65 | M193: 31 | N193: 0 | O193: 0
A194: 電機機械44 | B194: 電機機械52 | C194: 4584 君帆 | D194: 電機機械 | E194: M1500 | F194: 823805 | G194: 872394 | H194: -5.57 | I194: -48589 | J194: 116 | K194: 95 | L194: 44 | M194: 52 | N194: 0 | O194: 0
A195: 電機機械47 | B195: 電機機械49 | C195: 5288 豐祥-KY | D195: 電機機械 | E195: M1500 | F195: 6022270 | G195: 6590273 | H195: -8.62 | I195: -568003 | J195: 116 | K195: 95 | L195: 47 | M195: 49 | N195: 0 | O195: 0
A196: =D196&L196 -> 電機機械2 | B196: =D196&M196 -> 電機機械94 | C196: 6122 擎邦 | D196: 電機機械 | E196: M1500 | F196: 4371105 | G196: 1831934 | H196: 138.61 | I196: =F196-G196 -> 2539171 | J196: =IF(E196="","",MATCH(E196,E:E,0)) -> 116 | K196: =COUNTIF(D:D,D196) -> 95 | L196: =IF(H196="","",RANK(H196,OFFSET(H$1,$J196-1,,$K196,),0)) -> 2 | M196: =IF(H196="","",RANK(H196,OFFSET(H$1,$J196-1,,$K196,),1)) -> 94 | N196: 0 | O196: 0
A197: 電機機械88 | B197: 電機機械8 | C197: 6425 易發 | D197: 電機機械 | E197: M1500 | F197: 794092 | G197: 1352282 | H197: -41.28 | I197: -558190 | J197: 116 | K197: 95 | L197: 88 | M197: 8 | N197: 0 | O197: 0
A198: 電機機械66 | B198: 電機機械30 | C198: 6603 富強鑫 | D198: 電機機械 | E198: M1500 | F198: 3038123 | G198: 3771745 | H198: -19.45 | I198: -733622 | J198: 116 | K198: 95 | L198: 66 | M198: 30 | N198: 0 | O198: 0
A199: 電機機械54 | B199: 電機機械42 | C199: 6606 建德工業 | D199: 電機機械 | E199: M1500 | F199: 667536 | G199: 765145 | H199: -12.76 | I199: -97609 | J199: 116 | K199: 95 | L199: 54 | M199: 42 | N199: 0 | O199: 0
A200: 電機機械68 | B200: 電機機械28 | C200: 6609 瀧澤科 | D200: 電機機械 | E200: M1500 | F200: 2242295 | G200: 2850933 | H200: -21.35 | I200: -608638 | J200: 116 | K200: 95 | L200: 68 | M200: 28 | N200: 0 | O200: 0
... 2800 more rows
